Workbook

Sheet Estimativa Geral
B2: OBJETO: Execução de serviços de perfuração e instalação de poços tubulares em municípios localizados nos Estados do Rio Grande do Norte, Paraíba e Ceará, na área de atuação da Codevasf
B3: PLANILHA ORÇAMENTÁRIA ESTIMATIVA GERAL
B4: PLANILHA RESUMIDA DO GRUPO 01 - RN
B5: ITEM | C5: DISCRIMINAÇÃO | D5: UND | E5: QUANT | F5: UNITÁRIO | G5: TOTAL
B6: 1 | C6: Perfuração e instalação de poço tubular parcialmente revestido, instalado com sistema fotovoltaico, bomba submersa, reservatório e bebedouro para animais. | D6: un | E6: 154 | F6: ='Orç. RN - Parc. Rev - Sintético'!I3 -> 103953.83 | G6: =ROUND(E6*F6,2) -> 16008889.82
B7: 2 | C7: Perfuração e instalação de poços poço tubular totalmente revestido, instalado com sistema fotovoltaico, bomba submersa, reservatório e bebedouro para animais. | D7: un | E7: 26 | F7: ='Orç. RN - Tot. Rev - Sintético'!I3 -> 157526.54 | G7: =ROUND(E7*F7,2) -> 4095690.04
B8: TOTAL GERAL ESTIMADO - GRUPO 01 | D8: un | E8: =SUM(E6:E7) -> 180 | G8: =SUM(G6:G7) -> 20104579.86
B9: PLANILHA RESUMIDA DO GRUPO 02 - PB
B11: ITEM | C11: DISCRIMINAÇÃO | D11: UND | E11: QUANT | F11: UNITÁRIO | G11: TOTAL
B12: 3 | C12: Perfuração e instalação de poço tubular parcialmente revestido, instalado com sistema fotovoltaico, bomba submersa, reservatório e bebedouro para animais. | D12: un | E12: 159 | F12: ='Orç. PB - Parc. Rev - Sintético'!I3 -> 101919.98 | G12: =ROUND(E12*F12,2) -> 16205276.82
B13: 4 | C13: Perfuração e instalação de poços poço tubular totalmente revestido, instalado com sistema fotovoltaico, bomba submersa, reservatório e bebedouro para animais. | D13: un | E13: 21 | F13: ='Orç. PB - Tot. Rev - Sintético'!I3 -> 156834.78 | G13: =ROUND(E13*F13,2) -> 3293530.38
B14: TOTAL GERAL ESTIMADO - GRUPO 02 | D14: un | E14: =SUM(E12:E13) -> 180 | G14: =SUM(G12:G13) -> 19498807.2
B15: PLANILHA RESUMIDA DO GRUPO 03 - CE
B17: ITEM | C17: DISCRIMINAÇÃO | D17: UND | E17: QUANT | F17: UNITÁRIO | G17: TOTAL
B18: 5 | C18: Perfuração e instalação de poço tubular parcialmente revestido, instalado com sistema fotovoltaico, bomba submersa, reservatório e bebedouro para animais. | D18: un | E18: 157 | F18: ='Orç. CE - Parc. Rev - Sintético'!I3 -> 106962.92 | G18: =ROUND(E18*F18,2) -> 16793178.44
B19: 6 | C19: Perfuração e instalação de poços poço tubular totalmente revestido, instalado com sistema fotovoltaico, bomba submersa, reservatório e bebedouro para animais. | D19: un | E19: 23 | F19: ='Orç. CE - Tot. Rev - Sintético'!I3 -> 159245.38 | G19: =ROUND(E19*F19,2) -> 3662643.74
B20: TOTAL GERAL ESTIMADO - GRUPO 03 | D20: un | E20: =SUM(E18:E19) -> 180 | G20: =SUM(G18:G19) -> 20455822.18

Sheet Planilha resumo - RN
B2: OBJETO: EXECUÇÃO DE SERVIÇOS DE PERFURAÇÃO E INSTALAÇÃO DE POÇOS TUBULARES EM MUNICÍPIOS LOCALIZADOS NOS ESTADOS DO RIO GRANDE DO NORTE, PARAÍBA E CEARÁ, NA ÁREA DE ATUAÇÃO DA CODEVASF
B3: PLANILHA ORÇAMENTÁRIA ESTIMATIVA GERAL DATABASE DO ORÇAMENTO: SETEMBRO/2023 - NÃO DESONERADO. PLANILHA RESUMIDA DO GRUPO 01 - RN
B6: ITEM | C6: DISCRIMINAÇÃO | D6: UND | E6: QUANT | F6: UNITÁRIO | G6: TOTAL
B7: 1 | C7: Perfuração e instalação de poço tubular parcialmente revestido, instalado com sistema fotovoltaico, bomba submersa, reservatório e bebedouro para animais. | D7: un | E7: 154 | F7: ='Orç. RN - Parc. Rev - Sintético'!I3 -> 103953.83 | G7: =ROUND(E7*F7,2) -> 16008889.82
B8: 2 | C8: Perfuração e instalação de poços poço tubular totalmente revestido, instalado com sistema fotovoltaico, bomba submersa, reservatório e bebedouro para animais. | D8: un | E8: 26 | F8: ='Orç. RN - Tot. Rev - Sintético'!I3 -> 157526.54 | G8: =ROUND(E8*F8,2) -> 4095690.04
B9: TOTAL GERAL ESTIMADO - GRUPO 01 | D9: un | E9: =SUM(E7:E8) -> 180 | G9: =SUM(G7:G8) -> 20104579.86

Sheet Orç. RN - Parc. Rev - Sintético
H1: B.D.I. SERVIÇOS | I1: B.D.I. MATERIAIS | J1: Encargos Sociais
A2: OBRA: PERFURAÇÃO E INSTALAÇÃO DE POÇO TUBULAR PARCIALMENTE REVESTIDO NO ESTADO DO RIO GRANDE DO NORTE | H2: 25,47% | I2: 0.1528 | J2: Não Desonerado: embutido nos preços unitário dos insumos de mão de obra, de acordo com as bases.
H3: VALOR UNITÁRIO POR POÇO | I3: =ROUND(J98/K3,2) -> 103953.83 | J3: QUANTIDADE DE POÇOS | K3: 154
A4: Orçamento Sintético
A5: Item | B5: Código | C5: Serviço / Material | D5: Banco | E5: Descrição | F5: Und | G5: Quant. | H5: Valor Unit | I5: Valor Unit com BDI | J5: Total | K5: Peso (%)
A6: 1 | E6: SERVIÇOS PRELIMINARES | J6: =SUM(J7:J10) -> 593394.79 | K6: =J6/$J$98 -> 0.03706657967
A7: 1.1 | B7: COMPOSIÇÃO - 001 | C7: Serviço | D7: Próprio | E7: Administração Local da Obra - Poço Parcialmente Revestido | F7: un | G7: 1 | H7: 117233.5 | I7: =ROUND(H7+H7*$H$2,2) -> 147092.87 | J7: =ROUND(G7*I7,2) -> 147092.87 | K7: =J7/$J$98 -> 0.009188199285
A8: 1.2 | B8: COMPOSIÇÃO - 003 | C8: Serviço | D8: Próprio | E8: Serviço de locação Geológica de campo com relatório hidro geológico e perfil construtivo e geológico esperado. Relatório de Viabilidade de implantação das estruturas e vistorias preliminares | F8: un | G8: 154 | H8: 499.9 | I8: =ROUND(H8+H8*$H$2,2) -> 627.22 | J8: =ROUND(G8*I8,2) -> 96591.88 | K8: =J8/$J$98 -> 0.006033640127
A9: 1.3 | B9: COMPOSIÇÃO - 030 | C9: Serviço | D9: Próprio | E9: Procedimentos para emissão de Outorga de uso insignificante e Dispensa de Licenciamento Ambiental (incluso taxas) - Rio Grande do Norte | F9: un | G9: 154 | H9: 1561.53 | I9: 1959.25 | J9: 301724.5 | K9: 0.01884730943
A10: 1.5 | B10: 51 | C10: Serviço | D10: ORSE | E10: Placa de obra em chapa aço galvanizado, instalada | F10: m² | G10: 110.88 | H10: 344.92 | I10: 432.77 | J10: 47985.54 | K10: 0.002997430836
A11: 2 | E11: MOBILIZAÇÂO E DESMOBILIZAÇÂO EQUIPES DE PERFURAÇÂO E INSTALAÇÃO | J11: =SUM(J12:J13) -> 329868 | K11: =J11/$J$98 -> 0.02060530141
A12: 2.1 | B12: COMPOSIÇÃO - 006 | C12: Serviço | D12: Próprio | E12: Transporte de Comboio Perfuração | F12: km | G12: 36960 | H12: 4.38 | I12: =ROUND(H12+H12*$H$2,2) -> 5.5 | J12: =ROUND(G12*I12,2) -> 203280 | K12: 0.01269794485
A13: 2.2 | B13: COMPOSIÇÃO - 007 | C13: Serviço | D13: Próprio | E13: Transporte de Comboio Instalação | F13: km | G13: 18480 | H13: 5.46 | I13: 6.85 | J13: 126588 | K13: 0.007907356564
A14: 3 | E14: PERFURAÇÃO E COMPLETAÇÃO DE POÇO TUBULAR | J14: =SUM(J15:J20) -> 5708325.58 | K14: 0.3565722323
A15: 3.1 | B15: COMPOSIÇÃO - 009 | C15: Serviço | D15: Próprio | E15: Limpeza manual , remoção de cerca, capina e instalação dos equipamentos (área do poço, painéis solares, bebedouro e reservatório) | F15: m² | G15: 10780 | H15: 1.57 | I15: =ROUND(H15+H15*$H$2,2) -> 1.97 | J15: =ROUND(G15*I15,2) -> 21236.6 | K15: 0.00132655045
A16: 3.2 | B16: COMPOSIÇÃO - 013 | C16: Serviço | D16: Próprio | E16: Perfuração em material inconsolidado Ø 8 1/2" | F16: m | G16: 7700 | H16: 215.09 | I16: 269.87 | J16: 2077999 | K16: 0.1298028173
A17: 3.3 | B17: COMPOSIÇÃO - 010 | C17: Serviço | D17: Próprio | E17: Perfuração roto pneumática utilizando martelo de fundo (DTH) em rocha Ø 6 1/8" em rocha | F17: m | G17: 10780 | H17: 172.91 | I17: 216.95 | J17: 2338721 | K17: 0.1460888935
A18: 3.4 | B18: 9854 | C18: Material | D18: SINAPI | E18: Tubo pvc de revestimento geomecanico nervurado standard, dn=154mm, comprimento=2m | F18: m | G18: 7700 | H18: 115.12 | I18: =ROUND(H18+H18*$I$2,2) -> 132.71 | J18: =ROUND(G18*I18,2) -> 1021867 | K18: 0.063831222
A19: 3.5 | B19: COMPOSIÇÃO - 011 | C19: Serviço | D19: Próprio | E19: Serviço de lançamento cimentação anelar poço tubular, incluso material. | F19: m³ | G19: 141.68 | H19: 739.43 | I19: =ROUND(H19+H19*$H$2,2) -> 927.76 | J19: =ROUND(G19*I19,2) -> 131445.04 | K19: 0.008210752993
A20: 3.6 | B20: COMPOSIÇÃO - 014 | C20: Serviço | D20: Próprio | E20: Serviço de instalação de laje sanitária com dimensões (1,5x1,5x0,3) , incluso material. | F20: un | G20: 154 | H20: 605.81 | I20: 760.11 | J20: 117056.94 | K20: 0.007311996104
A21: 4 | E21: PÓS PERFURAÇÃO | J21: =SUM(J22:J25) -> 1533248.64 | K21: 0.09577482619
A22: 4.1 | B22: 6305 | C22: Serviço | D22: ORSE | E22: Serviço de desenvolvimento com compressor 250psi / 750cfm | F22: h | G22: 616 | H22: 411.16 | I22: =ROUND(H22+H22*$H$2,2) -> 515.88 | J22: =ROUND(G22*I22,2) -> 317782.08 | K22: 0.01985035087
A23: 4.2 | B23: 6312 | C23: Serviço | D23: ORSE | E23: Serviço de análise físico-química da Água incluso coleta, transporte e analise | F23: un | G23: 154 | H23: 565.21 | I23: 709.17 | J23: 109212.18 | K23: 0.006821970869
A24: 4.3 | B24: COMPOSIÇÃO - 015 | C24: Serviço | D24: Próprio | E24: Inspeção ótica em poço tubular câmera com rotação de 360º, visada lateral, com fonte própria de luz, entregue vídeo em cores e marcação de profundidades. | F24: m | G24: 5544 | H24: 38.05 | I24: 47.74 | J24: 264670.56 | K24: 0.01653272419
A25: 4.4 | B25: 6314 | C25: Serviço | D25: ORSE | E25: Ensaio de Bombeamento com bomba submersível | F25: h | G25: 1078 | H25: 622.21 | I25: 780.69 | J25: 841583.82 | K25: 0.05256978026
A26: 5 | E26: RESERVAÇÃO | J26: =SUM(J27:J31) -> 1039220.71 | K26: 0.06491522658
A27: 5.1 | B27: COMPOSIÇÃO - 016 | C27: Serviço | D27: Próprio | E27: Execução e instalação de base de sustentação em concreto armado para reservatório de diâmetro 2,06m e altura 1,10m, conforme projeto, incluindo fixação de grampos da tampa. | F27: un | G27: 154 | H27: 2844.22 | I27: =ROUND(H27+H27*$H$2,2) -> 3568.64 | J27: =ROUND(G27*I27,2) -> 549570.56 | K27: =J27/$J$98 -> 0.03432908629
A28: 5.2 | B28: 00037105 | C28: Material | D28: SINAPI | E28: Fornecimento de caixa d'agua / reservatorio em poliester reforcado com fibra de vidro, 5000 litros, com tampa | F28: un | G28: 154 | H28: 2657.22 | I28: =ROUND(H28+H28*$I$2,2) -> 3063.24 | J28: =ROUND(G28*I28,2) -> 471738.96 | K28: =J28/$J$98 -> 0.02946731256
A29: 5.3 | B29: 13960 | C29: Material | D29: ORSE | E29: Fornecimento de cabo de aço 1/8" sem revestimento ( rolo c/ 100 mt) rolo | F29: rolo | G29: 12.32 | H29: 260.96 | I29: 300.83 | J29: 3706.23 | K29: 0.0002315107444
A30: 5.4 | B30: 094248 | C30: Material | D30: SBC | E30: Fornecimento de esticador olhal com gancho de 1/4" 6,35 mm vonder | F30: un | G30: 616 | H30: 13.05 | I30: 15.04 | J30: 9264.64 | K30: 0.0005787184561
A31: 5.5 | B31: 002048 | C31: Material | D31: SBC | E31: Fornecimento de grampo (clip) para cabo de aco pesado 1/8" | F31: un | G31: 616 | H31: 6.96 | I31: 8.02 | J31: 4940.32 | K31: 0.0003085985384
A32: 6 | E32: BEBEDOURO | J32: =SUM(J33) -> 310961.42 | K32: 0.01942429634
A33: 6.1 | B33: COMPOSIÇÃO - 017 | C33: Serviço | D33: Próprio | E33: Serviço de execução do bebedouro em concreto armado, incluso materiais. | F33: un | G33: 154 | H33: 1609.33 | I33: =ROUND(H33+H33*$H$2,2) -> 2019.23 | J33: =ROUND(G33*I33,2) -> 310961.42 | K33: =J33/$J$98 -> 0.01942429634
A34: 7 | E34: INSTALAÇÕES HIDRÁULICAS | J34: =SUM(J35,J51) -> 514393.88 | K34: 0.03213176465
A35: 7.1 | E35: INSTALAÇÕES DE CAVALETE | J35: =SUM(J36:J50) -> 198421.3 | K35: 0.01239444473
A36: 7.1.1 | B36: COMPOSIÇÃO - 018 | C36: Serviço | D36: Próprio | E36: Montagem e Instalação de Tubulação e Conexões Cavalete | F36: un | G36: 154 | H36: 241.87 | I36: =ROUND(H36+H36*$H$2,2) -> 303.47 | J36: =ROUND(G36*I36,2) -> 46734.38 | K36: =J36/$J$98 -> 0.00291927676
A37: 7.1.2 | B37: 00001796 | C37: Material | D37: SINAPI | E37: Fornecimento de curva 90 graus de ferro galvanizado, com rosca bsp macho, de 1 1/4" | F37: un | G37: 154 | H37: 77.17 | I37: =ROUND(H37+H37*$I$2,2) -> 88.96 | J37: =ROUND(G37*I37,2) -> 13699.84 | K37: =J37/$J$98 -> 0.0008557645255
A38: 7.1.3 | B38: 00009888 | C38: Material | D38: SINAPI | E38: Fornecimento de uniao de ferro galvanizado, com rosca bsp, com assento plano, de 1 1/4" | F38: un | G38: 154 | H38: 62.13 | I38: 71.62 | J38: 11029.48 | K38: 0.0006889597045
A39: 7.1.4 | B39: 00004180 | C39: Material | D39: SINAPI | E39: Fornecimento de niple de ferro galvanizado, com rosca bsp, de 1 1/4" | F39: un | G39: 308 | H39: 18.99 | I39: 21.89 | J39: 6742.12 | K39: 0.0004211485041
A40: 7.1.5 | B40: 00006017 | C40: Material | D40: SINAPI | E40: Fornecimento de registro gaveta bruto em latao forjado, bitola 1 1/4 " (ref 1509) | F40: un | G40: 154 | H40: 59.08 | I40: 68.11 | J40: 10488.94 | K40: 0.0006551947148
A41: 7.1.6 | B41: 00000789 | C41: Material | D41: SINAPI | E41: Fornecimento de bucha de reducao de ferro galvanizado, com rosca bsp, de 1 1/4" x 1" | F41: un | G41: 154 | H41: 17.76 | I41: 20.47 | J41: 3152.38 | K41: 0.0001969143417
A42: 7.1.7 | B42: 12438 | C42: Material | D42: ORSE | E42: Fornecimento de hidrômetro multijato d= 3/4", vazão = 5,0m3/h | F42: un | G42: 154 | H42: 297.28 | I42: 342.7 | J42: 52775.8 | K42: 0.003296655833
A43: 7.1.8 | B43: 00009861 | C43: Material | D43: SINAPI | E43: Fornecimento de tubo pvc, roscavel, 1 1/4", agua fria predial | F43: m | G43: 231 | H43: 24.29 | I43: 28 | J43: 6468 | K43: 0.0004040255179
A44: 7.1.9 | B44: 002116 | C44: Material | D44: SBC | E44: Fornecimento de te de reducao ferro galvanizado 1.1/4" x 1/2" | F44: un | G44: 154 | H44: 17.24 | I44: 19.87 | J44: 3059.98 | K44: 0.0001911425486
A45: 7.1.10 | B45: 00011831 | C45: Material | D45: SINAPI | E45: Fornecimento de torneira plastica para tanque 1/2 " ou 3/4 " com bico para mangueira | F45: un | G45: 154 | H45: 14.73 | I45: 16.98 | J45: 2614.92 | K45: 0.0001633417451
A46: 7.1.11 | B46: 1158 | C46: Material | D46: ORSE | E46: Fornecimento de joelho 45° ferro galvanizado d=1 1/ 4" un | F46: un | G46: 308 | H46: 32.7 | I46: 37.7 | J46: 11611.6 | K46: 0.0007253220011
A47: 7.1.12 | B47: 00004205 | C47: Material | D47: SINAPI | E47: Fornecimento de niple de reducao de ferro galvanizado, com rosca bsp, de 1 1/2" x 1 1/4" | F47: un | G47: 154 | H47: 33.32 | I47: 38.41 | J47: 5915.14 | K47: 0.0003694909557
A48: 7.1.13 | B48: 00003939 | C48: Material | D48: SINAPI | E48: Fornecimento de luva de ferro galvanizado, com rosca bsp, de 1 1/2" | F48: un | G48: 154 | H48: 25.6 | I48: 29.51 | J48: 4544.54 | K48: 0.0002838760246
A49: 7.1.14 | B49: 9569 | C49: Material | D49: ORSE | E49: Fornecimento de adaptador pvc bsxrm d= 35mm x 1 1/2", linha irriga-lf, tigre ou similar | F49: un | G49: 154 | H49: 3.04 | I49: 3.5 | J49: 539 | K49: 3.366879316e-05
A50: 7.1.15 | B50: 5128 | C50: Material | D50: ORSE | E50: Fornecimento de tampa de poço galvanizada em 6" | F50: un | G50: 154 | H50: 107.28 | I50: 123.67 | J50: 19045.18 | K50: 0.001189662757
A51: 7.2 | E51: INSTALAÇÕES DE ADUTORA, RESERVATÓRIO E BEBEDOURO | J51: =SUM(J52:J63) -> 315972.58 | K51: 0.01973731992
A52: 7.2.1 | B52: COMPOSIÇÃO - 020 | C52: Serviço | D52: Próprio | E52: Montagem e instalação da rede adutora poço-reservatório-bebedouro | F52: un | G52: 154 | H52: 934.47 | I52: =ROUND(H52+H52*$H$2,2) -> 1172.48 | J52: =ROUND(G52*I52,2) -> 180561.92 | K52: =J52/$J$98 -> 0.01127885331
A53: 7.2.2 | B53: 9501 | C53: Material | D53: ORSE | E53: Fornecimento de tubo PVC p/irrigação LF PN 60 JE Ø 35mm, linha Irriga-LF, Tigre ou similar m | F53: m | G53: 6160 | H53: 13.06 | I53: =ROUND(H53+H53*$I$2,2) -> 15.06 | J53: =ROUND(G53*I53,2) -> 92769.6 | K53: =J53/$J$98 -> 0.005794880285
A54: 7.2.3 | B54: 9516 | C54: Material | D54: ORSE | E54: Fornecimento de curva 90º pvc PTA/BSA soldavel d= 35mm, linha Irriga-LF, Tigre ou similar un | F54: un | G54: 616 | H54: 10.76 | I54: 12.4 | J54: 7638.4 | K54: 0.0004771348973
A55: 7.2.4 | B55: 00000098 | C55: Material | D55: SINAPI | E55: Fornecimento de adaptador pvc soldavel, com flange e anel de vedacao, 40 mm x 1 1/4", para caixa d'água | F55: un | G55: 308 | H55: 27.39 | I55: 31.58 | J55: 9726.64 | K55: 0.0006075774216
A56: 7.2.5 | B56: 8013 | C56: Material | D56: ORSE | E56: Fornecimento de registro esfera vs soldável para irrigação ø 35mm pç | F56: pç | G56: 154 | H56: 37.26 | I56: 42.95 | J56: 6614.3 | K56: 0.0004131641903
A57: 7.2.6 | B57: 00000096 | C57: Material | D57: SINAPI | E57: Fornecimento de adaptador pvc soldavel, com flange e anel de vedacao, 25 mm x 3/4", para caixa d'água | F57: un | G57: 462 | H57: 12.16 | I57: 14.02 | J57: 6477.24 | K57: 0.0004046026972
A58: 7.2.7 | B58: 14071 | C58: Material | D58: ORSE | E58: Fornecimento de tubo pvc para irrigação lf pn 60 ø 25mm, linha irriga-lf, tigre ou similar m | F58: m | G58: 308 | H58: 4.01 | I58: 4.62 | J58: 1422.96 | K58: 8.888561393e-05
A59: 7.2.8 | B59: 14082 | C59: Material | D59: ORSE | E59: Fornecimento de registro esfera lf 25mm | F59: pç | G59: 308 | H59: 11.06 | I59: 12.75 | J59: 3927 | K59: 0.0002453012073
A60: 7.2.9 | B60: 00003529 | C60: Material | D60: SINAPI | E60: Fornecimento de joelho pvc, soldavel, 90 graus, 25 mm, cor marrom, para agua fria predial | F60: un | G60: 308 | H60: 0.72 | I60: 0.83 | J60: 255.64 | K60: 1.596862761e-05
A61: 7.2.10 | B61: 00003535 | C61: Material | D61: SINAPI | E61: Fornecimento de joelho pvc, soldavel, 90 graus, 40 mm, cor marrom, para agua fria predial | F61: un | G61: 154 | H61: 5.83 | I61: 6.72 | J61: 1034.88 | K61: 6.464408286e-05
A62: 7.2.11 | B62: 00000109 | C62: Material | D62: SINAPI | E62: Fornecimento de adaptador pvc soldavel curto com bolsa e rosca, 40 mm x 1 1/4", para agua fria | F62: un | G62: 154 | H62: 3.66 | I62: 4.22 | J62: 649.88 | K62: 4.059494489e-05
A63: 7.2.12 | B63: 00011830 | C63: Material | D63: SINAPI | E63: Fornecimento de torneira de boia convencional para caixa d'agua, agua fria, 3/4", com haste e torneira metalicos e balao plastico | F63: un | G63: 154 | H63: 27.57 | I63: 31.78 | J63: 4894.12 | K63: 0.0003057126419
A64: 8 | E64: FORNECIMENTO E INSTALAÇÃO DE SISTEMA FOTOVOLTAÍCO | J64: =SUM(J65,J71,J82,J84) -> 4640649.12 | K64: 0.289879509
A65: 8.1 | E65: INSTALAÇÕES HIDRÁULICAS | J65: =SUM(J66:J70) -> 399332.41 | K65: 0.02494441616
A66: 8.1.1 | B66: COMPOSIÇÃO - 019 | C66: Serviço | D66: Próprio | E66: Montagem e instalação hidráulica do kit de bombeamento | F66: un | G66: 154 | H66: 126.99 | I66: =ROUND(H66+H66*$H$2,2) -> 159.33 | J66: =ROUND(G66*I66,2) -> 24536.82 | K66: =J66/$J$98 -> 0.001532699661
A67: 8.1.2 | B67: 00038200 | C67: Material | D67: SINAPI | E67: Fornecimento de corda de poliamida 12 mm tipo bombeiro, para trabalho em altura | F67: 100M | G67: 97.02 | H67: 642.37 | I67: =ROUND(H67+H67*$I$2,2) -> 740.52 | J67: =ROUND(G67*I67,2) -> 71845.25 | K67: =J67/$J$98 -> 0.004487834622
A68: 8.1.3 | B68: 00009861 | C68: Material | D68: SINAPI | E68: Fornecimento de tubo pvc, roscavel, 1 1/4", agua fria predial | F68: m | G68: 9240 | H68: 24.29 | I68: 28 | J68: 258720 | K68: 0.01616102071
A69: 8.1.4 | B69: 00004180 | C69: Material | D69: SINAPI | E69: Fornecimento de niple de ferro galvanizado, com rosca bsp, de 1 1/4" | F69: un | G69: 154 | H69: 18.99 | I69: 21.89 | J69: 3371.06 | K69: 0.0002105742521
A70: 8.1.5 | B70: 00003911 | C70: Material | D70: SINAPI | E70: Fornecimento de luva de ferro galvanizado, com rosca bsp, de 1 1/4" | F70: un | G70: 1694 | H70: 20.92 | I70: 24.12 | J70: 40859.28 | K70: 0.002552286914
A71: 8.2 | E71: INSTALAÇÕES ELÉTRICAS | J71: =SUM(J72:J81) -> 459863.65 | K71: =J71/$J$98 -> 0.02872551783
A72: 8.2.1 | B72: COMPOSIÇÃO - 021 | C72: Serviço | D72: Próprio | E72: Montagem e instalação elétrica do kit de bombeamento e sistema fotovoltaico inclusive sistema de aterramento. | F72: un | G72: 154 | H72: 579.26 | I72: =ROUND(H72+H72*$H$2,2) -> 726.8 | J72: =ROUND(G72*I72,2) -> 111927.2 | K72: =J72/$J$98 -> 0.00699156539
A73: 8.2.2 | B73: 00002674 | C73: Material | D73: SINAPI | E73: Fornecimento de eletroduto de pvc rigido roscavel de 3/4 ", sem luva | F73: m | G73: 2310 | H73: 3.48 | I73: =ROUND(H73+H73*$I$2,2) -> 4.01 | J73: =ROUND(G73*I73,2) -> 9263.1 | K73: =J73/$J$98 -> 0.0005786222595
A74: 8.2.3 | B74: 00034622 | C74: Material | D74: SINAPI | E74: Fornecimento de cabo flexivel pvc 750 v, 3 condutores de 6,0 mm2 | F74: m | G74: 11550 | H74: 19.55 | I74: 22.54 | J74: 260337 | K74: 0.01626202709
A75: 8.2.4 | B75: 00012034 | C75: Material | D75: SINAPI | E75: Fornecimento de curva 180 graus, de pvc rigido roscavel, de 3/4", para eletroduto | F75: un | G75: 154 | H75: 3.47 | I75: 4 | J75: 616 | K75: 3.847862075e-05
A76: 8.2.5 | B76: 00039272 | C76: Material | D76: SINAPI | E76: Fornecimento de curva 90 graus, curta, de pvc rigido roscavel, de 3/4", para eletroduto | F76: un | G76: 308 | H76: 1.9 | I76: 2.19 | J76: 674.52 | K76: 4.213408972e-05
A77: 8.2.6 | B77: 00003379 | C77: Material | D77: SINAPI | E77: Fornecimento de haste de aterramento em aco com 3,00 m de comprimento e dn = 5/8", revestida com baixa camada de cobre, sem conector | F77: un | G77: 103.18 | H77: 80.92 | I77: 93.28 | J77: 9624.63 | K77: 0.000601205337
A78: 8.2.7 | B78: 00001891 | C78: Material | D78: SINAPI | E78: Fornecimento de luva em pvc rigido roscavel, de 3/4", para eletroduto | F78: un | G78: 1386 | H78: 0.88 | I78: 1.01 | J78: 1399.86 | K78: 8.744266565e-05
A79: 8.2.8 | B79: 00000425 | C79: Material | D79: SINAPI | E79: Fornecimento de grampo metalico tipo olhal para haste de aterramento de 5/8'', condutor de *10* a 50 mm2 | F79: un | G79: 308 | H79: 7.68 | I79: 8.85 | J79: 2725.8 | K79: 0.0001702678968
A80: 8.2.9 | B80: 00034643 | C80: Material | D80: SINAPI | E80: Fornecimento de caixa de inspecao para aterramento e para raios, em polipropileno, diametro = 300 mm x altura = 400 mm | F80: un | G80: 308 | H80: 41.48 | I80: 47.82 | J80: 14728.56 | K80: 0.0009200238221
A81: 8.2.10 | B81: 00000867 | C81: Material | D81: SINAPI | E81: Fornecimento de cabo de cobre nu 50 mm2 meio-duro | F81: m | G81: 847 | H81: 49.74 | I81: 57.34 | J81: 48566.98 | K81: 0.003033750656
A82: 8.3 | E82: ESTRUTURA DE FIXAÇÃO PARA MÓDULOS FOTOVOLTAICOS | J82: =SUM(J83) -> 333477.76 | K82: 0.02083078613
A83: 8.3.1 | B83: COMPOSIÇÃO - 022 | C83: Serviço | D83: Próprio | E83: Serviço de fixação de estruturas para os módulos fotovoltaicos e suportes de concreto, incluso materiais. | F83: m² | G83: 1232 | H83: 215.73 | I83: =ROUND(H83+H83*$H$2,2) -> 270.68 | J83: =ROUND(G83*I83,2) -> 333477.76 | K83: =J83/$J$98 -> 0.02083078613
A84: 8.4 | E84: FORNECIMENTO DE KIT DE BOMBEAMENTO FOTOVOLTAICO | J84: =SUM(J85) -> 3447975.3 | K84: 0.2153787888
A85: 8.4.1 | B85: COTAÇÃO-002 | C85: Material | D85: Próprio | E85: Fornecimento de kit de bombeamento fotovoltaico, incluindo uma bomba CC de 1500W com imã permanente e sem escovas, controladora de carga, disjuntor CC adequado, caixa de proteção metálica, módulos compatíveis com a geração de 2200Wp (potência mínima de 550 W por módulo) e componentes elétricos necessários como cabos, conectores MC4 e presilhas de fixação. | F85: un | G85: 154 | H85: 19421.8 | I85: =ROUND(H85+H85*$I$2,2) -> 22389.45 | J85: =ROUND(G85*I85,2) -> 3447975.3 | K85: 0.2153787888
A86: 9 | E86: URBANIZAÇÃO | J86: =SUM(J87,J89) -> 610552.25 | K86: 0.03813832545
A87: 9.1 | E87: CERCA | J87: =SUM(J88) -> 411321.68 | K87: 0.02569332943
A88: 9.1.1 | B88: COMPOSIÇÃO - 023 | C88: Serviço | D88: Próprio | E88: Cerca com mourões de concreto de 15x15cm, espaçados de 3m e cravados a 0,5m, escoras de 10x10cm nos cantos, e 9 fios de arame de aço ovalado 15x17. | F88: m | G88: 4312 | H88: 76.03 | I88: =ROUND(H88+H88*$H$2,2) -> 95.39 | J88: =ROUND(G88*I88,2) -> 411321.68 | K88: =J88/$J$98 -> 0.02569332943
A89: 9.2 | E89: PORTÃO | J89: =SUM(J90) -> 199230.57 | K89: 0.01244499601
A90: 9.2.1 | B90: COMPOSIÇÃO - 024 | C90: Serviço | D90: Próprio | E90: Serviço de instalação de portão de ferro com suporte e batedor conforme projeto, incluso material | F90: m² | G90: 231 | H90: 687.39 | I90: =ROUND(H90+H90*$H$2,2) -> 862.47 | J90: =ROUND(G90*I90,2) -> 199230.57 | K90: =J90/$J$98 -> 0.01244499601
A91: 10 | E91: OUTROS SERVIÇOS | J91: =SUM(J92:J97) -> 728275.43 | K91: 0.04549193843
A92: 10.1 | B92: COMPOSIÇÃO - 025 | C92: Serviço | D92: Próprio | E92: Serviço de lançamento de concreto para acabamento do tamponamento, incluso material. | F92: m³ | G92: 5.04504 | H92: 712.26 | I92: =ROUND(H92+H92*$H$2,2) -> 893.67 | J92: =ROUND(G92*I92,2) -> 4508.6 | K92: =J92/$J$98 -> 0.0002816310219
A93: 10.2 | B93: COMPOSIÇÃO - 026 | C93: Serviço | D93: Próprio | E93: Serviço de execução do tamponamento, incluso pedra britada desinfectada. | F93: m³ | G93: 5.04504 | H93: 183.75 | I93: =ROUND(H93+H93*$H$2,2) -> 230.55 | J93: =ROUND(G93*I93,2) -> 1163.13 | K93: 7.265525674e-05
A94: 10.5 | B94: M3929 | C94: Material | D94: SICRO3 | E94: Fornecimento de tubo em aço-carbono - E = 3,00 mm e D = 150 mm (6”) | F94: m | G94: 2310 | H94: 152.0367 | I94: =ROUND(H94+H94*$I$2,2) -> 175.27 | J94: =ROUND(G94*I94,2) -> 404873.7 | K94: 0.02529055447
A95: 10.6 | B95: COTAÇÃO-007 | C95: Material | D95: Próprio | E95: Fornecimento de tubo de revestimento geomecânico classe standart Ø 4" com junta roscável. | F95: m | G95: 2310 | H95: 82.5 | I95: 95.11 | J95: 219704.1 | K95: 0.01372388107
A96: 10.7 | B96: COTAÇÃO-005 | C96: Material | D96: Próprio | E96: Fornecimento tubo filtro geomecânico classe standart Ø 4" com junta roscável. | F96: m | G96: 462 | H96: 86.02 | I96: 99.16 | J96: 45811.92 | K96: 0.002861655025
A97: 10.8 | B97: 5073 | C97: Material | D97: ORSE | E97: Fornecimento de Pré-filtro comum | F97: m³ | G97: 27.96948 | H97: 1619.38 | I97: 1866.82 | J97: 52213.98 | K97: 0.003261561582
I98: Total | J98: =SUM(J91,J86,J64,J34,J32,J26,J21,J14,J11,J6) -> 16008889.82

Sheet Orç. RN - Parc. Rev - Analítico
J1: Encargos Sociais
B2: OBRA: PERFURAÇÃO E INSTALAÇÃO DE POÇO TUBULAR PARCIALMENTE REVESTIDO NO ESTADO DO RIO GRANDE DO NORTE | J2: Não Desonerado: embutido nos preços unitário dos insumos de mão de obra, de acordo com as bases.
B3: Planilha Orçamentária Analítica
B4: 1 | E4: SERVIÇOS PRELIMINARES
B5: 1.1 | C5: Código | D5: Banco | E5: Descrição | F5: Tipo | H5: Und | I5: Quant. | J5: Valor Unit | K5: Total
B6: Composição | C6: COMPOSIÇÃO - 001 | D6: Próprio | E6: Administração Local da Obra - Poço Parcialmente Revestido | F6: SERP - SERVIÇOS PRELIMINARES | H6: un | I6: 1 | J6: =K6 -> 117233.5 | K6: =SUM(K7:K13) -> 117233.5
B7: Composição Auxiliar | C7: 92138 | D7: SINAPI | E7: CAMINHONETE COM MOTOR A DIESEL, POTÊNCIA 180 CV, CABINE DUPLA, 4X4 - CHP DIURNO. AF_11/2015 | F7: CHOR - CUSTOS HORÁRIOS DE MÁQUINAS E EQUIPAMENTOS | H7: CHP | I7: 135 | J7: 87.85 | K7: =ROUND(I7*J7,2) -> 11859.75
B8: Composição Auxiliar | C8: 92139 | D8: SINAPI | E8: CAMINHONETE COM MOTOR A DIESEL, POTÊNCIA 180 CV, CABINE DUPLA, 4X4 - CHI DIURNO. AF_11/2015 | F8: CHOR - CUSTOS HORÁRIOS DE MÁQUINAS E EQUIPAMENTOS | H8: CHI | I8: 165 | J8: 41 | K8: =ROUND(I8*J8,2) -> 6765
B9: Composição Auxiliar | C9: 93572 | D9: SINAPI | E9: ENCARREGADO GERAL DE OBRAS COM ENCARGOS COMPLEMENTARES | F9: SEDI - SERVIÇOS DIVERSOS | H9: MES | I9: 3 | J9: 4156.81 | K9: 12470.43
B10: Composição Auxiliar | C10: 93565 | D10: SINAPI | E10: ENGENHEIRO CIVIL DE OBRA JUNIOR COM ENCARGOS COMPLEMENTARES | F10: SEDI - SERVIÇOS DIVERSOS | H10: MES | I10: 4 | J10: 19764.13 | K10: 79056.52
B11: Insumo | C11: 00014250 | D11: SINAPI | E11: ENERGIA ELETRICA COMERCIAL, BAIXA TENSAO, RELATIVA AO CONSUMO DE ATE 100 KWH, INCLUINDO ICMS, PIS/PASEP E COFINS | F11: Material | H11: KWH | I11: 1400 | J11: 0.9 | K11: 1260
B12: Insumo | C12: 00044480 | D12: SINAPI | E12: TARIFA "A" ENTRE 0 E 20M3 FORNECIMENTO D'AGUA | F12: Taxas | H12: m³ | I12: 60 | J12: 17.03 | K12: 1021.8
B13: Insumo | C13: 4298 | D13: ORSE | E13: Aluguel de container - Escritório com banheiro - 6,20 x 2,40m, equipado com Ar condicionado mês | F13: Serviços | H13: mês | I13: 3 | J13: 1600 | K13: 4800
B15: 1.2 | C15: Código | D15: Banco | E15: Descrição | F15: Tipo | H15: Und | I15: Quant. | J15: Valor Unit | K15: Total
B16: Composição | C16: COMPOSIÇÃO - 003 | D16: Próprio | E16: Serviço de locação Geológica de campo com relatório hidro geológico e perfil construtivo e geológico esperado. Relatório de Viabilidade de implantação das estruturas e vistorias preliminares | F16: SERT - SERVIÇOS TÉCNICOS | H16: un | I16: 1 | J16: =K16 -> 499.9 | K16: =SUM(K17:K19) -> 499.9
B17: Composição Auxiliar | C17: 30.01.45 | D17: EMBASA | E17: GEOLOGO SENIOR | F17: 3001 | H17: hora | I17: 5 | J17: 79.73 | K17: =ROUND(I17*J17,2) -> 398.65
B18: Insumo | C18: 5896 | D18: ORSE | E18: Veículo tipo sedan ou pick-up capacidade 0,6 ton h | F18: Equipamento | H18: h | I18: 5 | J18: 8.33 | K18: 41.65
B19: Insumo | C19: 00004222 | D19: SINAPI | E19: GASOLINA COMUM | F19: Material | H19: L | I19: 10 | J19: 5.96 | K19: 59.6
B21: 1.3 | C21: Código | D21: Banco | E21: Descrição | F21: Tipo | H21: Und | I21: Quant. | J21: Valor Unit | K21: Total
B22: Composição | C22: COMPOSIÇÃO - 030 | D22: Próprio | E22: Procedimentos para emissão de Outorga de uso insignificante e Dispensa de Licenciamento Ambiental (incluso taxas) - Rio Grande do Norte | F22: SERT - SERVIÇOS TÉCNICOS | H22: un | I22: 1 | J22: =K22 -> 1561.53 | K22: =SUM(K23:K23) -> 1561.53
B23: Insumo | C23: COTAÇÃO-010 | D23: Próprio | E23: Procedimentos para Emissão de Outorga de uso insignificante e Dispensa de Licenciamento Ambiental - Rio Grande do Norte | F23: Serviços | H23: un | I23: 1 | J23: 1561.53 | K23: =ROUND(I23*J23,2) -> 1561.53
B25: 2 | E25: MOBILIZAÇÂO E DESMOBILIZAÇÂO EQUIPES DE PERFURAÇÂO E INSTALAÇÃO
B26: 2.1 | C26: Código | D26: Banco | E26: Descrição | F26: Tipo | H26: Und | I26: Quant. | J26: Valor Unit | K26: Total
B27: Composição | C27: COMPOSIÇÃO - 006 | D27: Próprio | E27: Transporte de Comboio Perfuração | F27: TRAN - TRANSPORTES, CARGAS E DESCARGAS | H27: km | I27: 1 | J27: =K27 -> 4.38 | K27: =SUM(K28:K29) -> 4.38
B28: Composição Auxiliar | C28: 5824 | D28: SINAPI | E28: CAMINHÃO TOCO, PBT 16.000 KG, CARGA ÚTIL MÁX. 10.685 KG, DIST. ENTRE EIXOS 4,8 M, POTÊNCIA 189 CV, INCLUSIVE CARROCERIA FIXA ABERTA DE MADEIRA P/ TRANSPORTE GERAL DE CARGA SECA, DIMEN. APROX. 2,5 X 7,00 X 0,50 M - CHP DIURNO. AF_06/2014 | F28: CHOR - CUSTOS HORÁRIOS DE MÁQUINAS E EQUIPAMENTOS | H28: CHP | I28: 0.01666 | J28: 201.45 | K28: =ROUND(I28*J28,2) -> 3.36
B29: Composição Auxiliar | C29: 5826 | D29: SINAPI | E29: CAMINHÃO TOCO, PBT 16.000 KG, CARGA ÚTIL MÁX. 10.685 KG, DIST. ENTRE EIXOS 4,8 M, POTÊNCIA 189 CV, INCLUSIVE CARROCERIA FIXA ABERTA DE MADEIRA P/ TRANSPORTE GERAL DE CARGA SECA, DIMEN. APROX. 2,5 X 7,00 X 0,50 M - CHI DIURNO. AF_06/2014 | F29: CHOR - CUSTOS HORÁRIOS DE MÁQUINAS E EQUIPAMENTOS | H29: CHI | I29: 0.01666 | J29: 61.31 | K29: 1.02
B31: 2.2 | C31: Código | D31: Banco | E31: Descrição | F31: Tipo | H31: Und | I31: Quant. | J31: Valor Unit | K31: Total
B32: Composição | C32: COMPOSIÇÃO - 007 | D32: Próprio | E32: Transporte de Comboio Instalação | F32: TRAN - TRANSPORTES, CARGAS E DESCARGAS | H32: km | I32: 1 | J32: =K32 -> 5.46 | K32: =SUM(K33:K34) -> 5.46
B33: Composição Auxiliar | C33: 5928 | D33: SINAPI | E33: GUINDAUTO HIDRÁULICO, CAPACIDADE MÁXIMA DE CARGA 6200 KG, MOMENTO MÁXIMO DE CARGA 11,7 TM, ALCANCE MÁXIMO HORIZONTAL 9,70 M, INCLUSIVE CAMINHÃO TOCO PBT 16.000 KG, POTÊNCIA DE 189 CV - CHP DIURNO. AF_06/2014 | F33: CHOR - CUSTOS HORÁRIOS DE MÁQUINAS E EQUIPAMENTOS | H33: CHP | I33: 0.01666 | J33: 255.61 | K33: =ROUND(I33*J33,2) -> 4.26
B34: Composição Auxiliar | C34: 5930 | D34: SINAPI | E34: GUINDAUTO HIDRÁULICO, CAPACIDADE MÁXIMA DE CARGA 6200 KG, MOMENTO MÁXIMO DE CARGA 11,7 TM, ALCANCE MÁXIMO HORIZONTAL 9,70 M, INCLUSIVE CAMINHÃO TOCO PBT 16.000 KG, POTÊNCIA DE 189 CV - CHI DIURNO. AF_06/2014 | F34: CHOR - CUSTOS HORÁRIOS DE MÁQUINAS E EQUIPAMENTOS | H34: CHI | I34: 0.01666 | J34: 72.28 | K34: 1.2
B36: 3 | E36: PERFURAÇÃO E COMPLETAÇÃO DE POÇO TUBULAR
B37: 3.1 | C37: Código | D37: Banco | E37: Descrição | F37: Tipo | H37: Und | I37: Quant. | J37: Valor Unit | K37: Total
B38: Composição | C38: COMPOSIÇÃO - 009 | D38: Próprio | E38: Limpeza manual , remoção de cerca, capina e instalação dos equipamentos (área do poço, painéis solares, bebedouro e reservatório) | F38: SEDI - SERVIÇOS DIVERSOS | H38: m² | I38: 1 | J38: =K38 -> 1.57 | K38: =SUM(K39:K39) -> 1.57
B39: Composição Auxiliar | C39: 88316 | D39: SINAPI | E39: SERVENTE COM ENCARGOS COMPLEMENTARES | F39: SEDI - SERVIÇOS DIVERSOS | H39: H | I39: 0.08 | J39: 19.66 | K39: =ROUND(I39*J39,2) -> 1.57
B41: 3.2 | C41: Código | D41: Banco | E41: Descrição | F41: Tipo | H41: Und | I41: Quant. | J41: Valor Unit | K41: Total
B42: Composição | C42: COMPOSIÇÃO - 013 | D42: Próprio | E42: Perfuração em material inconsolidado Ø 8 1/2" | F42: SERT - SERVIÇOS TÉCNICOS | H42: m | I42: 1 | J42: =K42 -> 215.09 | K42: =SUM(K43:K45) -> 215.09
B43: Composição Auxiliar | C43: 88263 | D43: SINAPI | E43: CAVOUQUEIRO OU OPERADOR PERFURATRIZ/ROMPEDOR COM ENCARGOS COMPLEMENTARES | F43: SEDI - SERVIÇOS DIVERSOS | H43: H | I43: 0.2 | J43: 24 | K43: =ROUND(I43*J43,2) -> 4.8
B44: Composição Auxiliar | C44: 88316 | D44: SINAPI | E44: SERVENTE COM ENCARGOS COMPLEMENTARES | F44: SEDI - SERVIÇOS DIVERSOS | H44: H | I44: 0.6 | J44: 19.66 | K44: 11.8
B45: Insumo | C45: 5071 | D45: ORSE | E45: Perfuração rocha sedimentar sedimento / camadas inconsolidadas dn 8.1/2 a 9.1/2" - até 150m m | F45: Serviços | H45: m | I45: 1 | J45: 198.49 | K45: 198.49
B47: 3.3 | C47: Código | D47: Banco | E47: Descrição | F47: Tipo | H47: Und | I47: Quant. | J47: Valor Unit | K47: Total
B48: Composição | C48: COMPOSIÇÃO - 010 | D48: Próprio | E48: Perfuração roto pneumática utilizando martelo de fundo (DTH) em rocha Ø 6 1/8" em rocha | F48: SERT - SERVIÇOS TÉCNICOS | H48: m | I48: 1 | J48: =K48 -> 172.91 | K48: =SUM(K49:K51) -> 172.91
B49: Composição Auxiliar | C49: 88263 | D49: SINAPI | E49: CAVOUQUEIRO OU OPERADOR PERFURATRIZ/ROMPEDOR COM ENCARGOS COMPLEMENTARES | F49: SEDI - SERVIÇOS DIVERSOS | H49: H | I49: 0.2 | J49: 24 | K49: =ROUND(I49*J49,2) -> 4.8
B50: Composição Auxiliar | C50: 88316 | D50: SINAPI | E50: SERVENTE COM ENCARGOS COMPLEMENTARES | F50: SEDI - SERVIÇOS DIVERSOS | H50: H | I50: 0.6 | J50: 19.66 | K50: 11.8
B51: Insumo | C51: 5051 | D51: ORSE | E51: Perfuraçao em rocha metassedimentar - metassedimento alterado / compacto dn 6" (poço 120m) m | F51: Serviços | H51: m | I51: 1 | J51: 156.31 | K51: 156.31
B53: 3.5 | C53: Código | D53: Banco | E53: Descrição | F53: Tipo | H53: Und | I53: Quant. | J53: Valor Unit | K53: Total
B54: Composição | C54: COMPOSIÇÃO - 011 | D54: Próprio | E54: Serviço de lançamento cimentação anelar poço tubular, incluso material. | F54: SEDI - SERVIÇOS DIVERSOS | H54: m³ | I54: 1 | J54: =K54 -> 739.43 | K54: =SUM(K55:K57) -> 739.43
B55: Composição Auxiliar | C55: 1903 | D55: ORSE | E55: Argamassa cimento e areia traço t-1 (1:3) - 1 saco cimento 50kg / 3 padiolas areia dim. 0.35 x 0.45 x 0.23 m - Confecção mecânica e transporte | F55: Argamassas | H55: m³ | I55: 1 | J55: 501.7 | K55: =ROUND(I55*J55,2) -> 501.7
B56: Composição Auxiliar | C56: 88316 | D56: SINAPI | E56: SERVENTE COM ENCARGOS COMPLEMENTARES | F56: SEDI - SERVIÇOS DIVERSOS | H56: H | I56: 7.4 | J56: 19.66 | K56: 145.48
B57: Insumo | C57: 00000124 | D57: SINAPI | E57: ADITIVO ACELERADOR DE PEGA E ENDURECIMENTO PARA ARGAMASSAS E CONCRETOS, LIQUIDO E ISENTO DE CLORETOS | F57: Material | H57: L | I57: 5 | J57: 18.45 | K57: 92.25
B59: 3.6 | C59: Código | D59: Banco | E59: Descrição | F59: Tipo | H59: Und | I59: Quant. | J59: Valor Unit | K59: Total
B60: Composição | C60: COMPOSIÇÃO - 014 | D60: Próprio | E60: Serviço de instalação de laje sanitária com dimensões (1,5x1,5x0,3) , incluso material. | F60: SEDI - SERVIÇOS DIVERSOS | H60: un | I60: 1 | J60: =K60 -> 605.81 | K60: =SUM(K61:K64) -> 605.81
B61: Composição Auxiliar | C61: 92522 | D61: SINAPI | E61: MONTAGEM E DESMONTAGEM DE FÔRMA DE LAJE MACIÇA, PÉ-DIREITO SIMPLES, EM CHAPA DE MADEIRA COMPENSADA RESINADA, 8 UTILIZAÇÕES. AF_09/2020 | F61: FUES - FUNDAÇÕES E ESTRUTURAS | H61: m² | I61: 1.8 | J61: 46.14 | K61: =ROUND(I61*J61,2) -> 83.05
B62: Composição Auxiliar | C62: 93358 | D62: SINAPI | E62: ESCAVAÇÃO MANUAL DE VALA COM PROFUNDIDADE MENOR OU IGUAL A 1,30 M. AF_02/2021 | F62: MOVT - MOVIMENTO DE TERRA | H62: m³ | I62: 0.225 | J62: 77.77 | K62: 17.5
B63: Composição Auxiliar | C63: 94975 | D63: SINAPI | E63: CONCRETO FCK = 15MPA, TRAÇO 1:3,4:3,5 (EM MASSA SECA DE CIMENTO/ AREIA MÉDIA/ BRITA 1) - PREPARO MANUAL. AF_05/2021 | F63: FUES - FUNDAÇÕES E ESTRUTURAS | H63: m³ | I63: 0.675 | J63: 486.02 | K63: 328.06
B64: Composição Auxiliar | C64: 103670 | D64: SINAPI | E64: LANÇAMENTO COM USO DE BALDES, ADENSAMENTO E ACABAMENTO DE CONCRETO EM ESTRUTURAS. AF_02/2022 | F64: FUES - FUNDAÇÕES E ESTRUTURAS | H64: m³ | I64: 0.675 | J64: 262.52 | K64: 177.2
B66: 4 | E66: PÓS PERFURAÇÃO
B68: 4.3 | C68: Código | D68: Banco | E68: Descrição | F68: Tipo | H68: Und | I68: Quant. | J68: Valor Unit | K68: Total
B69: Composição | C69: COMPOSIÇÃO - 015 | D69: Próprio | E69: Inspeção ótica em poço tubular câmera com rotação de 360º, visada lateral, com fonte própria de luz, entregue vídeo em cores e marcação de profundidades. | F69: SEES - SERVIÇOS ESPECIAIS | H69: m | I69: 1 | J69: =K69 -> 38.05 | K69: =SUM(K70:K74) -> 38.05
B70: Insumo | C70: H020050004 | D70: EMBASA | E70: APARELHO DE PERFILAGEM OPTICA | F70: Material | H70: M | I70: 1 | J70: 4.4 | K70: =ROUND(I70*J70,2) -> 4.4
B71: Insumo | C71: B590000022 | D71: EMBASA | E71: TECNICO MEDIO | F71: Mão de Obra | H71: H | I71: 0.0835 | J71: 48.54 | K71: 4.05
B72: Insumo | C72: B590000028 | D72: EMBASA | E72: AUXILIAR TECNICO | F72: Mão de Obra | H72: H | I72: 0.0835 | J72: 22.47 | K72: 1.88
B73: Insumo | C73: F020000340 | D73: EMBASA | E73: DIÁRIA PARA PROFISSIONAL (INTERIOR) | F73: Material | H73: DIA | I73: 0.021 | J73: 227 | K73: 4.77
B74: Insumo | C74: F030000250 | D74: EMBASA | E74: LOCAÇÃO DE VEÍCULO PICK UP TIPO SAVEIRO OU SIMILAR | F74: Material | H74: DIA | I74: 0.25 | J74: 91.8 | K74: 22.95
B76: 5 | E76: RESERVAÇÃO
B77: 5.1 | C77: Código | D77: Banco | E77: Descrição | F77: Tipo | H77: Und | I77: Quant. | J77: Valor Unit | K77: Total
B78: Composição | C78: COMPOSIÇÃO - 016 | D78: Próprio | E78: Execução e instalação de base de sustentação em concreto armado para reservatório de diâmetro 2,06m e altura 1,10m, conforme projeto, incluindo fixação de grampos da tampa. | F78: SEDI - SERVIÇOS DIVERSOS | H78: un | I78: 1 | J78: =K78 -> 2844.22 | K78: =SUM(K79:K97) -> 2844.22
B79: Composição Auxiliar | C79: 5928 | D79: SINAPI | E79: GUINDAUTO HIDRÁULICO, CAPACIDADE MÁXIMA DE CARGA 6200 KG, MOMENTO MÁXIMO DE CARGA 11,7 TM, ALCANCE MÁXIMO HORIZONTAL 9,70 M, INCLUSIVE CAMINHÃO TOCO PBT 16.000 KG, POTÊNCIA DE 189 CV - CHP DIURNO. AF_06/2014 | F79: CHOR - CUSTOS HORÁRIOS DE MÁQUINAS E EQUIPAMENTOS | H79: CHP | I79: 2.5 | J79: 255.61 | K79: =ROUND(I79*J79,2) -> 639.03
B80: Composição Auxiliar | C80: 88310 | D80: SINAPI | E80: PINTOR COM ENCARGOS COMPLEMENTARES | F80: SEDI - SERVIÇOS DIVERSOS | H80: H | I80: 0.3 | J80: 27.42 | K80: 8.23
B81: Composição Auxiliar | C81: 100301 | D81: SINAPI | E81: AJUDANTE DE PINTOR COM ENCARGOS COMPLEMENTARES | F81: SEDI - SERVIÇOS DIVERSOS | H81: H | I81: 0.1 | J81: 22.76 | K81: 2.28
B82: Composição Auxiliar | C82: 88309 | D82: SINAPI | E82: PEDREIRO COM ENCARGOS COMPLEMENTARES | F82: SEDI - SERVIÇOS DIVERSOS | H82: H | I82: 5.55 | J82: 24.11 | K82: 133.81
B83: Composição Auxiliar | C83: 88316 | D83: SINAPI | E83: SERVENTE COM ENCARGOS COMPLEMENTARES | F83: SEDI - SERVIÇOS DIVERSOS | H83: H | I83: 10 | J83: 19.66 | K83: 196.6
B84: Composição Auxiliar | C84: 88245 | D84: SINAPI | E84: ARMADOR COM ENCARGOS COMPLEMENTARES | F84: SEDI - SERVIÇOS DIVERSOS | H84: H | I84: 3 | J84: 25.68 | K84: 77.04
B85: Composição Auxiliar | C85: 88262 | D85: SINAPI | E85: CARPINTEIRO DE FORMAS COM ENCARGOS COMPLEMENTARES | F85: SEDI - SERVIÇOS DIVERSOS | H85: H | I85: 2 | J85: 22.84 | K85: 45.68
B86: Composição Auxiliar | C86: 87445 | D86: SINAPI | E86: BETONEIRA CAPACIDADE NOMINAL 400 L, CAPACIDADE DE MISTURA 310 L, MOTOR A DIESEL POTÊNCIA 5,0 HP, SEM CARREGADOR - CHP DIURNO. AF_05/2023 | F86: CHOR - CUSTOS HORÁRIOS DE MÁQUINAS E EQUIPAMENTOS | H86: CHP | I86: 2.8548 | J86: 4.69 | K86: 13.39
B87: Composição Auxiliar | C87: 88377 | D87: SINAPI | E87: OPERADOR DE BETONEIRA ESTACIONÁRIA/MISTURADOR COM ENCARGOS COMPLEMENTARES | F87: SEDI - SERVIÇOS DIVERSOS | H87: H | I87: 2.8548 | J87: 26.3 | K87: 75.08
B88: Insumo | C88: 00007155 | D88: SINAPI | E88: TELA DE ACO SOLDADA NERVURADA, CA-60, Q-138, (2,20 KG/M2), DIAMETRO DO FIO = 4,2 MM, LARGURA = 2,45 M, ESPACAMENTO DA MALHA = 10 X 10 CM | F88: Material | H88: m² | I88: 6 | J88: 16.59 | K88: 99.54
B89: Insumo | C89: 00000370 | D89: SINAPI | E89: AREIA MEDIA - POSTO JAZIDA/FORNECEDOR (RETIRADO NA JAZIDA, SEM TRANSPORTE) | F89: Material | H89: m³ | I89: 1.36 | J89: 100 | K89: 136
B90: Insumo | C90: 00001379 | D90: SINAPI | E90: CIMENTO PORTLAND COMPOSTO CP II-32 | F90: Material | H90: KG | I90: 565.75 | J90: 0.72 | K90: 407.34
B91: Insumo | C91: 00004718 | D91: SINAPI | E91: PEDRA BRITADA N. 2 (19 A 38 MM) POSTO PEDREIRA/FORNECEDOR, SEM FRETE | F91: Material | H91: m³ | I91: 0.33 | J91: 140 | K91: 46.2
B92: Insumo | C92: 00004721 | D92: SINAPI | E92: PEDRA BRITADA N. 1 (9,5 a 19 MM) POSTO PEDREIRA/FORNECEDOR, SEM FRETE | F92: Material | H92: m³ | I92: 0.98 | J92: 139.26 | K92: 136.47
B93: Insumo | C93: 00003767 | D93: SINAPI | E93: LIXA EM FOLHA PARA PAREDE OU MADEIRA, NUMERO 120, COR VERMELHA | F93: Material | H93: UN | I93: 0.12 | J93: 0.63 | K93: 0.08
B94: Insumo | C94: 00007356 | D94: SINAPI | E94: TINTA LATEX ACRILICA PREMIUM, COR BRANCO FOSCO | F94: Material | H94: L | I94: 0.18 | J94: 16.96 | K94: 3.05
B95: Insumo | C95: 00000032 | D95: SINAPI | E95: ACO CA-50, 6,3 MM, VERGALHAO | F95: Material | H95: KG | I95: 9.3 | J95: 10.68 | K95: 99.32
B96: Insumo | C96: 00043059 | D96: SINAPI | E96: ACO CA-60, 4,2 MM, OU 5,0 MM, OU 6,0 MM, OU 7,0 MM, VERGALHAO | F96: Material | H96: KG | I96: 3.04 | J96: 9.58 | K96: 29.12
B97: Insumo | C97: 00043681 | D97: SINAPI | E97: CHAPA/PAINEL DE MADEIRA COMPENSADA RESINADA (MADEIRITE RESINADO ROSA) PARA FORMA DE CONCRETO, DE 2200 x 1100 MM, E = 8 A 12 MM | F97: Material | H97: m² | I97: 17.46 | J97: 39.86 | K97: 695.96
B99: 6 | E99: BEBEDOURO
B100: 6.1 | C100: Código | D100: Banco | E100: Descrição | F100: Tipo | H100: Und | I100: Quant. | J100: Valor Unit | K100: Total
B101: Composição | C101: COMPOSIÇÃO - 017 | D101: Próprio | E101: Serviço de execução do bebedouro em concreto armado, incluso materiais. | F101: SEDI - SERVIÇOS DIVERSOS | H101: un | I101: 1 | J101: =K101 -> 1609.33 | K101: =SUM(K102:K120) -> 1609.33
B102: Composição Auxiliar | C102: 5928 | D102: SINAPI | E102: GUINDAUTO HIDRÁULICO, CAPACIDADE MÁXIMA DE CARGA 6200 KG, MOMENTO MÁXIMO DE CARGA 11,7 TM, ALCANCE MÁXIMO HORIZONTAL 9,70 M, INCLUSIVE CAMINHÃO TOCO PBT 16.000 KG, POTÊNCIA DE 189 CV - CHP DIURNO. AF_06/2014 | F102: CHOR - CUSTOS HORÁRIOS DE MÁQUINAS E EQUIPAMENTOS | H102: CHP | I102: 2 | J102: 255.61 | K102: =ROUND(I102*J102,2) -> 511.22
B103: Composição Auxiliar | C103: 87445 | D103: SINAPI | E103: BETONEIRA CAPACIDADE NOMINAL 400 L, CAPACIDADE DE MISTURA 310 L, MOTOR A DIESEL POTÊNCIA 5,0 HP, SEM CARREGADOR - CHP DIURNO. AF_05/2023 | F103: CHOR - CUSTOS HORÁRIOS DE MÁQUINAS E EQUIPAMENTOS | H103: CHP | I103: 0.5 | J103: 4.69 | K103: 2.35
B104: Composição Auxiliar | C104: 88377 | D104: SINAPI | E104: OPERADOR DE BETONEIRA ESTACIONÁRIA/MISTURADOR COM ENCARGOS COMPLEMENTARES | F104: SEDI - SERVIÇOS DIVERSOS | H104: H | I104: 0.5 | J104: 26.3 | K104: 13.15
B105: Composição Auxiliar | C105: 88310 | D105: SINAPI | E105: PINTOR COM ENCARGOS COMPLEMENTARES | F105: SEDI - SERVIÇOS DIVERSOS | H105: H | I105: 0.3 | J105: 27.42 | K105: 8.23
B106: Composição Auxiliar | C106: 100301 | D106: SINAPI | E106: AJUDANTE DE PINTOR COM ENCARGOS COMPLEMENTARES | F106: SEDI - SERVIÇOS DIVERSOS | H106: H | I106: 0.1 | J106: 22.76 | K106: 2.28
B107: Composição Auxiliar | C107: 88245 | D107: SINAPI | E107: ARMADOR COM ENCARGOS COMPLEMENTARES | F107: SEDI - SERVIÇOS DIVERSOS | H107: H | I107: 3 | J107: 25.68 | K107: 77.04
B108: Composição Auxiliar | C108: 88262 | D108: SINAPI | E108: CARPINTEIRO DE FORMAS COM ENCARGOS COMPLEMENTARES | F108: SEDI - SERVIÇOS DIVERSOS | H108: H | I108: 2 | J108: 22.84 | K108: 45.68
B109: Composição Auxiliar | C109: 88316 | D109: SINAPI | E109: SERVENTE COM ENCARGOS COMPLEMENTARES | F109: SEDI - SERVIÇOS DIVERSOS | H109: H | I109: 5 | J109: 19.66 | K109: 98.3
B110: Composição Auxiliar | C110: 88309 | D110: SINAPI | E110: PEDREIRO COM ENCARGOS COMPLEMENTARES | F110: SEDI - SERVIÇOS DIVERSOS | H110: H | I110: 4 | J110: 24.11 | K110: 96.44
B111: Insumo | C111: 00043055 | D111: SINAPI | E111: ACO CA-50, 12,5 MM OU 16,0 MM, VERGALHAO | F111: Material | H111: KG | I111: 12 | J111: 8.77 | K111: 105.24
B112: Insumo | C112: 00043059 | D112: SINAPI | E112: ACO CA-60, 4,2 MM, OU 5,0 MM, OU 6,0 MM, OU 7,0 MM, VERGALHAO | F112: Material | H112: KG | I112: 13 | J112: 9.58 | K112: 124.54
B113: Insumo | C113: 00000032 | D113: SINAPI | E113: ACO CA-50, 6,3 MM, VERGALHAO | F113: Material | H113: KG | I113: 6 | J113: 10.68 | K113: 64.08
B114: Insumo | C114: 00000370 | D114: SINAPI | E114: AREIA MEDIA - POSTO JAZIDA/FORNECEDOR (RETIRADO NA JAZIDA, SEM TRANSPORTE) | F114: Material | H114: m³ | I114: 0.32 | J114: 100 | K114: 32
B115: Insumo | C115: 00001379 | D115: SINAPI | E115: CIMENTO PORTLAND COMPOSTO CP II-32 | F115: Material | H115: KG | I115: 127 | J115: 0.72 | K115: 91.44
B116: Insumo | C116: 00004718 | D116: SINAPI | E116: PEDRA BRITADA N. 2 (19 A 38 MM) POSTO PEDREIRA/FORNECEDOR, SEM FRETE | F116: Material | H116: m³ | I116: 0.08 | J116: 140 | K116: 11.2
B117: Insumo | C117: 00004721 | D117: SINAPI | E117: PEDRA BRITADA N. 1 (9,5 a 19 MM) POSTO PEDREIRA/FORNECEDOR, SEM FRETE | F117: Material | H117: m³ | I117: 0.23 | J117: 139.26 | K117: 32.03
B118: Insumo | C118: 00003767 | D118: SINAPI | E118: LIXA EM FOLHA PARA PAREDE OU MADEIRA, NUMERO 120, COR VERMELHA | F118: Material | H118: UN | I118: 0.12 | J118: 0.63 | K118: 0.08
B119: Insumo | C119: 00007356 | D119: SINAPI | E119: TINTA LATEX ACRILICA PREMIUM, COR BRANCO FOSCO | F119: Material | H119: L | I119: 0.18 | J119: 16.96 | K119: 3.05
B120: Insumo | C120: 00043681 | D120: SINAPI | E120: CHAPA/PAINEL DE MADEIRA COMPENSADA RESINADA (MADEIRITE RESINADO ROSA) PARA FORMA DE CONCRETO, DE 2200 x 1100 MM, E = 8 A 12 MM | F120: Material | H120: m² | I120: 7.3 | J120: 39.86 | K120: 290.98
B122: 7 | E122: INSTALAÇÕES HIDRÁULICAS
B123: 7.1 | E123: INSTALAÇÕES DE CAVALETE
B124: 7.1.1 | C124: Código | D124: Banco | E124: Descrição | F124: Tipo | H124: Und | I124: Quant. | J124: Valor Unit | K124: Total
B125: Composição | C125: COMPOSIÇÃO - 018 | D125: Próprio | E125: Montagem e Instalação de Tubulação e Conexões Cavalete | F125: INHI - INSTALAÇÕES HIDROS SANITÁRIAS | H125: un | I125: 1 | J125: =K125 -> 241.87 | K125: =SUM(K126:K129) -> 241.87
B126: Composição Auxiliar | C126: 88248 | D126: SINAPI | E126: AUXILIAR DE ENCANADOR OU BOMBEIRO HIDRÁULICO COM ENCARGOS COMPLEMENTARES | F126: SEDI - SERVIÇOS DIVERSOS | H126: H | I126: 3 | J126: 19.09 | K126: =ROUND(I126*J126,2) -> 57.27
B127: Composição Auxiliar | C127: 88267 | D127: SINAPI | E127: ENCANADOR OU BOMBEIRO HIDRÁULICO COM ENCARGOS COMPLEMENTARES | F127: SEDI - SERVIÇOS DIVERSOS | H127: H | I127: 3 | J127: 23.24 | K127: 69.72
B128: Insumo | C128: 00000122 | D128: SINAPI | E128: ADESIVO PLASTICO PARA PVC, FRASCO COM *850* GR | F128: Material | H128: UN | I128: 1 | J128: 53.86 | K128: 53.86
B129: Insumo | C129: 00020083 | D129: SINAPI | E129: SOLUCAO PREPARADORA / LIMPADORA PARA PVC, FRASCO COM 1000 CM3 | F129: Material | H129: UN | I129: 1 | J129: 61.02 | K129: 61.02
B131: 7.2 | E131: INSTALAÇÕES DE ADUTORA, RESERVATÓRIO E BEBEDOURO
B132: 7.2.1 | C132: Código | D132: Banco | E132: Descrição | F132: Tipo | H132: Und | I132: Quant. | J132: Valor Unit | K132: Total
B133: Composição | C133: COMPOSIÇÃO - 020 | D133: Próprio | E133: Montagem e instalação da rede adutora poço-reservatório-bebedouro | F133: SEDI - SERVIÇOS DIVERSOS | H133: un | I133: 1 | J133: =K133 -> 934.47 | K133: =SUM(K134:K139) -> 934.47
B134: Composição Auxiliar | C134: 88316 | D134: SINAPI | E134: SERVENTE COM ENCARGOS COMPLEMENTARES | F134: SEDI - SERVIÇOS DIVERSOS | H134: H | I134: 6 | J134: 19.66 | K134: =ROUND(I134*J134,2) -> 117.96
B135: Composição Auxiliar | C135: 96995 | D135: SINAPI | E135: REATERRO MANUAL APILOADO COM SOQUETE. AF_10/2017 | F135: MOVT - MOVIMENTO DE TERRA | H135: m³ | I135: 4.5 | J135: 47.16 | K135: 212.22
B136: Composição Auxiliar | C136: 93358 | D136: SINAPI | E136: ESCAVAÇÃO MANUAL DE VALA COM PROFUNDIDADE MENOR OU IGUAL A 1,30 M. AF_02/2021 | F136: MOVT - MOVIMENTO DE TERRA | H136: m³ | I136: 4.5 | J136: 77.77 | K136: 349.97
B137: Composição Auxiliar | C137: 88267 | D137: SINAPI | E137: ENCANADOR OU BOMBEIRO HIDRÁULICO COM ENCARGOS COMPLEMENTARES | F137: SEDI - SERVIÇOS DIVERSOS | H137: H | I137: 6 | J137: 23.24 | K137: 139.44
B138: Insumo | C138: 00000122 | D138: SINAPI | E138: ADESIVO PLASTICO PARA PVC, FRASCO COM *850* GR | F138: Material | H138: UN | I138: 1 | J138: 53.86 | K138: 53.86
B139: Insumo | C139: 00020083 | D139: SINAPI | E139: SOLUCAO PREPARADORA / LIMPADORA PARA PVC, FRASCO COM 1000 CM3 | F139: Material | H139: UN | I139: 1 | J139: 61.02 | K139: 61.02
B141: 8 | E141: FORNECIMENTO E INSTALAÇÃO DE SISTEMA FOTOVOLTAÍCO
B142: 8.1 | E142: INSTALAÇÕES HIDRÁULICAS
B143: 8.1.1 | C143: Código | D143: Banco | E143: Descrição | F143: Tipo | H143: Und | I143: Quant. | J143: Valor Unit | K143: Total
B144: Composição | C144: COMPOSIÇÃO - 019 | D144: Próprio | E144: Montagem e instalação hidráulica do kit de bombeamento | F144: INHI - INSTALAÇÕES HIDROS SANITÁRIAS | H144: un | I144: 1 | J144: =K144 -> 126.99 | K144: =SUM(K145:K146) -> 126.99
B145: Composição Auxiliar | C145: 88267 | D145: SINAPI | E145: ENCANADOR OU BOMBEIRO HIDRÁULICO COM ENCARGOS COMPLEMENTARES | F145: SEDI - SERVIÇOS DIVERSOS | H145: H | I145: 3 | J145: 23.24 | K145: =ROUND(I145*J145,2) -> 69.72
B146: Composição Auxiliar | C146: 88248 | D146: SINAPI | E146: AUXILIAR DE ENCANADOR OU BOMBEIRO HIDRÁULICO COM ENCARGOS COMPLEMENTARES | F146: SEDI - SERVIÇOS DIVERSOS | H146: H | I146: 3 | J146: 19.09 | K146: 57.27
B148: 8.2 | E148: INSTALAÇÕES ELÉTRICAS
B149: 8.2.1 | C149: Código | D149: Banco | E149: Descrição | F149: Tipo | H149: Und | I149: Quant. | J149: Valor Unit | K149: Total
B150: Composição | C150: COMPOSIÇÃO - 021 | D150: Próprio | E150: Montagem e instalação elétrica do kit de bombeamento e sistema fotovoltaico inclusive sistema de aterramento. | F150: INEL - INSTALAÇÃO ELÉTRICA/ELETRIFICAÇÃO E ILUMINAÇÃO EXTERNA | H150: un | I150: 1 | J150: =K150 -> 579.26 | K150: =SUM(K151:K155) -> 579.26
B151: Composição Auxiliar | C151: 88264 | D151: SINAPI | E151: ELETRICISTA COM ENCARGOS COMPLEMENTARES | F151: SEDI - SERVIÇOS DIVERSOS | H151: H | I151: 8 | J151: 27.73 | K151: =ROUND(I151*J151,2) -> 221.84
B152: Composição Auxiliar | C152: 88247 | D152: SINAPI | E152: AUXILIAR DE ELETRICISTA COM ENCARGOS COMPLEMENTARES | F152: SEDI - SERVIÇOS DIVERSOS | H152: H | I152: 8 | J152: 22.67 | K152: 181.36
B153: Composição Auxiliar | C153: 91677 | D153: SINAPI | E153: ENGENHEIRO ELETRICISTA COM ENCARGOS COMPLEMENTARES | F153: SEDI - SERVIÇOS DIVERSOS | H153: H | I153: 1 | J153: 166.97 | K153: 166.97
B154: Insumo | C154: 00020111 | D154: SINAPI | E154: FITA ISOLANTE ADESIVA ANTICHAMA, USO ATE 750 V, EM ROLO DE 19 MM X 20 M | F154: Material | H154: UN | I154: 1 | J154: 8 | K154: 8
B155: Insumo | C155: 00000404 | D155: SINAPI | E155: FITA ISOLANTE DE BORRACHA AUTOFUSAO, USO ATE 69 KV (ALTA TENSAO) | F155: Material | H155: M | I155: 1 | J155: 1.09 | K155: 1.09
B157: 8.3 | E157: ESTRUTURA DE FIXAÇÃO PARA MÓDULOS FOTOVOLTAICOS
B158: 8.3.1 | C158: Código | D158: Banco | E158: Descrição | F158: Tipo | H158: Und | I158: Quant. | J158: Valor Unit | K158: Total
B159: Composição | C159: COMPOSIÇÃO - 022 | D159: Próprio | E159: Serviço de fixação de estruturas para os módulos fotovoltaicos e suportes de concreto, incluso materiais. | F159: SEDI - SERVIÇOS DIVERSOS | H159: m² | I159: 1 | J159: =K159 -> 215.73 | K159: =SUM(K160:K163) -> 215.73
B160: Composição Auxiliar | C160: 94975 | D160: SINAPI | E160: CONCRETO FCK = 15MPA, TRAÇO 1:3,4:3,5 (EM MASSA SECA DE CIMENTO/ AREIA MÉDIA/ BRITA 1) - PREPARO MANUAL. AF_05/2021 | F160: FUES - FUNDAÇÕES E ESTRUTURAS | H160: m³ | I160: 0.0945 | J160: 486.02 | K160: =ROUND(I160*J160,2) -> 45.93
B161: Composição Auxiliar | C161: 93358 | D161: SINAPI | E161: ESCAVAÇÃO MANUAL DE VALA COM PROFUNDIDADE MENOR OU IGUAL A 1,30 M. AF_02/2021 | F161: MOVT - MOVIMENTO DE TERRA | H161: m³ | I161: 0.0625 | J161: 77.77 | K161: 4.86
B162: Composição Auxiliar | C162: 96534 | D162: SINAPI | E162: FABRICAÇÃO, MONTAGEM E DESMONTAGEM DE FÔRMA PARA BLOCO DE COROAMENTO, EM MADEIRA SERRADA, E=25 MM, 4 UTILIZAÇÕES. AF_06/2017 | F162: FUES - FUNDAÇÕES E ESTRUTURAS | H162: m² | I162: 0.032 | J162: 91.74 | K162: 2.94
B163: Insumo | C163: COTAÇÃO-003 | D163: Próprio | E163: Fornecimento suporte fabricado em material metálico resistente a corrosão e ataque químico do solo fabricado em alumínio ou aço galvanizado ou aço zincado ou similares, a ser fixado nos blocos de concreto | F163: Material | H163: m² | I163: 1 | J163: 162 | K163: 162
B165: 8.4 | E165: FORNECIMENTO DE KIT DE BOMBEAMENTO FOTOVOLTAICO
C166: Código | D166: Banco | E166: Descrição | F166: Tipo | H166: Und | I166: Quant. | J166: Valor Unit | K166: Total
B167: Insumo | C167: COTAÇÃO-002 | D167: Próprio | E167: Fornecimento de kit de bombeamento fotovoltaico, incluindo uma bomba CC de 1500W com imã permanente e sem escovas, controladora de carga, disjuntor CC adequado, caixa de proteção metálica, módulos compatíveis com a geração de 2200Wp (potência mínima de 550 W por módulo) e componentes elétricos necessários como cabos, conectores MC4 e presilhas de fixação. | F167: Equipamento para Aquisição Permanente | H167: un | I167: 1 | J167: 19421.8 | K167: =ROUND(I167*J167,2) -> 19421.8
B169: 9 | E169: URBANIZAÇÃO
B170: 9.1 | E170: CERCA
B171: 9.1.1 | C171: Código | D171: Banco | E171: Descrição | F171: Tipo | H171: Und | I171: Quant. | J171: Valor Unit | K171: Total
B172: Composição | C172: COMPOSIÇÃO - 023 | D172: Próprio | E172: Cerca com mourões de concreto de 15x15cm, espaçados de 3m e cravados a 0,5m, escoras de 10x10cm nos cantos, e 9 fios de arame de aço ovalado 15x17. | F172: SEDI - SERVIÇOS DIVERSOS | H172: m | I172: 1 | J172: =K172 -> 76.03 | K172: =SUM(K173:K179) -> 76.03
B173: Composição Auxiliar | C173: 88309 | D173: SINAPI | E173: PEDREIRO COM ENCARGOS COMPLEMENTARES | F173: SEDI - SERVIÇOS DIVERSOS | H173: H | I173: 0.335 | J173: 24.11 | K173: =ROUND(I173*J173,2) -> 8.08
B174: Composição Auxiliar | C174: 88316 | D174: SINAPI | E174: SERVENTE COM ENCARGOS COMPLEMENTARES | F174: SEDI - SERVIÇOS DIVERSOS | H174: H | I174: 0.671 | J174: 19.66 | K174: 13.19
B175: Composição Auxiliar | C175: 94975 | D175: SINAPI | E175: CONCRETO FCK = 15MPA, TRAÇO 1:3,4:3,5 (EM MASSA SECA DE CIMENTO/ AREIA MÉDIA/ BRITA 1) - PREPARO MANUAL. AF_05/2021 | F175: FUES - FUNDAÇÕES E ESTRUTURAS | H175: m³ | I175: 0.0288 | J175: 486.02 | K175: 14
B176: Insumo | C176: 00043130 | D176: SINAPI | E176: ARAME GALVANIZADO 12 BWG, D = 2,76 MM (0,048 KG/M) OU 14 BWG, D = 2,11 MM (0,026 KG/M) | F176: Material | H176: KG | I176: 0.098 | J176: 25 | K176: 2.45
B177: Insumo | C177: 00000346 | D177: SINAPI | E177: ARAME DE ACO OVALADO 15 X 17 ( 45,7 KG, 700 KGF), ROLO 1000 M | F177: Material | H177: KG | I177: 0.405 | J177: 29.61 | K177: 11.99
B178: Insumo | C178: 00004111 | D178: SINAPI | E178: ESCORA PRE-MOLDADA EM CONCRETO, *10 X 10* CM, H = 2,30M | F178: Material | H178: UN | I178: 0.16 | J178: 67.36 | K178: 10.78
B179: Insumo | C179: I1533 | D179: SEINFRA | E179: MOURÃO CONCRETO BASE 15X15CM H=2.3 C/ 12 FUROS | F179: Material | H179: UN | I179: 0.42 | J179: 37.01 | K179: 15.54
B181: 9.2 | E181: PORTÃO
B182: 9.2.1 | C182: Código | D182: Banco | E182: Descrição | F182: Tipo | H182: Und | I182: Quant. | J182: Valor Unit | K182: Total
B183: Composição | C183: COMPOSIÇÃO - 024 | D183: Próprio | E183: Serviço de instalação de portão de ferro com suporte e batedor conforme projeto, incluso material | F183: SEDI - SERVIÇOS DIVERSOS | H183: m² | I183: 1 | J183: =K183 -> 687.39 | K183: =SUM(K184:K188) -> 687.39
B184: Composição Auxiliar | C184: 88309 | D184: SINAPI | E184: PEDREIRO COM ENCARGOS COMPLEMENTARES | F184: SEDI - SERVIÇOS DIVERSOS | H184: H | I184: 1.5 | J184: 24.11 | K184: =ROUND(I184*J184,2) -> 36.17
B185: Composição Auxiliar | C185: 88316 | D185: SINAPI | E185: SERVENTE COM ENCARGOS COMPLEMENTARES | F185: SEDI - SERVIÇOS DIVERSOS | H185: H | I185: 1.5 | J185: 19.66 | K185: 29.49
B186: Insumo | C186: 00000367 | D186: SINAPI | E186: AREIA GROSSA - POSTO JAZIDA/FORNECEDOR (RETIRADO NA JAZIDA, SEM TRANSPORTE) | F186: Material | H186: m³ | I186: 0.061 | J186: 101.3 | K186: 6.18
B187: Insumo | C187: 00001379 | D187: SINAPI | E187: CIMENTO PORTLAND COMPOSTO CP II-32 | F187: Material | H187: KG | I187: 4.83 | J187: 0.72 | K187: 3.48
B188: Insumo | C188: 00004948 | D188: SINAPI | E188: PORTAO DE ABRIR / GIRO, EM GRADIL DE METALON REDONDO DE 3/4" VERTICAL, COM REQUADRO, ACABAMENTO NATURAL - COMPLETO | F188: Material | H188: m² | I188: 1 | J188: 612.07 | K188: 612.07
B190: 10 | E190: OUTROS SERVIÇOS
B191: 10.1 | C191: Código | D191: Banco | E191: Descrição | F191: Tipo | H191: Und | I191: Quant. | J191: Valor Unit | K191: Total
B192: Composição | C192: COMPOSIÇÃO - 025 | D192: Próprio | E192: Serviço de lançamento de concreto para acabamento do tamponamento, incluso material. | F192: SEDI - SERVIÇOS DIVERSOS | H192: m³ | I192: 1 | J192: =K192 -> 712.26 | K192: =SUM(K193:K194) -> 712.26
B193: Composição Auxiliar | C193: 103670 | D193: SINAPI | E193: LANÇAMENTO COM USO DE BALDES, ADENSAMENTO E ACABAMENTO DE CONCRETO EM ESTRUTURAS. AF_02/2022 | F193: FUES - FUNDAÇÕES E ESTRUTURAS | H193: m³ | I193: 1 | J193: 262.52 | K193: =ROUND(I193*J193,2) -> 262.52
B194: Composição Auxiliar | C194: 94974 | D194: SINAPI | E194: CONCRETO MAGRO PARA LASTRO, TRAÇO 1:4,5:4,5 (EM MASSA SECA DE CIMENTO/ AREIA MÉDIA/ BRITA 1) - PREPARO MANUAL. AF_05/2021 | F194: FUES - FUNDAÇÕES E ESTRUTURAS | H194: m³ | I194: 1 | J194: 449.74 | K194: 449.74
B196: 10.2 | C196: Código | D196: Banco | E196: Descrição | F196: Tipo | H196: Und | I196: Quant. | J196: Valor Unit | K196: Total
B197: Composição | C197: COMPOSIÇÃO - 026 | D197: Próprio | E197: Serviço de execução do tamponamento, incluso pedra britada desinfectada. | F197: SEDI - SERVIÇOS DIVERSOS | H197: m³ | I197: 1 | J197: =K197 -> 183.75 | K197: =SUM(K198:K200) -> 183.75
B198: Composição Auxiliar | C198: 88316 | D198: SINAPI | E198: SERVENTE COM ENCARGOS COMPLEMENTARES | F198: SEDI - SERVIÇOS DIVERSOS | H198: H | I198: 0.1 | J198: 19.66 | K198: =ROUND(I198*J198,2) -> 1.97
B199: Insumo | C199: 00004720 | D199: SINAPI | E199: PEDRA BRITADA N. 0, OU PEDRISCO (4,8 A 9,5 MM) POSTO PEDREIRA/FORNECEDOR, SEM FRETE | F199: Material | H199: m³ | I199: 1 | J199: 160.78 | K199: 160.78
B200: Insumo | C200: D240000003 | D200: EMBASA | E200: HIPOCLORITO DE SÓDIO | F200: Material | H200: L | I200: 5 | J200: 4.2 | K200: 21
C203: Código | D203: Banco | E203: Descrição | F203: Tipo | H203: Und | I203: Quant. | J203: Valor Unit | K203: Total
B204: Insumo | C204: COTAÇÃO-007 | D204: Próprio | E204: Fornecimento tubo de revestimento geomecânico classe standart Ø 4" com junta roscável. | F204: Material | H204: m | I204: 1 | J204: 82.5 | K204: =ROUND(I204*J204,2) -> 82.5
C206: Código | D206: Banco | E206: Descrição | F206: Tipo | H206: Und | I206: Quant. | J206: Valor Unit | K206: Total
B207: Insumo | C207: COTAÇÃO-005 | D207: Próprio | E207: Fornecimento tubo filtro geomecânico classe standart Ø 4" com junta roscável. | F207: Material | H207: m | I207: 1 | J207: 86.02 | K207: =ROUND(I207*J207,2) -> 86.02

Sheet Crono. RN - Parc.Rev
C1: MINISTÉRIO DO DESENVOLVIMENTO REGIONAL - MDR COMPANHIA DE DESENVOLVIMENTO DOS VALES DO SÃO FRANCISCO E DO PARNAÍBA ÁREA DE REVITALIZAÇÃO E SUSTENTABILIDADE SOCIOAMBIENTAL
A6: OBJETO: | B6: PERFURAÇÃO E INSTALAÇÃO DE POÇO TUBULAR PARCIALMENTE REVESTIDO NO ESTADO DO RIO GRANDE DO NORTE
A8: CRONOGRAMA FÍSICO-FINANCEIRO
A10: ITEM | B10: ESPECIFICAÇÃO DOS SERVIÇOS | C10: VALOR TOTAL (R$) | D10: Mês 01 | E10: Mês 02 | F10: Mês 03 | G10: Mês 04 | H10: Mês 05 | I10: Mês 06 | J10: Mês 07 | K10: Mês 08 | L10: Mês 09 | M10: Mês 10 | N10: Mês 11 | O10: Mês 12
A11: 1 | B11: SERVIÇOS PRELIMINARES | C11: ='Orç. RN - Parc. Rev - Sintético'!J6 -> 593394.79 | D11: =$C$11/12 -> 49449.56583 | E11: =$C$11/12 -> 49449.56583 | F11: 49449.56583 | G11: 49449.56583 | H11: 49449.56583 | I11: 49449.56583 | J11: 49449.56583 | K11: 49449.56583 | L11: 49449.56583 | M11: 49449.56583 | N11: 49449.56583 | O11: 49449.56583
A12: 2 | B12: MOBILIZAÇÂO E DESMOBILIZAÇÂO EQUIPES PERFURAÇÂO E INSTALAÇÃO | C12: ='Orç. RN - Parc. Rev - Sintético'!J11 -> 329868 | D12: =$C$12/12 -> 27489 | E12: =$C$12/12 -> 27489 | F12: 27489 | G12: 27489 | H12: 27489 | I12: 27489 | J12: 27489 | K12: 27489 | L12: 27489 | M12: 27489 | N12: 27489 | O12: 27489
A13: 3 | B13: PERFURAÇÃO E COMPLETAÇÃO DE POÇO TUBULAR | C13: ='Orç. RN - Parc. Rev - Sintético'!J14 -> 5708325.58 | D13: =$C$13/12 -> 475693.7983 | E13: =$C$13/12 -> 475693.7983 | F13: 475693.7983 | G13: 475693.7983 | H13: 475693.7983 | I13: 475693.7983 | J13: 475693.7983 | K13: 475693.7983 | L13: 475693.7983 | M13: 475693.7983 | N13: 475693.7983 | O13: 475693.7983
A14: 4 | B14: PÓS PERFURAÇÃO | C14: ='Orç. RN - Parc. Rev - Sintético'!J21 -> 1533248.64 | D14: =$C$14/12 -> 127770.72 | E14: =$C$14/12 -> 127770.72 | F14: 127770.72 | G14: 127770.72 | H14: 127770.72 | I14: 127770.72 | J14: 127770.72 | K14: 127770.72 | L14: 127770.72 | M14: 127770.72 | N14: 127770.72 | O14: 127770.72
A15: 5 | B15: RESERVAÇÃO | C15: ='Orç. RN - Parc. Rev - Sintético'!J26 -> 1039220.71 | D15: =$C$15/12 -> 86601.72583 | E15: =$C$15/12 -> 86601.72583 | F15: 86601.72583 | G15: 86601.72583 | H15: 86601.72583 | I15: 86601.72583 | J15: 86601.72583 | K15: 86601.72583 | L15: 86601.72583 | M15: 86601.72583 | N15: 86601.72583 | O15: 86601.72583
A16: 6 | B16: BEBEDOURO | C16: ='Orç. RN - Parc. Rev - Sintético'!J32 -> 310961.42 | D16: =$C$16/12 -> 25913.45167 | E16: =$C$16/12 -> 25913.45167 | F16: 25913.45167 | G16: 25913.45167 | H16: 25913.45167 | I16: 25913.45167 | J16: 25913.45167 | K16: 25913.45167 | L16: 25913.45167 | M16: 25913.45167 | N16: 25913.45167 | O16: 25913.45167
A17: 7 | B17: INSTALAÇÕES HIDRÁULICAS | C17: ='Orç. RN - Parc. Rev - Sintético'!J34 -> 514393.88 | D17: =$C$17/12 -> 42866.15667 | E17: =$C$17/12 -> 42866.15667 | F17: 42866.15667 | G17: 42866.15667 | H17: 42866.15667 | I17: 42866.15667 | J17: 42866.15667 | K17: 42866.15667 | L17: 42866.15667 | M17: 42866.15667 | N17: 42866.15667 | O17: 42866.15667
A18: 8 | B18: ='Orç. PB - Tot. Rev - Sintético'!E70 -> FORNECIMENTO E INSTALAÇÃO DE SISTEMA FOTOVOLTAÍCO | C18: ='Orç. RN - Parc. Rev - Sintético'!J64 -> 4640649.12 | D18: =$C$18/12 -> 386720.76 | E18: =$C$18/12 -> 386720.76 | F18: 386720.76 | G18: 386720.76 | H18: 386720.76 | I18: 386720.76 | J18: 386720.76 | K18: 386720.76 | L18: 386720.76 | M18: 386720.76 | N18: 386720.76 | O18: 386720.76
A19: 9 | B19: URBANIZAÇÃO | C19: ='Orç. RN - Parc. Rev - Sintético'!J86 -> 610552.25 | D19: =$C$19/12 -> 50879.35417 | E19: =$C$19/12 -> 50879.35417 | F19: 50879.35417 | G19: 50879.35417 | H19: 50879.35417 | I19: 50879.35417 | J19: 50879.35417 | K19: 50879.35417 | L19: 50879.35417 | M19: 50879.35417 | N19: 50879.35417 | O19: 50879.35417
A20: 10 | B20: OUTROS SERVIÇOS | C20: ='Orç. RN - Parc. Rev - Sintético'!J91 -> 728275.43 | D20: =$C$20/12 -> 60689.61917 | E20: =$C$20/12 -> 60689.61917 | F20: 60689.61917 | G20: 60689.61917 | H20: 60689.61917 | I20: 60689.61917 | J20: 60689.61917 | K20: 60689.61917 | L20: 60689.61917 | M20: 60689.61917 | N20: 60689.61917 | O20: 60689.61917
A21: TOTAL | C21: =SUM(C11:C20) -> 16008889.82 | D21: =SUM(D11:D20) -> 1334074.152 | E21: =SUM(E11:E20) -> 1334074.152 | F21: 1334074.152 | G21: 1334074.152 | H21: 1334074.152 | I21: 1334074.152 | J21: 1334074.152 | K21: 1334074.152 | L21: 1334074.152 | M21: 1334074.152 | N21: 1334074.152 | O21: 1334074.152
A22: PERCENTUAL | D22: =D21/$C$21 -> 0.08333333333 | E22: 0.08333333333 | F22: 0.08333333333 | G22: 0.08333333333 | H22: 0.08333333333 | I22: 0.08333333333 | J22: 0.08333333333 | K22: 0.08333333333 | L22: 0.08333333333 | M22: 0.08333333333 | N22: 0.08333333333 | O22: 0.08333333333
A23: CUSTO ACUMULADO | D23: =D21 -> 1334074.152 | E23: =E21+D23 -> 2668148.303 | F23: =F21+E23 -> 4002222.455 | G23: 5336296.607 | H23: 6670370.758 | I23: 8004444.91 | J23: 9338519.062 | K23: 10672593.21 | L23: 12006667.37 | M23: 13340741.52 | N23: 14674815.67 | O23: 16008889.82
A24: PERCENTUAL ACUMULADO | D24: =D22 -> 0.08333333333 | E24: =E22+D24 -> 0.1666666667 | F24: 0.25 | G24: 0.3333333333 | H24: 0.4166666667 | I24: 0.5 | J24: 0.5833333333 | K24: 0.6666666667 | L24: 0.75 | M24: 0.8333333333 | N24: 0.9166666667 | O24: 1

Sheet Orç. RN - Tot. Rev - Sintético
H1: B.D.I. SERVIÇO | I1: B.D.I. MATERIAL | J1: Encargos Sociais
A2: OBRA:PERFURAÇÃO E INSTALAÇÃO DE POÇO TUBULAR TOTALMENTE REVESTIDO NO ESTADO DO RIO GRANDE DO NORTE | H2: 25,47% | I2: 0.1528 | J2: Não Desonerado: embutido nos preços unitário dos insumos de mão de obra, de acordo com as bases.
H3: VALOR UNITÁRIO POR POÇO | I3: =ROUND(J102/K3,2) -> 157526.54 | J3: QUANTIDADE DE POÇOS | K3: 26
A4: Orçamento Sintético
A5: Item | B5: Código | C5: Serviço / Material | D5: Banco | E5: Descrição | F5: Und | G5: Quant. | H5: Valor Unit | I5: Valor Unit com BDI | J5: Total | K5: Peso (%)
A6: 1 | E6: SERVIÇOS PRELIMINARES | J6: =SUM(J7:J10) -> 262906.54 | K6: =J6/$J$102 -> 0.06419102457
A7: 1.1 | B7: COMPOSIÇÃO - 002 | C7: Serviço | D7: Próprio | E7: Administração Local da Obra - Poço Totalmente Revestido | F7: un | G7: 1 | H7: 149483.29 | I7: =ROUND(H7+H7*$H$2,2) -> 187556.68 | J7: =ROUND(G7*I7,2) -> 187556.68 | K7: =J7/$J$102 -> 0.04579367046
A8: 1.2 | B8: COMPOSIÇÃO - 003 | C8: Serviço | D8: Próprio | E8: Serviço de locação Geológica de campo com relatório hidro geológico e perfil construtivo e geológico esperado. Relatório de Viabilidade de implantação das estruturas e vistorias preliminares | F8: un | G8: 26 | H8: 499.9 | I8: =ROUND(H8+H8*$H$2,2) -> 627.22 | J8: =ROUND(G8*I8,2) -> 16307.72 | K8: 0.003981678262
A9: 1.3 | B9: COMPOSIÇÃO - 030 | C9: Serviço | D9: Próprio | E9: Procedimentos para emissão de Outorga de uso insignificante e Dispensa de Licenciamento Ambiental (incluso taxas) - Rio Grande do Norte | F9: un | G9: 26 | H9: 1561.53 | I9: 1959.25 | J9: 50940.5 | K9: 0.01243758671
A10: 1.4 | B10: 51 | C10: Serviço | D10: ORSE | E10: Placa de obra em chapa aço galvanizado, instalada | F10: m² | G10: 18.72 | H10: 344.93 | I10: 432.78 | J10: 8101.64 | K10: 0.001978089143
A11: 2 | E11: MOBILIZAÇÂO E DESMOBILIZAÇÂO EQUIPES PERFURAÇÂO E INSTALAÇÃO | J11: =SUM(J12:J14) -> 60504.6 | K11: 0.01477274877
A12: 2.1 | B12: COMPOSIÇÃO - 006 | C12: Serviço | D12: Próprio | E12: Transporte de Comboio Perfuração | F12: km | G12: 6240 | H12: 4.38 | I12: =ROUND(H12+H12*$H$2,2) -> 5.5 | J12: =ROUND(G12*I12,2) -> 34320 | K12: 0.008379540362
A13: 2.2 | B13: COMPOSIÇÃO - 007 | C13: Serviço | D13: Próprio | E13: Transporte de Comboio Instalação | F13: km | G13: 3120 | H13: 5.46 | I13: 6.85 | J13: 21372 | K13: 0.005218168316
A14: 2.3 | B14: COMPOSIÇÃO - 008 | C14: Serviço | D14: Próprio | E14: Transporte de água em caminhão pipa para preparo do fluído de perfuração rotativa | F14: km | G14: 780 | H14: 4.92 | I14: 6.17 | J14: 4812.6 | K14: 0.001175040092
A15: 3 | E15: PERFURAÇÃO E COMPLETAÇÃO DE POÇO TUBULAR | J15: =SUM(J16:J26) -> 2076822.47 | K15: 0.5070751082
A16: 3.1 | B16: COMPOSIÇÃO - 009 | C16: Serviço | D16: Próprio | E16: Limpeza manual , remoção de cerca, capina e instalação dos equipamentos (área do poço, painéis solares, bebedouro e reservatório) | F16: m² | G16: 1820 | H16: 1.57 | I16: =ROUND(H16+H16*$H$2,2) -> 1.97 | J16: =ROUND(G16*I16,2) -> 3585.4 | K16: 0.0008754080424
A17: 3.2 | B17: COMPOSIÇÃO - 012 | C17: Serviço | D17: Próprio | E17: Perfuração rotativa com circulação direta Ø 9.1/2" | F17: m | G17: 3900 | H17: 264.87 | I17: 332.33 | J17: 1296087 | K17: 0.3164514373
A18: 3.3 | B18: COTAÇÃO-007 | C18: Material | D18: Próprio | E18: Fornecimento tubo de revestimento geomecânico classe standart Ø 4" com junta roscável. | F18: m | G18: 3484 | H18: 82.5 | I18: =ROUND(H18+H18*$I$2,2) -> 95.11 | J18: =ROUND(G18*I18,2) -> 331363.24 | K18: 0.08090535093
A19: 3.4 | B19: COTAÇÃO-005 | C19: Material | D19: Próprio | E19: Fornecimento tubo filtro geomecânico classe standart Ø 4" com junta roscável. | F19: m | G19: 416 | H19: 86.02 | I19: =ROUND(H19+H19*$I$2,2) -> 99.16 | J19: =ROUND(G19*I19,2) -> 41250.56 | K19: 0.01007169966
A20: 3.5 | B20: A.09.000.020926 | C20: Material | D20: CPOS/CDHU | E20: Fornecimento de centralizador de coluna para poço profundo, diâmetro de 4´ | F20: un | G20: 260 | H20: 298.01 | I20: 343.55 | J20: 89323 | K20: 0.02180902342
A21: 3.6 | B21: 00009875 | C21: Material | D21: SINAPI | E21: Fornecimento de tubo pvc, soldavel, de 50 mm, agua fria (nbr-5648) - tubo de recarga prè filtro | F21: m | G21: 182 | H21: 15.24 | I21: 17.57 | J21: 3197.74 | K21: 0.0007807573251
A22: 3.7 | B22: I5785 | C22: Material | D22: SEINFRA | E22: Fornecimento de cap pvc femea standard dn 100 | F22: un | G22: 26 | H22: 78.87 | I22: 90.92 | J22: 2363.92 | K22: 0.0005771725831
A23: 3.8 | B23: 5073 | C23: Material | D23: ORSE | E23: Fornecimento de pré-filtro comum | F23: m³ | G23: 141.7 | H23: 1619.38 | I23: 1866.82 | J23: 264528.39 | K23: 0.06458701401
A24: 3.9 | B24: 00043366 | C24: Material | D24: SINAPI | E24: Fornecimento de bentonita, argila constituida por montmorilonita | F24: kg | G24: 11700 | H24: 1.54 | I24: 1.78 | J24: 20826 | K24: 0.005084857447
A25: 3.10 | B25: COMPOSIÇÃO - 011 | C25: Serviço | D25: Próprio | E25: Serviço de lançamento cimentação anelar poço tubular, incluso material. | F25: m³ | G25: 4.888 | H25: 739.47 | I25: =ROUND(H25+H25*$H$2,2) -> 927.81 | J25: =ROUND(G25*I25,2) -> 4535.14 | K25: 0.001107295707
A26: 3.11 | B26: COMPOSIÇÃO - 014 | C26: Serviço | D26: Próprio | E26: Serviço de instalação de laje sanitária com dimensões (1,5x1,5x0,3) , incluso material. | F26: un | G26: 26 | H26: 605.79 | I26: 760.08 | J26: 19762.08 | K26: 0.004825091696
A27: 4 | E27: PÓS PERFURAÇÃO | J27: =SUM(J28:J31) -> 270031.32 | K27: 0.06593060446
A28: 4.1 | B28: 6305 | C28: Serviço | D28: ORSE | E28: Serviço de desenvolvimento com compressor 250psi / 750cfm | F28: h | G28: 104 | H28: 411.16 | I28: =ROUND(H28+H28*$H$2,2) -> 515.88 | J28: =ROUND(G28*I28,2) -> 53651.52 | K28: 0.01309950691
A29: 4.2 | B29: 6312 | C29: Serviço | D29: ORSE | E29: Serviço de análise físico-química da Água incluso coleta, transporte e analise | F29: un | G29: 26 | H29: 565.21 | I29: 709.17 | J29: 18438.42 | K29: 0.004501908059
A30: 4.3 | B30: COMPOSIÇÃO - 015 | C30: Serviço | D30: Próprio | E30: Inspeção ótica em poço tubular câmera com rotação de 360º, visada lateral, com fonte própria de luz, entregue vídeo em cores e marcação de profundidades. | F30: m | G30: 1170 | H30: 38.05 | I30: 47.74 | J30: 55855.8 | K30: 0.01363770194
A31: 4.4 | B31: 6314 | C31: Serviço | D31: ORSE | E31: Ensaio de Bombeamento com bomba submersível | F31: h | G31: 182 | H31: 622.21 | I31: 780.69 | J31: 142085.58 | K31: 0.03469148754
A32: 5 | E32: RESERVAÇÃO | J32: =SUM(J33:J37) -> 175453.63 | K32: 0.04283860065
A33: 5.1 | B33: COMPOSIÇÃO - 016 | C33: Serviço | D33: Próprio | E33: Execução e instalação de base de sustentação em concreto armado para reservatório de diâmetro 2,06m e altura 1,10m, conforme projeto, incluindo fixação de grampos da tampa. | F33: un | G33: 26 | H33: 2844.24 | I33: =ROUND(H33+H33*$H$2,2) -> 3568.67 | J33: =ROUND(G33*I33,2) -> 92785.42 | K33: 0.02265440478
A34: 5.2 | B34: 00037105 | C34: Material | D34: SINAPI | E34: Fornecimento de caixa d'agua / reservatorio em poliester reforcado com fibra de vidro, 5000 litros, com tampa | F34: un | G34: 26 | H34: 2657.22 | I34: =ROUND(H34+H34*$I$2,2) -> 3063.24 | J34: =ROUND(G34*I34,2) -> 79644.24 | K34: 0.01944586607
A35: 5.3 | B35: 13960 | C35: Material | D35: ORSE | E35: Fornecimento de cabo de aço 1/8" sem revestimento ( rolo c/ 100 mt) rolo | F35: rolo | G35: 2.08 | H35: 260.96 | I35: 300.83 | J35: 625.73 | K35: 0.0001527776746
A36: 5.4 | B36: 094248 | C36: Material | D36: SBC | E36: Fornecimento de esticador olhal com gancho de 1/4" 6,35 mm vonder | F36: un | G36: 104 | H36: 13.05 | I36: 15.04 | J36: 1564.16 | K36: 0.0003819039001
A37: 5.5 | B37: 002048 | C37: Material | D37: SBC | E37: Fornecimento de grampo (clip) para cabo de aco pesado 1/8" | F37: un | G37: 104 | H37: 6.96 | I37: 8.02 | J37: 834.08 | K37: 0.0002036482233
A38: 6 | E38: BEBEDOURO | J38: =SUM(J39) -> 52500.5 | K38: 0.01281847491
A39: 6.1 | B39: COMPOSIÇÃO - 017 | C39: Serviço | D39: Próprio | E39: Serviço de execução do bebedouro em concreto armado, incluso materiais. | F39: un | G39: 26 | H39: 1609.35 | I39: =ROUND(H39+H39*$H$2,2) -> 2019.25 | J39: =ROUND(G39*I39,2) -> 52500.5 | K39: 0.01281847491
A40: 7 | E40: INSTALAÇÕES HIDRÁULICAS | J40: =SUM(J41,J57) -> 86845.72 | K40: 0.02120417296
A41: 7.1 | E41: INSTALAÇÕES DE CAVALETE | J41: =SUM(J42:J56) -> 33499.7 | K41: 0.008179256651
A42: 7.1.1 | B42: COMPOSIÇÃO - 018 | C42: Serviço | D42: Próprio | E42: Montagem e Instalação de Tubulação e Conexões Cavalete | F42: un | G42: 26 | H42: 241.87 | I42: =ROUND(H42+H42*$H$2,2) -> 303.47 | J42: =ROUND(G42*I42,2) -> 7890.22 | K42: 0.001926469025
A43: 7.1.2 | B43: 00001796 | C43: Material | D43: SINAPI | E43: Fornecimento de curva 90 graus de ferro galvanizado, com rosca bsp macho, de 1 1/4" | F43: un | G43: 26 | H43: 77.17 | I43: =ROUND(H43+H43*$I$2,2) -> 88.96 | J43: =ROUND(G43*I43,2) -> 2312.96 | K43: 0.0005647302353
A44: 7.1.3 | B44: 00009888 | C44: Material | D44: SINAPI | E44: Fornecimento de uniao de ferro galvanizado, com rosca bsp, com assento plano, de 1 1/4" | F44: un | G44: 26 | H44: 62.13 | I44: 71.62 | J44: 1862.12 | K44: 0.000454653546
A45: 7.1.4 | B45: 00004180 | C45: Material | D45: SINAPI | E45: Fornecimento de niple de ferro galvanizado, com rosca bsp, de 1 1/4" | F45: un | G45: 52 | H45: 18.99 | I45: 21.89 | J45: 1138.28 | K45: 0.000277921422
A46: 7.1.5 | B46: 00006017 | C46: Material | D46: SINAPI | E46: Fornecimento de registro gaveta bruto em latao forjado, bitola 1 1/4 " (ref 1509) | F46: un | G46: 26 | H46: 59.08 | I46: 68.11 | J46: 1770.86 | K46: 0.0004323715864
A47: 7.1.6 | B47: 00000789 | C47: Material | D47: SINAPI | E47: Fornecimento de bucha de reducao de ferro galvanizado, com rosca bsp, de 1 1/4" x 1" | F47: un | G47: 26 | H47: 17.76 | I47: 20.47 | J47: 532.22 | K47: 0.000129946357
A48: 7.1.7 | B48: 12438 | C48: Material | D48: ORSE | E48: Fornecimento de hidrômetro multijato d= 3/4", vazão = 5,0m3/h | F48: un | G48: 26 | H48: 297.28 | I48: 342.7 | J48: 8910.2 | K48: 0.002175506426
A49: 7.1.8 | B49: 00009861 | C49: Material | D49: SINAPI | E49: Fornecimento de tubo pvc, roscavel, 1 1/4", agua fria predial | F49: m | G49: 39 | H49: 24.29 | I49: 28 | J49: 1092 | K49: 0.0002666217388
A50: 7.1.9 | B50: 002116 | C50: Material | D50: SBC | E50: Fornecimento de te de reducao ferro galvanizado 1.1/4" x 1/2" | F50: un | G50: 26 | H50: 17.24 | I50: 19.87 | J50: 516.62 | K50: 0.000126137475
A51: 7.1.10 | B51: 00011831 | C51: Material | D51: SINAPI | E51: Fornecimento de torneira plastica para tanque 1/2 " ou 3/4 " com bico para mangueira | F51: un | G51: 26 | H51: 14.73 | I51: 16.98 | J51: 441.48 | K51: 0.0001077913601
A52: 7.1.11 | B52: 1158 | C52: Material | D52: ORSE | E52: Fornecimento de joelho 45° ferro galvanizado d=1 1/ 4" | F52: un | G52: 52 | H52: 32.7 | I52: 37.7 | J52: 1960.4 | K52: 0.0004786495025
A53: 7.1.12 | B53: 00004205 | C53: Material | D53: SINAPI | E53: Fornecimento de niple de reducao de ferro galvanizado, com rosca bsp, de 1 1/2" x 1 1/4" | F53: un | G53: 26 | H53: 33.32 | I53: 38.41 | J53: 998.66 | K53: 0.0002438319283
A54: 7.1.13 | B54: 00003939 | C54: Material | D54: SINAPI | E54: Fornecimento de luva de ferro galvanizado, com rosca bsp, de 1 1/2" | F54: un | G54: 26 | H54: 25.6 | I54: 29.51 | J54: 767.26 | K54: 0.0001873335122
A55: 7.1.14 | B55: 9569 | C55: Material | D55: ORSE | E55: Fornecimento de adaptador pvc bsxrm d= 35mm x 1 1/2", linha irriga-lf, tigre ou similar | F55: un | G55: 26 | H55: 3.04 | I55: 3.5 | J55: 91 | K55: 2.221847823e-05
A56: 7.1.15 | B56: 5128 | C56: Material | D56: ORSE | E56: Fornecimento de tampa de poço galvanizada em 6" | F56: un | G56: 26 | H56: 107.28 | I56: 123.67 | J56: 3215.42 | K56: 0.000785074058
A57: 7.2 | E57: INSTALAÇÕES DE ADUTORA, RESERVATÓRIO E BEBEDOURO | J57: =SUM(J58:J69) -> 53346.02 | K57: 0.01302491631
A58: 7.2.1 | B58: COMPOSIÇÃO - 020 | C58: Serviço | D58: Próprio | E58: Montagem e instalação da rede adutora poço-reservatório-bebedouro | F58: un | G58: 26 | H58: 934.47 | I58: =ROUND(H58+H58*$H$2,2) -> 1172.48 | J58: =ROUND(G58*I58,2) -> 30484.48 | K58: 0.007443063245
A59: 7.2.2 | B59: 9501 | C59: Material | D59: ORSE | E59: Fornecimento de tubo PVC p/irrigação LF PN 60 JE Ø 35mm, linha Irriga-LF, Tigre ou similar | F59: m | G59: 1040 | H59: 13.06 | I59: =ROUND(H59+H59*$I$2,2) -> 15.06 | J59: =ROUND(G59*I59,2) -> 15662.4 | K59: 0.003824117511
A60: 7.2.3 | B60: 9516 | C60: Material | D60: ORSE | E60: Fornecimento de curva 90º pvc PTA/BSA soldavel d= 35mm, linha Irriga-LF, Tigre ou similar | F60: un | G60: 104 | H60: 10.76 | I60: 12.4 | J60: 1289.6 | K60: 0.0003148675772
A61: 7.2.4 | B61: 00000098 | C61: Material | D61: SINAPI | E61: Fornecimento de adaptador pvc soldavel, com flange e anel de vedacao, 40 mm x 1 1/4", para caixa d'água | F61: un | G61: 52 | H61: 27.39 | I61: 31.58 | J61: 1642.16 | K61: 0.00040094831
A62: 7.2.5 | B62: 8013 | C62: Material | D62: ORSE | E62: Fornecimento de registro esfera VS soldável para irrigação Ø 35mm | F62: pç | G62: 26 | H62: 37.26 | I62: 42.95 | J62: 1116.7 | K62: 0.0002726524686
A63: 7.2.6 | B63: 00000096 | C63: Material | D63: SINAPI | E63: Fornecimento de adaptador pvc soldavel, com flange e anel de vedacao, 25 mm x 3/4", para caixa d'água | F63: un | G63: 78 | H63: 12.16 | I63: 14.02 | J63: 1093.56 | K63: 0.000267002627
A64: 7.2.7 | B64: 14071 | C64: Material | D64: ORSE | E64: Fornecimento de tubo PVC para irrigação LF PN 60 Ø 25mm, linha Irriga-LF, Tigre ou similar | F64: m | G64: 52 | H64: 4.01 | I64: 4.62 | J64: 240.24 | K64: 5.865678253e-05
A65: 7.2.8 | B65: 14082 | C65: Material | D65: ORSE | E65: Fornecimento de registro esfera LF 25mm | F65: pç | G65: 52 | H65: 11.06 | I65: 12.75 | J65: 663 | K65: 0.0001618774843
A66: 7.2.9 | B66: 00003529 | C66: Material | D66: SINAPI | E66: Fornecimento de joelho pvc, soldavel, 90 graus, 25 mm, para agua fria | F66: un | G66: 52 | H66: 0.72 | I66: 0.83 | J66: 43.16 | K66: 1.053790682e-05
A67: 7.2.10 | B67: 00003535 | C67: Material | D67: SINAPI | E67: Fornecimento de joelho pvc, soldavel, 90 graus, 40 mm, para agua fria | F67: un | G67: 26 | H67: 5.83 | I67: 6.72 | J67: 174.72 | K67: 4.265947821e-05
A68: 7.2.11 | B68: 00000109 | C68: Material | D68: SINAPI | E68: Fornecimento de adaptador pvc soldavel curto com bolsa e rosca, 40 mm x 1 1/4", para agua fria | F68: un | G68: 26 | H68: 3.66 | I68: 4.22 | J68: 109.72 | K68: 2.678913661e-05
A69: 7.2.12 | B69: 00011830 | C69: Material | D69: SINAPI | E69: Fornecimento de torneira de boia convencional para caixa d'agua, agua fria, 3/4", com haste e torneira metalicos e balao plastico | F69: un | G69: 26 | H69: 27.57 | I69: 31.78 | J69: 826.28 | K69: 0.0002017437823
A70: 8 | E70: FORNECIMENTO E INSTALAÇÃO DE SISTEMA FOTOVOLTAÍCO | J70: =SUM(J71,J77,J88,J90) -> 938121.29 | K70: 0.2290508512
A71: 8.1 | E71: INSTALAÇÕES HIDRÁULICAS | J71: =SUM(J72:J76) -> 98171.41 | K71: =J71/$J$102 -> 0.02396944325
A72: 8.1.1 | B72: COMPOSIÇÃO - 019 | C72: Serviço | D72: Próprio | E72: Montagem e instalação hidráulica do kit de bombeamento | F72: un | G72: 26 | H72: 126.99 | I72: =ROUND(H72+H72*$H$2,2) -> 159.33 | J72: =ROUND(G72*I72,2) -> 4142.58 | K72: 0.001011448611
A73: 8.1.2 | B73: 00038200 | C73: Material | D73: SINAPI | E73: Fornecimento de corda de poliamida 12 mm tipo bombeiro, para trabalho em altura | F73: 100m | G73: 24.18 | H73: 642.37 | I73: =ROUND(H73+H73*$I$2,2) -> 740.52 | J73: =ROUND(G73*I73,2) -> 17905.77 | K73: 0.004371856714
A74: 8.1.3 | B74: 00009861 | C74: Material | D74: SINAPI | E74: Fornecimento de tubo pvc, roscavel, 1 1/4", agua fria predial | F74: m | G74: 2340 | H74: 24.29 | I74: 28 | J74: 65520 | K74: 0.01599730433
A75: 8.1.4 | B75: 00004180 | C75: Material | D75: SINAPI | E75: Fornecimento de niple de ferro galvanizado, com rosca bsp, de 1 1/4" | F75: un | G75: 26 | H75: 18.99 | I75: 21.89 | J75: 569.14 | K75: 0.000138960711
A76: 8.1.5 | B76: 00003911 | C76: Material | D76: SINAPI | E76: Fornecimento de luva de ferro galvanizado, com rosca bsp, de 1 1/4" | F76: un | G76: 416 | H76: 20.92 | I76: 24.12 | J76: 10033.92 | K76: 0.002449872891
A77: 8.2 | E77: INSTALAÇÕES ELÉTRICAS | J77: =SUM(J78:J87) -> 98177.94 | K77: 0.02397103761
A78: 8.2.1 | B78: COMPOSIÇÃO - 021 | C78: Serviço | D78: Próprio | E78: Montagem e instalação elétrica do kit de bombeamento e sistema fotovoltaico inclusive sistema de aterramento. | F78: un | G78: 26 | H78: 579.26 | I78: =ROUND(H78+H78*$H$2,2) -> 726.8 | J78: =ROUND(G78*I78,2) -> 18896.8 | K78: 0.004613825708
A79: 8.2.2 | B79: 00002674 | C79: Material | D79: SINAPI | E79: Fornecimento de eletroduto de pvc rigido roscavel de 3/4 ", sem luva | F79: m | G79: 390 | H79: 3.48 | I79: =ROUND(H79+H79*$I$2,2) -> 4.01 | J79: =ROUND(G79*I79,2) -> 1563.9 | K79: 0.0003818404188
A80: 8.2.3 | B80: 00034622 | C80: Material | D80: SINAPI | E80: Fornecimento de cabo flexivel pvc 750 v, 3 condutores de 6,0 mm2 | F80: m | G80: 2730 | H80: 19.55 | I80: 22.54 | J80: 61534.2 | K80: 0.01502413498
A81: 8.2.4 | B81: 00012034 | C81: Material | D81: SINAPI | E81: Fornecimento de curva 180 graus, de pvc rigido roscavel, de 3/4", para eletroduto | F81: un | G81: 26 | H81: 3.47 | I81: 4 | J81: 104 | K81: 2.539254655e-05
A82: 8.2.5 | B82: 00039272 | C82: Material | D82: SINAPI | E82: Fornecimento de curva 90 graus, curta, de pvc rigido roscavel, de 3/4", para eletroduto | F82: un | G82: 52 | H82: 1.9 | I82: 2.19 | J82: 113.88 | K82: 2.780483847e-05
A83: 8.2.6 | B83: 00003379 | C83: Material | D83: SINAPI | E83: Fornecimento de haste de aterramento em aco com 3,00 m de comprimento e dn = 5/8", revestida com baixa camada de cobre, sem conector | F83: un | G83: 17.16 | H83: 80.92 | I83: 93.28 | J83: 1600.68 | K83: 0.0003908205905
A84: 8.2.7 | B84: 00001891 | C84: Material | D84: SINAPI | E84: Fornecimento de luva em pvc rigido roscavel, de 3/4", para eletroduto | F84: un | G84: 234 | H84: 0.88 | I84: 1.01 | J84: 236.34 | K84: 5.770456204e-05
A85: 8.2.8 | B85: 00000425 | C85: Material | D85: SINAPI | E85: Fornecimento de grampo metalico tipo olhal para haste de aterramento de 5/8'', condutor de *10* a 50 mm2 | F85: un | G85: 52 | H85: 7.68 | I85: 8.85 | J85: 460.2 | K85: 0.0001123620185
A86: 8.2.9 | B86: 00034643 | C86: Material | D86: SINAPI | E86: Fornecimento de caixa de inspecao para aterramento e para raios, em polipropileno, diametro = 300 mm x altura = 400 mm | F86: un | G86: 52 | H86: 41.48 | I86: 47.82 | J86: 2486.64 | K86: 0.000607135788
A87: 8.2.10 | B87: 00000867 | C87: Material | D87: SINAPI | E87: Fornecimento de cabo de cobre nu 50 mm2 meio-duro | F87: m | G87: 195 | H87: 49.74 | I87: 57.34 | J87: 11181.3 | K87: 0.002730016161
A88: 8.3 | E88: ESTRUTURA DE FIXAÇÃO PARA MÓDULOS FOTOVOLTÁICOS | J88: =SUM(J89) -> 84452.16 | K88: 0.0206197635
A89: 8.3.1 | B89: COMPOSIÇÃO - 022 | C89: Serviço | D89: Próprio | E89: Serviço de fixação de estruturas para os módulos fotovoltaicos e suportes de concreto, incluso materiais. | F89: m² | G89: 312 | H89: 215.73 | I89: =ROUND(H89+H89*$H$2,2) -> 270.68 | J89: =ROUND(G89*I89,2) -> 84452.16 | K89: 0.0206197635
A90: 8.4 | E90: FORNECIMENTO DE KIT DE BOMBEAMENTO FOTOVOLTAICO | J90: =SUM(J91) -> 657319.78 | K90: 0.1604906069
A91: 8.4.1 | B91: COTAÇÃO-001 | C91: Material | D91: Próprio | E91: Fornecimento de kit de bombeamento fotovoltaico, incluindo uma bomba CC de 2200W com imã permanente sem escovas, controladora de carga externa, disjuntor CC, caixa de proteção metálica, módulos compatíveis com a geração de 3300Wp (potência mínima de 550 W por módulo) e componentes elétricos necessários como cabos, conectores MC4 e presilhas de fixação. | F91: un | G91: 26 | H91: 21930.54 | I91: =ROUND(H91+H91*$I$2,2) -> 25281.53 | J91: =ROUND(G91*I91,2) -> 657319.78 | K91: 0.1604906069
A92: 9 | E92: URBANIZAÇÃO | J92: =SUM(J93,J95) -> 103080.25 | K92: 0.02516798122
A93: 9.1 | E93: CERCA | J93: =SUM(J94) -> 69443.92 | K93: 0.01695536511
A94: 9.1.1 | B94: COMPOSIÇÃO - 023 | C94: Serviço | D94: Próprio | E94: Cerca com mourões de concreto de 15x15cm, espaçados de 3m e cravados a 0,5m, escoras de 10x10cm nos cantos, e 9 fios de arame de aço ovalado 15x17. | F94: m | G94: 728 | H94: 76.03 | I94: =ROUND(H94+H94*$H$2,2) -> 95.39 | J94: =ROUND(G94*I94,2) -> 69443.92 | K94: 0.01695536511
A95: 9.2 | E95: PORTÃO | J95: =SUM(J96) -> 33636.33 | K95: 0.008212616109
A96: 9.2.1 | B96: COMPOSIÇÃO - 024 | C96: Serviço | D96: Próprio | E96: Serviço de instalação de portão de ferro com suporte e batedor conforme projeto, incluso material | F96: m² | G96: 39 | H96: 687.39 | I96: =ROUND(H96+H96*$H$2,2) -> 862.47 | J96: =ROUND(G96*I96,2) -> 33636.33 | K96: 0.008212616109
A97: 10 | E97: OUTROS SERVIÇOS | J97: =SUM(J98:J101) -> 69423.72 | K97: 0.01695043309
A98: 10.1 | B98: COMPOSIÇÃO - 025 | C98: Serviço | D98: Próprio | E98: Serviço de lançamento de concreto para acabamento do tamponamento, incluso material. | F98: m³ | G98: 0.6084 | H98: 712.26 | I98: =ROUND(H98+H98*$H$2,2) -> 893.67 | J98: =ROUND(G98*I98,2) -> 543.71 | K98: 0.0001327517451
A99: 10.2 | B99: COMPOSIÇÃO - 026 | C99: Serviço | D99: Próprio | E99: Serviço de execução do tamponamento, incluso pedra britada desinfectada. | F99: m³ | G99: 0.6084 | H99: 183.75 | I99: 230.55 | J99: 140.27 | K99: 3.424819716e-05
A100: 10.3 | B100: COTAÇÃO-006 | C100: Material | D100: Próprio | E100: Fornecimento tubo revestimento geomecânico classe reforçado Ø 4 1/2" com junta roscável. | F100: m | G100: 540.02 | H100: 92.4 | I100: =ROUND(H100+H100*$I$2,2) -> 106.52 | J100: 57522.93 | K100: 0.0140447469
A101: 10.4 | B101: COTAÇÃO-004 | C101: Material | D101: Próprio | E101: Fornecimento tubo filtro geomecânico classe reforçado diâmetro Ø 4 1/2" com junta roscável. | F101: m | G101: 120.12 | H101: 81 | I101: 93.38 | J101: 11216.81 | K101: 0.002738686251
I102: Total | J102: =SUM(J97,J92,J70,J40,J38,J32,J15,J11,J6,J27) -> 4095690.04

Sheet Orç. RN - Tot. Rev - Analítico
I1: Encargos Sociais
A2: OBRA: PERFURAÇÃO E INSTALAÇÃO DE POÇO TUBULAR TOTALMENTE REVESTIDO NO ESTADO DO RIO GRANDE DO NORTE | I2: Não Desonerado: embutido nos preços unitário dos insumos de mão de obra, de acordo com as bases.
A3: Planilha Orçamentária Analítica
A4: 1 | D4: SERVIÇOS PRELIMINARES
A5: 1.1 | B5: Código | C5: Banco | D5: Descrição | E5: Tipo | G5: Und | H5: Quant. | I5: Valor Unit | J5: Total
A6: Composição | B6: COMPOSIÇÃO - 002 | C6: Próprio | D6: Administração Local da Obra - Poço Totalmente Revestido | E6: SERP - SERVIÇOS PRELIMINARES | G6: un | H6: 1 | I6: =J6 -> 149483.29 | J6: =SUM(J7:J13) -> 149483.29
A7: Composição Auxiliar | B7: 92138 | C7: SINAPI | D7: CAMINHONETE COM MOTOR A DIESEL, POTÊNCIA 180 CV, CABINE DUPLA, 4X4 - CHP DIURNO. AF_11/2015 | E7: CHOR - CUSTOS HORÁRIOS DE MÁQUINAS E EQUIPAMENTOS | G7: CHP | H7: 180 | I7: 87.85 | J7: =ROUND(H7*I7,2) -> 15813
A8: Composição Auxiliar | B8: 92139 | C8: SINAPI | D8: CAMINHONETE COM MOTOR A DIESEL, POTÊNCIA 180 CV, CABINE DUPLA, 4X4 - CHI DIURNO. AF_11/2015 | E8: CHOR - CUSTOS HORÁRIOS DE MÁQUINAS E EQUIPAMENTOS | G8: CHI | H8: 220 | I8: 41 | J8: =ROUND(H8*I8,2) -> 9020
A9: Composição Auxiliar | B9: 93572 | C9: SINAPI | D9: ENCARREGADO GERAL DE OBRAS COM ENCARGOS COMPLEMENTARES | E9: SEDI - SERVIÇOS DIVERSOS | G9: MES | H9: 4 | I9: 4156.81 | J9: 16627.24
A10: Composição Auxiliar | B10: 93565 | C10: SINAPI | D10: ENGENHEIRO CIVIL DE OBRA JUNIOR COM ENCARGOS COMPLEMENTARES | E10: SEDI - SERVIÇOS DIVERSOS | G10: MES | H10: 5 | I10: 19764.13 | J10: 98820.65
A11: Insumo | B11: 00014250 | C11: SINAPI | D11: ENERGIA ELETRICA COMERCIAL, BAIXA TENSAO, RELATIVA AO CONSUMO DE ATE 100 KWH, INCLUINDO ICMS, PIS/PASEP E COFINS | E11: Material | G11: KWH | H11: 1600 | I11: 0.9 | J11: 1440
A12: Insumo | B12: 00044480 | C12: SINAPI | D12: TARIFA "A" ENTRE 0 E 20M3 FORNECIMENTO D'AGUA | E12: Taxas | G12: m³ | H12: 80 | I12: 17.03 | J12: 1362.4
A13: Insumo | B13: 4298 | C13: ORSE | D13: Aluguel de container - Escritório com banheiro - 6,20 x 2,40m, equipado com Ar condicionado mês | E13: Serviços | G13: mês | H13: 4 | I13: 1600 | J13: 6400
A16: 1.2 | B16: Código | C16: Banco | D16: Descrição | E16: Tipo | G16: Und | H16: Quant. | I16: Valor Unit | J16: Total
A17: Composição | B17: COMPOSIÇÃO - 003 | C17: Próprio | D17: Serviço de locação Geológica de campo com relatório hidro geológico e perfil construtivo e geológico esperado. Relatório de Viabilidade de implantação das estruturas e vistorias preliminares | E17: SERT - SERVIÇOS TÉCNICOS | G17: un | H17: 1 | I17: =J17 -> 499.9 | J17: =SUM(J18:J20) -> 499.9
A18: Composição Auxiliar | B18: 30.01.45 | C18: EMBASA | D18: GEOLOGO SENIOR | E18: 3001 | G18: hora | H18: 5 | I18: 79.73 | J18: =ROUND(H18*I18,2) -> 398.65
A19: Insumo | B19: 5896 | C19: ORSE | D19: Veículo tipo sedan ou pick-up capacidade 0,6 ton h | E19: Equipamento | G19: h | H19: 5 | I19: 8.33 | J19: 41.65
A20: Insumo | B20: 00004222 | C20: SINAPI | D20: GASOLINA COMUM | E20: Material | G20: L | H20: 10 | I20: 5.96 | J20: 59.6
A23: 1.3 | B23: Código | C23: Banco | D23: Descrição | E23: Tipo | G23: Und | H23: Quant. | I23: Valor Unit | J23: Total
A24: Composição | B24: COMPOSIÇÃO - 030 | C24: Próprio | D24: Procedimentos para emissão de Outorga de uso insignificante e Dispensa de Licenciamento Ambiental (incluso taxas) - Rio Grande do Norte | E24: SERT - SERVIÇOS TÉCNICOS | G24: un | H24: 1 | I24: =J24 -> 1561.53 | J24: =SUM(J25) -> 1561.53
A25: Insumo | B25: COTAÇÃO-010 | C25: Próprio | D25: Procedimentos para Emissão de Outorga de uso insignificante e Dispensa de Licenciamento Ambiental - Rio Grande do Norte | E25: Serviços | G25: un | H25: 1 | I25: 1561.53 | J25: =ROUND(H25*I25,2) -> 1561.53
A28: 2 | D28: MOBILIZAÇÂO E DESMOBILIZAÇÂO EQUIPES PERFURAÇÂO E INSTALAÇÃO
A29: 2.1 | B29: Código | C29: Banco | D29: Descrição | E29: Tipo | G29: Und | H29: Quant. | I29: Valor Unit | J29: Total
A30: Composição | B30: COMPOSIÇÃO - 006 | C30: Próprio | D30: Transporte de Comboio Perfuração | E30: TRAN - TRANSPORTES, CARGAS E DESCARGAS | G30: km | H30: 1 | I30: =J30 -> 4.38 | J30: =SUM(J31:J32) -> 4.38
A31: Composição Auxiliar | B31: 5824 | C31: SINAPI | D31: CAMINHÃO TOCO, PBT 16.000 KG, CARGA ÚTIL MÁX. 10.685 KG, DIST. ENTRE EIXOS 4,8 M, POTÊNCIA 189 CV, INCLUSIVE CARROCERIA FIXA ABERTA DE MADEIRA P/ TRANSPORTE GERAL DE CARGA SECA, DIMEN. APROX. 2,5 X 7,00 X 0,50 M - CHP DIURNO. AF_06/2014 | E31: CHOR - CUSTOS HORÁRIOS DE MÁQUINAS E EQUIPAMENTOS | G31: CHP | H31: 0.01666 | I31: 201.45 | J31: =ROUND(H31*I31,2) -> 3.36
A32: Composição Auxiliar | B32: 5826 | C32: SINAPI | D32: CAMINHÃO TOCO, PBT 16.000 KG, CARGA ÚTIL MÁX. 10.685 KG, DIST. ENTRE EIXOS 4,8 M, POTÊNCIA 189 CV, INCLUSIVE CARROCERIA FIXA ABERTA DE MADEIRA P/ TRANSPORTE GERAL DE CARGA SECA, DIMEN. APROX. 2,5 X 7,00 X 0,50 M - CHI DIURNO. AF_06/2014 | E32: CHOR - CUSTOS HORÁRIOS DE MÁQUINAS E EQUIPAMENTOS | G32: CHI | H32: 0.01666 | I32: 61.31 | J32: 1.02
A35: 2.2 | B35: Código | C35: Banco | D35: Descrição | E35: Tipo | G35: Und | H35: Quant. | I35: Valor Unit | J35: Total
A36: Composição | B36: COMPOSIÇÃO - 007 | C36: Próprio | D36: Transporte de Comboio Instalação | E36: TRAN - TRANSPORTES, CARGAS E DESCARGAS | G36: km | H36: 1 | I36: =J36 -> 5.46 | J36: =SUM(J37:J38) -> 5.46
A37: Composição Auxiliar | B37: 5928 | C37: SINAPI | D37: GUINDAUTO HIDRÁULICO, CAPACIDADE MÁXIMA DE CARGA 6200 KG, MOMENTO MÁXIMO DE CARGA 11,7 TM, ALCANCE MÁXIMO HORIZONTAL 9,70 M, INCLUSIVE CAMINHÃO TOCO PBT 16.000 KG, POTÊNCIA DE 189 CV - CHP DIURNO. AF_06/2014 | E37: CHOR - CUSTOS HORÁRIOS DE MÁQUINAS E EQUIPAMENTOS | G37: CHP | H37: 0.01666 | I37: 255.62 | J37: =ROUND(H37*I37,2) -> 4.26
A38: Composição Auxiliar | B38: 5930 | C38: SINAPI | D38: GUINDAUTO HIDRÁULICO, CAPACIDADE MÁXIMA DE CARGA 6200 KG, MOMENTO MÁXIMO DE CARGA 11,7 TM, ALCANCE MÁXIMO HORIZONTAL 9,70 M, INCLUSIVE CAMINHÃO TOCO PBT 16.000 KG, POTÊNCIA DE 189 CV - CHI DIURNO. AF_06/2014 | E38: CHOR - CUSTOS HORÁRIOS DE MÁQUINAS E EQUIPAMENTOS | G38: CHI | H38: 0.01666 | I38: 72.29 | J38: 1.2
A41: 2.3 | B41: Código | C41: Banco | D41: Descrição | E41: Tipo | G41: Und | H41: Quant. | I41: Valor Unit | J41: Total
A42: Composição | B42: COMPOSIÇÃO - 008 | C42: Próprio | D42: Transporte de água em caminhão pipa para preparo do fluído de perfuração rotativa | E42: TRAN - TRANSPORTES, CARGAS E DESCARGAS | G42: km | H42: 1 | I42: =J42 -> 4.92 | J42: =SUM(J43:J44) -> 4.92
A43: Composição Auxiliar | B43: 6259 | C43: SINAPI | D43: CAMINHÃO PIPA 6.000 L, PESO BRUTO TOTAL 13.000 KG, DISTÂNCIA ENTRE EIXOS 4,80 M, POTÊNCIA 189 CV INCLUSIVE TANQUE DE AÇO PARA TRANSPORTE DE ÁGUA, CAPACIDADE 6 M3 - CHP DIURNO. AF_06/2014 | E43: CHOR - CUSTOS HORÁRIOS DE MÁQUINAS E EQUIPAMENTOS | G43: CHP | H43: 0.01666 | I43: 234.8 | J43: =ROUND(H43*I43,2) -> 3.91
A44: Composição Auxiliar | B44: 6260 | C44: SINAPI | D44: CAMINHÃO PIPA 6.000 L, PESO BRUTO TOTAL 13.000 KG, DISTÂNCIA ENTRE EIXOS 4,80 M, POTÊNCIA 189 CV INCLUSIVE TANQUE DE AÇO PARA TRANSPORTE DE ÁGUA, CAPACIDADE 6 M3 - CHI DIURNO. AF_06/2014 | E44: CHOR - CUSTOS HORÁRIOS DE MÁQUINAS E EQUIPAMENTOS | G44: CHI | H44: 0.01666 | I44: 60.55 | J44: 1.01
A47: 3 | D47: PERFURAÇÃO E COMPLETAÇÃO DE POÇO TUBULAR
A48: 3.1 | B48: Código | C48: Banco | D48: Descrição | E48: Tipo | G48: Und | H48: Quant. | I48: Valor Unit | J48: Total
A49: Composição | B49: COMPOSIÇÃO - 009 | C49: Próprio | D49: Limpeza manual , remoção de cerca, capina e instalação dos equipamentos (área do poço, painéis solares, bebedouro e reservatório) | E49: SEDI - SERVIÇOS DIVERSOS | G49: m² | H49: 1 | I49: =J49 -> 1.57 | J49: =SUM(J50) -> 1.57
A50: Composição Auxiliar | B50: 88316 | C50: SINAPI | D50: SERVENTE COM ENCARGOS COMPLEMENTARES | E50: SEDI - SERVIÇOS DIVERSOS | G50: H | H50: 0.08 | I50: 19.66 | J50: =ROUND(H50*I50,2) -> 1.57
A53: 3.2 | B53: Código | C53: Banco | D53: Descrição | E53: Tipo | G53: Und | H53: Quant. | I53: Valor Unit | J53: Total
A54: Composição | B54: COMPOSIÇÃO - 012 | C54: Próprio | D54: Perfuração rotativa com circulação direta Ø 9.1/2" | E54: SERT - SERVIÇOS TÉCNICOS | G54: m | H54: 1 | I54: =J54 -> 264.87 | J54: =SUM(J55:J57) -> 264.87
A55: Composição Auxiliar | B55: 88263 | C55: SINAPI | D55: CAVOUQUEIRO OU OPERADOR PERFURATRIZ/ROMPEDOR COM ENCARGOS COMPLEMENTARES | E55: SEDI - SERVIÇOS DIVERSOS | G55: H | H55: 0.8 | I55: 24 | J55: =ROUND(H55*I55,2) -> 19.2
A56: Composição Auxiliar | B56: 88316 | C56: SINAPI | D56: SERVENTE COM ENCARGOS COMPLEMENTARES | E56: SEDI - SERVIÇOS DIVERSOS | G56: H | H56: 2.4 | I56: 19.66 | J56: 47.18
A57: Insumo | B57: 5071 | C57: ORSE | D57: Perfuração rocha sedimentar sedimento / camadas inconsolidadas dn 8.1/2 a 9.1/2" - até 150m m | E57: Serviços | G57: m | H57: 1 | I57: 198.49 | J57: 198.49
B60: Código | C60: Banco | D60: Descrição | E60: Tipo | G60: Und | H60: Quant. | I60: Valor Unit | J60: Total
A61: Insumo | B61: COTAÇÃO-007 | C61: Próprio | D61: Fornecimento tubo de revestimento geomecânico classe standart Ø 4" com junta roscável. | E61: Material | G61: m | H61: 1 | I61: 82.5 | J61: =ROUND(H61*I61,2) -> 82.5
B64: Código | C64: Banco | D64: Descrição | E64: Tipo | G64: Und | H64: Quant. | I64: Valor Unit | J64: Total
A65: Insumo | B65: COTAÇÃO-005 | C65: Próprio | D65: Fornecimento tubo filtro geomecânico classe standart Ø 4" com junta roscável. | E65: Material | G65: m | H65: 1 | I65: 86.02 | J65: =ROUND(H65*I65,2) -> 86.02
A69: 3.10 | B69: Código | C69: Banco | D69: Descrição | E69: Tipo | G69: Und | H69: Quant. | I69: Valor Unit | J69: Total
A70: Composição | B70: COMPOSIÇÃO - 011 | C70: Próprio | D70: Serviço de lançamento cimentação anelar poço tubular, incluso material. | E70: SEDI - SERVIÇOS DIVERSOS | G70: m³ | H70: 1 | I70: =J70 -> 739.47 | J70: =SUM(J71:J73) -> 739.47
A71: Composição Auxiliar | B71: 1903 | C71: ORSE | D71: Argamassa cimento e areia traço t-1 (1:3) - 1 saco cimento 50kg / 3 padiolas areia dim. 0.35 x 0.45 x 0.23 m - Confecção mecânica e transporte | E71: Argamassas | G71: m³ | H71: 1 | I71: 501.74 | J71: =ROUND(H71*I71,2) -> 501.74
A72: Composição Auxiliar | B72: 88316 | C72: SINAPI | D72: SERVENTE COM ENCARGOS COMPLEMENTARES | E72: SEDI - SERVIÇOS DIVERSOS | G72: H | H72: 7.4 | I72: 19.66 | J72: 145.48
A73: Insumo | B73: 00000124 | C73: SINAPI | D73: ADITIVO ACELERADOR DE PEGA E ENDURECIMENTO PARA ARGAMASSAS E CONCRETOS, LIQUIDO E ISENTO DE CLORETOS | E73: Material | G73: L | H73: 5 | I73: 18.45 | J73: 92.25
A76: 3.11 | B76: Código | C76: Banco | D76: Descrição | E76: Tipo | G76: Und | H76: Quant. | I76: Valor Unit | J76: Total
A77: Composição | B77: COMPOSIÇÃO - 014 | C77: Próprio | D77: Serviço de instalação de laje sanitária com dimensões (1,5x1,5x0,3) , incluso material. | E77: SEDI - SERVIÇOS DIVERSOS | G77: un | H77: 1 | I77: =J77 -> 605.79 | J77: =SUM(J78:J81) -> 605.79
A78: Composição Auxiliar | B78: 92522 | C78: SINAPI | D78: MONTAGEM E DESMONTAGEM DE FÔRMA DE LAJE MACIÇA, PÉ-DIREITO SIMPLES, EM CHAPA DE MADEIRA COMPENSADA RESINADA, 8 UTILIZAÇÕES. AF_09/2020 | E78: FUES - FUNDAÇÕES E ESTRUTURAS | G78: m² | H78: 1.8 | I78: 46.13 | J78: =ROUND(H78*I78,2) -> 83.03
A79: Composição Auxiliar | B79: 93358 | C79: SINAPI | D79: ESCAVAÇÃO MANUAL DE VALA COM PROFUNDIDADE MENOR OU IGUAL A 1,30 M. AF_02/2021 | E79: MOVT - MOVIMENTO DE TERRA | G79: m³ | H79: 0.225 | I79: 77.77 | J79: 17.5
A80: Composição Auxiliar | B80: 94975 | C80: SINAPI | D80: CONCRETO FCK = 15MPA, TRAÇO 1:3,4:3,5 (EM MASSA SECA DE CIMENTO/ AREIA MÉDIA/ BRITA 1) - PREPARO MANUAL. AF_05/2021 | E80: FUES - FUNDAÇÕES E ESTRUTURAS | G80: m³ | H80: 0.675 | I80: 486.02 | J80: 328.06
A81: Composição Auxiliar | B81: 103670 | C81: SINAPI | D81: LANÇAMENTO COM USO DE BALDES, ADENSAMENTO E ACABAMENTO DE CONCRETO EM ESTRUTURAS. AF_02/2022 | E81: FUES - FUNDAÇÕES E ESTRUTURAS | G81: m³ | H81: 0.675 | I81: 262.52 | J81: 177.2
A84: 4 | D84: PÓS PERFURAÇÃO
A86: 4.3 | B86: Código | C86: Banco | D86: Descrição | E86: Tipo | G86: Und | H86: Quant. | I86: Valor Unit | J86: Total
A87: Composição | B87: COMPOSIÇÃO - 015 | C87: Próprio | D87: Inspeção ótica em poço tubular câmera com rotação de 360º, visada lateral, com fonte própria de luz, entregue vídeo em cores e marcação de profundidades. | E87: SEES - SERVIÇOS ESPECIAIS | G87: m | H87: 1 | I87: =J87 -> 38.05 | J87: =SUM(J88:J92) -> 38.05
A88: Insumo | B88: H020050004 | C88: EMBASA | D88: APARELHO DE PERFILAGEM OPTICA | E88: Material | G88: M | H88: 1 | I88: 4.4 | J88: =ROUND(H88*I88,2) -> 4.4
A89: Insumo | B89: B590000022 | C89: EMBASA | D89: TECNICO MEDIO | E89: Mão de Obra | G89: H | H89: 0.0835 | I89: 48.54 | J89: 4.05
A90: Insumo | B90: B590000028 | C90: EMBASA | D90: AUXILIAR TECNICO | E90: Mão de Obra | G90: H | H90: 0.0835 | I90: 22.47 | J90: 1.88
A91: Insumo | B91: F020000340 | C91: EMBASA | D91: DIÁRIA PARA PROFISSIONAL (INTERIOR) | E91: Material | G91: DIA | H91: 0.021 | I91: 227 | J91: 4.77
A92: Insumo | B92: F030000250 | C92: EMBASA | D92: LOCAÇÃO DE VEÍCULO PICK UP TIPO SAVEIRO OU SIMILAR | E92: Material | G92: DIA | H92: 0.25 | I92: 91.8 | J92: 22.95
A97: 5 | D97: RESERVAÇÃO
A98: 5.1 | B98: Código | C98: Banco | D98: Descrição | E98: Tipo | G98: Und | H98: Quant. | I98: Valor Unit | J98: Total
A99: Composição | B99: COMPOSIÇÃO - 016 | C99: Próprio | D99: Execução e instalação de base de sustentação em concreto armado para reservatório de diâmetro 2,06m e altura 1,10m, conforme projeto, incluindo fixação de grampos da tampa. | E99: SEDI - SERVIÇOS DIVERSOS | G99: un | H99: 1 | I99: =J99 -> 2844.24 | J99: =SUM(J100:J118) -> 2844.24
A100: Composição Auxiliar | B100: 5928 | C100: SINAPI | D100: GUINDAUTO HIDRÁULICO, CAPACIDADE MÁXIMA DE CARGA 6200 KG, MOMENTO MÁXIMO DE CARGA 11,7 TM, ALCANCE MÁXIMO HORIZONTAL 9,70 M, INCLUSIVE CAMINHÃO TOCO PBT 16.000 KG, POTÊNCIA DE 189 CV - CHP DIURNO. AF_06/2014 | E100: CHOR - CUSTOS HORÁRIOS DE MÁQUINAS E EQUIPAMENTOS | G100: CHP | H100: 2.5 | I100: 255.62 | J100: =ROUND(H100*I100,2) -> 639.05
A101: Composição Auxiliar | B101: 88310 | C101: SINAPI | D101: PINTOR COM ENCARGOS COMPLEMENTARES | E101: SEDI - SERVIÇOS DIVERSOS | G101: H | H101: 0.3 | I101: 27.42 | J101: 8.23
A102: Composição Auxiliar | B102: 100301 | C102: SINAPI | D102: AJUDANTE DE PINTOR COM ENCARGOS COMPLEMENTARES | E102: SEDI - SERVIÇOS DIVERSOS | G102: H | H102: 0.1 | I102: 22.76 | J102: 2.28
A103: Composição Auxiliar | B103: 88309 | C103: SINAPI | D103: PEDREIRO COM ENCARGOS COMPLEMENTARES | E103: SEDI - SERVIÇOS DIVERSOS | G103: H | H103: 5.55 | I103: 24.11 | J103: 133.81
A104: Composição Auxiliar | B104: 88316 | C104: SINAPI | D104: SERVENTE COM ENCARGOS COMPLEMENTARES | E104: SEDI - SERVIÇOS DIVERSOS | G104: H | H104: 10 | I104: 19.66 | J104: 196.6
A105: Composição Auxiliar | B105: 88245 | C105: SINAPI | D105: ARMADOR COM ENCARGOS COMPLEMENTARES | E105: SEDI - SERVIÇOS DIVERSOS | G105: H | H105: 3 | I105: 25.68 | J105: 77.04
A106: Composição Auxiliar | B106: 88262 | C106: SINAPI | D106: CARPINTEIRO DE FORMAS COM ENCARGOS COMPLEMENTARES | E106: SEDI - SERVIÇOS DIVERSOS | G106: H | H106: 2 | I106: 22.84 | J106: 45.68
A107: Composição Auxiliar | B107: 87445 | C107: SINAPI | D107: BETONEIRA CAPACIDADE NOMINAL 400 L, CAPACIDADE DE MISTURA 310 L, MOTOR A DIESEL POTÊNCIA 5,0 HP, SEM CARREGADOR - CHP DIURNO. AF_05/2023 | E107: CHOR - CUSTOS HORÁRIOS DE MÁQUINAS E EQUIPAMENTOS | G107: CHP | H107: 2.8548 | I107: 4.69 | J107: 13.39
A108: Composição Auxiliar | B108: 88377 | C108: SINAPI | D108: OPERADOR DE BETONEIRA ESTACIONÁRIA/MISTURADOR COM ENCARGOS COMPLEMENTARES | E108: SEDI - SERVIÇOS DIVERSOS | G108: H | H108: 2.8548 | I108: 26.3 | J108: 75.08
A109: Insumo | B109: 00007155 | C109: SINAPI | D109: TELA DE ACO SOLDADA NERVURADA, CA-60, Q-138, (2,20 KG/M2), DIAMETRO DO FIO = 4,2 MM, LARGURA = 2,45 M, ESPACAMENTO DA MALHA = 10 X 10 CM | E109: Material | G109: m² | H109: 6 | I109: 16.59 | J109: 99.54
A110: Insumo | B110: 00000370 | C110: SINAPI | D110: AREIA MEDIA - POSTO JAZIDA/FORNECEDOR (RETIRADO NA JAZIDA, SEM TRANSPORTE) | E110: Material | G110: m³ | H110: 1.36 | I110: 100 | J110: 136
A111: Insumo | B111: 00001379 | C111: SINAPI | D111: CIMENTO PORTLAND COMPOSTO CP II-32 | E111: Material | G111: KG | H111: 565.75 | I111: 0.72 | J111: 407.34
A112: Insumo | B112: 00004718 | C112: SINAPI | D112: PEDRA BRITADA N. 2 (19 A 38 MM) POSTO PEDREIRA/FORNECEDOR, SEM FRETE | E112: Material | G112: m³ | H112: 0.33 | I112: 140 | J112: 46.2
A113: Insumo | B113: 00004721 | C113: SINAPI | D113: PEDRA BRITADA N. 1 (9,5 a 19 MM) POSTO PEDREIRA/FORNECEDOR, SEM FRETE | E113: Material | G113: m³ | H113: 0.98 | I113: 139.26 | J113: 136.47
A114: Insumo | B114: 00003767 | C114: SINAPI | D114: LIXA EM FOLHA PARA PAREDE OU MADEIRA, NUMERO 120, COR VERMELHA | E114: Material | G114: UN | H114: 0.12 | I114: 0.63 | J114: 0.08
A115: Insumo | B115: 00007356 | C115: SINAPI | D115: TINTA LATEX ACRILICA PREMIUM, COR BRANCO FOSCO | E115: Material | G115: L | H115: 0.18 | I115: 16.96 | J115: 3.05
A116: Insumo | B116: 00000032 | C116: SINAPI | D116: ACO CA-50, 6,3 MM, VERGALHAO | E116: Material | G116: KG | H116: 9.3 | I116: 10.68 | J116: 99.32
A117: Insumo | B117: 00043059 | C117: SINAPI | D117: ACO CA-60, 4,2 MM, OU 5,0 MM, OU 6,0 MM, OU 7,0 MM, VERGALHAO | E117: Material | G117: KG | H117: 3.04 | I117: 9.58 | J117: 29.12
A118: Insumo | B118: 00043681 | C118: SINAPI | D118: CHAPA/PAINEL DE MADEIRA COMPENSADA RESINADA (MADEIRITE RESINADO ROSA) PARA FORMA DE CONCRETO, DE 2200 x 1100 MM, E = 8 A 12 MM | E118: Material | G118: m² | H118: 17.46 | I118: 39.86 | J118: 695.96
A122: 6 | D122: BEBEDOURO
A123: 6.1 | B123: Código | C123: Banco | D123: Descrição | E123: Tipo | G123: Und | H123: Quant. | I123: Valor Unit | J123: Total
A124: Composição | B124: COMPOSIÇÃO - 017 | C124: Próprio | D124: Serviço de execução do bebedouro em concreto armado, incluso materiais. | E124: SEDI - SERVIÇOS DIVERSOS | G124: un | H124: 1 | I124: =J124 -> 1609.35 | J124: =SUM(J125:J143) -> 1609.35
A125: Composição Auxiliar | B125: 5928 | C125: SINAPI | D125: GUINDAUTO HIDRÁULICO, CAPACIDADE MÁXIMA DE CARGA 6200 KG, MOMENTO MÁXIMO DE CARGA 11,7 TM, ALCANCE MÁXIMO HORIZONTAL 9,70 M, INCLUSIVE CAMINHÃO TOCO PBT 16.000 KG, POTÊNCIA DE 189 CV - CHP DIURNO. AF_06/2014 | E125: CHOR - CUSTOS HORÁRIOS DE MÁQUINAS E EQUIPAMENTOS | G125: CHP | H125: 2 | I125: 255.62 | J125: =ROUND(H125*I125,2) -> 511.24
A126: Composição Auxiliar | B126: 87445 | C126: SINAPI | D126: BETONEIRA CAPACIDADE NOMINAL 400 L, CAPACIDADE DE MISTURA 310 L, MOTOR A DIESEL POTÊNCIA 5,0 HP, SEM CARREGADOR - CHP DIURNO. AF_05/2023 | E126: CHOR - CUSTOS HORÁRIOS DE MÁQUINAS E EQUIPAMENTOS | G126: CHP | H126: 0.5 | I126: 4.69 | J126: 2.35
A127: Composição Auxiliar | B127: 88377 | C127: SINAPI | D127: OPERADOR DE BETONEIRA ESTACIONÁRIA/MISTURADOR COM ENCARGOS COMPLEMENTARES | E127: SEDI - SERVIÇOS DIVERSOS | G127: H | H127: 0.5 | I127: 26.3 | J127: 13.15
A128: Composição Auxiliar | B128: 88310 | C128: SINAPI | D128: PINTOR COM ENCARGOS COMPLEMENTARES | E128: SEDI - SERVIÇOS DIVERSOS | G128: H | H128: 0.3 | I128: 27.42 | J128: 8.23
A129: Composição Auxiliar | B129: 100301 | C129: SINAPI | D129: AJUDANTE DE PINTOR COM ENCARGOS COMPLEMENTARES | E129: SEDI - SERVIÇOS DIVERSOS | G129: H | H129: 0.1 | I129: 22.76 | J129: 2.28
A130: Composição Auxiliar | B130: 88245 | C130: SINAPI | D130: ARMADOR COM ENCARGOS COMPLEMENTARES | E130: SEDI - SERVIÇOS DIVERSOS | G130: H | H130: 3 | I130: 25.68 | J130: 77.04
A131: Composição Auxiliar | B131: 88262 | C131: SINAPI | D131: CARPINTEIRO DE FORMAS COM ENCARGOS COMPLEMENTARES | E131: SEDI - SERVIÇOS DIVERSOS | G131: H | H131: 2 | I131: 22.84 | J131: 45.68
A132: Composição Auxiliar | B132: 88316 | C132: SINAPI | D132: SERVENTE COM ENCARGOS COMPLEMENTARES | E132: SEDI - SERVIÇOS DIVERSOS | G132: H | H132: 5 | I132: 19.66 | J132: 98.3
A133: Composição Auxiliar | B133: 88309 | C133: SINAPI | D133: PEDREIRO COM ENCARGOS COMPLEMENTARES | E133: SEDI - SERVIÇOS DIVERSOS | G133: H | H133: 4 | I133: 24.11 | J133: 96.44
A134: Insumo | B134: 00043055 | C134: SINAPI | D134: ACO CA-50, 12,5 MM OU 16,0 MM, VERGALHAO | E134: Material | G134: KG | H134: 12 | I134: 8.77 | J134: 105.24
A135: Insumo | B135: 00043059 | C135: SINAPI | D135: ACO CA-60, 4,2 MM, OU 5,0 MM, OU 6,0 MM, OU 7,0 MM, VERGALHAO | E135: Material | G135: KG | H135: 13 | I135: 9.58 | J135: 124.54
A136: Insumo | B136: 00000032 | C136: SINAPI | D136: ACO CA-50, 6,3 MM, VERGALHAO | E136: Material | G136: KG | H136: 6 | I136: 10.68 | J136: 64.08
A137: Insumo | B137: 00000370 | C137: SINAPI | D137: AREIA MEDIA - POSTO JAZIDA/FORNECEDOR (RETIRADO NA JAZIDA, SEM TRANSPORTE) | E137: Material | G137: m³ | H137: 0.32 | I137: 100 | J137: 32
A138: Insumo | B138: 00001379 | C138: SINAPI | D138: CIMENTO PORTLAND COMPOSTO CP II-32 | E138: Material | G138: KG | H138: 127 | I138: 0.72 | J138: 91.44
A139: Insumo | B139: 00004718 | C139: SINAPI | D139: PEDRA BRITADA N. 2 (19 A 38 MM) POSTO PEDREIRA/FORNECEDOR, SEM FRETE | E139: Material | G139: m³ | H139: 0.08 | I139: 140 | J139: 11.2
A140: Insumo | B140: 00004721 | C140: SINAPI | D140: PEDRA BRITADA N. 1 (9,5 a 19 MM) POSTO PEDREIRA/FORNECEDOR, SEM FRETE | E140: Material | G140: m³ | H140: 0.23 | I140: 139.26 | J140: 32.03
A141: Insumo | B141: 00003767 | C141: SINAPI | D141: LIXA EM FOLHA PARA PAREDE OU MADEIRA, NUMERO 120, COR VERMELHA | E141: Material | G141: UN | H141: 0.12 | I141: 0.63 | J141: 0.08
A142: Insumo | B142: 00007356 | C142: SINAPI | D142: TINTA LATEX ACRILICA PREMIUM, COR BRANCO FOSCO | E142: Material | G142: L | H142: 0.18 | I142: 16.96 | J142: 3.05
A143: Insumo | B143: 00043681 | C143: SINAPI | D143: CHAPA/PAINEL DE MADEIRA COMPENSADA RESINADA (MADEIRITE RESINADO ROSA) PARA FORMA DE CONCRETO, DE 2200 x 1100 MM, E = 8 A 12 MM | E143: Material | G143: m² | H143: 7.3 | I143: 39.86 | J143: 290.98
A146: 7 | D146: INSTALAÇÕES HIDRÁULICAS
A147: 7.1 | D147: INSTALAÇÕES DE CAVALETE
A148: 7.1.1 | B148: Código | C148: Banco | D148: Descrição | E148: Tipo | G148: Und | H148: Quant. | I148: Valor Unit | J148: Total
A149: Composição | B149: COMPOSIÇÃO - 018 | C149: Próprio | D149: Montagem e Instalação de Tubulação e Conexões Cavalete | E149: INHI - INSTALAÇÕES HIDROS SANITÁRIAS | G149: un | H149: 1 | I149: =J149 -> 241.87 | J149: =SUM(J150:J153) -> 241.87
A150: Composição Auxiliar | B150: 88248 | C150: SINAPI | D150: AUXILIAR DE ENCANADOR OU BOMBEIRO HIDRÁULICO COM ENCARGOS COMPLEMENTARES | E150: SEDI - SERVIÇOS DIVERSOS | G150: H | H150: 3 | I150: 19.09 | J150: =ROUND(H150*I150,2) -> 57.27
A151: Composição Auxiliar | B151: 88267 | C151: SINAPI | D151: ENCANADOR OU BOMBEIRO HIDRÁULICO COM ENCARGOS COMPLEMENTARES | E151: SEDI - SERVIÇOS DIVERSOS | G151: H | H151: 3 | I151: 23.24 | J151: 69.72
A152: Insumo | B152: 00000122 | C152: SINAPI | D152: ADESIVO PLASTICO PARA PVC, FRASCO COM *850* GR | E152: Material | G152: UN | H152: 1 | I152: 53.86 | J152: 53.86
A153: Insumo | B153: 00020083 | C153: SINAPI | D153: SOLUCAO PREPARADORA / LIMPADORA PARA PVC, FRASCO COM 1000 CM3 | E153: Material | G153: UN | H153: 1 | I153: 61.02 | J153: 61.02
A157: 7.2 | D157: INSTALAÇÕES DE ADUTORA, RESERVATÓRIO E BEBEDOURO
A158: 7.2.1 | B158: Código | C158: Banco | D158: Descrição | E158: Tipo | G158: Und | H158: Quant. | I158: Valor Unit | J158: Total
A159: Composição | B159: COMPOSIÇÃO - 020 | C159: Próprio | D159: Montagem e instalação da rede adutora poço-reservatório-bebedouro | E159: SEDI - SERVIÇOS DIVERSOS | G159: un | H159: 1 | I159: =J159 -> 934.47 | J159: =SUM(J160:J165) -> 934.47
A160: Composição Auxiliar | B160: 88316 | C160: SINAPI | D160: SERVENTE COM ENCARGOS COMPLEMENTARES | E160: SEDI - SERVIÇOS DIVERSOS | G160: H | H160: 6 | I160: 19.66 | J160: =ROUND(H160*I160,2) -> 117.96
A161: Composição Auxiliar | B161: 96995 | C161: SINAPI | D161: REATERRO MANUAL APILOADO COM SOQUETE. AF_10/2017 | E161: MOVT - MOVIMENTO DE TERRA | G161: m³ | H161: 4.5 | I161: 47.16 | J161: 212.22
A162: Composição Auxiliar | B162: 93358 | C162: SINAPI | D162: ESCAVAÇÃO MANUAL DE VALA COM PROFUNDIDADE MENOR OU IGUAL A 1,30 M. AF_02/2021 | E162: MOVT - MOVIMENTO DE TERRA | G162: m³ | H162: 4.5 | I162: 77.77 | J162: 349.97
A163: Composição Auxiliar | B163: 88267 | C163: SINAPI | D163: ENCANADOR OU BOMBEIRO HIDRÁULICO COM ENCARGOS COMPLEMENTARES | E163: SEDI - SERVIÇOS DIVERSOS | G163: H | H163: 6 | I163: 23.24 | J163: 139.44
A164: Insumo | B164: 00000122 | C164: SINAPI | D164: ADESIVO PLASTICO PARA PVC, FRASCO COM *850* GR | E164: Material | G164: UN | H164: 1 | I164: 53.86 | J164: 53.86
A165: Insumo | B165: 00020083 | C165: SINAPI | D165: SOLUCAO PREPARADORA / LIMPADORA PARA PVC, FRASCO COM 1000 CM3 | E165: Material | G165: UN | H165: 1 | I165: 61.02 | J165: 61.02
A167: 8 | D167: FORNECIMENTO E INSTALAÇÃO DE SISTEMA FOTOVOLTAÍCO
A168: 8.1 | D168: INSTALAÇÕES HIDRÁULICAS
A169: 8.1.1 | B169: Código | C169: Banco | D169: Descrição | E169: Tipo | G169: Und | H169: Quant. | I169: Valor Unit | J169: Total
A170: Composição | B170: COMPOSIÇÃO - 019 | C170: Próprio | D170: Montagem e instalação hidráulica do kit de bombeamento | E170: INHI - INSTALAÇÕES HIDROS SANITÁRIAS | G170: un | H170: 1 | I170: =J170 -> 126.99 | J170: =SUM(J171:J172) -> 126.99
A171: Composição Auxiliar | B171: 88267 | C171: SINAPI | D171: ENCANADOR OU BOMBEIRO HIDRÁULICO COM ENCARGOS COMPLEMENTARES | E171: SEDI - SERVIÇOS DIVERSOS | G171: H | H171: 3 | I171: 23.24 | J171: =ROUND(H171*I171,2) -> 69.72
A172: Composição Auxiliar | B172: 88248 | C172: SINAPI | D172: AUXILIAR DE ENCANADOR OU BOMBEIRO HIDRÁULICO COM ENCARGOS COMPLEMENTARES | E172: SEDI - SERVIÇOS DIVERSOS | G172: H | H172: 3 | I172: 19.09 | J172: 57.27
A176: 8.2 | D176: INSTALAÇÕES ELÉTRICAS
A177: 8.2.1 | B177: Código | C177: Banco | D177: Descrição | E177: Tipo | G177: Und | H177: Quant. | I177: Valor Unit | J177: Total
A178: Composição | B178: COMPOSIÇÃO - 021 | C178: Próprio | D178: Montagem e instalação elétrica do kit de bombeamento e sistema fotovoltaico inclusive sistema de aterramento. | E178: INEL - INSTALAÇÃO ELÉTRICA/ELETRIFICAÇÃO E ILUMINAÇÃO EXTERNA | G178: un | H178: 1 | I178: =J178 -> 579.26 | J178: =SUM(J179:J183) -> 579.26
A179: Composição Auxiliar | B179: 88264 | C179: SINAPI | D179: ELETRICISTA COM ENCARGOS COMPLEMENTARES | E179: SEDI - SERVIÇOS DIVERSOS | G179: H | H179: 8 | I179: 27.73 | J179: =ROUND(H179*I179,2) -> 221.84
A180: Composição Auxiliar | B180: 88247 | C180: SINAPI | D180: AUXILIAR DE ELETRICISTA COM ENCARGOS COMPLEMENTARES | E180: SEDI - SERVIÇOS DIVERSOS | G180: H | H180: 8 | I180: 22.67 | J180: 181.36
A181: Composição Auxiliar | B181: 91677 | C181: SINAPI | D181: ENGENHEIRO ELETRICISTA COM ENCARGOS COMPLEMENTARES | E181: SEDI - SERVIÇOS DIVERSOS | G181: H | H181: 1 | I181: 166.97 | J181: 166.97
A182: Insumo | B182: 00020111 | C182: SINAPI | D182: FITA ISOLANTE ADESIVA ANTICHAMA, USO ATE 750 V, EM ROLO DE 19 MM X 20 M | E182: Material | G182: UN | H182: 1 | I182: 8 | J182: 8
A183: Insumo | B183: 00000404 | C183: SINAPI | D183: FITA ISOLANTE DE BORRACHA AUTOFUSAO, USO ATE 69 KV (ALTA TENSAO) | E183: Material | G183: M | H183: 1 | I183: 1.09 | J183: 1.09
A185: 8.3 | D185: ESTRUTURA DE FIXAÇÃO PARA MÓDULOS FOTOVOLTÁICOS
A186: 8.3.1 | B186: Código | C186: Banco | D186: Descrição | E186: Tipo | G186: Und | H186: Quant. | I186: Valor Unit | J186: Total
A187: Composição | B187: COMPOSIÇÃO - 022 | C187: Próprio | D187: Serviço de fixação de estruturas para os módulos fotovoltaicos e suportes de concreto, incluso materiais. | E187: SEDI - SERVIÇOS DIVERSOS | G187: m² | H187: 1 | I187: =J187 -> 215.73 | J187: =SUM(J188:J191) -> 215.73
A188: Composição Auxiliar | B188: 94975 | C188: SINAPI | D188: CONCRETO FCK = 15MPA, TRAÇO 1:3,4:3,5 (EM MASSA SECA DE CIMENTO/ AREIA MÉDIA/ BRITA 1) - PREPARO MANUAL. AF_05/2021 | E188: FUES - FUNDAÇÕES E ESTRUTURAS | G188: m³ | H188: 0.0945 | I188: 486.02 | J188: =ROUND(H188*I188,2) -> 45.93
A189: Composição Auxiliar | B189: 93358 | C189: SINAPI | D189: ESCAVAÇÃO MANUAL DE VALA COM PROFUNDIDADE MENOR OU IGUAL A 1,30 M. AF_02/2021 | E189: MOVT - MOVIMENTO DE TERRA | G189: m³ | H189: 0.0625 | I189: 77.77 | J189: 4.86
A190: Composição Auxiliar | B190: 96534 | C190: SINAPI | D190: FABRICAÇÃO, MONTAGEM E DESMONTAGEM DE FÔRMA PARA BLOCO DE COROAMENTO, EM MADEIRA SERRADA, E=25 MM, 4 UTILIZAÇÕES. AF_06/2017 | E190: FUES - FUNDAÇÕES E ESTRUTURAS | G190: m² | H190: 0.032 | I190: 91.75 | J190: 2.94
A191: Insumo | B191: COTAÇÃO-003 | C191: Próprio | D191: Fornecimento suporte fabricado em material metálico resistente a corrosão e ataque químico do solo fabricado em alumínio ou aço galvanizado ou aço zincado ou similares, a ser fixado nos blocos de concreto | E191: Material | G191: m² | H191: 1 | I191: 162 | J191: 162
A194: 8.4 | D194: FORNECIMENTO DE KIT DE BOMBEAMENTO FOTOVOLTAICO
B195: Código | C195: Banco | D195: Descrição | E195: Tipo | G195: Und | H195: Quant. | I195: Valor Unit | J195: Total
A196: Insumo | B196: COTAÇÃO-001 | C196: Próprio | D196: Fornecimento de kit de bombeamento fotovoltaico, incluindo uma bomba CC de 2200W com imã permanente sem escovas, controladora de carga externa, disjuntor CC, caixa de proteção metálica, módulos compatíveis com a geração de 3300Wp (potência mínima de 550 W por módulo) e componentes elétricos necessários como cabos, conectores MC4 e presilhas de fixação. | E196: Equipamento para Aquisição Permanente | G196: un | H196: 1 | I196: 21930.54 | J196: =ROUND(H196*I196,2) -> 21930.54
A199: 9 | D199: URBANIZAÇÃO
A200: 9.1 | D200: CERCA
A201: 9.1.1 | B201: Código | C201: Banco | D201: Descrição | E201: Tipo | G201: Und | H201: Quant. | I201: Valor Unit | J201: Total
A202: Composição | B202: COMPOSIÇÃO - 023 | C202: Próprio | D202: Cerca com mourões de concreto de 15x15cm, espaçados de 3m e cravados a 0,5m, escoras de 10x10cm nos cantos, e 9 fios de arame de aço ovalado 15x17. | E202: SEDI - SERVIÇOS DIVERSOS | G202: m | H202: 1 | I202: =J202 -> 76.03 | J202: =SUM(J203:J209) -> 76.03
A203: Composição Auxiliar | B203: 88309 | C203: SINAPI | D203: PEDREIRO COM ENCARGOS COMPLEMENTARES | E203: SEDI - SERVIÇOS DIVERSOS | G203: H | H203: 0.335 | I203: 24.11 | J203: =ROUND(H203*I203,2) -> 8.08
A204: Composição Auxiliar | B204: 88316 | C204: SINAPI | D204: SERVENTE COM ENCARGOS COMPLEMENTARES | E204: SEDI - SERVIÇOS DIVERSOS | G204: H | H204: 0.671 | I204: 19.66 | J204: 13.19
A205: Composição Auxiliar | B205: 94975 | C205: SINAPI | D205: CONCRETO FCK = 15MPA, TRAÇO 1:3,4:3,5 (EM MASSA SECA DE CIMENTO/ AREIA MÉDIA/ BRITA 1) - PREPARO MANUAL. AF_05/2021 | E205: FUES - FUNDAÇÕES E ESTRUTURAS | G205: m³ | H205: 0.0288 | I205: 486.02 | J205: 14
A206: Insumo | B206: 00043130 | C206: SINAPI | D206: ARAME GALVANIZADO 12 BWG, D = 2,76 MM (0,048 KG/M) OU 14 BWG, D = 2,11 MM (0,026 KG/M) | E206: Material | G206: KG | H206: 0.098 | I206: 25 | J206: 2.45
A207: Insumo | B207: 00000346 | C207: SINAPI | D207: ARAME DE ACO OVALADO 15 X 17 ( 45,7 KG, 700 KGF), ROLO 1000 M | E207: Material | G207: KG | H207: 0.405 | I207: 29.61 | J207: 11.99
A208: Insumo | B208: 00004111 | C208: SINAPI | D208: ESCORA PRE-MOLDADA EM CONCRETO, *10 X 10* CM, H = 2,30M | E208: Material | G208: UN | H208: 0.16 | I208: 67.36 | J208: 10.78
A209: Insumo | B209: I1533 | C209: SEINFRA | D209: MOURÃO CONCRETO BASE 15X15CM H=2.3 C/ 12 FUROS | E209: Material | G209: UN | H209: 0.42 | I209: 37.01 | J209: 15.54
A212: 9.2 | D212: PORTÃO
A213: 9.2.1 | B213: Código | C213: Banco | D213: Descrição | E213: Tipo | G213: Und | H213: Quant. | I213: Valor Unit | J213: Total
A214: Composição | B214: COMPOSIÇÃO - 024 | C214: Próprio | D214: Serviço de instalação de portão de ferro com suporte e batedor conforme projeto, incluso material | E214: SEDI - SERVIÇOS DIVERSOS | G214: m² | H214: 1 | I214: =J214 -> 687.39 | J214: =SUM(J215:J219) -> 687.39
A215: Composição Auxiliar | B215: 88309 | C215: SINAPI | D215: PEDREIRO COM ENCARGOS COMPLEMENTARES | E215: SEDI - SERVIÇOS DIVERSOS | G215: H | H215: 1.5 | I215: 24.11 | J215: =ROUND(H215*I215,2) -> 36.17
A216: Composição Auxiliar | B216: 88316 | C216: SINAPI | D216: SERVENTE COM ENCARGOS COMPLEMENTARES | E216: SEDI - SERVIÇOS DIVERSOS | G216: H | H216: 1.5 | I216: 19.66 | J216: 29.49
A217: Insumo | B217: 00000367 | C217: SINAPI | D217: AREIA GROSSA - POSTO JAZIDA/FORNECEDOR (RETIRADO NA JAZIDA, SEM TRANSPORTE) | E217: Material | G217: m³ | H217: 0.061 | I217: 101.3 | J217: 6.18
A218: Insumo | B218: 00001379 | C218: SINAPI | D218: CIMENTO PORTLAND COMPOSTO CP II-32 | E218: Material | G218: KG | H218: 4.83 | I218: 0.72 | J218: 3.48
A219: Insumo | B219: 00004948 | C219: SINAPI | D219: PORTAO DE ABRIR / GIRO, EM GRADIL DE METALON REDONDO DE 3/4" VERTICAL, COM REQUADRO, ACABAMENTO NATURAL - COMPLETO | E219: Material | G219: m² | H219: 1 | I219: 612.07 | J219: 612.07
A222: 10 | D222: OUTROS SERVIÇOS
A223: 10.1 | B223: Código | C223: Banco | D223: Descrição | E223: Tipo | G223: Und | H223: Quant. | I223: Valor Unit | J223: Total
A224: Composição | B224: COMPOSIÇÃO - 025 | C224: Próprio | D224: Serviço de lançamento de concreto para acabamento do tamponamento, incluso material. | E224: SEDI - SERVIÇOS DIVERSOS | G224: m³ | H224: 1 | I224: =J224 -> 712.26 | J224: =SUM(J225:J226) -> 712.26
A225: Composição Auxiliar | B225: 103670 | C225: SINAPI | D225: LANÇAMENTO COM USO DE BALDES, ADENSAMENTO E ACABAMENTO DE CONCRETO EM ESTRUTURAS. AF_02/2022 | E225: FUES - FUNDAÇÕES E ESTRUTURAS | G225: m³ | H225: 1 | I225: 262.52 | J225: =ROUND(H225*I225,2) -> 262.52
A226: Composição Auxiliar | B226: 94974 | C226: SINAPI | D226: CONCRETO MAGRO PARA LASTRO, TRAÇO 1:4,5:4,5 (EM MASSA SECA DE CIMENTO/ AREIA MÉDIA/ BRITA 1) - PREPARO MANUAL. AF_05/2021 | E226: FUES - FUNDAÇÕES E ESTRUTURAS | G226: m³ | H226: 1 | I226: 449.74 | J226: 449.74
A229: 10.2 | B229: Código | C229: Banco | D229: Descrição | E229: Tipo | G229: Und | H229: Quant. | I229: Valor Unit | J229: Total
A230: Composição | B230: COMPOSIÇÃO - 026 | C230: Próprio | D230: Serviço de execução do tamponamento, incluso pedra britada desinfectada. | E230: SEDI - SERVIÇOS DIVERSOS | G230: m³ | H230: 1 | I230: =J230 -> 183.75 | J230: =SUM(J231:J233) -> 183.75
A231: Composição Auxiliar | B231: 88316 | C231: SINAPI | D231: SERVENTE COM ENCARGOS COMPLEMENTARES | E231: SEDI - SERVIÇOS DIVERSOS | G231: H | H231: 0.1 | I231: 19.66 | J231: =ROUND(H231*I231,2) -> 1.97
A232: Insumo | B232: 00004720 | C232: SINAPI | D232: PEDRA BRITADA N. 0, OU PEDRISCO (4,8 A 9,5 MM) POSTO PEDREIRA/FORNECEDOR, SEM FRETE | E232: Material | G232: m³ | H232: 1 | I232: 160.78 | J232: 160.78
A233: Insumo | B233: D240000003 | C233: EMBASA | D233: HIPOCLORITO DE SÓDIO | E233: Material | G233: L | H233: 5 | I233: 4.2 | J233: 21
B236: Código | C236: Banco | D236: Descrição | E236: Tipo | G236: Und | H236: Quant. | I236: Valor Unit | J236: Total
A237: Insumo | B237: COTAÇÃO-006 | C237: Próprio | D237: Fornecimento tubo revestimento geomecânico classe reforçado Ø 4 1/2" com junta roscável. | E237: Material | G237: m | H237: 1 | I237: 92.4 | J237: =ROUND(H237*I237,2) -> 92.4
B240: Código | C240: Banco | D240: Descrição | E240: Tipo | G240: Und | H240: Quant. | I240: Valor Unit | J240: Total
A241: Insumo | B241: COTAÇÃO-004 | C241: Próprio | D241: Fornecimento tubo filtro geomecânico classe reforçado diâmetro Ø 4 1/2" com junta roscável. | E241: Material | G241: m | H241: 1 | I241: 81 | J241: =ROUND(H241*I241,2) -> 81

Sheet Crono. RN - Total.Rev
C1: MINISTÉRIO DO DESENVOLVIMENTO REGIONAL - MDR COMPANHIA DE DESENVOLVIMENTO DOS VALES DO SÃO FRANCISCO E DO PARNAÍBA ÁREA DE REVITALIZAÇÃO E SUSTENTABILIDADE SOCIOAMBIENTAL
A6: OBJETO: | B6: PERFURAÇÃO E INSTALAÇÃO DE POÇO TUBULAR TOTALMENTE REVESTIDO NO ESTADO DO RIO GRANDE DO NORTE
A8: CRONOGRAMA FÍSICO-FINANCEIRO
A10: ITEM | B10: ESPECIFICAÇÃO DOS SERVIÇOS | C10: VALOR TOTAL (R$) | D10: Mês 01 | E10: Mês 02 | F10: Mês 03 | G10: Mês 04 | H10: Mês 05 | I10: Mês 06 | J10: Mês 07 | K10: Mês 08 | L10: Mês 09 | M10: Mês 10 | N10: Mês 11 | O10: Mês 12
A11: 1 | B11: SERVIÇOS PRELIMINARES | C11: ='Orç. RN - Tot. Rev - Sintético'!J6 -> 262906.54 | D11: =$C$11/12 -> 21908.87833 | E11: =$C$11/12 -> 21908.87833 | F11: 21908.87833 | G11: 21908.87833 | H11: 21908.87833 | I11: 21908.87833 | J11: 21908.87833 | K11: 21908.87833 | L11: 21908.87833 | M11: 21908.87833 | N11: 21908.87833 | O11: 21908.87833
A12: 2 | B12: MOBILIZAÇÂO E DESMOBILIZAÇÂO EQUIPES PERFURAÇÂO E INSTALAÇÃO | C12: ='Orç. RN - Tot. Rev - Sintético'!J11 -> 60504.6 | D12: =$C$12/12 -> 5042.05 | E12: =$C$12/12 -> 5042.05 | F12: 5042.05 | G12: 5042.05 | H12: 5042.05 | I12: 5042.05 | J12: 5042.05 | K12: 5042.05 | L12: 5042.05 | M12: 5042.05 | N12: 5042.05 | O12: 5042.05
A13: 3 | B13: PERFURAÇÃO E COMPLETAÇÃO DE POÇO TUBULAR | C13: ='Orç. RN - Tot. Rev - Sintético'!J15 -> 2076822.47 | D13: =$C$13/12 -> 173068.5392 | E13: =$C$13/12 -> 173068.5392 | F13: 173068.5392 | G13: 173068.5392 | H13: 173068.5392 | I13: 173068.5392 | J13: 173068.5392 | K13: 173068.5392 | L13: 173068.5392 | M13: 173068.5392 | N13: 173068.5392 | O13: 173068.5392
A14: 4 | B14: PÓS PERFURAÇÃO | C14: ='Orç. RN - Tot. Rev - Sintético'!J27 -> 270031.32 | D14: =$C$14/12 -> 22502.61 | E14: =$C$14/12 -> 22502.61 | F14: 22502.61 | G14: 22502.61 | H14: 22502.61 | I14: 22502.61 | J14: 22502.61 | K14: 22502.61 | L14: 22502.61 | M14: 22502.61 | N14: 22502.61 | O14: 22502.61
A15: 5 | B15: RESERVAÇÃO | C15: ='Orç. RN - Tot. Rev - Sintético'!J32 -> 175453.63 | D15: =$C$15/12 -> 14621.13583 | E15: =$C$15/12 -> 14621.13583 | F15: 14621.13583 | G15: 14621.13583 | H15: 14621.13583 | I15: 14621.13583 | J15: 14621.13583 | K15: 14621.13583 | L15: 14621.13583 | M15: 14621.13583 | N15: 14621.13583 | O15: 14621.13583
A16: 6 | B16: BEBEDOURO | C16: ='Orç. RN - Tot. Rev - Sintético'!J38 -> 52500.5 | D16: =$C$16/12 -> 4375.041667 | E16: =$C$16/12 -> 4375.041667 | F16: 4375.041667 | G16: 4375.041667 | H16: 4375.041667 | I16: 4375.041667 | J16: 4375.041667 | K16: 4375.041667 | L16: 4375.041667 | M16: 4375.041667 | N16: 4375.041667 | O16: 4375.041667
A17: 7 | B17: INSTALAÇÕES HIDRÁULICAS | C17: ='Orç. RN - Tot. Rev - Sintético'!J40 -> 86845.72 | D17: =$C$17/12 -> 7237.143333 | E17: =$C$17/12 -> 7237.143333 | F17: 7237.143333 | G17: 7237.143333 | H17: 7237.143333 | I17: 7237.143333 | J17: 7237.143333 | K17: 7237.143333 | L17: 7237.143333 | M17: 7237.143333 | N17: 7237.143333 | O17: 7237.143333
A18: 8 | B18: ='Orç. PB - Tot. Rev - Sintético'!E70 -> FORNECIMENTO E INSTALAÇÃO DE SISTEMA FOTOVOLTAÍCO | C18: ='Orç. RN - Tot. Rev - Sintético'!J70 -> 938121.29 | D18: =$C$18/12 -> 78176.77417 | E18: =$C$18/12 -> 78176.77417 | F18: 78176.77417 | G18: 78176.77417 | H18: 78176.77417 | I18: 78176.77417 | J18: 78176.77417 | K18: 78176.77417 | L18: 78176.77417 | M18: 78176.77417 | N18: 78176.77417 | O18: 78176.77417
A19: 9 | B19: URBANIZAÇÃO | C19: ='Orç. RN - Tot. Rev - Sintético'!J92 -> 103080.25 | D19: =$C$19/12 -> 8590.020833 | E19: =$C$19/12 -> 8590.020833 | F19: 8590.020833 | G19: 8590.020833 | H19: 8590.020833 | I19: 8590.020833 | J19: 8590.020833 | K19: 8590.020833 | L19: 8590.020833 | M19: 8590.020833 | N19: 8590.020833 | O19: 8590.020833
A20: 10 | B20: OUTROS SERVIÇOS | C20: ='Orç. RN - Tot. Rev - Sintético'!J97 -> 69423.72 | D20: =$C$20/12 -> 5785.31 | E20: =$C$20/12 -> 5785.31 | F20: 5785.31 | G20: 5785.31 | H20: 5785.31 | I20: 5785.31 | J20: 5785.31 | K20: 5785.31 | L20: 5785.31 | M20: 5785.31 | N20: 5785.31 | O20: 5785.31
A21: TOTAL | C21: =SUM(C11:C20) -> 4095690.04 | D21: =SUM(D11:D20) -> 341307.5033 | E21: =SUM(E11:E20) -> 341307.5033 | F21: 341307.5033 | G21: 341307.5033 | H21: 341307.5033 | I21: 341307.5033 | J21: 341307.5033 | K21: 341307.5033 | L21: 341307.5033 | M21: 341307.5033 | N21: 341307.5033 | O21: 341307.5033
A22: PERCENTUAL | D22: =D21/$C$21 -> 0.08333333333 | E22: 0.08333333333 | F22: 0.08333333333 | G22: 0.08333333333 | H22: 0.08333333333 | I22: 0.08333333333 | J22: 0.08333333333 | K22: 0.08333333333 | L22: 0.08333333333 | M22: 0.08333333333 | N22: 0.08333333333 | O22: 0.08333333333
A23: CUSTO ACUMULADO | D23: =D21 -> 341307.5033 | E23: =E21+D23 -> 682615.0067 | F23: =F21+E23 -> 1023922.51 | G23: 1365230.013 | H23: 1706537.517 | I23: 2047845.02 | J23: 2389152.523 | K23: 2730460.027 | L23: 3071767.53 | M23: 3413075.033 | N23: 3754382.537 | O23: 4095690.04
A24: PERCENTUAL ACUMULADO | D24: =D22 -> 0.08333333333 | E24: =E22+D24 -> 0.1666666667 | F24: 0.25 | G24: 0.3333333333 | H24: 0.4166666667 | I24: 0.5 | J24: 0.5833333333 | K24: 0.6666666667 | L24: 0.75 | M24: 0.8333333333 | N24: 0.9166666667 | O24: 1

Sheet Planilha resumo - PB
B2: OBJETO: EXECUÇÃO DE SERVIÇOS DE PERFURAÇÃO E INSTALAÇÃO DE POÇOS TUBULARES EM MUNICÍPIOS LOCALIZADOS NOS ESTADOS DO RIO GRANDE DO NORTE, PARAÍBA E CEARÁ, NA ÁREA DE ATUAÇÃO DA CODEVASF
B3: PLANILHA ORÇAMENTÁRIA ESTIMATIVA GERAL DATABASE DO ORÇAMENTO: SETEMBRO/2023 - NÃO DESONERADO. PLANILHA RESUMIDA DO GRUPO 02 - PB
B5: ITEM | C5: DISCRIMINAÇÃO | D5: UND | E5: QUANT | F5: UNITÁRIO | G5: TOTAL
B6: 3 | C6: Perfuração e instalação de poço tubular parcialmente revestido, instalado com sistema fotovoltaico, bomba submersa, reservatório e bebedouro para animais. | D6: un | E6: 159 | F6: ='Orç. PB - Parc. Rev - Sintético'!I3 -> 101919.98 | G6: =ROUND(E6*F6,2) -> 16205276.82
B7: 4 | C7: Perfuração e instalação de poços poço tubular totalmente revestido, instalado com sistema fotovoltaico, bomba submersa, reservatório e bebedouro para animais. | D7: un | E7: 21 | F7: ='Orç. PB - Tot. Rev - Sintético'!I3 -> 156834.78 | G7: =ROUND(E7*F7,2) -> 3293530.38
B8: TOTAL GERAL ESTIMADO - GRUPO 02 | D8: un | E8: =SUM(E6:E7) -> 180 | G8: =SUM(G6:G7) -> 19498807.2

Sheet Orç. PB - Parc. Rev - Sintético
H1: B.D.I. SERVIÇO | I1: B.D.I. MATERIAL | J1: Encargos Sociais
A2: OBRA:PERFURAÇÃO E INSTALAÇÃO DE POÇO TUBULAR PARCIALMENTE REVESTIDO NO ESTADO DA PARAÌBA | H2: 25,47% | I2: 0.1528 | J2: Não Desonerado: embutido nos preços unitário dos insumos de mão de obra, de acordo com as bases.
H3: VALOR UNITÁRIO POR POÇO | I3: =ROUND(J98/K3,2) -> 101919.98 | J3: QUANTIDADE DE POÇOS | K3: 159
A4: Orçamento Sintético
A5: Item | B5: Código | C5: Serviço/Material | D5: Banco | E5: Descrição | F5: und | G5: Quant. | H5: Valor unit | I5: Valor unit com BDI | J5: Total | K5: Peso (%)
A6: 1 | E6: SERVIÇOS PRELIMINARES | J6: =SUM(J7:J10) -> 375016.27 | K6: =J6/$J$98 -> 0.02314161483
A7: 1.1 | B7: COMPOSIÇÃO - 001 | C7: Serviço | D7: Próprio | E7: Administração Local da Obra - Poço Parcialmente Revestido | F7: un | G7: 1 | H7: 119296.26 | I7: =ROUND(H7+H7*$H$2,2) -> 149681.02 | J7: =ROUND(G7*I7,2) -> 149681.02 | K7: =J7/$J$98 -> 0.009236560623
A8: 1.2 | B8: COMPOSIÇÃO - 003 | C8: Serviço | D8: Próprio | E8: Serviço de locação Geológica de campo com relatório hidro geológico e perfil construtivo e geológico esperado. Relatório de Viabilidade de implantação das estruturas e vistorias preliminares | F8: un | G8: 159 | H8: 496.4 | I8: =ROUND(H8+H8*$H$2,2) -> 622.83 | J8: =ROUND(G8*I8,2) -> 99029.97 | K8: =J8/$J$98 -> 0.006110970659
A9: 1.3 | B9: COMPOSIÇÃO - 028 | C9: Serviço | D9: Próprio | E9: Procedimentos para emissão de Outorga de uso insignificante e Dispensa de Licenciamento Ambiental (incluso taxas) - Paraíba | F9: un | G9: 159 | H9: 382.5 | I9: 479.92 | J9: 76307.28 | K9: 0.004708792188
A10: 1.5 | B10: 51 | C10: Serviço | D10: ORSE | E10: Placa de obra em chapa aço galvanizado, instalada | F10: m² | G10: 114.48 | H10: 348.08 | I10: 436.74 | J10: 49998 | K10: 0.003085291362
A11: 2 | E11: MOBILIZAÇÂO E DESMOBILIZAÇÂO EQUIPES DE PERFURAÇÂO E INSTALAÇÃO | J11: =SUM(J12:J13) -> 338288.4 | K11: 0.02087520057
A12: 2.1 | B12: COMPOSIÇÃO - 006 | C12: Serviço | D12: Próprio | E12: Transporte de Comboio Perfuração | F12: km | G12: 38160 | H12: 4.34 | I12: =ROUND(H12+H12*$H$2,2) -> 5.45 | J12: =ROUND(G12*I12,2) -> 207972 | K12: =J12/$J$98 -> 0.01283359765
A13: 2.2 | B13: COMPOSIÇÃO - 007 | C13: Serviço | D13: Próprio | E13: Transporte de Comboio Instalação | F13: km | G13: 19080 | H13: 5.44 | I13: 6.83 | J13: 130316.4 | K13: 0.008041602928
A14: 3 | E14: PERFURAÇÃO E COMPLETAÇÃO DE POÇO TUBULAR | J14: =SUM(J15:J20) -> 5833309.96 | K14: 0.3599636151
A15: 3.1 | B15: COMPOSIÇÃO - 009 | C15: Serviço | D15: Próprio | E15: Limpeza manual , remoção de cerca, capina e instalação dos equipamentos (área do poço, painéis solares, bebedouro e reservatório) | F15: m² | G15: 11130 | H15: 1.46 | I15: =ROUND(H15+H15*$H$2,2) -> 1.83 | J15: =ROUND(G15*I15,2) -> 20367.9 | K15: =J15/$J$98 -> 0.001256868393
A16: 3.2 | B16: COMPOSIÇÃO - 013 | C16: Serviço | D16: Próprio | E16: Perfuração em material inconsolidado Ø 8 1/2" | F16: m | G16: 7950 | H16: 212.7 | I16: 266.87 | J16: 2121616.5 | K16: 0.1309213381
A17: 3.3 | B17: COMPOSIÇÃO - 010 | C17: Serviço | D17: Próprio | E17: Perfuração roto pneumática utilizando martelo de fundo (DTH) em rocha Ø 6 1/8" em rocha | F17: m | G17: 11130 | H17: 170.52 | I17: 213.95 | J17: 2381263.5 | K17: 0.1469437119
A18: 3.4 | B18: 9854 | C18: Material | D18: SINAPI | E18: Tubo pvc de revestimento geomecanico nervurado standard, dn=154mm, comprimento=2m | F18: m | G18: 7950 | H18: 115.12 | I18: =ROUND(H18+H18*$I$2,2) -> 132.71 | J18: =ROUND(G18*I18,2) -> 1055044.5 | K18: 0.06510499784
A19: 3.5 | B19: COMPOSIÇÃO - 011 | C19: Serviço | D19: Próprio | E19: Serviço de lançamento cimentação anelar poço tubular, incluso material. | F19: m³ | G19: 146.28 | H19: 768.27 | I19: =ROUND(H19+H19*$H$2,2) -> 963.95 | J19: =ROUND(G19*I19,2) -> 141006.61 | K19: =J19/$J$98 -> 0.008701277567
A20: 3.6 | B20: COMPOSIÇÃO - 014 | C20: Serviço | D20: Próprio | E20: Serviço de instalação de laje sanitária com dimensões (1,5x1,5x0,3) , incluso material. | F20: un | G20: 159 | H20: 571.49 | I20: 717.05 | J20: 114010.95 | K20: 0.0070354214
A21: 4 | E21: PÓS PERFURAÇÃO | J21: =SUM(J22:J25) -> 1583029.44 | K21: 0.09768604857
A22: 4.1 | B22: 6305 | C22: Serviço | D22: ORSE | E22: Serviço de desenvolvimento com compressor 250psi / 750cfm | F22: h | G22: 636 | H22: 411.16 | I22: =ROUND(H22+H22*$H$2,2) -> 515.88 | J22: =ROUND(G22*I22,2) -> 328099.68 | K22: =J22/$J$98 -> 0.02024647203
A23: 4.2 | B23: 6312 | C23: Serviço | D23: ORSE | E23: Serviço de análise físico-química da Água incluso coleta, transporte e analise | F23: un | G23: 159 | H23: 565.21 | I23: 709.17 | J23: 112758.03 | K23: 0.006958105843
A24: 4.3 | B24: COMPOSIÇÃO - 015 | C24: Serviço | D24: Próprio | E24: Inspeção ótica em poço tubular câmera com rotação de 360º, visada lateral, com fonte própria de luz, entregue vídeo em cores e marcação de profundidades. | F24: m | G24: 5724 | H24: 38.05 | I24: 47.74 | J24: 273263.76 | K24: 0.01686264087
A25: 4.4 | B25: 6314 | C25: Serviço | D25: ORSE | E25: Ensaio de Bombeamento com bomba submersível | F25: h | G25: 1113 | H25: 622.21 | I25: 780.69 | J25: 868907.97 | K25: 0.05361882983
A26: 5 | E26: RESERVAÇÃO | J26: =SUM(J27:J31) -> 1036423.44 | K26: 0.06395592397
A27: 5.1 | B27: COMPOSIÇÃO - 016 | C27: Serviço | D27: Próprio | E27: Execução e instalação de base de sustentação em concreto armado para reservatório de diâmetro 2,06m e altura 1,10m, conforme projeto, incluindo fixação de grampos da tampa. | F27: un | G27: 159 | H27: 2358.16 | I27: =ROUND(H27+H27*$H$2,2) -> 2958.78 | J27: =ROUND(G27*I27,2) -> 470446.02 | K27: =J27/$J$98 -> 0.02903042205
A28: 5.2 | B28: 00037105 | C28: Material | D28: SINAPI | E28: Fornecimento de caixa d'agua / reservatorio em poliester reforcado com fibra de vidro, 5000 litros, com tampa | F28: un | G28: 159 | H28: 2986.9 | I28: =ROUND(H28+H28*$I$2,2) -> 3443.3 | J28: =ROUND(G28*I28,2) -> 547484.7 | K28: =J28/$J$98 -> 0.03378434769
A29: 5.3 | B29: 13960 | C29: Material | D29: ORSE | E29: Fornecimento de cabo de aço 1/8" sem revestimento ( rolo c/ 100 mt) rolo | F29: rolo | G29: 12.72 | H29: 260.96 | I29: 300.83 | J29: 3826.56 | K29: 0.0002361304955
A30: 5.4 | B30: 094248 | C30: Material | D30: SBC | E30: Fornecimento de esticador olhal com gancho de 1/4" 6,35 mm vonder | F30: un | G30: 636 | H30: 13.05 | I30: 15.04 | J30: 9565.44 | K30: 0.0005902669987
A31: 5.5 | B31: 002048 | C31: Material | D31: SBC | E31: Fornecimento de grampo (clip) para cabo de aco pesado 1/8" | F31: un | G31: 636 | H31: 6.96 | I31: 8.02 | J31: 5100.72 | K31: 0.0003147567374
A32: 6 | E32: BEBEDOURO | J32: =SUM(J33) -> 274022.19 | K32: 0.01690944229
A33: 6.1 | B33: COMPOSIÇÃO - 017 | C33: Serviço | D33: Próprio | E33: Serviço de execução do bebedouro em concreto armado, incluso materiais. | F33: un | G33: 159 | H33: 1373.56 | I33: =ROUND(H33+H33*$H$2,2) -> 1723.41 | J33: =ROUND(G33*I33,2) -> 274022.19 | K33: =J33/$J$98 -> 0.01690944229
A34: 7 | E34: INSTALAÇÕES HIDRÁULICAS | J34: =SUM(J35,J51) -> 526242.3 | K34: 0.03247351539
A35: 7.1 | E35: INSTALAÇÕES DE CAVALETE | J35: =SUM(J36:J50) -> 207972 | K35: 0.01283359765
A36: 7.1.1 | B36: COMPOSIÇÃO - 018 | C36: Serviço | D36: Próprio | E36: Montagem e Instalação de Tubulação e Conexões Cavalete | F36: un | G36: 159 | H36: 231.58 | I36: =ROUND(H36+H36*$H$2,2) -> 290.56 | J36: =ROUND(G36*I36,2) -> 46199.04 | K36: =J36/$J$98 -> 0.002850864015
A37: 7.1.2 | B37: 00001796 | C37: Material | D37: SINAPI | E37: Fornecimento de curva 90 graus de ferro galvanizado, com rosca bsp macho, de 1 1/4" | F37: un | G37: 159 | H37: 77.17 | I37: =ROUND(H37+H37*$I$2,2) -> 88.96 | J37: =ROUND(G37*I37,2) -> 14144.64 | K37: =J37/$J$98 -> 0.0008728416258
A38: 7.1.3 | B38: 00009888 | C38: Material | D38: SINAPI | E38: Fornecimento de uniao de ferro galvanizado, com rosca bsp, com assento plano, de 1 1/4" | F38: un | G38: 159 | H38: 62.13 | I38: 71.62 | J38: 11387.58 | K38: 0.0007027081524
A39: 7.1.4 | B39: 00004180 | C39: Material | D39: SINAPI | E39: Fornecimento de niple de ferro galvanizado, com rosca bsp, de 1 1/4" | F39: un | G39: 318 | H39: 18.99 | I39: 21.89 | J39: 6961.02 | K39: 0.0004295526796
A40: 7.1.5 | B40: 00006017 | C40: Material | D40: SINAPI | E40: Fornecimento de registro gaveta bruto em latao forjado, bitola 1 1/4 " (ref 1509) | F40: un | G40: 159 | H40: 78.48 | I40: 90.47 | J40: 14384.73 | K40: 0.0008876571705
A41: 7.1.6 | B41: 00000789 | C41: Material | D41: SINAPI | E41: Fornecimento de bucha de reducao de ferro galvanizado, com rosca bsp, de 1 1/4" x 1" | F41: un | G41: 159 | H41: 17.76 | I41: 20.47 | J41: 3254.73 | K41: 0.0002008438408
A42: 7.1.7 | B42: 12438 | C42: Material | D42: ORSE | E42: Fornecimento de hidrômetro multijato d= 3/4", vazão = 5,0m3/h | F42: un | G42: 159 | H42: 297.28 | I42: 342.7 | J42: 54489.3 | K42: 0.00336244183
A43: 7.1.8 | B43: 00009861 | C43: Material | D43: SINAPI | E43: Fornecimento de tubo pvc, roscavel, 1 1/4", agua fria predial | F43: m | G43: 238.5 | H43: 27.67 | I43: 31.9 | J43: 7608.15 | K43: 0.0004694859689
A44: 7.1.9 | B44: 002116 | C44: Material | D44: SBC | E44: Fornecimento de te de reducao ferro galvanizado 1.1/4" x 1/2" | F44: un | G44: 159 | H44: 17.24 | I44: 19.87 | J44: 3159.33 | K44: 0.0001949568694
A45: 7.1.10 | B45: 00011831 | C45: Material | D45: SINAPI | E45: Fornecimento de torneira plastica para tanque 1/2 " ou 3/4 " com bico para mangueira | F45: un | G45: 159 | H45: 18.42 | I45: 21.23 | J45: 3375.57 | K45: 0.0002083006713
A46: 7.1.11 | B46: 1158 | C46: Material | D46: ORSE | E46: Fornecimento de joelho 45° ferro galvanizado d=1 1/ 4" | F46: un | G46: 318 | H46: 32.7 | I46: 37.7 | J46: 11988.6 | K46: 0.0007397960722
A47: 7.1.12 | B47: 00004205 | C47: Material | D47: SINAPI | E47: Fornecimento de niple de reducao de ferro galvanizado, com rosca bsp, de 1 1/2" x 1 1/4" | F47: un | G47: 159 | H47: 33.32 | I47: 38.41 | J47: 6107.19 | K47: 0.0003768642856
A48: 7.1.13 | B48: 00003939 | C48: Material | D48: SINAPI | E48: Fornecimento de luva de ferro galvanizado, com rosca bsp, de 1 1/2" | F48: un | G48: 159 | H48: 25.6 | I48: 29.51 | J48: 4692.09 | K48: 0.0002895408765
A49: 7.1.14 | B49: 9569 | C49: Material | D49: ORSE | E49: Fornecimento de adaptador pvc bsxrm d= 35mm x 1 1/2", linha irriga-lf, tigre ou similar | F49: un | G49: 159 | H49: 3.04 | I49: 3.5 | J49: 556.5 | K49: 3.434066648e-05
A50: 7.1.15 | B50: 5128 | C50: Material | D50: ORSE | E50: Fornecimento de tampa de poço galvanizada em 6" | F50: un | G50: 159 | H50: 107.28 | I50: 123.67 | J50: 19663.53 | K50: 0.001213402921
A51: 7.2 | E51: INSTALAÇÕES DE ADUTORA, RESERVATÓRIO E BEBEDOURO | J51: =SUM(J52:J63) -> 318270.3 | K51: 0.01963991774
A52: 7.2.1 | B52: COMPOSIÇÃO - 020 | C52: Serviço | D52: Próprio | E52: Montagem e instalação da rede adutora poço-reservatório-bebedouro | F52: un | G52: 159 | H52: 877.93 | I52: =ROUND(H52+H52*$H$2,2) -> 1101.54 | J52: =ROUND(G52*I52,2) -> 175144.86 | K52: =J52/$J$98 -> 0.01080789079
A53: 7.2.2 | B53: 9501 | C53: Material | D53: ORSE | E53: Fornecimento de tubo PVC p/irrigação LF PN 60 JE Ø 35mm, linha Irriga-LF, Tigre ou similar | F53: m | G53: 6360 | H53: 13.06 | I53: =ROUND(H53+H53*$I$2,2) -> 15.06 | J53: =ROUND(G53*I53,2) -> 95781.6 | K53: =J53/$J$98 -> 0.005910519283
A54: 7.2.3 | B54: 9516 | C54: Material | D54: ORSE | E54: Fornecimento de curva 90º pvc PTA/BSA soldavel d= 35mm, linha Irriga-LF, Tigre ou similar | F54: un | G54: 636 | H54: 10.76 | I54: 12.4 | J54: 7886.4 | K54: 0.0004866563021
A55: 7.2.4 | B55: 00000098 | C55: Material | D55: SINAPI | E55: Fornecimento de adaptador pvc soldavel, com flange e anel de vedacao, 40 mm x 1 1/4", para caixa d´água | F55: un | G55: 318 | H55: 31.2 | I55: 35.97 | J55: 11438.46 | K55: 0.0007058478705
A56: 7.2.5 | B56: 8013 | C56: Material | D56: ORSE | E56: Fornecimento de registro esfera VS soldável para irrigação Ø 35mm | F56: pç | G56: 159 | H56: 37.26 | I56: 42.95 | J56: 6829.05 | K56: 0.0004214090358
A57: 7.2.6 | B57: 00000096 | C57: Material | D57: SINAPI | E57: Fornecimento de adaptador pvc soldavel, com flange e anel de vedacao, 25 mm x 3/4", para caixa d'água | F57: un | G57: 477 | H57: 13.85 | I57: 15.97 | J57: 7617.69 | K57: 0.000470074666
A58: 7.2.7 | B58: 14071 | C58: Material | D58: ORSE | E58: Fornecimento de tubo PVC para irrigação LF PN 60 Ø 25mm, linha Irriga-LF, Tigre ou similar | F58: m | G58: 318 | H58: 4.01 | I58: 4.62 | J58: 1469.16 | K58: 9.065935951e-05
A59: 7.2.8 | B59: 14082 | C59: Material | D59: ORSE | E59: Fornecimento de registro esfera LF 25mm | F59: pç | G59: 318 | H59: 11.06 | I59: 12.75 | J59: 4054.5 | K59: 0.0002501962844
A60: 7.2.9 | B60: 00003529 | C60: Material | D60: SINAPI | E60: Fornecimento de joelho pvc, soldavel, 90 graus, 25 mm, cor marrom, para agua fria predial | F60: un | G60: 318 | H60: 0.82 | I60: 0.95 | J60: 302.1 | K60: 1.864207609e-05
A61: 7.2.10 | B61: 00003535 | C61: Material | D61: SINAPI | E61: Fornecimento de joelho pvc, soldavel, 90 graus, 40 mm, cor marrom, para agua fria predial | F61: un | G61: 159 | H61: 6.64 | I61: 7.65 | J61: 1216.35 | K61: 7.505888531e-05
A62: 7.2.11 | B62: 00000109 | C62: Material | D62: SINAPI | E62: Fornecimento de adaptador pvc soldavel curto com bolsa e rosca, 40 mm x 1 1/4", para agua fria | F62: un | G62: 159 | H62: 4.17 | I62: 4.81 | J62: 764.79 | K62: 4.719388737e-05
A63: 7.2.12 | B63: 00011830 | C63: Material | D63: SINAPI | E63: Fornecimento de torneira de boia convencional para caixa d'agua, agua fria, 3/4", com haste e torneira metalicos e balao plastico | F63: un | G63: 159 | H63: 31.45 | I63: 36.26 | J63: 5765.34 | K63: 0.0003557693048
A64: 8 | E64: FORNECIMENTO E INSTALAÇÃO DE SISTEMA FOTOVOLTAÍCO | J64: =SUM(J65,J71,J82,J84) -> 4872964.94 | K64: 0.3007023608
A65: 8.1 | E65: INSTALAÇÕES HIDRÁULICAS | J65: =SUM(J66:J70) -> 486223.91 | K65: 0.03000404875
A66: 8.1.1 | B66: COMPOSIÇÃO - 019 | C66: Serviço | D66: Próprio | E66: Montagem e instalação hidráulica do kit de bombeamento | F66: un | G66: 159 | H66: 120.81 | I66: =ROUND(H66+H66*$H$2,2) -> 151.58 | J66: =ROUND(G66*I66,2) -> 24101.22 | K66: =J66/$J$98 -> 0.001487245207
A67: 8.1.2 | B67: 00038200 | C67: Material | D67: SINAPI | E67: Fornecimento de corda de poliamida 12 mm tipo bombeiro, para trabalho em altura | F67: 100M | G67: 100.17 | H67: 971.03 | I67: =ROUND(H67+H67*$I$2,2) -> 1119.4 | J67: =ROUND(G67*I67,2) -> 112130.3 | K67: =J67/$J$98 -> 0.006919369694
A68: 8.1.3 | B68: 00009861 | C68: Material | D68: SINAPI | E68: Fornecimento de tubo pvc, roscavel, 1 1/4", agua fria predial | F68: m | G68: 9540 | H68: 27.67 | I68: 31.9 | J68: 304326 | K68: 0.01877943876
A69: 8.1.4 | B69: 00004180 | C69: Material | D69: SINAPI | E69: Fornecimento de niple de ferro galvanizado, com rosca bsp, de 1 1/4" | F69: un | G69: 159 | H69: 18.99 | I69: 21.89 | J69: 3480.51 | K69: 0.0002147763398
A70: 8.1.5 | B70: 00003911 | C70: Material | D70: SINAPI | E70: Fornecimento de luva de ferro galvanizado, com rosca bsp, de 1 1/4" | F70: un | G70: 1749 | H70: 20.92 | I70: 24.12 | J70: 42185.88 | K70: 0.002603218752
A71: 8.2 | E71: INSTALAÇÕES ELÉTRICAS | J71: =SUM(J72:J81) -> 486316.8 | K71: =J71/$J$98 -> 0.03000978083
A72: 8.2.1 | B72: COMPOSIÇÃO - 021 | C72: Serviço | D72: Próprio | E72: Montagem e instalação elétrica do kit de bombeamento e sistema fotovoltaico inclusive sistema de aterramento. | F72: un | G72: 159 | H72: 517.94 | I72: =ROUND(H72+H72*$H$2,2) -> 649.86 | J72: =ROUND(G72*I72,2) -> 103327.74 | K72: 0.00637617872
A73: 8.2.2 | B73: 00002674 | C73: Material | D73: SINAPI | E73: Fornecimento de eletroduto de pvc rigido roscavel de 3/4 ", sem luva | F73: m | G73: 2385 | H73: 4.88 | I73: =ROUND(H73+H73*$I$2,2) -> 5.63 | J73: =ROUND(G73*I73,2) -> 13427.55 | K73: 0.0008285912241
A74: 8.2.3 | B74: 00034622 | C74: Material | D74: SINAPI | E74: Fornecimento de cabo flexivel pvc 750 v, 3 condutores de 6,0 mm2 | F74: m | G74: 11925 | H74: 21 | I74: 24.21 | J74: 288704.25 | K74: 0.01781544719
A75: 8.2.4 | B75: 00012034 | C75: Material | D75: SINAPI | E75: Fornecimento de curva 180 graus, de pvc rigido roscavel, de 3/4", para eletroduto | F75: un | G75: 159 | H75: 2.29 | I75: 2.64 | J75: 419.76 | K75: 2.590267415e-05
A76: 8.2.5 | B76: 00039272 | C76: Material | D76: SINAPI | E76: Fornecimento de curva 90 graus, curta, de pvc rigido roscavel, de 3/4", para eletroduto | F76: un | G76: 318 | H76: 1.25 | I76: 1.44 | J76: 457.92 | K76: 2.825746271e-05
A77: 8.2.6 | B77: 00003379 | C77: Material | D77: SINAPI | E77: Fornecimento de haste de aterramento em aco com 3,00 m de comprimento e dn = 5/8", revestida com baixa camada de cobre, sem conector | F77: un | G77: 106.53 | H77: 71.44 | I77: 82.36 | J77: 8773.81 | K77: 0.0005414168607
A78: 8.2.7 | B78: 00001891 | C78: Material | D78: SINAPI | E78: Fornecimento de luva em pvc rigido roscavel, de 3/4", para eletroduto | F78: un | G78: 1431 | H78: 0.58 | I78: 0.67 | J78: 958.77 | K78: 5.916406254e-05
A79: 8.2.8 | B79: 00000425 | C79: Material | D79: SINAPI | E79: Fornecimento de grampo metalico tipo olhal para haste de aterramento de 5/8'', condutor de *10* a 50 mm2 | F79: un | G79: 318 | H79: 6.78 | I79: 7.82 | J79: 2486.76 | K79: 0.0001534537211
A80: 8.2.9 | B80: 00034643 | C80: Material | D80: SINAPI | E80: Fornecimento de caixa de inspecao para aterramento e para raios, em polipropileno, diametro = 300 mm x altura = 400 mm | F80: un | G80: 318 | H80: 37.92 | I80: 43.71 | J80: 13899.78 | K80: 0.0008577317325
A81: 8.2.10 | B81: 00000867 | C81: Material | D81: SINAPI | E81: Fornecimento de cabo de cobre nu 50 mm2 meio-duro | F81: m | G81: 874.5 | H81: 53.43 | I81: 61.59 | J81: 53860.46 | K81: 0.003323637185
A82: 8.3 | E82: ESTRUTURA DE FIXAÇÃO PARA MÓDULOS FOTOVOLTAICOS | J82: =SUM(J83) -> 340501.68 | K82: 0.02101177831
A83: 8.3.1 | B83: COMPOSIÇÃO - 022 | C83: Serviço | D83: Próprio | E83: Serviço de fixação de estruturas para os módulos fotovoltaicos e suportes de concreto, incluso materiais. | F83: m² | G83: 1272 | H83: 213.35 | I83: =ROUND(H83+H83*$H$2,2) -> 267.69 | J83: =ROUND(G83*I83,2) -> 340501.68 | K83: 0.02101177831
A84: 8.4 | E84: FORNECIMENTO DE KIT DE BOMBEAMENTO FOTOVOLTAICO | J84: =SUM(J85) -> 3559922.55 | K84: 0.2196767529
A85: 8.4.1 | B85: COTAÇÃO-002 | C85: Material | D85: Próprio | E85: Fornecimento de kit de bombeamento fotovoltaico, incluindo uma bomba CC de 1500W com imã permanente e sem escovas, controladora de carga, disjuntor CC adequado, caixa de proteção metálica, módulos compatíveis com a geração de 2200Wp (potência mínima de 550 W por módulo) e componentes elétricos necessários como cabos, conectores MC4 e presilhas de fixação. | F85: un | G85: 159 | H85: 19421.8 | I85: =ROUND(H85+H85*$I$2,2) -> 22389.45 | J85: =ROUND(G85*I85,2) -> 3559922.55 | K85: 0.2196767529
A86: 9 | E86: URBANIZAÇÃO | J86: =SUM(J87,J89) -> 614454.71 | K86: 0.03791695286
A87: 9.1 | E87: CERCA | J87: =SUM(J88) -> 409494.96 | K87: 0.02526923602
A88: 9.1.1 | B88: COMPOSIÇÃO - 023 | C88: Serviço | D88: Próprio | E88: Cerca com mourões de concreto de 15x15cm, espaçados de 3m e cravados a 0,5m, escoras de 10x10cm nos cantos, e 9 fios de arame de aço ovalado 15x17. | F88: m | G88: 4452 | H88: 73.31 | I88: =ROUND(H88+H88*$H$2,2) -> 91.98 | J88: =ROUND(G88*I88,2) -> 409494.96 | K88: 0.02526923602
A89: 9.2 | E89: PORTÃO | J89: =SUM(J90) -> 204959.75 | K89: 0.01264771683
A90: 9.2.1 | B90: COMPOSIÇÃO - 024 | C90: Serviço | D90: Próprio | E90: Serviço de instalação de portão de ferro com suporte e batedor conforme projeto, incluso material | F90: m² | G90: 238.5 | H90: 684.92 | I90: =ROUND(H90+H90*$H$2,2) -> 859.37 | J90: =ROUND(G90*I90,2) -> 204959.75 | K90: 0.01264771683
A91: 10 | E91: OUTROS SERVIÇOS | J91: =SUM(J92:J97) -> 751524.98 | K91: 0.04637532559
A92: 10.1 | B92: COMPOSIÇÃO - 025 | C92: Serviço | D92: Próprio | E92: Serviço de lançamento de concreto para acabamento do tamponamento, incluso material. | F92: m³ | G92: 5.20884 | H92: 683.42 | I92: =ROUND(H92+H92*$H$2,2) -> 857.49 | J92: =ROUND(G92*I92,2) -> 4466.53 | K92: 0.0002756219534
A93: 10.2 | B93: COMPOSIÇÃO - 026 | C93: Serviço | D93: Próprio | E93: Serviço de execução do tamponamento, incluso pedra britada desinfectada. | F93: m³ | G93: 5.20884 | H93: 152.03 | I93: 190.75 | J93: 993.59 | K93: 6.131274539e-05
A94: 10.5 | B94: M3929 | C94: Material | D94: SICRO3 | E94: Fornecimento de tubo em aço-carbono - E = 3,00 mm e D = 150 mm (6”) | F94: m | G94: 2385 | H94: 152.0367 | I94: =ROUND(H94+H94*$I$2,2) -> 175.27 | J94: 418018.95 | K94: 0.02579523692
A95: 10.6 | B95: COTAÇÃO-007 | C95: Material | D95: Próprio | E95: Fornecimento tubo de revestimento geomecânico classe standart Ø 4" com junta roscável. | F95: m | G95: 2385 | H95: 82.5 | I95: 95.11 | J95: 226837.35 | K95: 0.01399774624
A96: 10.7 | B96: COTAÇÃO-005 | C96: Material | D96: Próprio | E96: Fornecimento tubo filtro geomecânico classe standart Ø 4" com junta roscável. | F96: m | G96: 477 | H96: 86.02 | I96: 99.16 | J96: 47299.32 | K96: 0.002918760419
A97: 10.8 | B97: 5073 | C97: Material | D97: ORSE | E97: Fornecimento de Pré-filtro comum | F97: m³ | G97: 28.87758 | H97: 1619.38 | I97: 1866.82 | J97: 53909.24 | K97: 0.003326647316
I98: Total | J98: =SUM(J91,J86,J64,J34,J32,J26,J21,J14,J11,J6) -> 16205276.63

Sheet Orç. PB - Parc. Rev - Analítico
G1: Encargos Sociais
A2: OBRA:PERFURAÇÃO E INSTALAÇÃO DE POÇO TUBULAR PARCIALMENTE REVESTIDO NO ESTADO DA PARAÌBA | G2: Não Desonerado: embutido nos preços unitário dos insumos de mão de obra, de acordo com as bases.
A3: Planilha Orçamentária Analítica
A4: 1 | D4: SERVIÇOS PRELIMINARES
A5: 1.1 | B5: Código | C5: Banco | D5: Descrição | E5: Tipo | G5: Und | H5: Quant. | I5: Valor Unit | J5: Total
A6: Composição | B6: COMPOSIÇÃO - 001 | C6: Próprio | D6: Administração Local da Obra - Poço Parcialmente Revestido | E6: SERP - SERVIÇOS PRELIMINARES | G6: un | H6: 1 | I6: =J6 -> 119296.26 | J6: =SUM(J7:J13) -> 119296.26
A7: Composição Auxiliar | B7: 92138 | C7: SINAPI | D7: CAMINHONETE COM MOTOR A DIESEL, POTÊNCIA 180 CV, CABINE DUPLA, 4X4 - CHP DIURNO. AF_11/2015 | E7: CHOR - CUSTOS HORÁRIOS DE MÁQUINAS E EQUIPAMENTOS | G7: CHP | H7: 135 | I7: 87.64 | J7: =ROUND(H7*I7,2) -> 11831.4
A8: Composição Auxiliar | B8: 92139 | C8: SINAPI | D8: CAMINHONETE COM MOTOR A DIESEL, POTÊNCIA 180 CV, CABINE DUPLA, 4X4 - CHI DIURNO. AF_11/2015 | E8: CHOR - CUSTOS HORÁRIOS DE MÁQUINAS E EQUIPAMENTOS | G8: CHI | H8: 165 | I8: 39.61 | J8: =ROUND(H8*I8,2) -> 6535.65
A9: Composição Auxiliar | B9: 93572 | C9: SINAPI | D9: ENCARREGADO GERAL DE OBRAS COM ENCARGOS COMPLEMENTARES | E9: SEDI - SERVIÇOS DIVERSOS | G9: MES | H9: 3 | I9: 3982.23 | J9: 11946.69
A10: Composição Auxiliar | B10: 93565 | C10: SINAPI | D10: ENGENHEIRO CIVIL DE OBRA JUNIOR COM ENCARGOS COMPLEMENTARES | E10: SEDI - SERVIÇOS DIVERSOS | G10: MES | H10: 4 | I10: 20582.98 | J10: 82331.92
A11: Insumo | B11: 00014250 | C11: SINAPI | D11: ENERGIA ELETRICA COMERCIAL, BAIXA TENSAO, RELATIVA AO CONSUMO DE ATE 100 KWH, INCLUINDO ICMS, PIS/PASEP E COFINS | E11: Material | G11: KWH | H11: 1400 | I11: 0.73 | J11: =ROUND(H11*I11,2) -> 1022
A12: Insumo | B12: 00044480 | C12: SINAPI | D12: TARIFA "A" ENTRE 0 E 20M3 FORNECIMENTO D'AGUA | E12: Taxas | G12: m³ | H12: 60 | I12: 13.81 | J12: =ROUND(H12*I12,2) -> 828.6
A13: Insumo | B13: 4298 | C13: ORSE | D13: Aluguel de container - Escritório com banheiro - 6,20 x 2,40m, equipado com Ar condicionado mês | E13: Serviços | G13: mês | H13: 3 | I13: 1600 | J13: 4800
A16: 1.2 | B16: Código | C16: Banco | D16: Descrição | E16: Tipo | G16: Und | H16: Quant. | I16: Valor Unit | J16: Total
A17: Composição | B17: COMPOSIÇÃO - 003 | C17: Próprio | D17: Serviço de locação Geológica de campo com relatório hidro geológico e perfil construtivo e geológico esperado. Relatório de Viabilidade de implantação das estruturas e vistorias preliminares | E17: SERT - SERVIÇOS TÉCNICOS | G17: um | H17: 1 | I17: =J17 -> 496.4 | J17: =SUM(J18:J20) -> 496.4
A18: Composição Auxiliar | B18: 30.01.45 | C18: EMBASA | D18: GEOLOGO SENIOR | E18: 3001 | G18: hora | H18: 5 | I18: 79.73 | J18: =ROUND(H18*I18,2) -> 398.65
A19: Insumo | B19: 5896 | C19: ORSE | D19: Veículo tipo sedan ou pick-up capacidade 0,6 ton h | E19: Equipamento | G19: h | H19: 5 | I19: 8.33 | J19: =ROUND(H19*I19,2) -> 41.65
A20: Insumo | B20: 00004222 | C20: SINAPI | D20: GASOLINA COMUM | E20: Material | G20: L | H20: 10 | I20: 5.61 | J20: 56.1
A23: 1.3 | B23: Código | C23: Banco | D23: Descrição | E23: Tipo | G23: Und | H23: Quant. | I23: Valor Unit | J23: Total
A24: Composição | B24: COMPOSIÇÃO - 028 | C24: Próprio | D24: Procedimentos para emissão de Outorga de uso insignificante e Dispensa de Licenciamento Ambiental (incluso taxas) - Paraíba | E24: SERT - SERVIÇOS TÉCNICOS | G24: un | H24: 1 | I24: =J24 -> 382.5 | J24: =SUM(J25) -> 382.5
A25: Insumo | B25: COTAÇÃO-008 | C25: Próprio | D25: Procedimentos para Emissão de Outorga de uso insignificante e Dispensa de Licenciamento Ambiental - Paraíba | E25: Serviços | G25: un | H25: 1 | I25: =312.5+70 -> 382.5 | J25: =ROUND(H25*I25,2) -> 382.5
A30: 2 | D30: MOBILIZAÇÂO E DESMOBILIZAÇÂO EQUIPES DE PERFURAÇÂO E INSTALAÇÃO
A31: 2.1 | B31: Código | C31: Banco | D31: Descrição | E31: Tipo | G31: Und | H31: Quant. | I31: Valor Unit | J31: Total
A32: Composição | B32: COMPOSIÇÃO - 006 | C32: Próprio | D32: Transporte de Comboio Perfuração | E32: TRAN - TRANSPORTES, CARGAS E DESCARGAS | G32: km | H32: 1 | I32: =J32 -> 4.34 | J32: =SUM(J33:J34) -> 4.34
A33: Composição Auxiliar | B33: 5824 | C33: SINAPI | D33: CAMINHÃO TOCO, PBT 16.000 KG, CARGA ÚTIL MÁX. 10.685 KG, DIST. ENTRE EIXOS 4,8 M, POTÊNCIA 189 CV, INCLUSIVE CARROCERIA FIXA ABERTA DE MADEIRA P/ TRANSPORTE GERAL DE CARGA SECA, DIMEN. APROX. 2,5 X 7,00 X 0,50 M - CHP DIURNO. AF_06/2014 | E33: CHOR - CUSTOS HORÁRIOS DE MÁQUINAS E EQUIPAMENTOS | G33: CHP | H33: 0.01666 | I33: 202.29 | J33: =ROUND(H33*I33,2) -> 3.37
A34: Composição Auxiliar | B34: 5826 | C34: SINAPI | D34: CAMINHÃO TOCO, PBT 16.000 KG, CARGA ÚTIL MÁX. 10.685 KG, DIST. ENTRE EIXOS 4,8 M, POTÊNCIA 189 CV, INCLUSIVE CARROCERIA FIXA ABERTA DE MADEIRA P/ TRANSPORTE GERAL DE CARGA SECA, DIMEN. APROX. 2,5 X 7,00 X 0,50 M - CHI DIURNO. AF_06/2014 | E34: CHOR - CUSTOS HORÁRIOS DE MÁQUINAS E EQUIPAMENTOS | G34: CHI | H34: 0.01666 | I34: 58.26 | J34: 0.97
A37: 2.2 | B37: Código | C37: Banco | D37: Descrição | E37: Tipo | G37: Und | H37: Quant. | I37: Valor Unit | J37: Total
A38: Composição | B38: COMPOSIÇÃO - 007 | C38: Próprio | D38: Transporte de Comboio Instalação | E38: TRAN - TRANSPORTES, CARGAS E DESCARGAS | G38: km | H38: 1 | I38: =J38 -> 5.44 | J38: =SUM(J39:J40) -> 5.44
A39: Composição Auxiliar | B39: 5928 | C39: SINAPI | D39: GUINDAUTO HIDRÁULICO, CAPACIDADE MÁXIMA DE CARGA 6200 KG, MOMENTO MÁXIMO DE CARGA 11,7 TM, ALCANCE MÁXIMO HORIZONTAL 9,70 M, INCLUSIVE CAMINHÃO TOCO PBT 16.000 KG, POTÊNCIA DE 189 CV - CHP DIURNO. AF_06/2014 | E39: CHOR - CUSTOS HORÁRIOS DE MÁQUINAS E EQUIPAMENTOS | G39: CHP | H39: 0.01666 | I39: 257.72 | J39: =ROUND(H39*I39,2) -> 4.29
A40: Composição Auxiliar | B40: 5930 | C40: SINAPI | D40: GUINDAUTO HIDRÁULICO, CAPACIDADE MÁXIMA DE CARGA 6200 KG, MOMENTO MÁXIMO DE CARGA 11,7 TM, ALCANCE MÁXIMO HORIZONTAL 9,70 M, INCLUSIVE CAMINHÃO TOCO PBT 16.000 KG, POTÊNCIA DE 189 CV - CHI DIURNO. AF_06/2014 | E40: CHOR - CUSTOS HORÁRIOS DE MÁQUINAS E EQUIPAMENTOS | G40: CHI | H40: 0.01666 | I40: 69.1 | J40: 1.15
A43: 3 | D43: PERFURAÇÃO E COMPLETAÇÃO DE POÇO TUBULAR
A44: 3.1 | B44: Código | C44: Banco | D44: Descrição | E44: Tipo | G44: Und | H44: Quant. | I44: Valor Unit | J44: Total
A45: Composição | B45: COMPOSIÇÃO - 009 | C45: Próprio | D45: Limpeza manual , remoção de cerca, capina e instalação dos equipamentos (área do poço, painéis solares, bebedouro e reservatório) | E45: SEDI - SERVIÇOS DIVERSOS | G45: m² | H45: 1 | I45: =J45 -> 1.46 | J45: =SUM(J46) -> 1.46
A46: Composição Auxiliar | B46: 88316 | C46: SINAPI | D46: SERVENTE COM ENCARGOS COMPLEMENTARES | E46: SEDI - SERVIÇOS DIVERSOS | G46: H | H46: 0.08 | I46: 18.26 | J46: =ROUND(H46*I46,2) -> 1.46
A49: 3.2 | B49: Código | C49: Banco | D49: Descrição | E49: Tipo | G49: Und | H49: Quant. | I49: Valor Unit | J49: Total
A50: Composição | B50: COMPOSIÇÃO - 013 | C50: Próprio | D50: Perfuração em material inconsolidado Ø 8 1/2" | E50: SERT - SERVIÇOS TÉCNICOS | G50: m | H50: 1 | I50: =J50 -> 212.7 | J50: =SUM(J51:J53) -> 212.7
A51: Composição Auxiliar | B51: 88263 | C51: SINAPI | D51: CAVOUQUEIRO OU OPERADOR PERFURATRIZ/ROMPEDOR COM ENCARGOS COMPLEMENTARES | E51: SEDI - SERVIÇOS DIVERSOS | G51: H | H51: 0.2 | I51: 16.23 | J51: =ROUND(H51*I51,2) -> 3.25
A52: Composição Auxiliar | B52: 88316 | C52: SINAPI | D52: SERVENTE COM ENCARGOS COMPLEMENTARES | E52: SEDI - SERVIÇOS DIVERSOS | G52: H | H52: 0.6 | I52: 18.26 | J52: 10.96
A53: Insumo | B53: 5071 | C53: ORSE | D53: Perfuração rocha sedimentar sedimento / camadas inconsolidadas dn 8.1/2 a 9.1/2" - até 150m m | E53: Serviços | G53: m | H53: 1 | I53: 198.49 | J53: =ROUND(H53*I53,2) -> 198.49
A56: 3.3 | B56: Código | C56: Banco | D56: Descrição | E56: Tipo | G56: Und | H56: Quant. | I56: Valor Unit | J56: Total
A57: Composição | B57: COMPOSIÇÃO - 010 | C57: Próprio | D57: Perfuração roto pneumática utilizando martelo de fundo (DTH) em rocha Ø 6 1/8" em rocha | E57: SERT - SERVIÇOS TÉCNICOS | G57: m | H57: 1 | I57: =J57 -> 170.52 | J57: =SUM(J58:J60) -> 170.52
A58: Composição Auxiliar | B58: 88263 | C58: SINAPI | D58: CAVOUQUEIRO OU OPERADOR PERFURATRIZ/ROMPEDOR COM ENCARGOS COMPLEMENTARES | E58: SEDI - SERVIÇOS DIVERSOS | G58: H | H58: 0.2 | I58: 16.23 | J58: =ROUND(H58*I58,2) -> 3.25
A59: Composição Auxiliar | B59: 88316 | C59: SINAPI | D59: SERVENTE COM ENCARGOS COMPLEMENTARES | E59: SEDI - SERVIÇOS DIVERSOS | G59: H | H59: 0.6 | I59: 18.26 | J59: 10.96
A60: Insumo | B60: 5051 | C60: ORSE | D60: Perfuraçao em rocha metassedimentar - metassedimento alterado / compacto dn 6" (poço 120m) m | E60: Serviços | G60: m | H60: 1 | I60: 156.31 | J60: =ROUND(H60*I60,2) -> 156.31
A64: 3.5 | B64: Código | C64: Banco | D64: Descrição | E64: Tipo | G64: Und | H64: Quant. | I64: Valor Unit | J64: Total
A65: Composição | B65: COMPOSIÇÃO - 011 | C65: Próprio | D65: Serviço de lançamento cimentação anelar poço tubular, incluso material. | E65: SEDI - SERVIÇOS DIVERSOS | G65: m³ | H65: 1 | I65: =J65 -> 768.27 | J65: =SUM(J66:J68) -> 768.27
A66: Composição Auxiliar | B66: 1903 | C66: ORSE | D66: Argamassa cimento e areia traço t-1 (1:3) - 1 saco cimento 50kg / 3 padiolas areia dim. 0.35 x 0.45 x 0.23 m - Confecção mecânica e transporte | E66: Argamassas | G66: m³ | H66: 1 | I66: 511.3 | J66: =ROUND(H66*I66,2) -> 511.3
A67: Composição Auxiliar | B67: 88316 | C67: SINAPI | D67: SERVENTE COM ENCARGOS COMPLEMENTARES | E67: SEDI - SERVIÇOS DIVERSOS | G67: H | H67: 7.4 | I67: 18.26 | J67: 135.12
A68: Insumo | B68: 00000124 | C68: SINAPI | D68: ADITIVO ACELERADOR DE PEGA E ENDURECIMENTO PARA ARGAMASSAS E CONCRETOS, LIQUIDO E ISENTO DE CLORETOS | E68: Material | G68: L | H68: 5 | I68: 24.37 | J68: =ROUND(H68*I68,2) -> 121.85
A71: 3.6 | B71: Código | C71: Banco | D71: Descrição | E71: Tipo | G71: Und | H71: Quant. | I71: Valor Unit | J71: Total
A72: Composição | B72: COMPOSIÇÃO - 014 | C72: Próprio | D72: Serviço de instalação de laje sanitária com dimensões (1,5x1,5x0,3) , incluso material. | E72: SEDI - SERVIÇOS DIVERSOS | G72: un | H72: 1 | I72: =J72 -> 571.49 | J72: =SUM(J73:J76) -> 571.49
A73: Composição Auxiliar | B73: 92522 | C73: SINAPI | D73: MONTAGEM E DESMONTAGEM DE FÔRMA DE LAJE MACIÇA, PÉ-DIREITO SIMPLES, EM CHAPA DE MADEIRA COMPENSADA RESINADA, 8 UTILIZAÇÕES. AF_09/2020 | E73: FUES - FUNDAÇÕES E ESTRUTURAS | G73: m² | H73: 1.8 | I73: 39.1 | J73: =ROUND(H73*I73,2) -> 70.38
A74: Composição Auxiliar | B74: 93358 | C74: SINAPI | D74: ESCAVAÇÃO MANUAL DE VALA COM PROFUNDIDADE MENOR OU IGUAL A 1,30 M. AF_02/2021 | E74: MOVT - MOVIMENTO DE TERRA | G74: m³ | H74: 0.225 | I74: 72.24 | J74: 16.25
A75: Composição Auxiliar | B75: 94975 | C75: SINAPI | D75: CONCRETO FCK = 15MPA, TRAÇO 1:3,4:3,5 (EM MASSA SECA DE CIMENTO/ AREIA MÉDIA/ BRITA 1) - PREPARO MANUAL. AF_05/2021 | E75: FUES - FUNDAÇÕES E ESTRUTURAS | G75: m³ | H75: 0.675 | I75: 467.93 | J75: 315.85
A76: Composição Auxiliar | B76: 103670 | C76: SINAPI | D76: LANÇAMENTO COM USO DE BALDES, ADENSAMENTO E ACABAMENTO DE CONCRETO EM ESTRUTURAS. AF_02/2022 | E76: FUES - FUNDAÇÕES E ESTRUTURAS | G76: m³ | H76: 0.675 | I76: 250.38 | J76: 169.01
A79: 4 | D79: PÓS PERFURAÇÃO
A82: 4.3 | B82: Código | C82: Banco | D82: Descrição | E82: Tipo | G82: Und | H82: Quant. | I82: Valor Unit | J82: Total
A83: Composição | B83: COMPOSIÇÃO - 015 | C83: Próprio | D83: Inspeção ótica em poço tubular câmera com rotação de 360º, visada lateral, com fonte própria de luz, entregue vídeo em cores e marcação de profundidades. | E83: SEES - SERVIÇOS ESPECIAIS | G83: m | H83: 1 | I83: =J83 -> 38.05 | J83: =SUM(J84:J88) -> 38.05
A84: Insumo | B84: H020050004 | C84: EMBASA | D84: APARELHO DE PERFILAGEM OPTICA | E84: Material | G84: M | H84: 1 | I84: 4.4 | J84: =ROUND(H84*I84,2) -> 4.4
A85: Insumo | B85: B590000022 | C85: EMBASA | D85: TECNICO MEDIO | E85: Mão de Obra | G85: H | H85: 0.0835 | I85: 48.54 | J85: 4.05
A86: Insumo | B86: B590000028 | C86: EMBASA | D86: AUXILIAR TECNICO | E86: Mão de Obra | G86: H | H86: 0.0835 | I86: 22.47 | J86: 1.88
A87: Insumo | B87: F020000340 | C87: EMBASA | D87: DIÁRIA PARA PROFISSIONAL (INTERIOR) | E87: Material | G87: DIA | H87: 0.021 | I87: 227 | J87: 4.77
A88: Insumo | B88: F030000250 | C88: EMBASA | D88: LOCAÇÃO DE VEÍCULO PICK UP TIPO SAVEIRO OU SIMILAR | E88: Material | G88: DIA | H88: 0.25 | I88: 91.8 | J88: 22.95
A92: 5 | D92: RESERVAÇÃO
A93: 5.1 | B93: Código | C93: Banco | D93: Descrição | E93: Tipo | G93: Und | H93: Quant. | I93: Valor Unit | J93: Total
A94: Composição | B94: COMPOSIÇÃO - 016 | C94: Próprio | D94: Execução e instalação de base de sustentação em concreto armado para reservatório de diâmetro 2,06m e altura 1,10m, conforme projeto, incluindo fixação de grampos da tampa. | E94: SEDI - SERVIÇOS DIVERSOS | G94: un | H94: 1 | I94: =J94 -> 2358.16 | J94: =SUM(J95:J113) -> 2358.16
A95: Composição Auxiliar | B95: 5928 | C95: SINAPI | D95: GUINDAUTO HIDRÁULICO, CAPACIDADE MÁXIMA DE CARGA 6200 KG, MOMENTO MÁXIMO DE CARGA 11,7 TM, ALCANCE MÁXIMO HORIZONTAL 9,70 M, INCLUSIVE CAMINHÃO TOCO PBT 16.000 KG, POTÊNCIA DE 189 CV - CHP DIURNO. AF_06/2014 | E95: CHOR - CUSTOS HORÁRIOS DE MÁQUINAS E EQUIPAMENTOS | G95: CHP | H95: 2.5 | I95: 257.72 | J95: =ROUND(H95*I95,2) -> 644.3
A96: Composição Auxiliar | B96: 88310 | C96: SINAPI | D96: PINTOR COM ENCARGOS COMPLEMENTARES | E96: SEDI - SERVIÇOS DIVERSOS | G96: H | H96: 0.3 | I96: 24.23 | J96: 7.27
A97: Composição Auxiliar | B97: 100301 | C97: SINAPI | D97: AJUDANTE DE PINTOR COM ENCARGOS COMPLEMENTARES | E97: SEDI - SERVIÇOS DIVERSOS | G97: H | H97: 0.1 | I97: 19.45 | J97: 1.95
A98: Composição Auxiliar | B98: 88309 | C98: SINAPI | D98: PEDREIRO COM ENCARGOS COMPLEMENTARES | E98: SEDI - SERVIÇOS DIVERSOS | G98: H | H98: 5.55 | I98: 23.31 | J98: 129.37
A99: Composição Auxiliar | B99: 88316 | C99: SINAPI | D99: SERVENTE COM ENCARGOS COMPLEMENTARES | E99: SEDI - SERVIÇOS DIVERSOS | G99: H | H99: 10 | I99: 18.26 | J99: 182.6
A100: Composição Auxiliar | B100: 88245 | C100: SINAPI | D100: ARMADOR COM ENCARGOS COMPLEMENTARES | E100: SEDI - SERVIÇOS DIVERSOS | G100: H | H100: 3 | I100: 23.12 | J100: 69.36
A101: Composição Auxiliar | B101: 88262 | C101: SINAPI | D101: CARPINTEIRO DE FORMAS COM ENCARGOS COMPLEMENTARES | E101: SEDI - SERVIÇOS DIVERSOS | G101: H | H101: 2 | I101: 22.94 | J101: 45.88
A102: Composição Auxiliar | B102: 87445 | C102: SINAPI | D102: BETONEIRA CAPACIDADE NOMINAL 400 L, CAPACIDADE DE MISTURA 310 L, MOTOR A DIESEL POTÊNCIA 5,0 HP, SEM CARREGADOR - CHP DIURNO. AF_05/2023 | E102: CHOR - CUSTOS HORÁRIOS DE MÁQUINAS E EQUIPAMENTOS | G102: CHP | H102: 2.8548 | I102: 4.87 | J102: 13.9
A103: Composição Auxiliar | B103: 88377 | C103: SINAPI | D103: OPERADOR DE BETONEIRA ESTACIONÁRIA/MISTURADOR COM ENCARGOS COMPLEMENTARES | E103: SEDI - SERVIÇOS DIVERSOS | G103: H | H103: 2.8548 | I103: 17.59 | J103: 50.22
A104: Insumo | B104: 00007155 | C104: SINAPI | D104: TELA DE ACO SOLDADA NERVURADA, CA-60, Q-138, (2,20 KG/M2), DIAMETRO DO FIO = 4,2 MM, LARGURA = 2,45 M, ESPACAMENTO DA MALHA = 10 X 10 CM | E104: Material | G104: m² | H104: 6 | I104: 16.59 | J104: 99.54
A105: Insumo | B105: 00000370 | C105: SINAPI | D105: AREIA MEDIA - POSTO JAZIDA/FORNECEDOR (RETIRADO NA JAZIDA, SEM TRANSPORTE) | E105: Material | G105: m³ | H105: 1.36 | I105: 115 | J105: 156.4
A106: Insumo | B106: 00001379 | C106: SINAPI | D106: CIMENTO PORTLAND COMPOSTO CP II-32 | E106: Material | G106: KG | H106: 565.75 | I106: 0.7 | J106: 396.03
A107: Insumo | B107: 00004718 | C107: SINAPI | D107: PEDRA BRITADA N. 2 (19 A 38 MM) POSTO PEDREIRA/FORNECEDOR, SEM FRETE | E107: Material | G107: m³ | H107: 0.33 | I107: 112.5 | J107: 37.13
A108: Insumo | B108: 00004721 | C108: SINAPI | D108: PEDRA BRITADA N. 1 (9,5 a 19 MM) POSTO PEDREIRA/FORNECEDOR, SEM FRETE | E108: Material | G108: m³ | H108: 0.98 | I108: 111.91 | J108: 109.67
A109: Insumo | B109: 00003767 | C109: SINAPI | D109: LIXA EM FOLHA PARA PAREDE OU MADEIRA, NUMERO 120, COR VERMELHA | E109: Material | G109: UN | H109: 0.12 | I109: 1.01 | J109: 0.12
A110: Insumo | B110: 00007356 | C110: SINAPI | D110: TINTA LATEX ACRILICA PREMIUM, COR BRANCO FOSCO | E110: Material | G110: L | H110: 0.18 | I110: 18.76 | J110: 3.38
A111: Insumo | B111: 00000032 | C111: SINAPI | D111: ACO CA-50, 6,3 MM, VERGALHAO | E111: Material | G111: KG | H111: 9.3 | I111: 8.99 | J111: 83.61
A112: Insumo | B112: 00043059 | C112: SINAPI | D112: ACO CA-60, 4,2 MM, OU 5,0 MM, OU 6,0 MM, OU 7,0 MM, VERGALHAO | E112: Material | G112: KG | H112: 3.04 | I112: 8.06 | J112: 24.5
A113: Insumo | B113: 00043681 | C113: SINAPI | D113: CHAPA/PAINEL DE MADEIRA COMPENSADA RESINADA (MADEIRITE RESINADO ROSA) PARA FORMA DE CONCRETO, DE 2200 x 1100 MM, E = 8 A 12 MM | E113: Material | G113: m² | H113: 17.46 | I113: 17.35 | J113: 302.93
A117: 6 | D117: BEBEDOURO
A118: 6.1 | B118: Código | C118: Banco | D118: Descrição | E118: Tipo | G118: Und | H118: Quant. | I118: Valor Unit | J118: Total
A119: Composição | B119: COMPOSIÇÃO - 017 | C119: Próprio | D119: Serviço de execução do bebedouro em concreto armado, incluso materiais. | E119: SEDI - SERVIÇOS DIVERSOS | G119: un | H119: 1 | I119: =J119 -> 1373.56 | J119: =SUM(J120:J138) -> 1373.56
A120: Composição Auxiliar | B120: 5928 | C120: SINAPI | D120: GUINDAUTO HIDRÁULICO, CAPACIDADE MÁXIMA DE CARGA 6200 KG, MOMENTO MÁXIMO DE CARGA 11,7 TM, ALCANCE MÁXIMO HORIZONTAL 9,70 M, INCLUSIVE CAMINHÃO TOCO PBT 16.000 KG, POTÊNCIA DE 189 CV - CHP DIURNO. AF_06/2014 | E120: CHOR - CUSTOS HORÁRIOS DE MÁQUINAS E EQUIPAMENTOS | G120: CHP | H120: 2 | I120: 257.72 | J120: =ROUND(H120*I120,2) -> 515.44
A121: Composição Auxiliar | B121: 87445 | C121: SINAPI | D121: BETONEIRA CAPACIDADE NOMINAL 400 L, CAPACIDADE DE MISTURA 310 L, MOTOR A DIESEL POTÊNCIA 5,0 HP, SEM CARREGADOR - CHP DIURNO. AF_05/2023 | E121: CHOR - CUSTOS HORÁRIOS DE MÁQUINAS E EQUIPAMENTOS | G121: CHP | H121: 0.5 | I121: 4.87 | J121: 2.44
A122: Composição Auxiliar | B122: 88377 | C122: SINAPI | D122: OPERADOR DE BETONEIRA ESTACIONÁRIA/MISTURADOR COM ENCARGOS COMPLEMENTARES | E122: SEDI - SERVIÇOS DIVERSOS | G122: H | H122: 0.5 | I122: 17.59 | J122: 8.8
A123: Composição Auxiliar | B123: 88310 | C123: SINAPI | D123: PINTOR COM ENCARGOS COMPLEMENTARES | E123: SEDI - SERVIÇOS DIVERSOS | G123: H | H123: 0.3 | I123: 24.23 | J123: 7.27
A124: Composição Auxiliar | B124: 100301 | C124: SINAPI | D124: AJUDANTE DE PINTOR COM ENCARGOS COMPLEMENTARES | E124: SEDI - SERVIÇOS DIVERSOS | G124: H | H124: 0.1 | I124: 19.45 | J124: 1.95
A125: Composição Auxiliar | B125: 88245 | C125: SINAPI | D125: ARMADOR COM ENCARGOS COMPLEMENTARES | E125: SEDI - SERVIÇOS DIVERSOS | G125: H | H125: 3 | I125: 23.12 | J125: 69.36
A126: Composição Auxiliar | B126: 88262 | C126: SINAPI | D126: CARPINTEIRO DE FORMAS COM ENCARGOS COMPLEMENTARES | E126: SEDI - SERVIÇOS DIVERSOS | G126: H | H126: 2 | I126: 22.94 | J126: 45.88
A127: Composição Auxiliar | B127: 88316 | C127: SINAPI | D127: SERVENTE COM ENCARGOS COMPLEMENTARES | E127: SEDI - SERVIÇOS DIVERSOS | G127: H | H127: 5 | I127: 18.26 | J127: 91.3
A128: Composição Auxiliar | B128: 88309 | C128: SINAPI | D128: PEDREIRO COM ENCARGOS COMPLEMENTARES | E128: SEDI - SERVIÇOS DIVERSOS | G128: H | H128: 4 | I128: 23.31 | J128: 93.24
A129: Insumo | B129: 00043055 | C129: SINAPI | D129: ACO CA-50, 12,5 MM OU 16,0 MM, VERGALHAO | E129: Material | G129: KG | H129: 12 | I129: 7.38 | J129: 88.56
A130: Insumo | B130: 00043059 | C130: SINAPI | D130: ACO CA-60, 4,2 MM, OU 5,0 MM, OU 6,0 MM, OU 7,0 MM, VERGALHAO | E130: Material | G130: KG | H130: 13 | I130: 8.06 | J130: 104.78
A131: Insumo | B131: 00000032 | C131: SINAPI | D131: ACO CA-50, 6,3 MM, VERGALHAO | E131: Material | G131: KG | H131: 6 | I131: 8.99 | J131: 53.94
A132: Insumo | B132: 00000370 | C132: SINAPI | D132: AREIA MEDIA - POSTO JAZIDA/FORNECEDOR (RETIRADO NA JAZIDA, SEM TRANSPORTE) | E132: Material | G132: m³ | H132: 0.32 | I132: 115 | J132: 36.8
A133: Insumo | B133: 00001379 | C133: SINAPI | D133: CIMENTO PORTLAND COMPOSTO CP II-32 | E133: Material | G133: KG | H133: 127 | I133: 0.7 | J133: 88.9
A134: Insumo | B134: 00004718 | C134: SINAPI | D134: PEDRA BRITADA N. 2 (19 A 38 MM) POSTO PEDREIRA/FORNECEDOR, SEM FRETE | E134: Material | G134: m³ | H134: 0.08 | I134: 112.5 | J134: 9
A135: Insumo | B135: 00004721 | C135: SINAPI | D135: PEDRA BRITADA N. 1 (9,5 a 19 MM) POSTO PEDREIRA/FORNECEDOR, SEM FRETE | E135: Material | G135: m³ | H135: 0.23 | I135: 111.91 | J135: 25.74
A136: Insumo | B136: 00003767 | C136: SINAPI | D136: LIXA EM FOLHA PARA PAREDE OU MADEIRA, NUMERO 120, COR VERMELHA | E136: Material | G136: UN | H136: 0.12 | I136: 1.01 | J136: 0.12
A137: Insumo | B137: 00007356 | C137: SINAPI | D137: TINTA LATEX ACRILICA PREMIUM, COR BRANCO FOSCO | E137: Material | G137: L | H137: 0.18 | I137: 18.76 | J137: 3.38
A138: Insumo | B138: 00043681 | C138: SINAPI | D138: CHAPA/PAINEL DE MADEIRA COMPENSADA RESINADA (MADEIRITE RESINADO ROSA) PARA FORMA DE CONCRETO, DE 2200 x 1100 MM, E = 8 A 12 MM | E138: Material | G138: m² | H138: 7.3 | I138: 17.35 | J138: 126.66
A141: 7 | D141: INSTALAÇÕES HIDRÁULICAS
A142: 7.1 | D142: INSTALAÇÕES DE CAVALETE
A143: 7.1.1 | B143: Código | C143: Banco | D143: Descrição | E143: Tipo | G143: Und | H143: Quant. | I143: Valor Unit | J143: Total
A144: Composição | B144: COMPOSIÇÃO - 018 | C144: Próprio | D144: Montagem e Instalação de Tubulação e Conexões Cavalete | E144: INHI - INSTALAÇÕES HIDROS SANITÁRIAS | G144: un | H144: 1 | I144: =J144 -> 231.58 | J144: =SUM(J145:J148) -> 231.58
A145: Composição Auxiliar | B145: 88248 | C145: SINAPI | D145: AUXILIAR DE ENCANADOR OU BOMBEIRO HIDRÁULICO COM ENCARGOS COMPLEMENTARES | E145: SEDI - SERVIÇOS DIVERSOS | G145: H | H145: 3 | I145: 17.7 | J145: =ROUND(H145*I145,2) -> 53.1
A146: Composição Auxiliar | B146: 88267 | C146: SINAPI | D146: ENCANADOR OU BOMBEIRO HIDRÁULICO COM ENCARGOS COMPLEMENTARES | E146: SEDI - SERVIÇOS DIVERSOS | G146: H | H146: 3 | I146: 22.57 | J146: 67.71
A147: Insumo | B147: 00000122 | C147: SINAPI | D147: ADESIVO PLASTICO PARA PVC, FRASCO COM *850* GR | E147: Material | G147: UN | H147: 1 | I147: 51.93 | J147: 51.93
A148: Insumo | B148: 00020083 | C148: SINAPI | D148: SOLUCAO PREPARADORA / LIMPADORA PARA PVC, FRASCO COM 1000 CM3 | E148: Material | G148: UN | H148: 1 | I148: 58.84 | J148: 58.84
A152: 7.2 | D152: INSTALAÇÕES DE ADUTORA, RESERVATÓRIO E BEBEDOURO
A153: 7.2.1 | B153: Código | C153: Banco | D153: Descrição | E153: Tipo | G153: Und | H153: Quant. | I153: Valor Unit | J153: Total
A154: Composição | B154: COMPOSIÇÃO - 020 | C154: Próprio | D154: Montagem e instalação da rede adutora poço-reservatório-bebedouro | E154: SEDI - SERVIÇOS DIVERSOS | G154: un | H154: 1 | I154: =J154 -> 877.93 | J154: =SUM(J155:J160) -> 877.93
A155: Composição Auxiliar | B155: 88316 | C155: SINAPI | D155: SERVENTE COM ENCARGOS COMPLEMENTARES | E155: SEDI - SERVIÇOS DIVERSOS | G155: H | H155: 6 | I155: 18.26 | J155: =ROUND(H155*I155,2) -> 109.56
A156: Composição Auxiliar | B156: 96995 | C156: SINAPI | D156: REATERRO MANUAL APILOADO COM SOQUETE. AF_10/2017 | E156: MOVT - MOVIMENTO DE TERRA | G156: m³ | H156: 4.5 | I156: 43.8 | J156: 197.1
A157: Composição Auxiliar | B157: 93358 | C157: SINAPI | D157: ESCAVAÇÃO MANUAL DE VALA COM PROFUNDIDADE MENOR OU IGUAL A 1,30 M. AF_02/2021 | E157: MOVT - MOVIMENTO DE TERRA | G157: m³ | H157: 4.5 | I157: 72.24 | J157: 325.08
A158: Composição Auxiliar | B158: 88267 | C158: SINAPI | D158: ENCANADOR OU BOMBEIRO HIDRÁULICO COM ENCARGOS COMPLEMENTARES | E158: SEDI - SERVIÇOS DIVERSOS | G158: H | H158: 6 | I158: 22.57 | J158: 135.42
A159: Insumo | B159: 00000122 | C159: SINAPI | D159: ADESIVO PLASTICO PARA PVC, FRASCO COM *850* GR | E159: Material | G159: UN | H159: 1 | I159: 51.93 | J159: 51.93
A160: Insumo | B160: 00020083 | C160: SINAPI | D160: SOLUCAO PREPARADORA / LIMPADORA PARA PVC, FRASCO COM 1000 CM3 | E160: Material | G160: UN | H160: 1 | I160: 58.84 | J160: 58.84
A164: 8 | D164: FORNECIMENTO E INSTALAÇÃO DE SISTEMA FOTOVOLTAÍCO
A165: 8.1 | D165: INSTALAÇÕES HIDRÁULICAS
A166: 8.1.1 | B166: Código | C166: Banco | D166: Descrição | E166: Tipo | G166: Und | H166: Quant. | I166: Valor Unit | J166: Total
A167: Composição | B167: COMPOSIÇÃO - 019 | C167: Próprio | D167: Montagem e instalação hidráulica do kit de bombeamento | E167: INHI - INSTALAÇÕES HIDROS SANITÁRIAS | G167: un | H167: 1 | I167: =J167 -> 120.81 | J167: =SUM(J168:J169) -> 120.81
A168: Composição Auxiliar | B168: 88267 | C168: SINAPI | D168: ENCANADOR OU BOMBEIRO HIDRÁULICO COM ENCARGOS COMPLEMENTARES | E168: SEDI - SERVIÇOS DIVERSOS | G168: H | H168: 3 | I168: 22.57 | J168: =ROUND(H168*I168,2) -> 67.71
A169: Composição Auxiliar | B169: 88248 | C169: SINAPI | D169: AUXILIAR DE ENCANADOR OU BOMBEIRO HIDRÁULICO COM ENCARGOS COMPLEMENTARES | E169: SEDI - SERVIÇOS DIVERSOS | G169: H | H169: 3 | I169: 17.7 | J169: 53.1
A173: 8.2 | D173: INSTALAÇÕES ELÉTRICAS
A174: 8.2.1 | B174: Código | C174: Banco | D174: Descrição | E174: Tipo | G174: Und | H174: Quant. | I174: Valor Unit | J174: Total
A175: Composição | B175: COMPOSIÇÃO - 021 | C175: Próprio | D175: Montagem e instalação elétrica do kit de bombeamento e sistema fotovoltaico inclusive sistema de aterramento. | E175: INEL - INSTALAÇÃO ELÉTRICA/ELETRIFICAÇÃO E ILUMINAÇÃO EXTERNA | G175: un | H175: 1 | I175: =J175 -> 517.94 | J175: =SUM(J176:J180) -> 517.94
A176: Composição Auxiliar | B176: 88264 | C176: SINAPI | D176: ELETRICISTA COM ENCARGOS COMPLEMENTARES | E176: SEDI - SERVIÇOS DIVERSOS | G176: H | H176: 8 | I176: 23.62 | J176: =ROUND(H176*I176,2) -> 188.96
A177: Composição Auxiliar | B177: 88247 | C177: SINAPI | D177: AUXILIAR DE ELETRICISTA COM ENCARGOS COMPLEMENTARES | E177: SEDI - SERVIÇOS DIVERSOS | G177: H | H177: 8 | I177: 18.65 | J177: 149.2
A178: Composição Auxiliar | B178: 91677 | C178: SINAPI | D178: ENGENHEIRO ELETRICISTA COM ENCARGOS COMPLEMENTARES | E178: SEDI - SERVIÇOS DIVERSOS | G178: H | H178: 1 | I178: 169.56 | J178: 169.56
A179: Insumo | B179: 00020111 | C179: SINAPI | D179: FITA ISOLANTE ADESIVA ANTICHAMA, USO ATE 750 V, EM ROLO DE 19 MM X 20 M | E179: Material | G179: UN | H179: 1 | I179: 9 | J179: 9
A180: Insumo | B180: 00000404 | C180: SINAPI | D180: FITA ISOLANTE DE BORRACHA AUTOFUSAO, USO ATE 69 KV (ALTA TENSAO) | E180: Material | G180: M | H180: 1 | I180: 1.22 | J180: 1.22
A184: 8.3 | D184: ESTRUTURA DE FIXAÇÃO PARA MÓDULOS FOTOVOLTAICOS
A185: 8.3.1 | B185: Código | C185: Banco | D185: Descrição | E185: Tipo | G185: Und | H185: Quant. | I185: Valor Unit | J185: Total
A186: Composição | B186: COMPOSIÇÃO - 022 | C186: Próprio | D186: Serviço de fixação de estruturas para os módulos fotovoltaicos e suportes de concreto, incluso materiais. | E186: SEDI - SERVIÇOS DIVERSOS | G186: m² | H186: 1 | I186: =J186 -> 213.35 | J186: =SUM(J187:J190) -> 213.35
A187: Composição Auxiliar | B187: 94975 | C187: SINAPI | D187: CONCRETO FCK = 15MPA, TRAÇO 1:3,4:3,5 (EM MASSA SECA DE CIMENTO/ AREIA MÉDIA/ BRITA 1) - PREPARO MANUAL. AF_05/2021 | E187: FUES - FUNDAÇÕES E ESTRUTURAS | G187: m³ | H187: 0.0945 | I187: 467.93 | J187: =ROUND(H187*I187,2) -> 44.22
A188: Composição Auxiliar | B188: 93358 | C188: SINAPI | D188: ESCAVAÇÃO MANUAL DE VALA COM PROFUNDIDADE MENOR OU IGUAL A 1,30 M. AF_02/2021 | E188: MOVT - MOVIMENTO DE TERRA | G188: m³ | H188: 0.0625 | I188: 72.24 | J188: 4.52
A189: Composição Auxiliar | B189: 96534 | C189: SINAPI | D189: FABRICAÇÃO, MONTAGEM E DESMONTAGEM DE FÔRMA PARA BLOCO DE COROAMENTO, EM MADEIRA SERRADA, E=25 MM, 4 UTILIZAÇÕES. AF_06/2017 | E189: FUES - FUNDAÇÕES E ESTRUTURAS | G189: m² | H189: 0.032 | I189: 81.64 | J189: 2.61
A190: Insumo | B190: COTAÇÃO-003 | C190: Próprio | D190: Fornecimento suporte fabricado em material metálico resistente a corrosão e ataque químico do solo fabricado em alumínio ou aço galvanizado ou aço zincado ou similares, a ser fixado nos blocos de concreto | E190: Material | G190: m² | H190: 1 | I190: 162 | J190: =ROUND(H190*I190,2) -> 162
A193: 8.4 | D193: FORNECIMENTO DE KIT DE BOMBEAMENTO FOTOVOLTAICO
B194: Código | C194: Banco | D194: Descrição | E194: Tipo | G194: Und | H194: Quant. | I194: Valor Unit | J194: Total
A195: Insumo | B195: COTAÇÃO-002 | C195: Próprio | D195: Fornecimento de kit de bombeamento fotovoltaico, incluindo uma bomba CC de 1500W com imã permanente e sem escovas, controladora de carga, disjuntor CC adequado, caixa de proteção metálica, módulos compatíveis com a geração de 2200Wp (potência mínima de 550 W por módulo) e componentes elétricos necessários como cabos, conectores MC4 e presilhas de fixação. | E195: Equipamento para Aquisição Permanente | G195: un | H195: 1 | I195: 19421.8 | J195: =ROUND(H195*I195,2) -> 19421.8
A198: 9 | D198: URBANIZAÇÃO
A199: 9.1 | D199: CERCA
A200: 9.1.1 | B200: Código | C200: Banco | D200: Descrição | E200: Tipo | G200: Und | H200: Quant. | I200: Valor Unit | J200: Total
A201: Composição | B201: COMPOSIÇÃO - 023 | C201: Próprio | D201: Cerca com mourões de concreto de 15x15cm, espaçados de 3m e cravados a 0,5m, escoras de 10x10cm nos cantos, e 9 fios de arame de aço ovalado 15x17. | E201: SEDI - SERVIÇOS DIVERSOS | G201: m | H201: 1 | I201: =J201 -> 73.31 | J201: =SUM(J202:J208) -> 73.31
A202: Composição Auxiliar | B202: 88309 | C202: SINAPI | D202: PEDREIRO COM ENCARGOS COMPLEMENTARES | E202: SEDI - SERVIÇOS DIVERSOS | G202: H | H202: 0.335 | I202: 23.31 | J202: =ROUND(H202*I202,2) -> 7.81
A203: Composição Auxiliar | B203: 88316 | C203: SINAPI | D203: SERVENTE COM ENCARGOS COMPLEMENTARES | E203: SEDI - SERVIÇOS DIVERSOS | G203: H | H203: 0.671 | I203: 18.26 | J203: 12.25
A204: Composição Auxiliar | B204: 94975 | C204: SINAPI | D204: CONCRETO FCK = 15MPA, TRAÇO 1:3,4:3,5 (EM MASSA SECA DE CIMENTO/ AREIA MÉDIA/ BRITA 1) - PREPARO MANUAL. AF_05/2021 | E204: FUES - FUNDAÇÕES E ESTRUTURAS | G204: m³ | H204: 0.0288 | I204: 467.93 | J204: 13.48
A205: Insumo | B205: 00043130 | C205: SINAPI | D205: ARAME GALVANIZADO 12 BWG, D = 2,76 MM (0,048 KG/M) OU 14 BWG, D = 2,11 MM (0,026 KG/M) | E205: Material | G205: KG | H205: 0.098 | I205: 29.1 | J205: 2.85
A206: Insumo | B206: 00000346 | C206: SINAPI | D206: ARAME DE ACO OVALADO 15 X 17 ( 45,7 KG, 700 KGF), ROLO 1000 M | E206: Material | G206: KG | H206: 0.405 | I206: 34.47 | J206: 13.96
A207: Insumo | B207: 00004111 | C207: SINAPI | D207: ESCORA PRE-MOLDADA EM CONCRETO, *10 X 10* CM, H = 2,30M | E207: Material | G207: UN | H207: 0.16 | I207: 46.4 | J207: 7.42
A208: Insumo | B208: I1533 | C208: SEINFRA | D208: MOURÃO CONCRETO BASE 15X15CM H=2.3 C/ 12 FUROS | E208: Material | G208: UN | H208: 0.42 | I208: 37.01 | J208: 15.54
A211: 9.2 | D211: PORTÃO | J211: 1289.06
A212: 9.2.1 | B212: Código | C212: Banco | D212: Descrição | E212: Tipo | G212: Und | H212: Quant. | I212: Valor Unit | J212: Total
A213: Composição | B213: COMPOSIÇÃO - 024 | C213: Próprio | D213: Serviço de instalação de portão de ferro com suporte e batedor conforme projeto, incluso material | E213: SEDI - SERVIÇOS DIVERSOS | G213: m² | H213: 1 | I213: =J213 -> 684.92 | J213: =SUM(J214:J218) -> 684.92
A214: Composição Auxiliar | B214: 88309 | C214: SINAPI | D214: PEDREIRO COM ENCARGOS COMPLEMENTARES | E214: SEDI - SERVIÇOS DIVERSOS | G214: H | H214: 1.5 | I214: 23.31 | J214: =ROUND(H214*I214,2) -> 34.97
A215: Composição Auxiliar | B215: 88316 | C215: SINAPI | D215: SERVENTE COM ENCARGOS COMPLEMENTARES | E215: SEDI - SERVIÇOS DIVERSOS | G215: H | H215: 1.5 | I215: 18.26 | J215: 27.39
A216: Insumo | B216: 00000367 | C216: SINAPI | D216: AREIA GROSSA - POSTO JAZIDA/FORNECEDOR (RETIRADO NA JAZIDA, SEM TRANSPORTE) | E216: Material | G216: m³ | H216: 0.061 | I216: 116.5 | J216: 7.11
A217: Insumo | B217: 00001379 | C217: SINAPI | D217: CIMENTO PORTLAND COMPOSTO CP II-32 | E217: Material | G217: KG | H217: 4.83 | I217: 0.7 | J217: 3.38
A218: Insumo | B218: 00004948 | C218: SINAPI | D218: PORTAO DE ABRIR / GIRO, EM GRADIL DE METALON REDONDO DE 3/4" VERTICAL, COM REQUADRO, ACABAMENTO NATURAL - COMPLETO | E218: Material | G218: m² | H218: 1 | I218: 612.07 | J218: 612.07
A221: 10 | D221: OUTROS SERVIÇOS
A222: 10.1 | B222: Código | C222: Banco | D222: Descrição | E222: Tipo | G222: Und | H222: Quant. | I222: Valor Unit | J222: Total
A223: Composição | B223: COMPOSIÇÃO - 025 | C223: Próprio | D223: Serviço de lançamento de concreto para acabamento do tamponamento, incluso material. | E223: SEDI - SERVIÇOS DIVERSOS | G223: m³ | H223: 1 | I223: =J223 -> 683.42 | J223: =SUM(J224:J225) -> 683.42
A224: Composição Auxiliar | B224: 103670 | C224: SINAPI | D224: LANÇAMENTO COM USO DE BALDES, ADENSAMENTO E ACABAMENTO DE CONCRETO EM ESTRUTURAS. AF_02/2022 | E224: FUES - FUNDAÇÕES E ESTRUTURAS | G224: m³ | H224: 1 | I224: 250.38 | J224: =ROUND(H224*I224,2) -> 250.38
A225: Composição Auxiliar | B225: 94974 | C225: SINAPI | D225: CONCRETO MAGRO PARA LASTRO, TRAÇO 1:4,5:4,5 (EM MASSA SECA DE CIMENTO/ AREIA MÉDIA/ BRITA 1) - PREPARO MANUAL. AF_05/2021 | E225: FUES - FUNDAÇÕES E ESTRUTURAS | G225: m³ | H225: 1 | I225: 433.04 | J225: 433.04
A228: 10.2 | B228: Código | C228: Banco | D228: Descrição | E228: Tipo | G228: Und | H228: Quant. | I228: Valor Unit | J228: Total
A229: Composição | B229: COMPOSIÇÃO - 026 | C229: Próprio | D229: Serviço de execução do tamponamento, incluso pedra britada desinfectada. | E229: SEDI - SERVIÇOS DIVERSOS | G229: m³ | H229: 1 | I229: =J229 -> 152.03 | J229: =SUM(J230:J232) -> 152.03
A230: Composição Auxiliar | B230: 88316 | C230: SINAPI | D230: SERVENTE COM ENCARGOS COMPLEMENTARES | E230: SEDI - SERVIÇOS DIVERSOS | G230: H | H230: 0.1 | I230: 18.26 | J230: =ROUND(H230*I230,2) -> 1.83
A231: Insumo | B231: 00004720 | C231: SINAPI | D231: PEDRA BRITADA N. 0, OU PEDRISCO (4,8 A 9,5 MM) POSTO PEDREIRA/FORNECEDOR, SEM FRETE | E231: Material | G231: m³ | H231: 1 | I231: 129.2 | J231: =ROUND(H231*I231,2) -> 129.2
A232: Insumo | B232: D240000003 | C232: EMBASA | D232: HIPOCLORITO DE SÓDIO | E232: Material | G232: L | H232: 5 | I232: 4.2 | J232: 21
B236: Código | C236: Banco | D236: Descrição | E236: Tipo | G236: Und | H236: Quant. | I236: Valor Unit | J236: Total
A237: Insumo | B237: COTAÇÃO-007 | C237: Próprio | D237: Fornecimento tubo de revestimento geomecânico classe standart Ø 4" com junta roscável. | E237: Material | G237: m | H237: 1 | I237: 82.5 | J237: =ROUND(H237*I237,2) -> 82.5
B240: Código | C240: Banco | D240: Descrição | E240: Tipo | G240: Und | H240: Quant. | I240: Valor Unit | J240: Total
A241: Insumo | B241: COTAÇÃO-005 | C241: Próprio | D241: Fornecimento tubo filtro geomecânico classe standart Ø 4" com junta roscável. | E241: Material | G241: m | H241: 1 | I241: 86.02 | J241: =ROUND(H241*I241,2) -> 86.02

Sheet Crono. PB - Parci.Rev
C1: MINISTÉRIO DO DESENVOLVIMENTO REGIONAL - MDR COMPANHIA DE DESENVOLVIMENTO DOS VALES DO SÃO FRANCISCO E DO PARNAÍBA ÁREA DE REVITALIZAÇÃO E SUSTENTABILIDADE SOCIOAMBIENTAL
A6: OBJETO: | B6: PERFURAÇÃO E INSTALAÇÃO DE POÇO TUBULAR PARCIALMENTE REVESTIDO NO ESTADO DA PARAÌBA
A8: CRONOGRAMA FÍSICO-FINANCEIRO
A10: ITEM | B10: ESPECIFICAÇÃO DOS SERVIÇOS | C10: VALOR TOTAL (R$) | D10: Mês 01 | E10: Mês 02 | F10: Mês 03 | G10: Mês 04 | H10: Mês 05 | I10: Mês 06 | J10: Mês 07 | K10: Mês 08 | L10: Mês 09 | M10: Mês 10 | N10: Mês 11 | O10: Mês 12
A11: 1 | B11: SERVIÇOS PRELIMINARES | C11: ='Orç. PB - Parc. Rev - Sintético'!J6 -> 375016.27 | D11: =$C$11/12 -> 31251.35583 | E11: =$C$11/12 -> 31251.35583 | F11: 31251.35583 | G11: 31251.35583 | H11: 31251.35583 | I11: 31251.35583 | J11: 31251.35583 | K11: 31251.35583 | L11: 31251.35583 | M11: 31251.35583 | N11: 31251.35583 | O11: 31251.35583
A12: 2 | B12: MOBILIZAÇÂO E DESMOBILIZAÇÂO EQUIPES PERFURAÇÂO E INSTALAÇÃO | C12: ='Orç. PB - Parc. Rev - Sintético'!J11 -> 338288.4 | D12: =$C$12/12 -> 28190.7 | E12: =$C$12/12 -> 28190.7 | F12: 28190.7 | G12: 28190.7 | H12: 28190.7 | I12: 28190.7 | J12: 28190.7 | K12: 28190.7 | L12: 28190.7 | M12: 28190.7 | N12: 28190.7 | O12: 28190.7
A13: 3 | B13: PERFURAÇÃO E COMPLETAÇÃO DE POÇO TUBULAR | C13: ='Orç. PB - Parc. Rev - Sintético'!J14 -> 5833309.96 | D13: =$C$13/12 -> 486109.1633 | E13: =$C$13/12 -> 486109.1633 | F13: 486109.1633 | G13: 486109.1633 | H13: 486109.1633 | I13: 486109.1633 | J13: 486109.1633 | K13: 486109.1633 | L13: 486109.1633 | M13: 486109.1633 | N13: 486109.1633 | O13: 486109.1633
A14: 4 | B14: PÓS PERFURAÇÃO | C14: ='Orç. PB - Parc. Rev - Sintético'!J21 -> 1583029.44 | D14: =$C$14/12 -> 131919.12 | E14: =$C$14/12 -> 131919.12 | F14: 131919.12 | G14: 131919.12 | H14: 131919.12 | I14: 131919.12 | J14: 131919.12 | K14: 131919.12 | L14: 131919.12 | M14: 131919.12 | N14: 131919.12 | O14: 131919.12
A15: 5 | B15: RESERVAÇÃO | C15: ='Orç. PB - Parc. Rev - Sintético'!J26 -> 1036423.44 | D15: =$C$15/12 -> 86368.62 | E15: =$C$15/12 -> 86368.62 | F15: 86368.62 | G15: 86368.62 | H15: 86368.62 | I15: 86368.62 | J15: 86368.62 | K15: 86368.62 | L15: 86368.62 | M15: 86368.62 | N15: 86368.62 | O15: 86368.62
A16: 6 | B16: BEBEDOURO | C16: ='Orç. PB - Parc. Rev - Sintético'!J32 -> 274022.19 | D16: =$C$16/12 -> 22835.1825 | E16: =$C$16/12 -> 22835.1825 | F16: 22835.1825 | G16: 22835.1825 | H16: 22835.1825 | I16: 22835.1825 | J16: 22835.1825 | K16: 22835.1825 | L16: 22835.1825 | M16: 22835.1825 | N16: 22835.1825 | O16: 22835.1825
A17: 7 | B17: INSTALAÇÕES HIDRÁULICAS | C17: ='Orç. PB - Parc. Rev - Sintético'!J34 -> 526242.3 | D17: =$C$17/12 -> 43853.525 | E17: =$C$17/12 -> 43853.525 | F17: 43853.525 | G17: 43853.525 | H17: 43853.525 | I17: 43853.525 | J17: 43853.525 | K17: 43853.525 | L17: 43853.525 | M17: 43853.525 | N17: 43853.525 | O17: 43853.525
A18: 8 | B18: ='Orç. PB - Tot. Rev - Sintético'!E70 -> FORNECIMENTO E INSTALAÇÃO DE SISTEMA FOTOVOLTAÍCO | C18: ='Orç. PB - Parc. Rev - Sintético'!J64 -> 4872964.94 | D18: =$C$18/12 -> 406080.4117 | E18: =$C$18/12 -> 406080.4117 | F18: 406080.4117 | G18: 406080.4117 | H18: 406080.4117 | I18: 406080.4117 | J18: 406080.4117 | K18: 406080.4117 | L18: 406080.4117 | M18: 406080.4117 | N18: 406080.4117 | O18: 406080.4117
A19: 9 | B19: URBANIZAÇÃO | C19: ='Orç. PB - Parc. Rev - Sintético'!J86 -> 614454.71 | D19: =$C$19/12 -> 51204.55917 | E19: =$C$19/12 -> 51204.55917 | F19: 51204.55917 | G19: 51204.55917 | H19: 51204.55917 | I19: 51204.55917 | J19: 51204.55917 | K19: 51204.55917 | L19: 51204.55917 | M19: 51204.55917 | N19: 51204.55917 | O19: 51204.55917
A20: 10 | B20: OUTROS SERVIÇOS | C20: ='Orç. PB - Parc. Rev - Sintético'!J91 -> 751524.98 | D20: =$C$20/12 -> 62627.08167 | E20: =$C$20/12 -> 62627.08167 | F20: 62627.08167 | G20: 62627.08167 | H20: 62627.08167 | I20: 62627.08167 | J20: 62627.08167 | K20: 62627.08167 | L20: 62627.08167 | M20: 62627.08167 | N20: 62627.08167 | O20: 62627.08167
A21: TOTAL | C21: =SUM(C11:C20) -> 16205276.63 | D21: =SUM(D11:D20) -> 1350439.719 | E21: =SUM(E11:E20) -> 1350439.719 | F21: 1350439.719 | G21: 1350439.719 | H21: 1350439.719 | I21: 1350439.719 | J21: 1350439.719 | K21: 1350439.719 | L21: 1350439.719 | M21: 1350439.719 | N21: 1350439.719 | O21: 1350439.719
A22: PERCENTUAL | D22: =D21/$C$21 -> 0.08333333333 | E22: 0.08333333333 | F22: 0.08333333333 | G22: 0.08333333333 | H22: 0.08333333333 | I22: 0.08333333333 | J22: 0.08333333333 | K22: 0.08333333333 | L22: 0.08333333333 | M22: 0.08333333333 | N22: 0.08333333333 | O22: 0.08333333333
A23: CUSTO ACUMULADO | D23: =D21 -> 1350439.719 | E23: =E21+D23 -> 2700879.438 | F23: =F21+E23 -> 4051319.158 | G23: 5401758.877 | H23: 6752198.596 | I23: 8102638.315 | J23: 9453078.034 | K23: 10803517.75 | L23: 12153957.47 | M23: 13504397.19 | N23: 14854836.91 | O23: 16205276.63
A24: PERCENTUAL ACUMULADO | D24: =D22 -> 0.08333333333 | E24: =E22+D24 -> 0.1666666667 | F24: 0.25 | G24: 0.3333333333 | H24: 0.4166666667 | I24: 0.5 | J24: 0.5833333333 | K24: 0.6666666667 | L24: 0.75 | M24: 0.8333333333 | N24: 0.9166666667 | O24: 1

Sheet Orç. PB - Tot. Rev - Sintético
H1: B.D.I. SERVIÇO | I1: B.D.I. MATERIAL | J1: Encargos Sociais
A2: OBRA:PERFURAÇÃO E INSTALAÇÃO DE POÇO TUBULAR TOTALMENTE REVESTIDO NO ESTADO DA PARAIBA | H2: 0.2547 | I2: 0.1528 | J2: Não Desonerado: embutido nos preços unitário dos insumos de mão de obra, de acordo com as bases.
H3: VALOR UNITÁRIO POR POÇO | I3: =ROUND(J102/K3,2) -> 156834.78 | J3: QUANTIDADE DE POÇOS | K3: 21
A4: Orçamento Sintético
A5: Item | B5: Código | C5: Serviço/Material | D5: Banco | E5: Descrição | F5: Und | G5: Quant. | H5: Valor Unit | I5: Valor Unit com BDI | J5: Total | K5: Peso (%)
A6: 1 | E6: SERVIÇOS PRELIMINARES | J6: =SUM(J7:J10) -> 220483.21 | K6: =J6/$J$102 -> 0.06694433608
A7: 1.1 | B7: COMPOSIÇÃO - 002 | C7: Serviço | D7: Próprio | E7: Administração Local da Obra - Poço Totalmente Revestido | F7: un | G7: 1 | H7: 152006.02 | I7: =ROUND(H7+H7*$H$2,2) -> 190721.95 | J7: =ROUND(G7*I7,2) -> 190721.95 | K7: =J7/$J$102 -> 0.05790805712
A8: 1.2 | B8: COMPOSIÇÃO - 003 | C8: Serviço | D8: Próprio | E8: Serviço de locação Geológica de campo com relatório hidro geológico e perfil construtivo e geológico esperado. Relatório de Viabilidade de implantação das estruturas e vistorias preliminares | F8: un | G8: 21 | H8: 496.4 | I8: =ROUND(H8+H8*$H$2,2) -> 622.83 | J8: =ROUND(G8*I8,2) -> 13079.43 | K8: =J8/$J$102 -> 0.003971249138
A9: 1.3 | B9: COMPOSIÇÃO - 028 | C9: Serviço | D9: Próprio | E9: Procedimentos para emissão de Outorga de uso insignificante e Dispensa de Licenciamento Ambiental (incluso taxas) - Paraíba | F9: un | G9: 21 | H9: 382.5 | I9: 479.92 | J9: 10078.32 | K9: 0.003060035461
A10: 1.4 | B10: 51 | C10: Serviço | D10: ORSE | E10: Placa de obra em chapa aço galvanizado, instalada - Rev 02_01/2022 | F10: m² | G10: 15.12 | H10: 348.08 | I10: 436.74 | J10: 6603.51 | K10: 0.002004994361
A11: 2 | E11: MOBILIZAÇÂO E DESMOBILIZAÇÂO EQUIPES PERFURAÇÂO E INSTALAÇÃO | J11: =SUM(J12:J14) -> 48560.4 | K11: 0.0147441782
A12: 2.1 | B12: COMPOSIÇÃO - 006 | C12: Serviço | D12: Próprio | E12: Transporte de Comboio Perfuração | F12: km | G12: 5040 | H12: 4.34 | I12: =ROUND(H12+H12*$H$2,2) -> 5.45 | J12: =ROUND(G12*I12,2) -> 27468 | K12: =J12/$J$102 -> 0.008339986629
A13: 2.2 | B13: COMPOSIÇÃO - 007 | C13: Serviço | D13: Próprio | E13: Transporte de Comboio Instalação | F13: km | G13: 2520 | H13: 5.44 | I13: 6.83 | J13: 17211.6 | K13: 0.00522588153
A14: 2.3 | B14: COMPOSIÇÃO - 008 | C14: Serviço | D14: Próprio | E14: Transporte de água em caminhão pipa para preparo do fluído de perfuração rotativa | F14: km | G14: 630 | H14: 4.91 | I14: 6.16 | J14: 3880.8 | K14: 0.001178310038
A15: 3 | E15: PERFURAÇÃO E COMPLETAÇÃO DE POÇO TUBULAR | J15: =SUM(J16:J26) -> 1638962.46 | K15: 0.4976308797
A16: 3.1 | B16: COMPOSIÇÃO - 009 | C16: Serviço | D16: Próprio | E16: Limpeza manual , remoção de cerca, capina e instalação dos equipamentos (área do poço, painéis solares, bebedouro e reservatório) | F16: m² | G16: 1470 | H16: 1.46 | I16: =ROUND(H16+H16*$H$2,2) -> 1.83 | J16: =ROUND(G16*I16,2) -> 2690.1 | K16: =J16/$J$102 -> 0.0008167830942
A17: 3.2 | B17: COMPOSIÇÃO - 012 | C17: Serviço | D17: Próprio | E17: Perfuração rotativa com circulação direta Ø 9.1/2" | F17: m | G17: 3150 | H17: 255.29 | I17: 320.31 | J17: 1008976.5 | K17: 0.3063510456
A18: 3.3 | B18: COTAÇÃO-007 | C18: Material | D18: Próprio | E18: Fornecimento tubo de revestimento geomecânico classe standart Ø 4" com junta roscável. | F18: m | G18: 2814 | H18: 82.5 | I18: =ROUND(H18+H18*$I$2,2) -> 95.11 | J18: =ROUND(G18*I18,2) -> 267639.54 | K18: 0.08126220275
A19: 3.4 | B19: COTAÇÃO-005 | C19: Material | D19: Próprio | E19: Fornecimento tubo filtro geomecânico classe standart Ø 4" com junta roscável. | F19: m | G19: 336 | H19: 86.02 | I19: =ROUND(H19+H19*$I$2,2) -> 99.16 | J19: =ROUND(G19*I19,2) -> 33317.76 | K19: =J19/$J$102 -> 0.01011612323
A20: 3.5 | B20: A.09.000.020926 | C20: Material | D20: CPOS/CDHU | E20: Fornecimento de centralizador de coluna para poço profundo, diâmetro de 4´ | F20: un | G20: 210 | H20: 298.01 | I20: 343.55 | J20: 72145.5 | K20: 0.02190521718
A21: 3.6 | B21: 00009875 | C21: Material | D21: SINAPI | E21: Fornecimento de tubo pvc, soldavel, de 50 mm, agua fria (nbr-5648) - tubo de recarga prè filtro | F21: m | G21: 147 | H21: 17.36 | I21: 20.01 | J21: 2941.47 | K21: 0.0008931054489
A22: 3.7 | B22: I5785 | C22: Material | D22: SEINFRA | E22: Fornecimento de cap pvc femea standard dn 100 | F22: un | G22: 21 | H22: 78.87 | I22: 90.92 | J22: 1909.32 | K22: 0.0005797183367
A23: 3.8 | B23: 5073 | C23: Material | D23: ORSE | E23: Fornecimento de pré-filtro comum | F23: m³ | G23: 114.45 | H23: 1619.38 | I23: 1866.82 | J23: 213657.55 | K23: 0.0648718913
A24: 3.9 | B24: 00043366 | C24: Material | D24: SINAPI | E24: Fornecimento de bentonita, argila constituida por montmorilonita | F24: kg | G24: 9450 | H24: 1.54 | I24: 1.78 | J24: 16821 | K24: 0.00510728539
A25: 3.10 | B25: COMPOSIÇÃO - 011 | C25: Serviço | D25: Próprio | E25: Serviço de lançamento cimentação anelar poço tubular, incluso material. | F25: m³ | G25: 3.948 | H25: 768.27 | I25: =ROUND(H25+H25*$H$2,2) -> 963.95 | J25: =ROUND(G25*I25,2) -> 3805.67 | K25: =J25/$J$102 -> 0.00115549865
A26: 3.11 | B26: COMPOSIÇÃO - 014 | C26: Serviço | D26: Próprio | E26: Serviço de instalação de laje sanitária com dimensões (1,5x1,5x0,3) , incluso material. | F26: un | G26: 21 | H26: 571.49 | I26: 717.05 | J26: 15058.05 | K26: 0.004572008725
A27: 4 | E27: PÓS PERFURAÇÃO | J27: =SUM(J28:J31) -> 218102.22 | K27: 0.06622140668
A28: 4.1 | B28: 6305 | C28: Serviço | D28: ORSE | E28: Serviço de desenvolvimento com compressor 250psi / 750cfm | F28: h | G28: 84 | H28: 411.16 | I28: =ROUND(H28+H28*$H$2,2) -> 515.88 | J28: =ROUND(G28*I28,2) -> 43333.92 | K28: =J28/$J$102 -> 0.01315728533
A29: 4.2 | B29: 6312 | C29: Serviço | D29: ORSE | E29: Serviço de análise físico-química da Água incluso coleta, transporte e analise | F29: un | G29: 21 | H29: 565.21 | I29: 709.17 | J29: 14892.57 | K29: 0.004521764769
A30: 4.3 | B30: COMPOSIÇÃO - 015 | C30: Serviço | D30: Próprio | E30: Inspeção ótica em poço tubular câmera com rotação de 360º, visada lateral, com fonte própria de luz, entregue vídeo em cores e marcação de profundidades. | F30: m | G30: 945 | H30: 38.05 | I30: 47.74 | J30: 45114.3 | K30: 0.01369785419
A31: 4.4 | B31: 6314 | C31: Serviço | D31: ORSE | E31: Ensaio de Bombeamento com bomba submersível | F31: h | G31: 147 | H31: 622.21 | I31: 780.69 | J31: 114761.43 | K31: 0.03484450239
A32: 5 | E32: RESERVAÇÃO | J32: =SUM(J33:J37) -> 136886.11 | K32: 0.04156212055
A33: 5.1 | B33: COMPOSIÇÃO - 016 | C33: Serviço | D33: Próprio | E33: Execução e instalação de base de sustentação em concreto armado para reservatório de diâmetro 2,06m e altura 1,10m, conforme projeto, incluindo fixação de grampos da tampa. | F33: un | G33: 21 | H33: 2358.16 | I33: =ROUND(H33+H33*$H$2,2) -> 2958.78 | J33: =ROUND(G33*I33,2) -> 62134.38 | K33: =J33/$J$102 -> 0.01886558535
A34: 5.2 | B34: 00037105 | C34: Material | D34: SINAPI | E34: Fornecimento de caixa d'agua / reservatorio em poliester reforcado com fibra de vidro, 5000 litros, com tampa | F34: un | G34: 21 | H34: 2986.9 | I34: =ROUND(H34+H34*$I$2,2) -> 3443.3 | J34: =ROUND(G34*I34,2) -> 72309.3 | K34: 0.02195495104
A35: 5.3 | B35: 13960 | C35: Material | D35: ORSE | E35: Fornecimento de cabo de aço 1/8" sem revestimento ( rolo c/ 100 mt) rolo | F35: rolo | G35: 1.68 | H35: 260.96 | I35: 300.83 | J35: 505.39 | K35: 0.0001534493171
A36: 5.4 | B36: 094248 | C36: Material | D36: SBC | E36: Fornecimento de esticador olhal com gancho de 1/4" 6,35 mm vonder | F36: un | G36: 84 | H36: 13.05 | I36: 15.04 | J36: 1263.36 | K36: 0.0003835883759
A37: 5.5 | B37: 002048 | C37: Material | D37: SBC | E37: Fornecimento de grampo (clip) para cabo de aco pesado 1/8" | F37: un | G37: 84 | H37: 6.96 | I37: 8.02 | J37: 673.68 | K37: 0.0002045464611
A38: 6 | E38: BEBEDOURO | J38: =SUM(J39) -> 36191.61 | K38: 0.01098869752
A39: 6.1 | B39: COMPOSIÇÃO - 017 | C39: Serviço | D39: Próprio | E39: Serviço de execução do bebedouro em concreto armado, incluso materiais. | F39: un | G39: 21 | H39: 1373.56 | I39: =ROUND(H39+H39*$H$2,2) -> 1723.41 | J39: =ROUND(G39*I39,2) -> 36191.61 | K39: =J39/$J$102 -> 0.01098869752
A40: 7 | E40: INSTALAÇÕES HIDRÁULICAS | J40: =SUM(J41,J57) -> 69503.7 | K40: 0.0211030992
A41: 7.1 | E41: INSTALAÇÕES DE CAVALETE | J41: =SUM(J42:J56) -> 27468 | K41: 0.008339986629
A42: 7.1.1 | B42: COMPOSIÇÃO - 018 | C42: Serviço | D42: Próprio | E42: Montagem e Instalação de Tubulação e Conexões Cavalete | F42: un | G42: 21 | H42: 231.58 | I42: =ROUND(H42+H42*$H$2,2) -> 290.56 | J42: =ROUND(G42*I42,2) -> 6101.76 | K42: =J42/$J$102 -> 0.001852650241
A43: 7.1.2 | B43: 00001796 | C43: Material | D43: SINAPI | E43: Fornecimento de curva 90 graus de ferro galvanizado, com rosca bsp macho, de 1 1/4" | F43: un | G43: 21 | H43: 77.17 | I43: =ROUND(H43+H43*$I$2,2) -> 88.96 | J43: =ROUND(G43*I43,2) -> 1868.16 | K43: 0.000567221109
A44: 7.1.3 | B44: 00009888 | C44: Material | D44: SINAPI | E44: Fornecimento de uniao de ferro galvanizado, com rosca bsp, com assento plano, de 1 1/4" | F44: un | G44: 21 | H44: 62.13 | I44: 71.62 | J44: 1504.02 | K44: 0.0004566589009
A45: 7.1.4 | B45: 00004180 | C45: Material | D45: SINAPI | E45: Fornecimento de niple de ferro galvanizado, com rosca bsp, de 1 1/4" | F45: un | G45: 42 | H45: 18.99 | I45: 21.89 | J45: 919.38 | K45: 0.0002791472589
A46: 7.1.5 | B46: 00006017 | C46: Material | D46: SINAPI | E46: Fornecimento de registro gaveta bruto em latao forjado, bitola 1 1/4 " (ref 1509) | F46: un | G46: 21 | H46: 78.48 | I46: 90.47 | J46: 1899.87 | K46: 0.0005768490752
A47: 7.1.6 | B47: 00000789 | C47: Material | D47: SINAPI | E47: Fornecimento de bucha de reducao de ferro galvanizado, com rosca bsp, de 1 1/4" x 1" | F47: un | G47: 21 | H47: 17.76 | I47: 20.47 | J47: 429.87 | K47: 0.0001305195155
A48: 7.1.7 | B48: 12438 | C48: Material | D48: ORSE | E48: Fornecimento de hidrômetro multijato d= 3/4", vazão = 5,0m3/h | F48: un | G48: 21 | H48: 297.28 | I48: 342.7 | J48: 7196.7 | K48: 0.002185102001
A49: 7.1.8 | B49: 00009861 | C49: Material | D49: SINAPI | E49: Fornecimento de tubo pvc, roscavel, 1 1/4", agua fria predial | F49: m | G49: 31.5 | H49: 27.67 | I49: 31.9 | J49: 1004.85 | K49: 0.0003050981347
A50: 7.1.9 | B50: 002116 | C50: Material | D50: SBC | E50: Fornecimento de te de reducao ferro galvanizado 1.1/4" x 1/2" | F50: un | G50: 21 | H50: 17.24 | I50: 19.87 | J50: 417.27 | K50: 0.0001266938336
A51: 7.1.10 | B51: 00011831 | C51: Material | D51: SINAPI | E51: Fornecimento de torneira plastica para tanque 1/2 " ou 3/4 " com bico para mangueira | F51: un | G51: 21 | H51: 18.42 | I51: 21.23 | J51: 445.83 | K51: 0.0001353653793
A52: 7.1.11 | B52: 1158 | C52: Material | D52: ORSE | E52: Fornecimento de joelho 45° ferro galvanizado d=1 1/ 4" | F52: un | G52: 42 | H52: 32.7 | I52: 37.7 | J52: 1583.4 | K52: 0.0004807606971
A53: 7.1.12 | B53: 00004205 | C53: Material | D53: SINAPI | E53: Fornecimento de niple de reducao de ferro galvanizado, com rosca bsp, de 1 1/2" x 1 1/4" | F53: un | G53: 21 | H53: 33.32 | I53: 38.41 | J53: 806.61 | K53: 0.0002449074055
A54: 7.1.13 | B54: 00003939 | C54: Material | D54: SINAPI | E54: Fornecimento de luva de ferro galvanizado, com rosca bsp, de 1 1/2" | F54: un | G54: 21 | H54: 25.6 | I54: 29.51 | J54: 619.71 | K54: 0.0001881597901
A55: 7.1.14 | B55: 9569 | C55: Material | D55: ORSE | E55: Fornecimento de adaptador pvc bsxrm d= 35mm x 1 1/2", linha irriga-lf, tigre ou similar | F55: un | G55: 21 | H55: 3.04 | I55: 3.5 | J55: 73.5 | K55: 2.231647798e-05
A56: 7.1.15 | B56: 5128 | C56: Material | D56: ORSE | E56: Fornecimento de tampa de poço galvanizada em 6" | F56: un | G56: 21 | H56: 107.28 | I56: 123.67 | J56: 2597.07 | K56: 0.0007885368092
A57: 7.2 | E57: INSTALAÇÕES DE ADUTORA, RESERVATÓRIO E BEBEDOURO | J57: =SUM(J58:J69) -> 42035.7 | K57: 0.01276311257
A58: 7.2.1 | B58: COMPOSIÇÃO - 020 | C58: Serviço | D58: Próprio | E58: Montagem e instalação da rede adutora poço-reservatório-bebedouro | F58: un | G58: 21 | H58: 877.93 | I58: =ROUND(H58+H58*$H$2,2) -> 1101.54 | J58: =ROUND(G58*I58,2) -> 23132.34 | K58: =J58/$J$102 -> 0.007023569474
A59: 7.2.2 | B59: 9501 | C59: Material | D59: ORSE | E59: Fornecimento de tubo PVC p/irrigação LF PN 60 JE Ø 35mm, linha Irriga-LF, Tigre ou similar | F59: m | G59: 840 | H59: 13.06 | I59: =ROUND(H59+H59*$I$2,2) -> 15.06 | J59: =ROUND(G59*I59,2) -> 12650.4 | K59: 0.003840984668
A60: 7.2.3 | B60: 9516 | C60: Material | D60: ORSE | E60: Fornecimento de curva 90º pvc PTA/BSA soldavel d= 35mm, linha Irriga-LF, Tigre ou similar | F60: un | G60: 84 | H60: 10.76 | I60: 12.4 | J60: 1041.6 | K60: 0.0003162563737
A61: 7.2.4 | B61: 00000098 | C61: Material | D61: SINAPI | E61: Fornecimento de adaptador pvc soldavel, com flange e anel de vedacao, 40 mm x 1 1/4", para caixa d'água | F61: un | G61: 42 | H61: 31.2 | I61: 35.97 | J61: 1510.74 | K61: 0.0004586992646
A62: 7.2.5 | B62: 8013 | C62: Material | D62: ORSE | E62: Fornecimento de registro esfera VS soldável para irrigação Ø 35mm | F62: pç | G62: 21 | H62: 37.26 | I62: 42.95 | J62: 901.95 | K62: 0.0002738550655
A63: 7.2.6 | B63: 00000096 | C63: Material | D63: SINAPI | E63: Fornecimento de adaptador pvc soldavel, com flange e anel de vedacao, 25 mm x 3/4", para caixa d'água | F63: un | G63: 63 | H63: 13.85 | I63: 15.97 | J63: 1006.11 | K63: 0.0003054807029
A64: 7.2.7 | B64: 14071 | C64: Material | D64: ORSE | E64: Fornecimento de tubo PVC para irrigação LF PN 60 Ø 25mm, linha Irriga-LF, Tigre ou similar | F64: m | G64: 42 | H64: 4.01 | I64: 4.62 | J64: 194.04 | K64: 5.891550188e-05
A65: 7.2.8 | B65: 14082 | C65: Material | D65: ORSE | E65: Fornecimento de registro esfera LF 25mm | F65: pç | G65: 42 | H65: 11.06 | I65: 12.75 | J65: 535.5 | K65: 0.0001625914825
A66: 7.2.9 | B66: 00003529 | C66: Material | D66: SINAPI | E66: Fornecimento de joelho pvc, soldavel, 90 graus, 25 mm, para agua fria | F66: un | G66: 42 | H66: 0.82 | I66: 0.95 | J66: 39.9 | K66: 1.211465948e-05
A67: 7.2.10 | B67: 00003535 | C67: Material | D67: SINAPI | E67: Fornecimento de joelho pvc, soldavel, 90 graus, 40 mm, para agua fria | F67: un | G67: 21 | H67: 6.64 | I67: 7.65 | J67: 160.65 | K67: 4.877744474e-05
A68: 7.2.11 | B68: 00000109 | C68: Material | D68: SINAPI | E68: Fornecimento de adaptador pvc soldavel curto com bolsa e rosca, 40 mm x 1 1/4", para agua fria | F68: un | G68: 21 | H68: 4.17 | I68: 4.81 | J68: 101.01 | K68: 3.066921689e-05
A69: 7.2.12 | B69: 00011830 | C69: Material | D69: SINAPI | E69: Fornecimento de torneira de boia convencional para caixa d'agua, agua fria, 3/4", com haste e torneira metalicos e balao plastico | F69: un | G69: 21 | H69: 31.45 | I69: 36.26 | J69: 761.46 | K69: 0.0002311987119
A70: 8 | E70: FORNECIMENTO E INSTALAÇÃO DE SISTEMA FOTOVOLTAÍCO | J70: =SUM(J71,J77,J88,J90) -> 774322.39 | K70: 0.2351040622
A71: 8.1 | E71: INSTALAÇÕES HIDRÁULICAS | J71: =SUM(J72:J76) -> 93900.07 | K71: =J71/$J$102 -> 0.02851046047
A72: 8.1.1 | B72: COMPOSIÇÃO - 019 | C72: Serviço | D72: Próprio | E72: Montagem e instalação hidráulica do kit de bombeamento | F72: un | G72: 21 | H72: 120.81 | I72: =ROUND(H72+H72*$H$2,2) -> 151.58 | J72: =ROUND(G72*I72,2) -> 3183.18 | K72: 0.0009664947808
A73: 8.1.2 | B73: 00038200 | C73: Material | D73: SINAPI | E73: Fornecimento de corda de poliamida 12 mm tipo bombeiro, para trabalho em altura | F73: 100m | G73: 19.53 | H73: 971.03 | I73: =ROUND(H73+H73*$I$2,2) -> 1119.4 | J73: =ROUND(G73*I73,2) -> 21861.88 | K73: 0.006637825357
A74: 8.1.3 | B74: 00009861 | C74: Material | D74: SINAPI | E74: Fornecimento de tubo pvc, roscavel, 1 1/4", agua fria predial | F74: m | G74: 1890 | H74: 27.67 | I74: 31.9 | J74: 60291 | K74: 0.01830588808
A75: 8.1.4 | B75: 00004180 | C75: Material | D75: SINAPI | E75: Fornecimento de niple de ferro galvanizado, com rosca bsp, de 1 1/4" | F75: un | G75: 21 | H75: 18.99 | I75: 21.89 | J75: 459.69 | K75: 0.0001395736294
A76: 8.1.5 | B76: 00003911 | C76: Material | D76: SINAPI | E76: Fornecimento de luva de ferro galvanizado, com rosca bsp, de 1 1/4" | F76: un | G76: 336 | H76: 20.92 | I76: 24.12 | J76: 8104.32 | K76: 0.002460678624
A77: 8.2 | E77: INSTALAÇÕES ELÉTRICAS | J77: =SUM(J78:J87) -> 82052.31 | K77: 0.02491317782
A78: 8.2.1 | B78: COMPOSIÇÃO - 021 | C78: Serviço | D78: Próprio | E78: Montagem e instalação elétrica do kit de bombeamento e sistema fotovoltaico inclusive sistema de aterramento. | F78: un | G78: 21 | H78: 517.94 | I78: =ROUND(H78+H78*$H$2,2) -> 649.86 | J78: =ROUND(G78*I78,2) -> 13647.06 | K78: 0.004143596109
A79: 8.2.2 | B79: 00002674 | C79: Material | D79: SINAPI | E79: Fornecimento de eletroduto de pvc rigido roscavel de 3/4 ", sem luva | F79: m | G79: 315 | H79: 4.88 | I79: =ROUND(H79+H79*$I$2,2) -> 5.63 | J79: =ROUND(G79*I79,2) -> 1773.45 | K79: 0.0005384647331
A80: 8.2.3 | B80: 00034622 | C80: Material | D80: SINAPI | E80: Fornecimento de cabo flexivel pvc 750 v, 3 condutores de 6,0 mm2 | F80: m | G80: 2205 | H80: 21 | I80: 24.21 | J80: 53383.05 | K80: 0.01620845796
A81: 8.2.4 | B81: 00012034 | C81: Material | D81: SINAPI | E81: Fornecimento de curva 180 graus, de pvc rigido roscavel, de 3/4", para eletroduto | F81: un | G81: 21 | H81: 2.29 | I81: 2.64 | J81: 55.44 | K81: 1.683300054e-05
A82: 8.2.5 | B82: 00039272 | C82: Material | D82: SINAPI | E82: Fornecimento de curva 90 graus, curta, de pvc rigido roscavel, de 3/4", para eletroduto | F82: un | G82: 42 | H82: 1.25 | I82: 1.44 | J82: 60.48 | K82: 1.836327331e-05
A83: 8.2.6 | B83: 00003379 | C83: Material | D83: SINAPI | E83: Fornecimento de haste de aterramento em aco com 3,00 m de comprimento e dn = 5/8", revestida com baixa camada de cobre, sem conector | F83: un | G83: 13.86 | H83: 71.44 | I83: 82.36 | J83: 1141.51 | K83: 0.0003465916025
A84: 8.2.7 | B84: 00001891 | C84: Material | D84: SINAPI | E84: Fornecimento de luva em pvc rigido roscavel, de 3/4", para eletroduto | F84: un | G84: 189 | H84: 0.58 | I84: 0.67 | J84: 126.63 | K84: 3.84481035e-05
A85: 8.2.8 | B85: 00000425 | C85: Material | D85: SINAPI | E85: Fornecimento de grampo metalico tipo olhal para haste de aterramento de 5/8'', condutor de *10* a 50 mm2 | F85: un | G85: 42 | H85: 6.78 | I85: 7.82 | J85: 328.44 | K85: 9.972277591e-05
A86: 8.2.9 | B86: 00034643 | C86: Material | D86: SINAPI | E86: Fornecimento de caixa de inspecao para aterramento e para raios, em polipropileno, diametro = 300 mm x altura = 400 mm | F86: un | G86: 42 | H86: 37.92 | I86: 43.71 | J86: 1835.82 | K86: 0.0005574018587
A87: 8.2.10 | B87: 00000867 | C87: Material | D87: SINAPI | E87: Fornecimento de cabo de cobre nu 50 mm2 meio-duro | F87: m | G87: 157.5 | H87: 53.43 | I87: 61.59 | J87: 9700.43 | K87: 0.002945298402
A88: 8.3 | J88: =SUM(J89) -> 67457.88 | K88: 0.02048193597
A89: 8.3.1 | B89: COMPOSIÇÃO - 022 | C89: Serviço | D89: Próprio | E89: Serviço de fixação de estruturas para os módulos fotovoltaicos e suportes de concreto, incluso materiais. | F89: m² | G89: 252 | H89: 213.35 | I89: =ROUND(H89+H89*$H$2,2) -> 267.69 | J89: =ROUND(G89*I89,2) -> 67457.88 | K89: 0.02048193597
A90: 8.4 | E90: FORNECIMENTO DE KIT DE BOMBEAMENTO FOTOVOLTAICO | J90: =SUM(J91) -> 530912.13 | K90: 0.1611984879
A91: 8.4.1 | B91: COTAÇÃO-001 | C91: Material | D91: Próprio | E91: Fornecimento de kit de bombeamento fotovoltaico, incluindo uma bomba CC de 2200W com imã permanente sem escovas, controladora de carga externa, disjuntor CC, caixa de proteção metálica, módulos compatíveis com a geração de 3300Wp (potência mínima de 550 W por módulo) e componentes elétricos necessários como cabos, conectores MC4 e presilhas de fixação. | F91: un | G91: 21 | H91: 21930.54 | I91: =ROUND(H91+H91*$I$2,2) -> 25281.53 | J91: =ROUND(G91*I91,2) -> 530912.13 | K91: 0.1611984879
A92: 9 | E92: URBANIZAÇÃO | J92: =SUM(J93,J95) -> 81154.4 | K92: 0.0246405494
A93: 9.1 | E93: CERCA | J93: =SUM(J94) -> 54084.24 | K93: 0.01642135716
A94: 9.1.1 | B94: COMPOSIÇÃO - 023 | C94: Serviço | D94: Próprio | E94: Cerca com mourões de concreto de 15x15cm, espaçados de 3m e cravados a 0,5m, escoras de 10x10cm nos cantos, e 9 fios de arame de aço ovalado 15x17. | F94: m | G94: 588 | H94: 73.31 | I94: =ROUND(H94+H94*$H$2,2) -> 91.98 | J94: =ROUND(G94*I94,2) -> 54084.24 | K94: 0.01642135716
A95: 9.2 | E95: PORTÃO | J95: =SUM(J96) -> 27070.16 | K95: 0.00821919224
A96: 9.2.1 | B96: COMPOSIÇÃO - 024 | C96: Serviço | D96: Próprio | E96: Serviço de instalação de portão de ferro com suporte e batedor conforme projeto, incluso material | F96: m² | G96: 31.5 | H96: 684.92 | I96: =ROUND(H96+H96*$H$2,2) -> 859.37 | J96: =ROUND(G96*I96,2) -> 27070.16 | K96: 0.00821919224
A97: 10 | E97: OUTROS SERVIÇOS | J97: =SUM(J98:J101) -> 69363.96 | K97: 0.02106067056
A98: 10.1 | B98: COMPOSIÇÃO - 025 | C98: Serviço | D98: Próprio | E98: Serviço de lançamento de concreto para acabamento do tamponamento, incluso material. | F98: m³ | G98: 0.60816 | H98: 683.42 | I98: =ROUND(H98+H98*$H$2,2) -> 857.49 | J98: =ROUND(G98*I98,2) -> 521.49 | K98: 0.0001583376885
A99: 10.2 | B99: COMPOSIÇÃO - 026 | C99: Serviço | D99: Próprio | E99: Serviço de execução do tamponamento, incluso pedra britada desinfectada. | F99: m³ | G99: 0.60816 | H99: 152.03 | I99: 190.75 | J99: 116.01 | K99: 3.522360015e-05
A100: 10.3 | B100: COTAÇÃO-006 | C100: Material | D100: Próprio | E100: Fornecimento tubo revestimento geomecânico classe reforçado Ø 4 1/2" com junta roscável. | F100: m | G100: 540.0003 | H100: 92.4 | I100: =ROUND(H100+H100*$I$2,2) -> 106.52 | J100: 57520.83 | K100: 0.01746479369
A101: 10.4 | B101: COTAÇÃO-004 | C101: Material | D101: Próprio | E101: Fornecimento tubo filtro geomecânico classe reforçado diâmetro Ø 4 1/2" com junta roscável. | F101: m | G101: 120.0003 | H101: 81 | I101: 93.38 | J101: 11205.63 | K101: 0.003402315581
I102: Total | J102: =SUM(J97,J92,J70,J40,J38,J32,J27,J15,J11,J6) -> 3293530.46

Sheet Orç. PB - Tot. Rev - Analítico
G1: Encargos Sociais
C2: OBRA:PERFURAÇÃO E INSTALAÇÃO DE POÇO TUBULAR TOTALMENTE REVESTIDO NO ESTADO DA PARAIBA | G2: Não Desonerado: embutido nos preços unitário dos insumos de mão de obra, de acordo com as bases.
A3: Planilha Orçamentária Analítica
A4: 1 | D4: SERVIÇOS PRELIMINARES
A5: 1.1 | B5: Código | C5: Banco | D5: Descrição | E5: Tipo | G5: Und | H5: Quant. | I5: Valor Unit | J5: Total
A6: Composição | B6: COMPOSIÇÃO - 002 | C6: Próprio | D6: Administração Local da Obra - Poço Totalmente Revestido | E6: SERP - SERVIÇOS PRELIMINARES | G6: un | H6: 1 | I6: =J6 -> 152006.02 | J6: =SUM(J7:J13) -> 152006.02
A7: Composição Auxiliar | B7: 92138 | C7: SINAPI | D7: CAMINHONETE COM MOTOR A DIESEL, POTÊNCIA 180 CV, CABINE DUPLA, 4X4 - CHP DIURNO. AF_11/2015 | E7: CHOR - CUSTOS HORÁRIOS DE MÁQUINAS E EQUIPAMENTOS | G7: CHP | H7: 180 | I7: 87.64 | J7: =ROUND(H7*I7,2) -> 15775.2
A8: Composição Auxiliar | B8: 92139 | C8: SINAPI | D8: CAMINHONETE COM MOTOR A DIESEL, POTÊNCIA 180 CV, CABINE DUPLA, 4X4 - CHI DIURNO. AF_11/2015 | E8: CHOR - CUSTOS HORÁRIOS DE MÁQUINAS E EQUIPAMENTOS | G8: CHI | H8: 220 | I8: 39.61 | J8: =ROUND(H8*I8,2) -> 8714.2
A9: Composição Auxiliar | B9: 93572 | C9: SINAPI | D9: ENCARREGADO GERAL DE OBRAS COM ENCARGOS COMPLEMENTARES | E9: SEDI - SERVIÇOS DIVERSOS | G9: MES | H9: 4 | I9: 3982.23 | J9: 15928.92
A10: Composição Auxiliar | B10: 93565 | C10: SINAPI | D10: ENGENHEIRO CIVIL DE OBRA JUNIOR COM ENCARGOS COMPLEMENTARES | E10: SEDI - SERVIÇOS DIVERSOS | G10: MES | H10: 5 | I10: 20582.98 | J10: 102914.9
A11: Insumo | B11: 00014250 | C11: SINAPI | D11: ENERGIA ELETRICA COMERCIAL, BAIXA TENSAO, RELATIVA AO CONSUMO DE ATE 100 KWH, INCLUINDO ICMS, PIS/PASEP E COFINS | E11: Material | G11: KWH | H11: 1600 | I11: 0.73 | J11: =ROUND(H11*I11,2) -> 1168
A12: Insumo | B12: 00044480 | C12: SINAPI | D12: TARIFA "A" ENTRE 0 E 20M3 FORNECIMENTO D'AGUA | E12: Taxas | G12: m³ | H12: 80 | I12: 13.81 | J12: =ROUND(H12*I12,2) -> 1104.8
A13: Insumo | B13: 4298 | C13: ORSE | D13: Aluguel de container - Escritório com banheiro - 6,20 x 2,40m, equipado com Ar condicionado mês | E13: Serviços | G13: mês | H13: 4 | I13: 1600 | J13: 6400
A16: 1.2 | B16: Código | C16: Banco | D16: Descrição | E16: Tipo | G16: Und | H16: Quant. | I16: Valor Unit | J16: Total
A17: Composição | B17: COMPOSIÇÃO - 003 | C17: Próprio | D17: Serviço de locação Geológica de campo com relatório hidro geológico e perfil construtivo e geológico esperado. Relatório de Viabilidade de implantação das estruturas e vistorias preliminares | E17: SERT - SERVIÇOS TÉCNICOS | G17: un | H17: 1 | I17: =J17 -> 496.4 | J17: =SUM(J18:J20) -> 496.4
A18: Composição Auxiliar | B18: 30.01.45 | C18: EMBASA | D18: GEOLOGO SENIOR | E18: 3001 | G18: hora | H18: 5 | I18: 79.73 | J18: =ROUND(H18*I18,2) -> 398.65
A19: Insumo | B19: 5896 | C19: ORSE | D19: Veículo tipo sedan ou pick-up capacidade 0,6 ton h | E19: Equipamento | G19: h | H19: 5 | I19: 8.33 | J19: =ROUND(H19*I19,2) -> 41.65
A20: Insumo | B20: 00004222 | C20: SINAPI | D20: GASOLINA COMUM | E20: Material | G20: L | H20: 10 | I20: 5.61 | J20: =ROUND(H20*I20,2) -> 56.1
A23: 1.3 | B23: Código | C23: Banco | D23: Descrição | E23: Tipo | G23: Und | H23: Quant. | I23: Valor Unit | J23: Total
A24: Composição | B24: COMPOSIÇÃO - 028 | C24: Próprio | D24: Procedimentos para emissão de Outorga de uso insignificante e Dispensa de Licenciamento Ambiental (incluso taxas) - Paraíba | E24: SERT - SERVIÇOS TÉCNICOS | G24: un | H24: 1 | I24: =J24 -> 382.5 | J24: =SUM(J25) -> 382.5
A25: Insumo | B25: COTAÇÃO-008 | C25: Próprio | D25: Procedimentos para Emissão de Outorga de uso insignificante e Dispensa de Licenciamento Ambiental - Paraíba | E25: Serviços | G25: un | H25: 1 | I25: =312.5+70 -> 382.5 | J25: =ROUND(H25*I25,2) -> 382.5
A29: 2 | D29: MOBILIZAÇÂO E DESMOBILIZAÇÂO EQUIPES PERFURAÇÂO E INSTALAÇÃO
A30: 2.1 | B30: Código | C30: Banco | D30: Descrição | E30: Tipo | G30: Und | H30: Quant. | I30: Valor Unit | J30: Total
A31: Composição | B31: COMPOSIÇÃO - 006 | C31: Próprio | D31: Transporte de Comboio Perfuração | E31: TRAN - TRANSPORTES, CARGAS E DESCARGAS | G31: km | H31: 1 | I31: =J31 -> 4.34 | J31: =SUM(J32:J33) -> 4.34
A32: Composição Auxiliar | B32: 5824 | C32: SINAPI | D32: CAMINHÃO TOCO, PBT 16.000 KG, CARGA ÚTIL MÁX. 10.685 KG, DIST. ENTRE EIXOS 4,8 M, POTÊNCIA 189 CV, INCLUSIVE CARROCERIA FIXA ABERTA DE MADEIRA P/ TRANSPORTE GERAL DE CARGA SECA, DIMEN. APROX. 2,5 X 7,00 X 0,50 M - CHP DIURNO. AF_06/2014 | E32: CHOR - CUSTOS HORÁRIOS DE MÁQUINAS E EQUIPAMENTOS | G32: CHP | H32: 0.01666 | I32: 202.29 | J32: =ROUND(H32*I32,2) -> 3.37
A33: Composição Auxiliar | B33: 5826 | C33: SINAPI | D33: CAMINHÃO TOCO, PBT 16.000 KG, CARGA ÚTIL MÁX. 10.685 KG, DIST. ENTRE EIXOS 4,8 M, POTÊNCIA 189 CV, INCLUSIVE CARROCERIA FIXA ABERTA DE MADEIRA P/ TRANSPORTE GERAL DE CARGA SECA, DIMEN. APROX. 2,5 X 7,00 X 0,50 M - CHI DIURNO. AF_06/2014 | E33: CHOR - CUSTOS HORÁRIOS DE MÁQUINAS E EQUIPAMENTOS | G33: CHI | H33: 0.01666 | I33: 58.26 | J33: 0.97
A36: 2.2 | B36: Código | C36: Banco | D36: Descrição | E36: Tipo | G36: Und | H36: Quant. | I36: Valor Unit | J36: Total
A37: Composição | B37: COMPOSIÇÃO - 007 | C37: Próprio | D37: Transporte de Comboio Instalação | E37: TRAN - TRANSPORTES, CARGAS E DESCARGAS | G37: km | H37: 1 | I37: =J37 -> 5.44 | J37: =SUM(J38:J39) -> 5.44
A38: Composição Auxiliar | B38: 5928 | C38: SINAPI | D38: GUINDAUTO HIDRÁULICO, CAPACIDADE MÁXIMA DE CARGA 6200 KG, MOMENTO MÁXIMO DE CARGA 11,7 TM, ALCANCE MÁXIMO HORIZONTAL 9,70 M, INCLUSIVE CAMINHÃO TOCO PBT 16.000 KG, POTÊNCIA DE 189 CV - CHP DIURNO. AF_06/2014 | E38: CHOR - CUSTOS HORÁRIOS DE MÁQUINAS E EQUIPAMENTOS | G38: CHP | H38: 0.01666 | I38: 257.72 | J38: =ROUND(H38*I38,2) -> 4.29
A39: Composição Auxiliar | B39: 5930 | C39: SINAPI | D39: GUINDAUTO HIDRÁULICO, CAPACIDADE MÁXIMA DE CARGA 6200 KG, MOMENTO MÁXIMO DE CARGA 11,7 TM, ALCANCE MÁXIMO HORIZONTAL 9,70 M, INCLUSIVE CAMINHÃO TOCO PBT 16.000 KG, POTÊNCIA DE 189 CV - CHI DIURNO. AF_06/2014 | E39: CHOR - CUSTOS HORÁRIOS DE MÁQUINAS E EQUIPAMENTOS | G39: CHI | H39: 0.01666 | I39: 69.1 | J39: 1.15
A42: 2.3 | B42: Código | C42: Banco | D42: Descrição | E42: Tipo | G42: Und | H42: Quant. | I42: Valor Unit | J42: Total
A43: Composição | B43: COMPOSIÇÃO - 008 | C43: Próprio | D43: Transporte de água em caminhão pipa para preparo do fluído de perfuração rotativa | E43: TRAN - TRANSPORTES, CARGAS E DESCARGAS | G43: km | H43: 1 | I43: =J43 -> 4.91 | J43: =SUM(J44:J45) -> 4.91
A44: Composição Auxiliar | B44: 6259 | C44: SINAPI | D44: CAMINHÃO PIPA 6.000 L, PESO BRUTO TOTAL 13.000 KG, DISTÂNCIA ENTRE EIXOS 4,80 M, POTÊNCIA 189 CV INCLUSIVE TANQUE DE AÇO PARA TRANSPORTE DE ÁGUA, CAPACIDADE 6 M3 - CHP DIURNO. AF_06/2014 | E44: CHOR - CUSTOS HORÁRIOS DE MÁQUINAS E EQUIPAMENTOS | G44: CHP | H44: 0.01666 | I44: 237.04 | J44: =ROUND(H44*I44,2) -> 3.95
A45: Composição Auxiliar | B45: 6260 | C45: SINAPI | D45: CAMINHÃO PIPA 6.000 L, PESO BRUTO TOTAL 13.000 KG, DISTÂNCIA ENTRE EIXOS 4,80 M, POTÊNCIA 189 CV INCLUSIVE TANQUE DE AÇO PARA TRANSPORTE DE ÁGUA, CAPACIDADE 6 M3 - CHI DIURNO. AF_06/2014 | E45: CHOR - CUSTOS HORÁRIOS DE MÁQUINAS E EQUIPAMENTOS | G45: CHI | H45: 0.01666 | I45: 57.5 | J45: 0.96
A48: 3 | D48: PERFURAÇÃO E COMPLETAÇÃO DE POÇO TUBULAR
A49: 3.1 | B49: Código | C49: Banco | D49: Descrição | E49: Tipo | G49: Und | H49: Quant. | I49: Valor Unit | J49: Total
A50: Composição | B50: COMPOSIÇÃO - 009 | C50: Próprio | D50: Limpeza manual , remoção de cerca, capina e instalação dos equipamentos (área do poço, painéis solares, bebedouro e reservatório) | E50: SEDI - SERVIÇOS DIVERSOS | G50: m² | H50: 1 | I50: =J50 -> 1.46 | J50: =SUM(J51) -> 1.46
A51: Composição Auxiliar | B51: 88316 | C51: SINAPI | D51: SERVENTE COM ENCARGOS COMPLEMENTARES | E51: SEDI - SERVIÇOS DIVERSOS | G51: H | H51: 0.08 | I51: 18.26 | J51: =ROUND(H51*I51,2) -> 1.46
A54: 3.2 | B54: Código | C54: Banco | D54: Descrição | E54: Tipo | G54: Und | H54: Quant. | I54: Valor Unit | J54: Total
A55: Composição | B55: COMPOSIÇÃO - 012 | C55: Próprio | D55: Perfuração rotativa com circulação direta Ø 9.1/2" | E55: SERT - SERVIÇOS TÉCNICOS | G55: m | H55: 1 | I55: =J55 -> 255.29 | J55: =SUM(J56:J58) -> 255.29
A56: Composição Auxiliar | B56: 88263 | C56: SINAPI | D56: CAVOUQUEIRO OU OPERADOR PERFURATRIZ/ROMPEDOR COM ENCARGOS COMPLEMENTARES | E56: SEDI - SERVIÇOS DIVERSOS | G56: H | H56: 0.8 | I56: 16.23 | J56: =ROUND(H56*I56,2) -> 12.98
A57: Composição Auxiliar | B57: 88316 | C57: SINAPI | D57: SERVENTE COM ENCARGOS COMPLEMENTARES | E57: SEDI - SERVIÇOS DIVERSOS | G57: H | H57: 2.4 | I57: 18.26 | J57: 43.82
A58: Insumo | B58: 5071 | C58: ORSE | D58: Perfuração rocha sedimentar sedimento / camadas inconsolidadas dn 8.1/2 a 9.1/2" - até 150m m | E58: Serviços | G58: m | H58: 1 | I58: 198.49 | J58: =ROUND(H58*I58,2) -> 198.49
B61: Código | C61: Banco | D61: Descrição | E61: Tipo | G61: Und | H61: Quant. | I61: Valor Unit | J61: Total
A62: Insumo | B62: COTAÇÃO-007 | C62: Próprio | D62: Fornecimento tubo de revestimento geomecânico classe standart Ø 4" com junta roscável. | E62: Material | G62: m | H62: 1 | I62: 82.5 | J62: =ROUND(H62*I62,2) -> 82.5
B65: Código | C65: Banco | D65: Descrição | E65: Tipo | G65: Und | H65: Quant. | I65: Valor Unit | J65: Total
A66: Insumo | B66: COTAÇÃO-005 | C66: Próprio | D66: Fornecimento tubo filtro geomecânico classe standart Ø 4" com junta roscável. | E66: Material | G66: m | H66: 1 | I66: 86.02 | J66: =ROUND(H66*I66,2) -> 86.02
A69: 3.10 | B69: Código | C69: Banco | D69: Descrição | E69: Tipo | G69: Und | H69: Quant. | I69: Valor Unit | J69: Total
A70: Composição | B70: COMPOSIÇÃO - 011 | C70: Próprio | D70: Serviço de lançamento cimentação anelar poço tubular, incluso material. | E70: SEDI - SERVIÇOS DIVERSOS | G70: m³ | H70: 1 | I70: =J70 -> 768.27 | J70: =SUM(J71:J73) -> 768.27
A71: Composição Auxiliar | B71: 1903 | C71: ORSE | D71: Argamassa cimento e areia traço t-1 (1:3) - 1 saco cimento 50kg / 3 padiolas areia dim. 0.35 x 0.45 x 0.23 m - Confecção mecânica e transporte | E71: Argamassas | G71: m³ | H71: 1 | I71: 511.3 | J71: =ROUND(H71*I71,2) -> 511.3
A72: Composição Auxiliar | B72: 88316 | C72: SINAPI | D72: SERVENTE COM ENCARGOS COMPLEMENTARES | E72: SEDI - SERVIÇOS DIVERSOS | G72: H | H72: 7.4 | I72: 18.26 | J72: 135.12
A73: Insumo | B73: 00000124 | C73: SINAPI | D73: ADITIVO ACELERADOR DE PEGA E ENDURECIMENTO PARA ARGAMASSAS E CONCRETOS, LIQUIDO E ISENTO DE CLORETOS | E73: Material | G73: L | H73: 5 | I73: 24.37 | J73: =ROUND(H73*I73,2) -> 121.85
A76: 3.11 | B76: Código | C76: Banco | D76: Descrição | E76: Tipo | G76: Und | H76: Quant. | I76: Valor Unit | J76: Total
A77: Composição | B77: COMPOSIÇÃO - 014 | C77: Próprio | D77: Serviço de instalação de laje sanitária com dimensões (1,5x1,5x0,3) , incluso material. | E77: SEDI - SERVIÇOS DIVERSOS | G77: un | H77: 1 | I77: =J77 -> 571.49 | J77: =SUM(J78:J81) -> 571.49
A78: Composição Auxiliar | B78: 92522 | C78: SINAPI | D78: MONTAGEM E DESMONTAGEM DE FÔRMA DE LAJE MACIÇA, PÉ-DIREITO SIMPLES, EM CHAPA DE MADEIRA COMPENSADA RESINADA, 8 UTILIZAÇÕES. AF_09/2020 | E78: FUES - FUNDAÇÕES E ESTRUTURAS | G78: m² | H78: 1.8 | I78: 39.1 | J78: =ROUND(H78*I78,2) -> 70.38
A79: Composição Auxiliar | B79: 93358 | C79: SINAPI | D79: ESCAVAÇÃO MANUAL DE VALA COM PROFUNDIDADE MENOR OU IGUAL A 1,30 M. AF_02/2021 | E79: MOVT - MOVIMENTO DE TERRA | G79: m³ | H79: 0.225 | I79: 72.24 | J79: 16.25
A80: Composição Auxiliar | B80: 94975 | C80: SINAPI | D80: CONCRETO FCK = 15MPA, TRAÇO 1:3,4:3,5 (EM MASSA SECA DE CIMENTO/ AREIA MÉDIA/ BRITA 1) - PREPARO MANUAL. AF_05/2021 | E80: FUES - FUNDAÇÕES E ESTRUTURAS | G80: m³ | H80: 0.675 | I80: 467.93 | J80: 315.85
A81: Composição Auxiliar | B81: 103670 | C81: SINAPI | D81: LANÇAMENTO COM USO DE BALDES, ADENSAMENTO E ACABAMENTO DE CONCRETO EM ESTRUTURAS. AF_02/2022 | E81: FUES - FUNDAÇÕES E ESTRUTURAS | G81: m³ | H81: 0.675 | I81: 250.38 | J81: 169.01
A84: 4 | D84: PÓS PERFURAÇÃO
A86: 4.3 | B86: Código | C86: Banco | D86: Descrição | E86: Tipo | G86: Und | H86: Quant. | I86: Valor Unit | J86: Total
A87: Composição | B87: COMPOSIÇÃO - 015 | C87: Próprio | D87: Inspeção ótica em poço tubular câmera com rotação de 360º, visada lateral, com fonte própria de luz, entregue vídeo em cores e marcação de profundidades. | E87: SEES - SERVIÇOS ESPECIAIS | G87: m | H87: 1 | I87: =J87 -> 38.05 | J87: =SUM(J88:J92) -> 38.05
A88: Insumo | B88: H020050004 | C88: EMBASA | D88: APARELHO DE PERFILAGEM OPTICA | E88: Material | G88: M | H88: 1 | I88: 4.4 | J88: =ROUND(H88*I88,2) -> 4.4
A89: Insumo | B89: B590000022 | C89: EMBASA | D89: TECNICO MEDIO | E89: Mão de Obra | G89: H | H89: 0.0835 | I89: 48.54 | J89: 4.05
A90: Insumo | B90: B590000028 | C90: EMBASA | D90: AUXILIAR TECNICO | E90: Mão de Obra | G90: H | H90: 0.0835 | I90: 22.47 | J90: 1.88
A91: Insumo | B91: F020000340 | C91: EMBASA | D91: DIÁRIA PARA PROFISSIONAL (INTERIOR) | E91: Material | G91: DIA | H91: 0.021 | I91: 227 | J91: 4.77
A92: Insumo | B92: F030000250 | C92: EMBASA | D92: LOCAÇÃO DE VEÍCULO PICK UP TIPO SAVEIRO OU SIMILAR | E92: Material | G92: DIA | H92: 0.25 | I92: 91.8 | J92: 22.95
A94: 5 | D94: RESERVAÇÃO
A95: 5.1 | B95: Código | C95: Banco | D95: Descrição | E95: Tipo | G95: Und | H95: Quant. | I95: Valor Unit | J95: Total
A96: Composição | B96: COMPOSIÇÃO - 016 | C96: Próprio | D96: Execução e instalação de base de sustentação em concreto armado para reservatório de diâmetro 2,06m e altura 1,10m, conforme projeto, incluindo fixação de grampos da tampa. | E96: SEDI - SERVIÇOS DIVERSOS | G96: un | H96: 1 | I96: =J96 -> 2358.16 | J96: =SUM(J97:J115) -> 2358.16
A97: Composição Auxiliar | B97: 5928 | C97: SINAPI | D97: GUINDAUTO HIDRÁULICO, CAPACIDADE MÁXIMA DE CARGA 6200 KG, MOMENTO MÁXIMO DE CARGA 11,7 TM, ALCANCE MÁXIMO HORIZONTAL 9,70 M, INCLUSIVE CAMINHÃO TOCO PBT 16.000 KG, POTÊNCIA DE 189 CV - CHP DIURNO. AF_06/2014 | E97: CHOR - CUSTOS HORÁRIOS DE MÁQUINAS E EQUIPAMENTOS | G97: CHP | H97: 2.5 | I97: 257.72 | J97: =ROUND(H97*I97,2) -> 644.3
A98: Composição Auxiliar | B98: 88310 | C98: SINAPI | D98: PINTOR COM ENCARGOS COMPLEMENTARES | E98: SEDI - SERVIÇOS DIVERSOS | G98: H | H98: 0.3 | I98: 24.23 | J98: 7.27
A99: Composição Auxiliar | B99: 100301 | C99: SINAPI | D99: AJUDANTE DE PINTOR COM ENCARGOS COMPLEMENTARES | E99: SEDI - SERVIÇOS DIVERSOS | G99: H | H99: 0.1 | I99: 19.45 | J99: 1.95
A100: Composição Auxiliar | B100: 88309 | C100: SINAPI | D100: PEDREIRO COM ENCARGOS COMPLEMENTARES | E100: SEDI - SERVIÇOS DIVERSOS | G100: H | H100: 5.55 | I100: 23.31 | J100: 129.37
A101: Composição Auxiliar | B101: 88316 | C101: SINAPI | D101: SERVENTE COM ENCARGOS COMPLEMENTARES | E101: SEDI - SERVIÇOS DIVERSOS | G101: H | H101: 10 | I101: 18.26 | J101: 182.6
A102: Composição Auxiliar | B102: 88245 | C102: SINAPI | D102: ARMADOR COM ENCARGOS COMPLEMENTARES | E102: SEDI - SERVIÇOS DIVERSOS | G102: H | H102: 3 | I102: 23.12 | J102: 69.36
A103: Composição Auxiliar | B103: 88262 | C103: SINAPI | D103: CARPINTEIRO DE FORMAS COM ENCARGOS COMPLEMENTARES | E103: SEDI - SERVIÇOS DIVERSOS | G103: H | H103: 2 | I103: 22.94 | J103: 45.88
A104: Composição Auxiliar | B104: 87445 | C104: SINAPI | D104: BETONEIRA CAPACIDADE NOMINAL 400 L, CAPACIDADE DE MISTURA 310 L, MOTOR A DIESEL POTÊNCIA 5,0 HP, SEM CARREGADOR - CHP DIURNO. AF_05/2023 | E104: CHOR - CUSTOS HORÁRIOS DE MÁQUINAS E EQUIPAMENTOS | G104: CHP | H104: 2.8548 | I104: 4.87 | J104: 13.9
A105: Composição Auxiliar | B105: 88377 | C105: SINAPI | D105: OPERADOR DE BETONEIRA ESTACIONÁRIA/MISTURADOR COM ENCARGOS COMPLEMENTARES | E105: SEDI - SERVIÇOS DIVERSOS | G105: H | H105: 2.8548 | I105: 17.59 | J105: 50.22
A106: Insumo | B106: 00007155 | C106: SINAPI | D106: TELA DE ACO SOLDADA NERVURADA, CA-60, Q-138, (2,20 KG/M2), DIAMETRO DO FIO = 4,2 MM, LARGURA = 2,45 M, ESPACAMENTO DA MALHA = 10 X 10 CM | E106: Material | G106: m² | H106: 6 | I106: 16.59 | J106: 99.54
A107: Insumo | B107: 00000370 | C107: SINAPI | D107: AREIA MEDIA - POSTO JAZIDA/FORNECEDOR (RETIRADO NA JAZIDA, SEM TRANSPORTE) | E107: Material | G107: m³ | H107: 1.36 | I107: 115 | J107: 156.4
A108: Insumo | B108: 00001379 | C108: SINAPI | D108: CIMENTO PORTLAND COMPOSTO CP II-32 | E108: Material | G108: KG | H108: 565.75 | I108: 0.7 | J108: 396.03
A109: Insumo | B109: 00004718 | C109: SINAPI | D109: PEDRA BRITADA N. 2 (19 A 38 MM) POSTO PEDREIRA/FORNECEDOR, SEM FRETE | E109: Material | G109: m³ | H109: 0.33 | I109: 112.5 | J109: 37.13
A110: Insumo | B110: 00004721 | C110: SINAPI | D110: PEDRA BRITADA N. 1 (9,5 a 19 MM) POSTO PEDREIRA/FORNECEDOR, SEM FRETE | E110: Material | G110: m³ | H110: 0.98 | I110: 111.91 | J110: 109.67
A111: Insumo | B111: 00003767 | C111: SINAPI | D111: LIXA EM FOLHA PARA PAREDE OU MADEIRA, NUMERO 120, COR VERMELHA | E111: Material | G111: UN | H111: 0.12 | I111: 1.01 | J111: 0.12
A112: Insumo | B112: 00007356 | C112: SINAPI | D112: TINTA LATEX ACRILICA PREMIUM, COR BRANCO FOSCO | E112: Material | G112: L | H112: 0.18 | I112: 18.76 | J112: 3.38
A113: Insumo | B113: 00000032 | C113: SINAPI | D113: ACO CA-50, 6,3 MM, VERGALHAO | E113: Material | G113: KG | H113: 9.3 | I113: 8.99 | J113: 83.61
A114: Insumo | B114: 00043059 | C114: SINAPI | D114: ACO CA-60, 4,2 MM, OU 5,0 MM, OU 6,0 MM, OU 7,0 MM, VERGALHAO | E114: Material | G114: KG | H114: 3.04 | I114: 8.06 | J114: 24.5
A115: Insumo | B115: 00043681 | C115: SINAPI | D115: CHAPA/PAINEL DE MADEIRA COMPENSADA RESINADA (MADEIRITE RESINADO ROSA) PARA FORMA DE CONCRETO, DE 2200 x 1100 MM, E = 8 A 12 MM | E115: Material | G115: m² | H115: 17.46 | I115: 17.35 | J115: 302.93
A117: 6 | D117: BEBEDOURO
A118: 6.1 | B118: Código | C118: Banco | D118: Descrição | E118: Tipo | G118: Und | H118: Quant. | I118: Valor Unit | J118: Total
A119: Composição | B119: COMPOSIÇÃO - 017 | C119: Próprio | D119: Serviço de execução do bebedouro em concreto armado, incluso materiais. | E119: SEDI - SERVIÇOS DIVERSOS | G119: un | H119: 1 | I119: =J119 -> 1373.56 | J119: =SUM(J120:J138) -> 1373.56
A120: Composição Auxiliar | B120: 5928 | C120: SINAPI | D120: GUINDAUTO HIDRÁULICO, CAPACIDADE MÁXIMA DE CARGA 6200 KG, MOMENTO MÁXIMO DE CARGA 11,7 TM, ALCANCE MÁXIMO HORIZONTAL 9,70 M, INCLUSIVE CAMINHÃO TOCO PBT 16.000 KG, POTÊNCIA DE 189 CV - CHP DIURNO. AF_06/2014 | E120: CHOR - CUSTOS HORÁRIOS DE MÁQUINAS E EQUIPAMENTOS | G120: CHP | H120: 2 | I120: 257.72 | J120: =ROUND(H120*I120,2) -> 515.44
A121: Composição Auxiliar | B121: 87445 | C121: SINAPI | D121: BETONEIRA CAPACIDADE NOMINAL 400 L, CAPACIDADE DE MISTURA 310 L, MOTOR A DIESEL POTÊNCIA 5,0 HP, SEM CARREGADOR - CHP DIURNO. AF_05/2023 | E121: CHOR - CUSTOS HORÁRIOS DE MÁQUINAS E EQUIPAMENTOS | G121: CHP | H121: 0.5 | I121: 4.87 | J121: 2.44
A122: Composição Auxiliar | B122: 88377 | C122: SINAPI | D122: OPERADOR DE BETONEIRA ESTACIONÁRIA/MISTURADOR COM ENCARGOS COMPLEMENTARES | E122: SEDI - SERVIÇOS DIVERSOS | G122: H | H122: 0.5 | I122: 17.59 | J122: 8.8
A123: Composição Auxiliar | B123: 88310 | C123: SINAPI | D123: PINTOR COM ENCARGOS COMPLEMENTARES | E123: SEDI - SERVIÇOS DIVERSOS | G123: H | H123: 0.3 | I123: 24.23 | J123: 7.27
A124: Composição Auxiliar | B124: 100301 | C124: SINAPI | D124: AJUDANTE DE PINTOR COM ENCARGOS COMPLEMENTARES | E124: SEDI - SERVIÇOS DIVERSOS | G124: H | H124: 0.1 | I124: 19.45 | J124: 1.95
A125: Composição Auxiliar | B125: 88245 | C125: SINAPI | D125: ARMADOR COM ENCARGOS COMPLEMENTARES | E125: SEDI - SERVIÇOS DIVERSOS | G125: H | H125: 3 | I125: 23.12 | J125: 69.36
A126: Composição Auxiliar | B126: 88262 | C126: SINAPI | D126: CARPINTEIRO DE FORMAS COM ENCARGOS COMPLEMENTARES | E126: SEDI - SERVIÇOS DIVERSOS | G126: H | H126: 2 | I126: 22.94 | J126: 45.88
A127: Composição Auxiliar | B127: 88316 | C127: SINAPI | D127: SERVENTE COM ENCARGOS COMPLEMENTARES | E127: SEDI - SERVIÇOS DIVERSOS | G127: H | H127: 5 | I127: 18.26 | J127: 91.3
A128: Composição Auxiliar | B128: 88309 | C128: SINAPI | D128: PEDREIRO COM ENCARGOS COMPLEMENTARES | E128: SEDI - SERVIÇOS DIVERSOS | G128: H | H128: 4 | I128: 23.31 | J128: 93.24
A129: Insumo | B129: 00043055 | C129: SINAPI | D129: ACO CA-50, 12,5 MM OU 16,0 MM, VERGALHAO | E129: Material | G129: KG | H129: 12 | I129: 7.38 | J129: 88.56
A130: Insumo | B130: 00043059 | C130: SINAPI | D130: ACO CA-60, 4,2 MM, OU 5,0 MM, OU 6,0 MM, OU 7,0 MM, VERGALHAO | E130: Material | G130: KG | H130: 13 | I130: 8.06 | J130: 104.78
A131: Insumo | B131: 00000032 | C131: SINAPI | D131: ACO CA-50, 6,3 MM, VERGALHAO | E131: Material | G131: KG | H131: 6 | I131: 8.99 | J131: 53.94
A132: Insumo | B132: 00000370 | C132: SINAPI | D132: AREIA MEDIA - POSTO JAZIDA/FORNECEDOR (RETIRADO NA JAZIDA, SEM TRANSPORTE) | E132: Material | G132: m³ | H132: 0.32 | I132: 115 | J132: 36.8
A133: Insumo | B133: 00001379 | C133: SINAPI | D133: CIMENTO PORTLAND COMPOSTO CP II-32 | E133: Material | G133: KG | H133: 127 | I133: 0.7 | J133: 88.9
A134: Insumo | B134: 00004718 | C134: SINAPI | D134: PEDRA BRITADA N. 2 (19 A 38 MM) POSTO PEDREIRA/FORNECEDOR, SEM FRETE | E134: Material | G134: m³ | H134: 0.08 | I134: 112.5 | J134: 9
A135: Insumo | B135: 00004721 | C135: SINAPI | D135: PEDRA BRITADA N. 1 (9,5 a 19 MM) POSTO PEDREIRA/FORNECEDOR, SEM FRETE | E135: Material | G135: m³ | H135: 0.23 | I135: 111.91 | J135: 25.74
A136: Insumo | B136: 00003767 | C136: SINAPI | D136: LIXA EM FOLHA PARA PAREDE OU MADEIRA, NUMERO 120, COR VERMELHA | E136: Material | G136: UN | H136: 0.12 | I136: 1.01 | J136: 0.12
A137: Insumo | B137: 00007356 | C137: SINAPI | D137: TINTA LATEX ACRILICA PREMIUM, COR BRANCO FOSCO | E137: Material | G137: L | H137: 0.18 | I137: 18.76 | J137: 3.38
A138: Insumo | B138: 00043681 | C138: SINAPI | D138: CHAPA/PAINEL DE MADEIRA COMPENSADA RESINADA (MADEIRITE RESINADO ROSA) PARA FORMA DE CONCRETO, DE 2200 x 1100 MM, E = 8 A 12 MM | E138: Material | G138: m² | H138: 7.3 | I138: 17.35 | J138: 126.66
A140: 7 | D140: INSTALAÇÕES HIDRÁULICAS
A141: 7.1 | D141: INSTALAÇÕES DE CAVALETE
A142: 7.1.1 | B142: Código | C142: Banco | D142: Descrição | E142: Tipo | G142: Und | H142: Quant. | I142: Valor Unit | J142: Total
A143: Composição | B143: COMPOSIÇÃO - 018 | C143: Próprio | D143: Montagem e Instalação de Tubulação e Conexões Cavalete | E143: INHI - INSTALAÇÕES HIDROS SANITÁRIAS | G143: un | H143: 1 | I143: =J143 -> 231.58 | J143: =SUM(J144:J147) -> 231.58
A144: Composição Auxiliar | B144: 88248 | C144: SINAPI | D144: AUXILIAR DE ENCANADOR OU BOMBEIRO HIDRÁULICO COM ENCARGOS COMPLEMENTARES | E144: SEDI - SERVIÇOS DIVERSOS | G144: H | H144: 3 | I144: 17.7 | J144: =ROUND(H144*I144,2) -> 53.1
A145: Composição Auxiliar | B145: 88267 | C145: SINAPI | D145: ENCANADOR OU BOMBEIRO HIDRÁULICO COM ENCARGOS COMPLEMENTARES | E145: SEDI - SERVIÇOS DIVERSOS | G145: H | H145: 3 | I145: 22.57 | J145: 67.71
A146: Insumo | B146: 00000122 | C146: SINAPI | D146: ADESIVO PLASTICO PARA PVC, FRASCO COM *850* GR | E146: Material | G146: UN | H146: 1 | I146: 51.93 | J146: 51.93
A147: Insumo | B147: 00020083 | C147: SINAPI | D147: SOLUCAO PREPARADORA / LIMPADORA PARA PVC, FRASCO COM 1000 CM3 | E147: Material | G147: UN | H147: 1 | I147: 58.84 | J147: 58.84
A150: 7.2 | D150: INSTALAÇÕES DE ADUTORA, RESERVATÓRIO E BEBEDOURO
A151: 7.2.1 | B151: Código | C151: Banco | D151: Descrição | E151: Tipo | G151: Und | H151: Quant. | I151: Valor Unit | J151: Total
A152: Composição | B152: COMPOSIÇÃO - 020 | C152: Próprio | D152: Montagem e instalação da rede adutora poço-reservatório-bebedouro | E152: SEDI - SERVIÇOS DIVERSOS | G152: un | H152: 1 | I152: =J152 -> 877.93 | J152: =SUM(J153:J158) -> 877.93
A153: Composição Auxiliar | B153: 88316 | C153: SINAPI | D153: SERVENTE COM ENCARGOS COMPLEMENTARES | E153: SEDI - SERVIÇOS DIVERSOS | G153: H | H153: 6 | I153: 18.26 | J153: =ROUND(H153*I153,2) -> 109.56
A154: Composição Auxiliar | B154: 96995 | C154: SINAPI | D154: REATERRO MANUAL APILOADO COM SOQUETE. AF_10/2017 | E154: MOVT - MOVIMENTO DE TERRA | G154: m³ | H154: 4.5 | I154: 43.8 | J154: 197.1
A155: Composição Auxiliar | B155: 93358 | C155: SINAPI | D155: ESCAVAÇÃO MANUAL DE VALA COM PROFUNDIDADE MENOR OU IGUAL A 1,30 M. AF_02/2021 | E155: MOVT - MOVIMENTO DE TERRA | G155: m³ | H155: 4.5 | I155: 72.24 | J155: 325.08
A156: Composição Auxiliar | B156: 88267 | C156: SINAPI | D156: ENCANADOR OU BOMBEIRO HIDRÁULICO COM ENCARGOS COMPLEMENTARES | E156: SEDI - SERVIÇOS DIVERSOS | G156: H | H156: 6 | I156: 22.57 | J156: 135.42
A157: Insumo | B157: 00000122 | C157: SINAPI | D157: ADESIVO PLASTICO PARA PVC, FRASCO COM *850* GR | E157: Material | G157: UN | H157: 1 | I157: 51.93 | J157: 51.93
A158: Insumo | B158: 00020083 | C158: SINAPI | D158: SOLUCAO PREPARADORA / LIMPADORA PARA PVC, FRASCO COM 1000 CM3 | E158: Material | G158: UN | H158: 1 | I158: 58.84 | J158: 58.84
A161: 8 | D161: FORNECIMENTO E INSTALAÇÃO DE SISTEMA FOTOVOLTAÍCO
A162: 8.1 | D162: INSTALAÇÕES HIDRÁULICAS
A163: 8.1.1 | B163: Código | C163: Banco | D163: Descrição | E163: Tipo | G163: Und | H163: Quant. | I163: Valor Unit | J163: Total
A164: Composição | B164: COMPOSIÇÃO - 019 | C164: Próprio | D164: Montagem e instalação hidráulica do kit de bombeamento | E164: INHI - INSTALAÇÕES HIDROS SANITÁRIAS | G164: un | H164: 1 | I164: =J164 -> 120.81 | J164: =SUM(J165:J166) -> 120.81
A165: Composição Auxiliar | B165: 88267 | C165: SINAPI | D165: ENCANADOR OU BOMBEIRO HIDRÁULICO COM ENCARGOS COMPLEMENTARES | E165: SEDI - SERVIÇOS DIVERSOS | G165: H | H165: 3 | I165: 22.57 | J165: =ROUND(H165*I165,2) -> 67.71
A166: Composição Auxiliar | B166: 88248 | C166: SINAPI | D166: AUXILIAR DE ENCANADOR OU BOMBEIRO HIDRÁULICO COM ENCARGOS COMPLEMENTARES | E166: SEDI - SERVIÇOS DIVERSOS | G166: H | H166: 3 | I166: 17.7 | J166: 53.1
A169: 8.2 | D169: INSTALAÇÕES ELÉTRICAS
A170: 8.2.1 | B170: Código | C170: Banco | D170: Descrição | E170: Tipo | G170: Und | H170: Quant. | I170: Valor Unit | J170: Total
A171: Composição | B171: COMPOSIÇÃO - 021 | C171: Próprio | D171: Montagem e instalação elétrica do kit de bombeamento e sistema fotovoltaico inclusive sistema de aterramento. | E171: INEL - INSTALAÇÃO ELÉTRICA/ELETRIFICAÇÃO E ILUMINAÇÃO EXTERNA | G171: un | H171: 1 | I171: =J171 -> 517.94 | J171: =SUM(J172:J176) -> 517.94
A172: Composição Auxiliar | B172: 88264 | C172: SINAPI | D172: ELETRICISTA COM ENCARGOS COMPLEMENTARES | E172: SEDI - SERVIÇOS DIVERSOS | G172: H | H172: 8 | I172: 23.62 | J172: =ROUND(H172*I172,2) -> 188.96
A173: Composição Auxiliar | B173: 88247 | C173: SINAPI | D173: AUXILIAR DE ELETRICISTA COM ENCARGOS COMPLEMENTARES | E173: SEDI - SERVIÇOS DIVERSOS | G173: H | H173: 8 | I173: 18.65 | J173: 149.2
A174: Composição Auxiliar | B174: 91677 | C174: SINAPI | D174: ENGENHEIRO ELETRICISTA COM ENCARGOS COMPLEMENTARES | E174: SEDI - SERVIÇOS DIVERSOS | G174: H | H174: 1 | I174: 169.56 | J174: 169.56
A175: Insumo | B175: 00020111 | C175: SINAPI | D175: FITA ISOLANTE ADESIVA ANTICHAMA, USO ATE 750 V, EM ROLO DE 19 MM X 20 M | E175: Material | G175: UN | H175: 1 | I175: 9 | J175: 9
A176: Insumo | B176: 00000404 | C176: SINAPI | D176: FITA ISOLANTE DE BORRACHA AUTOFUSAO, USO ATE 69 KV (ALTA TENSAO) | E176: Material | G176: M | H176: 1 | I176: 1.22 | J176: 1.22
A180: 8.3 | D180: ESTRUTURA DE FIXAÇÃO PARA MÓDULOS FOTOVOLTÁICOS
A181: 8.3.1 | B181: Código | C181: Banco | D181: Descrição | E181: Tipo | G181: Und | H181: Quant. | I181: Valor Unit | J181: Total
A182: Composição | B182: COMPOSIÇÃO - 022 | C182: Próprio | D182: Serviço de fixação de estruturas para os módulos fotovoltaicos e suportes de concreto, incluso materiais. | E182: SEDI - SERVIÇOS DIVERSOS | G182: m² | H182: 1 | I182: =J182 -> 213.35 | J182: =SUM(J183:J186) -> 213.35
A183: Composição Auxiliar | B183: 94975 | C183: SINAPI | D183: CONCRETO FCK = 15MPA, TRAÇO 1:3,4:3,5 (EM MASSA SECA DE CIMENTO/ AREIA MÉDIA/ BRITA 1) - PREPARO MANUAL. AF_05/2021 | E183: FUES - FUNDAÇÕES E ESTRUTURAS | G183: m³ | H183: 0.0945 | I183: 467.93 | J183: =ROUND(H183*I183,2) -> 44.22
A184: Composição Auxiliar | B184: 93358 | C184: SINAPI | D184: ESCAVAÇÃO MANUAL DE VALA COM PROFUNDIDADE MENOR OU IGUAL A 1,30 M. AF_02/2021 | E184: MOVT - MOVIMENTO DE TERRA | G184: m³ | H184: 0.0625 | I184: 72.24 | J184: 4.52
A185: Composição Auxiliar | B185: 96534 | C185: SINAPI | D185: FABRICAÇÃO, MONTAGEM E DESMONTAGEM DE FÔRMA PARA BLOCO DE COROAMENTO, EM MADEIRA SERRADA, E=25 MM, 4 UTILIZAÇÕES. AF_06/2017 | E185: FUES - FUNDAÇÕES E ESTRUTURAS | G185: m² | H185: 0.032 | I185: 81.64 | J185: 2.61
A186: Insumo | B186: COTAÇÃO-003 | C186: Próprio | D186: Fornecimento suporte fabricado em material metálico resistente a corrosão e ataque químico do solo fabricado em alumínio ou aço galvanizado ou aço zincado ou similares, a ser fixado nos blocos de concreto | E186: Material | G186: m² | H186: 1 | I186: 162 | J186: =ROUND(H186*I186,2) -> 162
A189: 8.4 | D189: FORNECIMENTO DE KIT DE BOMBEAMENTO FOTOVOLTAICO
B190: Código | C190: Banco | D190: Descrição | E190: Tipo | G190: Und | H190: Quant. | I190: Valor Unit | J190: Total
A191: Insumo | B191: COTAÇÃO-001 | C191: Próprio | D191: Fornecimento de kit de bombeamento fotovoltaico, incluindo uma bomba CC de 2200W com imã permanente sem escovas, controladora de carga externa, disjuntor CC, caixa de proteção metálica, módulos compatíveis com a geração de 3300Wp (potência mínima de 550 W por módulo) e componentes elétricos necessários como cabos, conectores MC4 e presilhas de fixação. | E191: Equipamento para Aquisição Permanente | G191: un | H191: 1 | I191: 21930.54 | J191: =ROUND(H191*I191,2) -> 21930.54
A194: 9 | D194: URBANIZAÇÃO
A195: 9.1 | D195: CERCA
A196: 9.1.1 | B196: Código | C196: Banco | D196: Descrição | E196: Tipo | G196: Und | H196: Quant. | I196: Valor Unit | J196: Total
A197: Composição | B197: COMPOSIÇÃO - 023 | C197: Próprio | D197: Cerca com mourões de concreto de 15x15cm, espaçados de 3m e cravados a 0,5m, escoras de 10x10cm nos cantos, e 9 fios de arame de aço ovalado 15x17. | E197: SEDI - SERVIÇOS DIVERSOS | G197: m | H197: 1 | I197: =J197 -> 73.31 | J197: =SUM(J198:J204) -> 73.31
A198: Composição Auxiliar | B198: 88309 | C198: SINAPI | D198: PEDREIRO COM ENCARGOS COMPLEMENTARES | E198: SEDI - SERVIÇOS DIVERSOS | G198: H | H198: 0.335 | I198: 23.31 | J198: =ROUND(H198*I198,2) -> 7.81
A199: Composição Auxiliar | B199: 88316 | C199: SINAPI | D199: SERVENTE COM ENCARGOS COMPLEMENTARES | E199: SEDI - SERVIÇOS DIVERSOS | G199: H | H199: 0.671 | I199: 18.26 | J199: 12.25
A200: Composição Auxiliar | B200: 94975 | C200: SINAPI | D200: CONCRETO FCK = 15MPA, TRAÇO 1:3,4:3,5 (EM MASSA SECA DE CIMENTO/ AREIA MÉDIA/ BRITA 1) - PREPARO MANUAL. AF_05/2021 | E200: FUES - FUNDAÇÕES E ESTRUTURAS | G200: m³ | H200: 0.0288 | I200: 467.93 | J200: 13.48
A201: Insumo | B201: 00043130 | C201: SINAPI | D201: ARAME GALVANIZADO 12 BWG, D = 2,76 MM (0,048 KG/M) OU 14 BWG, D = 2,11 MM (0,026 KG/M) | E201: Material | G201: KG | H201: 0.098 | I201: 29.1 | J201: 2.85
A202: Insumo | B202: 00000346 | C202: SINAPI | D202: ARAME DE ACO OVALADO 15 X 17 ( 45,7 KG, 700 KGF), ROLO 1000 M | E202: Material | G202: KG | H202: 0.405 | I202: 34.47 | J202: 13.96
A203: Insumo | B203: 00004111 | C203: SINAPI | D203: ESCORA PRE-MOLDADA EM CONCRETO, *10 X 10* CM, H = 2,30M | E203: Material | G203: UN | H203: 0.16 | I203: 46.4 | J203: 7.42
A204: Insumo | B204: I1533 | C204: SEINFRA | D204: MOURÃO CONCRETO BASE 15X15CM H=2.3 C/ 12 FUROS | E204: Material | G204: UN | H204: 0.42 | I204: 37.01 | J204: 15.54
A207: 9.2 | D207: PORTÃO
A208: 9.2.1 | B208: Código | C208: Banco | D208: Descrição | E208: Tipo | G208: Und | H208: Quant. | I208: Valor Unit | J208: Total
A209: Composição | B209: COMPOSIÇÃO - 024 | C209: Próprio | D209: Serviço de instalação de portão de ferro com suporte e batedor conforme projeto, incluso material | E209: SEDI - SERVIÇOS DIVERSOS | G209: m² | H209: 1 | I209: =J209 -> 684.92 | J209: =SUM(J210:J214) -> 684.92
A210: Composição Auxiliar | B210: 88309 | C210: SINAPI | D210: PEDREIRO COM ENCARGOS COMPLEMENTARES | E210: SEDI - SERVIÇOS DIVERSOS | G210: H | H210: 1.5 | I210: 23.31 | J210: =ROUND(H210*I210,2) -> 34.97
A211: Composição Auxiliar | B211: 88316 | C211: SINAPI | D211: SERVENTE COM ENCARGOS COMPLEMENTARES | E211: SEDI - SERVIÇOS DIVERSOS | G211: H | H211: 1.5 | I211: 18.26 | J211: 27.39
A212: Insumo | B212: 00000367 | C212: SINAPI | D212: AREIA GROSSA - POSTO JAZIDA/FORNECEDOR (RETIRADO NA JAZIDA, SEM TRANSPORTE) | E212: Material | G212: m³ | H212: 0.061 | I212: 116.5 | J212: 7.11
A213: Insumo | B213: 00001379 | C213: SINAPI | D213: CIMENTO PORTLAND COMPOSTO CP II-32 | E213: Material | G213: KG | H213: 4.83 | I213: 0.7 | J213: 3.38
A214: Insumo | B214: 00004948 | C214: SINAPI | D214: PORTAO DE ABRIR / GIRO, EM GRADIL DE METALON REDONDO DE 3/4" VERTICAL, COM REQUADRO, ACABAMENTO NATURAL - COMPLETO | E214: Material | G214: m² | H214: 1 | I214: 612.07 | J214: 612.07
A217: 10 | D217: OUTROS SERVIÇOS
A218: 10.1 | B218: Código | C218: Banco | D218: Descrição | E218: Tipo | G218: Und | H218: Quant. | I218: Valor Unit | J218: Total
A219: Composição | B219: COMPOSIÇÃO - 025 | C219: Próprio | D219: Serviço de lançamento de concreto para acabamento do tamponamento, incluso material. | E219: SEDI - SERVIÇOS DIVERSOS | G219: m³ | H219: 1 | I219: =J219 -> 683.42 | J219: =SUM(J220:J221) -> 683.42
A220: Composição Auxiliar | B220: 103670 | C220: SINAPI | D220: LANÇAMENTO COM USO DE BALDES, ADENSAMENTO E ACABAMENTO DE CONCRETO EM ESTRUTURAS. AF_02/2022 | E220: FUES - FUNDAÇÕES E ESTRUTURAS | G220: m³ | H220: 1 | I220: 250.38 | J220: =ROUND(H220*I220,2) -> 250.38
A221: Composição Auxiliar | B221: 94974 | C221: SINAPI | D221: CONCRETO MAGRO PARA LASTRO, TRAÇO 1:4,5:4,5 (EM MASSA SECA DE CIMENTO/ AREIA MÉDIA/ BRITA 1) - PREPARO MANUAL. AF_05/2021 | E221: FUES - FUNDAÇÕES E ESTRUTURAS | G221: m³ | H221: 1 | I221: 433.04 | J221: 433.04
A224: 10.2 | B224: Código | C224: Banco | D224: Descrição | E224: Tipo | G224: Und | H224: Quant. | I224: Valor Unit | J224: Total
A225: Composição | B225: COMPOSIÇÃO - 026 | C225: Próprio | D225: Serviço de execução do tamponamento, incluso pedra britada desinfectada. | E225: SEDI - SERVIÇOS DIVERSOS | G225: m³ | H225: 1 | I225: =J225 -> 152.03 | J225: =SUM(J226:J228) -> 152.03
A226: Composição Auxiliar | B226: 88316 | C226: SINAPI | D226: SERVENTE COM ENCARGOS COMPLEMENTARES | E226: SEDI - SERVIÇOS DIVERSOS | G226: H | H226: 0.1 | I226: 18.26 | J226: =ROUND(H226*I226,2) -> 1.83
A227: Insumo | B227: 00004720 | C227: SINAPI | D227: PEDRA BRITADA N. 0, OU PEDRISCO (4,8 A 9,5 MM) POSTO PEDREIRA/FORNECEDOR, SEM FRETE | E227: Material | G227: m³ | H227: 1 | I227: 129.2 | J227: =ROUND(H227*I227,2) -> 129.2
A228: Insumo | B228: D240000003 | C228: EMBASA | D228: HIPOCLORITO DE SÓDIO | E228: Material | G228: L | H228: 5 | I228: 4.2 | J228: 21
B231: Código | C231: Banco | D231: Descrição | E231: Tipo | G231: Und | H231: Quant. | I231: Valor Unit | J231: Total
A232: Insumo | B232: COTAÇÃO-006 | C232: Próprio | D232: Fornecimento tubo revestimento geomecânico classe reforçado Ø 4 1/2" com junta roscável. | E232: Material | G232: m | H232: 1 | I232: 92.4 | J232: =ROUND(H232*I232,2) -> 92.4
B235: Código | C235: Banco | D235: Descrição | E235: Tipo | G235: Und | H235: Quant. | I235: Valor Unit | J235: Total
A236: Insumo | B236: COTAÇÃO-004 | C236: Próprio | D236: Fornecimento tubo filtro geomecânico classe reforçado diâmetro Ø 4 1/2" com junta roscável. | E236: Material | G236: m | H236: 1 | I236: 81 | J236: =ROUND(H236*I236,2) -> 81

Sheet Crono. PB - Tot.Rev
C1: MINISTÉRIO DO DESENVOLVIMENTO REGIONAL - MDR COMPANHIA DE DESENVOLVIMENTO DOS VALES DO SÃO FRANCISCO E DO PARNAÍBA ÁREA DE REVITALIZAÇÃO E SUSTENTABILIDADE SOCIOAMBIENTAL
A6: OBJETO: | B6: PERFURAÇÃO E INSTALAÇÃO DE POÇO TUBULAR TOTALMENTE REVESTIDO NO ESTADO DA PARAIBA
A8: CRONOGRAMA FÍSICO-FINANCEIRO
A10: ITEM | B10: ESPECIFICAÇÃO DOS SERVIÇOS | C10: VALOR TOTAL (R$) | D10: Mês 01 | E10: Mês 02 | F10: Mês 03 | G10: Mês 04 | H10: Mês 05 | I10: Mês 06 | J10: Mês 07 | K10: Mês 08 | L10: Mês 09 | M10: Mês 10 | N10: Mês 11 | O10: Mês 12
A11: 1 | B11: SERVIÇOS PRELIMINARES | C11: ='Orç. PB - Tot. Rev - Sintético'!J6 -> 220483.21 | D11: =$C$11/12 -> 18373.60083 | E11: =$C$11/12 -> 18373.60083 | F11: 18373.60083 | G11: 18373.60083 | H11: 18373.60083 | I11: 18373.60083 | J11: 18373.60083 | K11: 18373.60083 | L11: 18373.60083 | M11: 18373.60083 | N11: 18373.60083 | O11: 18373.60083
A12: 2 | B12: MOBILIZAÇÂO E DESMOBILIZAÇÂO EQUIPES PERFURAÇÂO E INSTALAÇÃO | C12: ='Orç. PB - Tot. Rev - Sintético'!J11 -> 48560.4 | D12: =$C$12/12 -> 4046.7 | E12: =$C$12/12 -> 4046.7 | F12: 4046.7 | G12: 4046.7 | H12: 4046.7 | I12: 4046.7 | J12: 4046.7 | K12: 4046.7 | L12: 4046.7 | M12: 4046.7 | N12: 4046.7 | O12: 4046.7
A13: 3 | B13: PERFURAÇÃO E COMPLETAÇÃO DE POÇO TUBULAR | C13: ='Orç. PB - Tot. Rev - Sintético'!J15 -> 1638962.46 | D13: =$C$13/12 -> 136580.205 | E13: =$C$13/12 -> 136580.205 | F13: 136580.205 | G13: 136580.205 | H13: 136580.205 | I13: 136580.205 | J13: 136580.205 | K13: 136580.205 | L13: 136580.205 | M13: 136580.205 | N13: 136580.205 | O13: 136580.205
A14: 4 | B14: PÓS PERFURAÇÃO | C14: ='Orç. PB - Tot. Rev - Sintético'!J27 -> 218102.22 | D14: =$C$14/12 -> 18175.185 | E14: =$C$14/12 -> 18175.185 | F14: 18175.185 | G14: 18175.185 | H14: 18175.185 | I14: 18175.185 | J14: 18175.185 | K14: 18175.185 | L14: 18175.185 | M14: 18175.185 | N14: 18175.185 | O14: 18175.185
A15: 5 | B15: RESERVAÇÃO | C15: ='Orç. PB - Tot. Rev - Sintético'!J32 -> 136886.11 | D15: =$C$15/12 -> 11407.17583 | E15: =$C$15/12 -> 11407.17583 | F15: 11407.17583 | G15: 11407.17583 | H15: 11407.17583 | I15: 11407.17583 | J15: 11407.17583 | K15: 11407.17583 | L15: 11407.17583 | M15: 11407.17583 | N15: 11407.17583 | O15: 11407.17583
A16: 6 | B16: BEBEDOURO | C16: ='Orç. PB - Tot. Rev - Sintético'!J38 -> 36191.61 | D16: =$C$16/12 -> 3015.9675 | E16: =$C$16/12 -> 3015.9675 | F16: 3015.9675 | G16: 3015.9675 | H16: 3015.9675 | I16: 3015.9675 | J16: 3015.9675 | K16: 3015.9675 | L16: 3015.9675 | M16: 3015.9675 | N16: 3015.9675 | O16: 3015.9675
A17: 7 | B17: INSTALAÇÕES HIDRÁULICAS | C17: ='Orç. PB - Tot. Rev - Sintético'!J40 -> 69503.7 | D17: =$C$17/12 -> 5791.975 | E17: =$C$17/12 -> 5791.975 | F17: 5791.975 | G17: 5791.975 | H17: 5791.975 | I17: 5791.975 | J17: 5791.975 | K17: 5791.975 | L17: 5791.975 | M17: 5791.975 | N17: 5791.975 | O17: 5791.975
A18: 8 | B18: ='Orç. PB - Tot. Rev - Sintético'!E70 -> FORNECIMENTO E INSTALAÇÃO DE SISTEMA FOTOVOLTAÍCO | C18: ='Orç. PB - Tot. Rev - Sintético'!J70 -> 774322.39 | D18: =$C$18/12 -> 64526.86583 | E18: =$C$18/12 -> 64526.86583 | F18: 64526.86583 | G18: 64526.86583 | H18: 64526.86583 | I18: 64526.86583 | J18: 64526.86583 | K18: 64526.86583 | L18: 64526.86583 | M18: 64526.86583 | N18: 64526.86583 | O18: 64526.86583
A19: 9 | B19: URBANIZAÇÃO | C19: ='Orç. PB - Tot. Rev - Sintético'!J92 -> 81154.4 | D19: =$C$19/12 -> 6762.866667 | E19: =$C$19/12 -> 6762.866667 | F19: 6762.866667 | G19: 6762.866667 | H19: 6762.866667 | I19: 6762.866667 | J19: 6762.866667 | K19: 6762.866667 | L19: 6762.866667 | M19: 6762.866667 | N19: 6762.866667 | O19: 6762.866667
A20: 10 | B20: OUTROS SERVIÇOS | C20: ='Orç. PB - Tot. Rev - Sintético'!J97 -> 69363.96 | D20: =$C$20/12 -> 5780.33 | E20: =$C$20/12 -> 5780.33 | F20: 5780.33 | G20: 5780.33 | H20: 5780.33 | I20: 5780.33 | J20: 5780.33 | K20: 5780.33 | L20: 5780.33 | M20: 5780.33 | N20: 5780.33 | O20: 5780.33
A21: TOTAL | C21: =SUM(C11:C20) -> 3293530.46 | D21: =SUM(D11:D20) -> 274460.8717 | E21: =SUM(E11:E20) -> 274460.8717 | F21: 274460.8717 | G21: 274460.8717 | H21: 274460.8717 | I21: 274460.8717 | J21: 274460.8717 | K21: 274460.8717 | L21: 274460.8717 | M21: 274460.8717 | N21: 274460.8717 | O21: 274460.8717
A22: PERCENTUAL | D22: =D21/$C$21 -> 0.08333333333 | E22: 0.08333333333 | F22: 0.08333333333 | G22: 0.08333333333 | H22: 0.08333333333 | I22: 0.08333333333 | J22: 0.08333333333 | K22: 0.08333333333 | L22: 0.08333333333 | M22: 0.08333333333 | N22: 0.08333333333 | O22: 0.08333333333
A23: CUSTO ACUMULADO | D23: =D21 -> 274460.8717 | E23: =E21+D23 -> 548921.7433 | F23: =F21+E23 -> 823382.615 | G23: 1097843.487 | H23: 1372304.358 | I23: 1646765.23 | J23: 1921226.102 | K23: 2195686.973 | L23: 2470147.845 | M23: 2744608.717 | N23: 3019069.588 | O23: 3293530.46
A24: PERCENTUAL ACUMULADO | D24: =D22 -> 0.08333333333 | E24: =E22+D24 -> 0.1666666667 | F24: =F22+E24 -> 0.25 | G24: 0.3333333333 | H24: 0.4166666667 | I24: 0.5 | J24: 0.5833333333 | K24: 0.6666666667 | L24: 0.75 | M24: 0.8333333333 | N24: 0.9166666667 | O24: 1

Sheet Planilha resumo - CE
B2: OBJETO: EXECUÇÃO DE SERVIÇOS DE PERFURAÇÃO E INSTALAÇÃO DE POÇOS TUBULARES EM MUNICÍPIOS LOCALIZADOS NOS ESTADOS DO RIO GRANDE DO NORTE, PARAÍBA E CEARÁ, NA ÁREA DE ATUAÇÃO DA CODEVASF
B4: PLANILHA ORÇAMENTÁRIA ESTIMATIVA GERAL DATABASE DO ORÇAMENTO: SETEMBRO/2023 - NÃO DESONERADO. PLANILHA RESUMIDA DO GRUPO 03 - CE
B8: ITEM | C8: DISCRIMINAÇÃO | D8: UND | E8: QUANT | F8: UNITÁRIO | G8: TOTAL
B9: 5 | C9: Perfuração e instalação de poço tubular parcialmente revestido, instalado com sistema fotovoltaico, bomba submersa, reservatório e bebedouro para animais. | D9: un | E9: 157 | F9: ='Orç. CE - Parc. Rev - Sintético'!I3 -> 106962.92 | G9: =ROUND(E9*F9,2) -> 16793178.44
B10: 6 | C10: Perfuração e instalação de poços poço tubular totalmente revestido, instalado com sistema fotovoltaico, bomba submersa, reservatório e bebedouro para animais. | D10: un | E10: 23 | F10: ='Orç. CE - Tot. Rev - Sintético'!I3 -> 159245.38 | G10: =ROUND(E10*F10,2) -> 3662643.74
B11: TOTAL GERAL ESTIMADO - GRUPO 03 | D11: un | E11: =SUM(E9:E10) -> 180 | G11: =SUM(G9:G10) -> 20455822.18

Sheet Orç. CE - Parc. Rev - Sintético
H1: B.D.I. SERVIÇO | I1: B.D.I. MATERIAL | J1: Encargos Sociais
A2: OBRA: PERFURAÇÃO E INSTALAÇÃO DE POÇO TUBULAR PARCIALMENTE REVESTIDO NO ESTADO DO CEARÁ | H2: 25,47% | I2: 0.1528 | J2: Não Desonerado: embutido nos preços unitário dos insumos de mão de obra, de acordo com as bases.
H3: VALOR UNITÁRIO POR POÇO | I3: =ROUND(J98/K3,2) -> 106962.92 | J3: QUANTIDADE DE POÇOS | K3: 157
A4: Orçamento Sintético
A5: Item | B5: Código | C5: Serviço/Material | D5: Banco | E5: Descrição | F5: Und | G5: Quant. | H5: Valor Unit | I5: Valor Unit com BDI | J5: Total | K5: Peso (%)
A6: 1 | E6: SERVIÇOS PRELIMINARES | J6: =SUM(J7:J10) -> 468279.13 | K6: =J6/$J$98 -> 0.02788508129
A7: 1.1 | B7: COMPOSIÇÃO - 001 | C7: Serviço | D7: Próprio | E7: Administração Local da Obra - Poço Parcialmente Revestido | F7: un | G7: 1 | H7: 120781.87 | I7: =ROUND(H7+H7*$H$2,2) -> 151545.01 | J7: =ROUND(G7*I7,2) -> 151545.01 | K7: =J7/$J$98 -> 0.009024200849
A8: 1.2 | B8: COMPOSIÇÃO - 003 | C8: Serviço | D8: Próprio | E8: Serviço de locação Geológica de campo com relatório hidro geológico e perfil construtivo e geológico esperado. Relatório de Viabilidade de implantação das estruturas e vistorias preliminares | F8: un | G8: 157 | H8: 501.7 | I8: =ROUND(H8+H8*$H$2,2) -> 629.48 | J8: =ROUND(G8*I8,2) -> 98828.36 | K8: =J8/$J$98 -> 0.005885030264
A9: 1.3 | B9: COMPOSIÇÃO - 004 | C9: Serviço | D9: Próprio | E9: Procedimentos para emissão de Outorga de uso insignificante e Dispensa de Licenciamento Ambiental (incluso taxas) - Ceará | F9: un | G9: 157 | H9: 856.8 | I9: 1075.03 | J9: 168779.71 | K9: 0.01005049261
A10: 1.5 | B10: 51 | C10: Serviço | D10: ORSE | E10: Placa de obra em chapa aço galvanizado, instalada | F10: m² | G10: 113.04 | H10: 346.37 | I10: 434.59 | J10: 49126.05 | K10: 0.00292535757
A11: 2 | E11: MOBILIZAÇÂO E DESMOBILIZAÇÂO EQUIPES DE PERFURAÇÂO E INSTALAÇÃO | J11: =SUM(J12:J13) -> 369264 | K11: 0.02198892925
A12: 2.1 | B12: COMPOSIÇÃO - 006 | C12: Serviço | D12: Próprio | E12: Transporte de Comboio Perfuração | F12: km | G12: 37680 | H12: 4.81 | I12: =ROUND(H12+H12*$H$2,2) -> 6.04 | J12: =ROUND(G12*I12,2) -> 227587.2 | K12: =J12/$J$98 -> 0.01355236047
A13: 2.2 | B13: COMPOSIÇÃO - 007 | C13: Serviço | D13: Próprio | E13: Transporte de Comboio Instalação | F13: km | G13: 18840 | H13: 5.99 | I13: 7.52 | J13: 141676.8 | K13: 0.008436568772
A14: 3 | E14: PERFURAÇÃO E COMPLETAÇÃO DE POÇO TUBULAR | J14: =SUM(J15:J20) -> 5841494.29 | K14: 0.3478492478
A15: 3.1 | B15: COMPOSIÇÃO - 009 | C15: Serviço | D15: Próprio | E15: Limpeza manual , remoção de cerca, capina e instalação dos equipamentos (área do poço, painéis solares, bebedouro e reservatório) | F15: m² | G15: 10990 | H15: 1.64 | I15: =ROUND(H15+H15*$H$2,2) -> 2.06 | J15: =ROUND(G15*I15,2) -> 22639.4 | K15: =J15/$J$98 -> 0.001348130781
A16: 3.2 | B16: COMPOSIÇÃO - 013 | C16: Serviço | D16: Próprio | E16: Perfuração em material inconsolidado Ø 8 1/2" | F16: m | G16: 7850 | H16: 214.98 | I16: 269.74 | J16: 2117459 | K16: 0.1260904289
A17: 3.3 | B17: COMPOSIÇÃO - 010 | C17: Serviço | D17: Próprio | E17: Perfuração roto pneumática utilizando martelo de fundo (DTH) em rocha Ø 6 1/8" em rocha | F17: m | G17: 10990 | H17: 172.74 | I17: 216.74 | J17: 2381972.6 | K17: 0.1418416823
A18: 3.4 | B18: 9854 | C18: Material | D18: Sinapi | E18: Tubo pvc de revestimento geomecanico nervurado standard, dn=154mm, comprimento=2m | F18: m | G18: 7850 | H18: 115.12 | I18: =ROUND(H18+H18*$I$2,2) -> 132.71 | J18: =ROUND(G18*I18,2) -> 1041773.5 | K18: 0.06203551871
A19: 3.5 | B19: COMPOSIÇÃO - 011 | C19: Serviço | D19: Próprio | E19: Serviço de lançamento cimentação anelar poço tubular, incluso material. | F19: m³ | G19: 144.44 | H19: 830.08 | I19: =ROUND(H19+H19*$H$2,2) -> 1041.5 | J19: =ROUND(G19*I19,2) -> 150434.26 | K19: =J19/$J$98 -> 0.008958057919
A20: 3.6 | B20: COMPOSIÇÃO - 014 | C20: Serviço | D20: Próprio | E20: Serviço de instalação de laje sanitária com dimensões (1,5x1,5x0,3) , incluso material. | F20: un | G20: 157 | H20: 645.8 | I20: 810.29 | J20: 127215.53 | K20: 0.0075754292
A21: 4 | E21: PÓS PERFURAÇÃO | J21: =SUM(J22:J25) -> 1563117.12 | K21: 0.09308048376
A22: 4.1 | B22: 6305 | C22: Serviço | D22: ORSE | E22: Serviço de desenvolvimento com compressor 250psi / 750cfm | F22: h | G22: 628 | H22: 411.16 | I22: =ROUND(H22+H22*$H$2,2) -> 515.88 | J22: =ROUND(G22*I22,2) -> 323972.64 | K22: =J22/$J$98 -> 0.01929191976
A23: 4.2 | B23: 6312 | C23: Serviço | D23: ORSE | E23: Serviço de análise físico-química da Água incluso coleta, transporte e analise | F23: un | G23: 157 | H23: 565.21 | I23: 709.17 | J23: 111339.69 | K23: 0.006630054827
A24: 4.3 | B24: COMPOSIÇÃO - 015 | C24: Serviço | D24: Próprio | E24: Inspeção ótica em poço tubular câmera com rotação de 360º, visada lateral, com fonte própria de luz, entregue vídeo em cores e marcação de profundidades. | F24: m | G24: 5652 | H24: 38.05 | I24: 47.74 | J24: 269826.48 | K24: 0.01606762473
A25: 4.4 | B25: 6314 | C25: Serviço | D25: ORSE | E25: Ensaio de Bombeamento com bomba submersível | F25: h | G25: 1099 | H25: 622.21 | I25: 780.69 | J25: 857978.31 | K25: 0.05109088444
A26: 5 | E26: RESERVAÇÃO | J26: =SUM(J27:J31) -> 1126543.7 | K26: 0.0670834138
A27: 5.1 | B27: COMPOSIÇÃO - 016 | C27: Serviço | D27: Próprio | E27: Execução e instalação de base de sustentação em concreto armado para reservatório de diâmetro 2,06m e altura 1,10m, conforme projeto, incluindo fixação de grampos da tampa. | F27: un | G27: 157 | H27: 2888.13 | I27: =ROUND(H27+H27*$H$2,2) -> 3623.74 | J27: =ROUND(G27*I27,2) -> 568927.18 | K27: =J27/$J$98 -> 0.03387847044
A28: 5.2 | B28: 00037105 | C28: Material | D28: SINAPI | E28: Fornecimento de caixa d'agua / reservatorio em poliester reforcado com fibra de vidro, 5000 litros, com tampa | F28: un | G28: 157 | H28: 2980.05 | I28: =ROUND(H28+H28*$I$2,2) -> 3435.4 | J28: =ROUND(G28*I28,2) -> 539357.8 | K28: =J28/$J$98 -> 0.03211767327
A29: 5.3 | B29: 13960 | C29: Material | D29: ORSE | E29: Fornecimento de cabo de aço 1/8" sem revestimento ( rolo c/ 100 mt) rolo | F29: rolo | G29: 12.56 | H29: 260.86 | I29: 300.72 | J29: 3777.04 | K29: 0.0002249151429
A30: 5.4 | B30: 094248 | C30: Material | D30: SBC | E30: Fornecimento de esticador olhal com gancho de 1/4" 6,35 mm vonder | F30: un | G30: 628 | H30: 13.05 | I30: 15.04 | J30: 9445.12 | K30: 0.0005624379181
A31: 5.5 | B31: 002048 | C31: Material | D31: SBC | E31: Fornecimento de grampo (clip) para cabo de aco pesado 1/8" | F31: un | G31: 628 | H31: 6.96 | I31: 8.02 | J31: 5036.56 | K31: 0.0002999170282
A32: 6 | E32: BEBEDOURO | J32: =SUM(J33) -> 320469.97 | K32: 0.0190833428
A33: 6.1 | B33: COMPOSIÇÃO - 017 | C33: Serviço | D33: Próprio | E33: Serviço de execução do bebedouro em concreto armado, incluso materiais. | F33: un | G33: 157 | H33: 1626.85 | I33: =ROUND(H33+H33*$H$2,2) -> 2041.21 | J33: =ROUND(G33*I33,2) -> 320469.97 | K33: =J33/$J$98 -> 0.0190833428
A34: 7 | E34: INSTALAÇÕES HIDRÁULICAS | J34: =SUM(J35,J51) -> 544668.33 | K34: 0.03243390466
A35: 7.1 | E35: INSTALAÇÕES DE CAVALETE | J35: =SUM(J36:J50) -> 210104.47 | K35: 0.01251129903
A36: 7.1.1 | B36: COMPOSIÇÃO - 018 | C36: Serviço | D36: Próprio | E36: Montagem e Instalação de Tubulação e Conexões Cavalete | F36: un | G36: 157 | H36: 258.37 | I36: =ROUND(H36+H36*$H$2,2) -> 324.18 | J36: =ROUND(G36*I36,2) -> 50896.26 | K36: =J36/$J$98 -> 0.003030770018
A37: 7.1.2 | B37: 00001796 | C37: Material | D37: SINAPI | E37: Fornecimento de curva 90 graus de ferro galvanizado, com rosca bsp macho, de 1 1/4" | F37: un | G37: 157 | H37: 77.17 | I37: =ROUND(H37+H37*$I$2,2) -> 88.96 | J37: =ROUND(G37*I37,2) -> 13966.72 | K37: =J37/$J$98 -> 0.000831690113
A38: 7.1.3 | B38: 00009888 | C38: Material | D38: SINAPI | E38: Fornecimento de uniao de ferro galvanizado, com rosca bsp, com assento plano, de 1 1/4" | F38: un | G38: 157 | H38: 62.13 | I38: 71.62 | J38: 11244.34 | K38: 0.000669577854
A39: 7.1.4 | B39: 00004180 | C39: Material | D39: SINAPI | E39: Fornecimento de niple de ferro galvanizado, com rosca bsp, de 1 1/4" | F39: un | G39: 314 | H39: 18.99 | I39: 21.89 | J39: 6873.46 | K39: 0.0004093007323
A40: 7.1.5 | B40: 00006017 | C40: Material | D40: SINAPI | E40: Fornecimento de registro gaveta bruto em latao forjado, bitola 1 1/4 " (ref 1509) | F40: un | G40: 157 | H40: 74.07 | I40: 85.39 | J40: 13406.23 | K40: 0.0007983140597
A41: 7.1.6 | B41: 00000789 | C41: Material | D41: SINAPI | E41: Fornecimento de bucha de reducao de ferro galvanizado, com rosca bsp, de 1 1/4" x 1" | F41: un | G41: 157 | H41: 17.76 | I41: 20.47 | J41: 3213.79 | K41: 0.0001913747371
A42: 7.1.7 | B42: 12438 | C42: Material | D42: ORSE | E42: Fornecimento de hidrômetro multijato d= 3/4", vazão = 5,0m3/h | F42: un | G42: 157 | H42: 297.76 | I42: 343.26 | J42: 53891.82 | K42: 0.003209149597
A43: 7.1.8 | B43: 00009861 | C43: Material | D43: SINAPI | E43: Fornecimento de tubo pvc, roscavel, 1 1/4", agua fria predial | F43: m | G43: 235.5 | H43: 26.9 | I43: 31.01 | J43: 7302.86 | K43: 0.0004348706395
A44: 7.1.9 | B44: 002116 | C44: Material | D44: SBC | E44: Fornecimento de te de reducao ferro galvanizado 1.1/4" x 1/2" | F44: un | G44: 157 | H44: 17.24 | I44: 19.87 | J44: 3119.59 | K44: 0.0001857653164
A45: 7.1.10 | B45: 00011831 | C45: Material | D45: SINAPI | E45: Fornecimento de torneira plastica para tanque 1/2 " ou 3/4 " com bico para mangueira | F45: un | G45: 157 | H45: 20.57 | I45: 23.71 | J45: 3722.47 | K45: 0.000221665609
A46: 7.1.11 | B46: 1158 | C46: Material | D46: ORSE | E46: Fornecimento de joelho 45° ferro galvanizado d=1 1/ 4" | F46: un | G46: 314 | H46: 32.7 | I46: 37.7 | J46: 11837.8 | K46: 0.0007049172046
A47: 7.1.12 | B47: 00004205 | C47: Material | D47: SINAPI | E47: Fornecimento de niple de reducao de ferro galvanizado, com rosca bsp, de 1 1/2" x 1 1/4" | F47: un | G47: 157 | H47: 33.32 | I47: 38.41 | J47: 6030.37 | K47: 0.0003590964168
A48: 7.1.13 | B48: 00003939 | C48: Material | D48: SINAPI | E48: Fornecimento de luva de ferro galvanizado, com rosca bsp, de 1 1/2" | F48: un | G48: 157 | H48: 25.6 | I48: 29.51 | J48: 4633.07 | K48: 0.0002758900094
A49: 7.1.14 | B49: 9569 | C49: Material | D49: ORSE | E49: Fornecimento de adaptador pvc bsxrm d= 35mm x 1 1/2", linha irriga-lf, tigre ou similar | F49: un | G49: 157 | H49: 3.04 | I49: 3.5 | J49: 549.5 | K49: 3.27216209e-05
A50: 7.1.15 | B50: 5128 | C50: Material | D50: ORSE | E50: Fornecimento de tampa de poço galvanizada em 6" | F50: un | G50: 157 | H50: 107.28 | I50: 123.67 | J50: 19416.19 | K50: 0.001156195102
A51: 7.2 | E51: INSTALAÇÕES DE ADUTORA, RESERVATÓRIO E BEBEDOURO | J51: =SUM(J52:J63) -> 334563.86 | K51: =J51/$J$98 -> 0.01992260563
A52: 7.2.1 | B52: COMPOSIÇÃO - 020 | C52: Serviço | D52: Próprio | E52: Montagem e instalação da rede adutora poço-reservatório-bebedouro | F52: un | G52: 157 | H52: 981.88 | I52: =ROUND(H52+H52*$H$2,2) -> 1231.96 | J52: =ROUND(G52*I52,2) -> 193417.72 | K52: =J52/$J$98 -> 0.0115176366
A53: 7.2.2 | B53: 9501 | C53: Material | D53: ORSE | E53: Fornecimento de tubo PVC p/irrigação LF PN 60 JE Ø 35mm, linha Irriga-LF, Tigre ou similar m | F53: m | G53: 6280 | H53: 13.06 | I53: =ROUND(H53+H53*$I$2,2) -> 15.06 | J53: =ROUND(G53*I53,2) -> 94576.8 | K53: =J53/$J$98 -> 0.005631858409
A54: 7.2.3 | B54: 9516 | C54: Material | D54: ORSE | E54: Fornecimento de curva 90º pvc PTA/BSA soldavel d= 35mm, linha Irriga-LF, Tigre ou similar un | F54: un | G54: 628 | H54: 10.76 | I54: 12.4 | J54: 7787.2 | K54: 0.0004637121134
A55: 7.2.4 | B55: 00000098 | C55: Material | D55: SINAPI | E55: Fornecimento de adaptador pvc soldavel, com flange e anel de vedacao, 40 mm x 1 1/4", para caixa d'água | F55: un | G55: 314 | H55: 30.33 | I55: 34.96 | J55: 10977.44 | K55: 0.0006536844953
A56: 7.2.5 | B56: 8013 | C56: Material | D56: ORSE | E56: Fornecimento de registro esfera VS soldável para irrigação Ø 35mm | F56: pç | G56: 157 | H56: 37.26 | I56: 42.95 | J56: 6743.15 | K56: 0.0004015410336
A57: 7.2.6 | B57: 00000096 | C57: Material | D57: SINAPI | E57: Fornecimento de adaptador pvc soldavel, com flange e anel de vedacao, 25 mm x 3/4", para caixa d'água | F57: un | G57: 471 | H57: 13.47 | I57: 15.53 | J57: 7314.63 | K57: 0.0004355715194
A58: 7.2.7 | B58: 14071 | C58: Material | D58: ORSE | E58: Fornecimento de tubo PVC para irrigação LF PN 60 Ø 25mm, linha Irriga-LF, Tigre ou similar | F58: m | G58: 314 | H58: 4.01 | I58: 4.62 | J58: 1450.68 | K58: 8.638507918e-05
A59: 7.2.8 | B59: 14082 | C59: Material | D59: ORSE | E59: Fornecimento de registro esfera LF 25mm | F59: pç | G59: 314 | H59: 11.64 | I59: 13.42 | J59: 4213.88 | K59: 0.0002509280871
A60: 7.2.9 | B60: 00003529 | C60: Material | D60: SINAPI | E60: Fornecimento de joelho pvc, soldavel, 90 graus, 25 mm, cor marrom, para agua fria predial | F60: un | G60: 314 | H60: 0.79 | I60: 0.91 | J60: 285.74 | K60: 1.701524287e-05
A61: 7.2.10 | B61: 00003535 | C61: Material | D61: SINAPI | E61: Fornecimento de joelho pvc, soldavel, 90 graus, 40 mm, cor marrom, para agua fria predial | F61: un | G61: 157 | H61: 6.45 | I61: 7.44 | J61: 1168.08 | K61: 6.9556817e-05
A62: 7.2.11 | B62: 00000109 | C62: Material | D62: SINAPI | E62: Fornecimento de adaptador pvc soldavel curto com bolsa e rosca, 40 mm x 1 1/4", para agua fria | F62: un | G62: 157 | H62: 4.05 | I62: 4.67 | J62: 733.19 | K62: 4.365999132e-05
A63: 7.2.12 | B63: 00011830 | C63: Material | D63: SINAPI | E63: Fornecimento de torneira de boia convencional para caixa d'agua, agua fria, 3/4", com haste e torneira metalicos e balao plastico | F63: un | G63: 157 | H63: 32.57 | I63: 37.55 | J63: 5895.35 | K63: 0.0003510562471
A64: 8 | E64: FORNECIMENTO E INSTALAÇÃO DE SISTEMA FOTOVOLTAÍCO | J64: =SUM(J65,J71,J82,J84) -> 5227203.37 | K64: 0.3112694578
A65: 8.1 | E65: INSTALAÇÕES HIDRÁULICAS | J65: =SUM(J66:J70) -> 447235.41 | K65: 0.02663197005
A66: 8.1.1 | B66: COMPOSIÇÃO - 019 | C66: Serviço | D66: Próprio | E66: Montagem e instalação hidráulica do kit de bombeamento | F66: un | G66: 157 | H66: 143.49 | I66: =ROUND(H66+H66*$H$2,2) -> 180.04 | J66: =ROUND(G66*I66,2) -> 28266.28 | K66: =J66/$J$98 -> 0.001683200179
A67: 8.1.2 | B67: 00038200 | C67: Material | D67: SINAPI | E67: Fornecimento de corda de poliamida 12 mm tipo bombeiro, para trabalho em altura | F67: 100M | G67: 98.91 | H67: 717.07 | I67: =ROUND(H67+H67*$I$2,2) -> 826.64 | J67: =ROUND(G67*I67,2) -> 81762.96 | K67: =J67/$J$98 -> 0.004868819984
A68: 8.1.3 | B68: 00009861 | C68: Material | D68: SINAPI | E68: Fornecimento de tubo pvc, roscavel, 1 1/4", agua fria predial | F68: m | G68: 9420 | H68: 26.9 | I68: 31.01 | J68: 292114.2 | K68: 0.01739481367
A69: 8.1.4 | B69: 00004180 | C69: Material | D69: SINAPI | E69: Fornecimento de niple de ferro galvanizado, com rosca bsp, de 1 1/4" | F69: un | G69: 157 | H69: 18.99 | I69: 21.89 | J69: 3436.73 | K69: 0.0002046503662
A70: 8.1.5 | B70: 00003911 | C70: Material | D70: SINAPI | E70: Fornecimento de luva de ferro galvanizado, com rosca bsp, de 1 1/4" | F70: un | G70: 1727 | H70: 20.92 | I70: 24.12 | J70: 41655.24 | K70: 0.002480485845
A71: 8.2 | E71: INSTALAÇÕES ELÉTRICAS | J71: =SUM(J72:J81) -> 465330.07 | K71: =J71/$J$98 -> 0.02770947069
A72: 8.2.1 | B72: COMPOSIÇÃO - 021 | C72: Serviço | D72: Próprio | E72: Montagem e instalação elétrica do kit de bombeamento e sistema fotovoltaico inclusive sistema de aterramento. | F72: un | G72: 157 | H72: 525.08 | I72: =ROUND(H72+H72*$H$2,2) -> 658.82 | J72: =ROUND(G72*I72,2) -> 103434.74 | K72: 0.006159330938
A73: 8.2.2 | B73: 00002674 | C73: Material | D73: SINAPI | E73: Fornecimento de eletroduto de pvc rigido roscavel de 3/4 ", sem luva | F73: m | G73: 2355 | H73: 4.57 | I73: =ROUND(H73+H73*$I$2,2) -> 5.27 | J73: =ROUND(G73*I73,2) -> 12410.85 | K73: 0.0007390411807
A74: 8.2.3 | B74: 00034622 | C74: Material | D74: SINAPI | E74: Fornecimento de cabo flexivel pvc 750 v, 3 condutores de 6,0 mm2 | F74: m | G74: 11775 | H74: 19.55 | I74: 22.54 | J74: 265408.5 | K74: 0.0158045429
A75: 8.2.4 | B75: 00012034 | C75: Material | D75: SINAPI | E75: Fornecimento de curva 180 graus, de pvc rigido roscavel, de 3/4", para eletroduto | F75: un | G75: 157 | H75: 4.69 | I75: 5.41 | J75: 849.37 | K75: 5.057827688e-05
A76: 8.2.5 | B76: 00039272 | C76: Material | D76: SINAPI | E76: Fornecimento de curva 90 graus, curta, de pvc rigido roscavel, de 3/4", para eletroduto | F76: un | G76: 314 | H76: 2.56 | I76: 2.95 | J76: 926.3 | K76: 5.515930381e-05
A77: 8.2.6 | B77: 00003379 | C77: Material | D77: SINAPI | E77: Fornecimento de haste de aterramento em aco com 3,00 m de comprimento e dn = 5/8", revestida com baixa camada de cobre, sem conector | F77: un | G77: 105.19 | H77: 89.12 | I77: 102.74 | J77: 10807.22 | K77: 0.0006435482363
A78: 8.2.7 | B78: 00001891 | C78: Material | D78: SINAPI | E78: Fornecimento de luva em pvc rigido roscavel, de 3/4", para eletroduto | F78: un | G78: 1413 | H78: 1.18 | I78: 1.36 | J78: 1921.68 | K78: 0.0001144321828
A79: 8.2.8 | B79: 00000425 | C79: Material | D79: SINAPI | E79: Fornecimento de grampo metalico tipo olhal para haste de aterramento de 5/8'', condutor de *10* a 50 mm2 | F79: un | G79: 314 | H79: 8.45 | I79: 9.74 | J79: 3058.36 | K79: 0.0001821191929
A80: 8.2.9 | B80: 00034643 | C80: Material | D80: SINAPI | E80: Fornecimento de caixa de inspecao para aterramento e para raios, em polipropileno, diametro = 300 mm x altura = 400 mm | F80: un | G80: 314 | H80: 46.96 | I80: 54.14 | J80: 16999.96 | K80: 0.00101231346
A81: 8.2.10 | B81: 00000867 | C81: Material | D81: SINAPI | E81: Fornecimento de cabo de cobre nu 50 mm2 meio-duro | F81: m | G81: 863.5 | H81: 49.74 | I81: 57.34 | J81: 49513.09 | K81: 0.002948405024
A82: 8.3 | E82: ESTRUTURA DE FIXAÇÃO PARA MÓDULOS FOTOVOLTAICOS | J82: =SUM(J83) -> 345437.68 | K82: 0.02057011976
A83: 8.3.1 | B83: COMPOSIÇÃO - 022 | C83: Serviço | D83: Próprio | E83: Serviço de fixação de estruturas para os módulos fotovoltaicos e suportes de concreto, incluso materiais. | F83: m² | G83: 1256 | H83: 219.2 | I83: =ROUND(H83+H83*$H$2,2) -> 275.03 | J83: =ROUND(G83*I83,2) -> 345437.68 | K83: 0.02057011976
A84: 8.4 | E84: FORNECIMENTO DE KIT DE BOMBEAMENTO FOTOVOLTAICO | J84: =SUM(J85) -> 3969200.21 | K84: 0.2363578973
A85: 8.4.1 | B85: COTAÇÃO-002 | C85: Material | D85: Próprio | E85: Fornecimento de kit de bombeamento fotovoltaico, incluindo uma bomba CC de 1500W com imã permanente e sem escovas, controladora de carga, disjuntor CC adequado, caixa de proteção metálica, módulos compatíveis com a geração de 2200Wp (potência mínima de 550 W por módulo) e componentes elétricos necessários como cabos, conectores MC4 e presilhas de fixação. | F85: un | G85: 157 | H85: 21930.54 | I85: =ROUND(H85+H85*$I$2,2) -> 25281.53 | J85: =ROUND(G85*I85,2) -> 3969200.21 | K85: 0.2363578973
A86: 9 | E86: URBANIZAÇÃO | J86: =SUM(J87,J89) -> 590048.39 | K86: 0.03513619605
A87: 9.1 | E87: CERCA | J87: =SUM(J88) -> 384386.24 | K87: 0.02288942825
A88: 9.1.1 | B88: COMPOSIÇÃO - 023 | C88: Serviço | D88: Próprio | E88: Cerca com mourões de concreto de 15x15cm, espaçados de 3m e cravados a 0,5m, escoras de 10x10cm nos cantos, e 9 fios de arame de aço ovalado 15x17. | F88: m | G88: 4396 | H88: 69.69 | I88: =ROUND(H88+H88*$H$2,2) -> 87.44 | J88: =ROUND(G88*I88,2) -> 384386.24 | K88: 0.02288942825
A89: 9.2 | E89: PORTÃO | J89: =SUM(J90) -> 205662.15 | K89: 0.0122467678
A90: 9.2.1 | B90: COMPOSIÇÃO - 024 | C90: Serviço | D90: Próprio | E90: Serviço de instalação de portão de ferro com suporte e batedor conforme projeto, incluso material | F90: m² | G90: 235.5 | H90: 696.02 | I90: =ROUND(H90+H90*$H$2,2) -> 873.3 | J90: =ROUND(G90*I90,2) -> 205662.15 | K90: 0.0122467678
A91: 10 | E91: OUTROS SERVIÇOS | J91: =SUM(J92:J97) -> 742089.57 | K91: 0.04418994283
A92: 10.1 | B92: COMPOSIÇÃO - 025 | C92: Serviço | D92: Próprio | E92: Serviço de lançamento de concreto para acabamento do tamponamento, incluso material. | F92: m³ | G92: 5.13992566 | H92: 767.81 | I92: =ROUND(H92+H92*$H$2,2) -> 963.37 | J92: =ROUND(G92*I92,2) -> 4951.65 | K92: 0.0002948608083
A93: 10.2 | B93: COMPOSIÇÃO - 026 | C93: Serviço | D93: Próprio | E93: Serviço de execução do tamponamento, incluso pedra britada desinfectada. | F93: m³ | G93: 5.13992566 | H93: 144.57 | I93: 181.39 | J93: 932.33 | K93: 5.551837819e-05
A94: 10.5 | B94: M3929 | C94: Material | D94: SICRO3 | E94: Fornecimento de Tubo em aço-carbono - E = 3,00 mm e D = 150 mm (6”) | F94: m | G94: 2355 | H94: 152.0367 | I94: =ROUND(H94+H94*$I$2,2) -> 175.27 | J94: =ROUND(G94*I94,2) -> 412760.85 | K94: 0.02457907927
A95: 10.6 | B95: COTAÇÃO-007 | C95: Material | D95: Próprio | E95: Fornecimento tubo de revestimento geomecânico classe standart Ø 4" com junta roscável. | F95: m | G95: 2355 | H95: 82.5 | I95: 95.11 | J95: 223984.05 | K95: 0.01333780013
A96: 10.7 | B96: COTAÇÃO-005 | C96: Material | D96: Próprio | E96: Fornecimento tubo filtro geomecânico classe standart Ø 4" com junta roscável. | F96: m | G96: 471 | H96: 86.02 | I96: 99.16 | J96: 46704.36 | K96: 0.002781150796
A97: 10.8 | B97: 5073 | C97: Material | D97: ORSE | E97: Fornecimento de Pré-filtro comum | F97: m³ | G97: 28.26 | H97: 1619.38 | I97: 1866.82 | J97: 52756.33 | K97: 0.003141533449
I98: Total | J98: =SUM(J91,J86,J64,J34,J32,J26,J21,J14,J11,J6) -> 16793177.87

Sheet Orç. CE - Parc. Rev - Analítico
I1: Encargos Sociais
A2: 0 | C2: OBRA:PERFURAÇÃO E INSTALAÇÃO DE POÇO TUBULAR PARCIALMENTE REVESTIDO NO ESTADO DO CEARÁ | I2: Não Desonerado: embutido nos preços unitário dos insumos de mão de obra, de acordo com as bases.
A3: Planilha Orçamentária Analítica
A4: 1 | D4: SERVIÇOS PRELIMINARES
A5: 1.1 | B5: Código | C5: Banco | D5: Descrição | E5: Tipo | G5: Und | H5: Quant. | I5: Valor Unit | J5: Total
A6: Composição | B6: COMPOSIÇÃO - 001 | C6: Próprio | D6: Administração Local da Obra - Poço Parcialmente Revestido | E6: SERP - SERVIÇOS PRELIMINARES | G6: un | H6: 1 | I6: =J6 -> 120781.87 | J6: =SUM(J7:J13) -> 120781.87
A7: Composição Auxiliar | B7: 92138 | C7: SINAPI | D7: CAMINHONETE COM MOTOR A DIESEL, POTÊNCIA 180 CV, CABINE DUPLA, 4X4 - CHP DIURNO. AF_11/2015 | E7: CHOR - CUSTOS HORÁRIOS DE MÁQUINAS E EQUIPAMENTOS | G7: CHP | H7: 135 | I7: 96.58 | J7: =ROUND(H7*I7,2) -> 13038.3
A8: Composição Auxiliar | B8: 92139 | C8: SINAPI | D8: CAMINHONETE COM MOTOR A DIESEL, POTÊNCIA 180 CV, CABINE DUPLA, 4X4 - CHI DIURNO. AF_11/2015 | E8: CHOR - CUSTOS HORÁRIOS DE MÁQUINAS E EQUIPAMENTOS | G8: CHI | H8: 165 | I8: 45.84 | J8: =ROUND(H8*I8,2) -> 7563.6
A9: Composição Auxiliar | B9: 93572 | C9: SINAPI | D9: ENCARREGADO GERAL DE OBRAS COM ENCARGOS COMPLEMENTARES | E9: SEDI - SERVIÇOS DIVERSOS | G9: MES | H9: 3 | I9: 4552.47 | J9: 13657.41
A10: Composição Auxiliar | B10: 93565 | C10: SINAPI | D10: ENGENHEIRO CIVIL DE OBRA JUNIOR COM ENCARGOS COMPLEMENTARES | E10: SEDI - SERVIÇOS DIVERSOS | G10: MES | H10: 4 | I10: 19809.54 | J10: 79238.16
A11: Insumo | B11: 00014250 | C11: SINAPI | D11: ENERGIA ELETRICA COMERCIAL, BAIXA TENSAO, RELATIVA AO CONSUMO DE ATE 100 KWH, INCLUINDO ICMS, PIS/PASEP E COFINS | E11: Material | G11: KWH | H11: 1400 | I11: 0.98 | J11: =ROUND(H11*I11,2) -> 1372
A12: Insumo | B12: 00044480 | C12: SINAPI | D12: TARIFA "A" ENTRE 0 E 20M3 FORNECIMENTO D'AGUA | E12: Taxas | G12: m³ | H12: 60 | I12: 18.54 | J12: =ROUND(H12*I12,2) -> 1112.4
A13: Insumo | B13: 4298 | C13: ORSE | D13: Aluguel de container - Escritório com banheiro - 6,20 x 2,40m, equipado com Ar condicionado mês | E13: Serviços | G13: mês | H13: 3 | I13: 1600 | J13: 4800
A16: 1.2 | B16: Código | C16: Banco | D16: Descrição | E16: Tipo | G16: Und | H16: Quant. | I16: Valor Unit | J16: Total
A17: Composição | B17: COMPOSIÇÃO - 003 | C17: Próprio | D17: Serviço de locação Geológica de campo com relatório hidro geológico e perfil construtivo e geológico esperado. Relatório de Viabilidade de implantação das estruturas e vistorias preliminares | E17: SERT - SERVIÇOS TÉCNICOS | G17: un | H17: 1 | I17: =J17 -> 501.7 | J17: =SUM(J18:J20) -> 501.7
A18: Composição Auxiliar | B18: 30.01.45 | C18: EMBASA | D18: GEOLOGO SENIOR | E18: 3001 | G18: hora | H18: 5 | I18: 79.73 | J18: =ROUND(H18*I18,2) -> 398.65
A19: Insumo | B19: 5896 | C19: ORSE | D19: Veículo tipo sedan ou pick-up capacidade 0,6 ton h | E19: Equipamento | G19: h | H19: 5 | I19: 8.33 | J19: =ROUND(H19*I19,2) -> 41.65
A20: Insumo | B20: 00004222 | C20: SINAPI | D20: GASOLINA COMUM | E20: Material | G20: L | H20: 10 | I20: 6.14 | J20: =ROUND(H20*I20,2) -> 61.4
A23: 1.3 | B23: Código | C23: Banco | D23: Descrição | E23: Tipo | G23: Und | H23: Quant. | I23: Valor Unit | J23: Total
A24: Composição | B24: COMPOSIÇÃO - 004 | C24: Próprio | D24: Procedimentos para emissão de Outorga de uso insignificante e Dispensa de Licenciamento Ambiental (incluso taxas) - Ceará | E24: SERT - SERVIÇOS TÉCNICOS | G24: un | H24: 1 | I24: =J24 -> 856.8 | J24: =SUM(J25) -> 856.8
A25: Insumo | B25: COTAÇÃO-009 | C25: Próprio | D25: Procedimentos para Emissão de Outorga de uso insignificante e Dispensa de Licenciamento Ambiental - Ceará | E25: Serviços | G25: unn | H25: 1 | I25: 856.8 | J25: =ROUND(H25*I25,2) -> 856.8
A29: 2 | D29: MOBILIZAÇÂO E DESMOBILIZAÇÂO EQUIPES DE PERFURAÇÂO E INSTALAÇÃO
A30: 2.1 | B30: Código | C30: Banco | D30: Descrição | E30: Tipo | G30: Und | H30: Quant. | I30: Valor Unit | J30: Total
A31: Composição | B31: COMPOSIÇÃO - 006 | C31: Próprio | D31: Transporte de Comboio Perfuração | E31: TRAN - TRANSPORTES, CARGAS E DESCARGAS | G31: km | H31: 1 | I31: =J31 -> 4.81 | J31: =SUM(J32:J33) -> 4.81
A32: Composição Auxiliar | B32: 5824 | C32: SINAPI | D32: CAMINHÃO TOCO, PBT 16.000 KG, CARGA ÚTIL MÁX. 10.685 KG, DIST. ENTRE EIXOS 4,8 M, POTÊNCIA 189 CV, INCLUSIVE CARROCERIA FIXA ABERTA DE MADEIRA P/ TRANSPORTE GERAL DE CARGA SECA, DIMEN. APROX. 2,5 X 7,00 X 0,50 M - CHP DIURNO. AF_06/2014 | E32: CHOR - CUSTOS HORÁRIOS DE MÁQUINAS E EQUIPAMENTOS | G32: CHP | H32: 0.01666 | I32: 220.76 | J32: =ROUND(H32*I32,2) -> 3.68
A33: Composição Auxiliar | B33: 5826 | C33: SINAPI | D33: CAMINHÃO TOCO, PBT 16.000 KG, CARGA ÚTIL MÁX. 10.685 KG, DIST. ENTRE EIXOS 4,8 M, POTÊNCIA 189 CV, INCLUSIVE CARROCERIA FIXA ABERTA DE MADEIRA P/ TRANSPORTE GERAL DE CARGA SECA, DIMEN. APROX. 2,5 X 7,00 X 0,50 M - CHI DIURNO. AF_06/2014 | E33: CHOR - CUSTOS HORÁRIOS DE MÁQUINAS E EQUIPAMENTOS | G33: CHI | H33: 0.01666 | I33: 67.77 | J33: 1.13
A36: 2.2 | B36: Código | C36: Banco | D36: Descrição | E36: Tipo | G36: Und | H36: Quant. | I36: Valor Unit | J36: Total
A37: Composição | B37: COMPOSIÇÃO - 007 | C37: Próprio | D37: Transporte de Comboio Instalação | E37: TRAN - TRANSPORTES, CARGAS E DESCARGAS | G37: km | H37: 1 | I37: =J37 -> 5.99 | J37: =SUM(J38:J39) -> 5.99
A38: Composição Auxiliar | B38: 5928 | C38: SINAPI | D38: GUINDAUTO HIDRÁULICO, CAPACIDADE MÁXIMA DE CARGA 6200 KG, MOMENTO MÁXIMO DE CARGA 11,7 TM, ALCANCE MÁXIMO HORIZONTAL 9,70 M, INCLUSIVE CAMINHÃO TOCO PBT 16.000 KG, POTÊNCIA DE 189 CV - CHP DIURNO. AF_06/2014 | E38: CHOR - CUSTOS HORÁRIOS DE MÁQUINAS E EQUIPAMENTOS | G38: CHP | H38: 0.01666 | I38: 280.27 | J38: =ROUND(H38*I38,2) -> 4.67
A39: Composição Auxiliar | B39: 5930 | C39: SINAPI | D39: GUINDAUTO HIDRÁULICO, CAPACIDADE MÁXIMA DE CARGA 6200 KG, MOMENTO MÁXIMO DE CARGA 11,7 TM, ALCANCE MÁXIMO HORIZONTAL 9,70 M, INCLUSIVE CAMINHÃO TOCO PBT 16.000 KG, POTÊNCIA DE 189 CV - CHI DIURNO. AF_06/2014 | E39: CHOR - CUSTOS HORÁRIOS DE MÁQUINAS E EQUIPAMENTOS | G39: CHI | H39: 0.01666 | I39: 79.49 | J39: 1.32
A42: 3 | D42: PERFURAÇÃO E COMPLETAÇÃO DE POÇO TUBULAR
A43: 3.1 | B43: Código | C43: Banco | D43: Descrição | E43: Tipo | G43: Und | H43: Quant. | I43: Valor Unit | J43: Total
A44: Composição | B44: COMPOSIÇÃO - 009 | C44: Próprio | D44: Limpeza manual , remoção de cerca, capina e instalação dos equipamentos (área do poço, painéis solares, bebedouro e reservatório) | E44: SEDI - SERVIÇOS DIVERSOS | G44: m² | H44: 1 | I44: =J44 -> 1.64 | J44: =SUM(J45) -> 1.64
A45: Composição Auxiliar | B45: 88316 | C45: SINAPI | D45: SERVENTE COM ENCARGOS COMPLEMENTARES | E45: SEDI - SERVIÇOS DIVERSOS | G45: H | H45: 0.08 | I45: 20.47 | J45: =ROUND(H45*I45,2) -> 1.64
A48: 3.2 | B48: Código | C48: Banco | D48: Descrição | E48: Tipo | G48: Und | H48: Quant. | I48: Valor Unit | J48: Total
A49: Composição | B49: COMPOSIÇÃO - 013 | C49: Próprio | D49: Perfuração em material inconsolidado Ø 8 1/2" | E49: SERT - SERVIÇOS TÉCNICOS | G49: m | H49: 1 | I49: =J49 -> 214.98 | J49: =SUM(J50:J52) -> 214.98
A50: Composição Auxiliar | B50: 88263 | C50: SINAPI | D50: CAVOUQUEIRO OU OPERADOR PERFURATRIZ/ROMPEDOR COM ENCARGOS COMPLEMENTARES | E50: SEDI - SERVIÇOS DIVERSOS | G50: H | H50: 0.2 | I50: 19.66 | J50: =ROUND(H50*I50,2) -> 3.93
A51: Composição Auxiliar | B51: 88316 | C51: SINAPI | D51: SERVENTE COM ENCARGOS COMPLEMENTARES | E51: SEDI - SERVIÇOS DIVERSOS | G51: H | H51: 0.6 | I51: 20.47 | J51: 12.28
A52: Insumo | B52: 5071 | C52: ORSE | D52: Perfuração rocha sedimentar sedimento / camadas inconsolidadas dn 8.1/2 a 9.1/2" - até 150m m | E52: Serviços | G52: m | H52: 1 | I52: 198.77 | J52: =ROUND(H52*I52,2) -> 198.77
A55: 3.3 | B55: Código | C55: Banco | D55: Descrição | E55: Tipo | G55: Und | H55: Quant. | I55: Valor Unit | J55: Total
A56: Composição | B56: COMPOSIÇÃO - 010 | C56: Próprio | D56: Perfuração roto pneumática utilizando martelo de fundo (DTH) em rocha Ø 6 1/8" em rocha | E56: SERT - SERVIÇOS TÉCNICOS | G56: m | H56: 1 | I56: =J56 -> 172.74 | J56: =SUM(J57:J59) -> 172.74
A57: Composição Auxiliar | B57: 88263 | C57: SINAPI | D57: CAVOUQUEIRO OU OPERADOR PERFURATRIZ/ROMPEDOR COM ENCARGOS COMPLEMENTARES | E57: SEDI - SERVIÇOS DIVERSOS | G57: H | H57: 0.2 | I57: 19.66 | J57: =ROUND(H57*I57,2) -> 3.93
A58: Composição Auxiliar | B58: 88316 | C58: SINAPI | D58: SERVENTE COM ENCARGOS COMPLEMENTARES | E58: SEDI - SERVIÇOS DIVERSOS | G58: H | H58: 0.6 | I58: 20.47 | J58: 12.28
A59: Insumo | B59: 5051 | C59: ORSE | D59: Perfuraçao em rocha metassedimentar - metassedimento alterado / compacto dn 6" (poço 120m) m | E59: Serviços | G59: m | H59: 1 | I59: 156.53 | J59: =ROUND(H59*I59,2) -> 156.53
A63: 3.5 | B63: Código | C63: Banco | D63: Descrição | E63: Tipo | G63: Und | H63: Quant. | I63: Valor Unit | J63: Total
A64: Composição | B64: COMPOSIÇÃO - 011 | C64: Próprio | D64: Serviço de lançamento cimentação anelar poço tubular, incluso material. | E64: SEDI - SERVIÇOS DIVERSOS | G64: m³ | H64: 1 | I64: =J64 -> 830.08 | J64: =SUM(J65:J67) -> 830.08
A65: Composição Auxiliar | B65: 1903 | C65: ORSE | D65: Argamassa cimento e areia traço t-1 (1:3) - 1 saco cimento 50kg / 3 padiolas areia dim. 0.35 x 0.45 x 0.23 m - Confecção mecânica e transporte | E65: Argamassas | G65: m³ | H65: 1 | I65: 571.2 | J65: =ROUND(H65*I65,2) -> 571.2
A66: Composição Auxiliar | B66: 88316 | C66: SINAPI | D66: SERVENTE COM ENCARGOS COMPLEMENTARES | E66: SEDI - SERVIÇOS DIVERSOS | G66: H | H66: 7.4 | I66: 20.47 | J66: 151.48
A67: Insumo | B67: 00000124 | C67: SINAPI | D67: ADITIVO ACELERADOR DE PEGA E ENDURECIMENTO PARA ARGAMASSAS E CONCRETOS, LIQUIDO E ISENTO DE CLORETOS | E67: Material | G67: L | H67: 5 | I67: 21.48 | J67: =ROUND(H67*I67,2) -> 107.4
A70: 3.6 | B70: Código | C70: Banco | D70: Descrição | E70: Tipo | G70: Und | H70: Quant. | I70: Valor Unit | J70: Total
A71: Composição | B71: COMPOSIÇÃO - 014 | C71: Próprio | D71: Serviço de instalação de laje sanitária com dimensões (1,5x1,5x0,3) , incluso material. | E71: SEDI - SERVIÇOS DIVERSOS | G71: un | H71: 1 | I71: =J71 -> 645.8 | J71: =SUM(J72:J75) -> 645.8
A72: Composição Auxiliar | B72: 92522 | C72: SINAPI | D72: MONTAGEM E DESMONTAGEM DE FÔRMA DE LAJE MACIÇA, PÉ-DIREITO SIMPLES, EM CHAPA DE MADEIRA COMPENSADA RESINADA, 8 UTILIZAÇÕES. AF_09/2020 | E72: FUES - FUNDAÇÕES E ESTRUTURAS | G72: m² | H72: 1.8 | I72: 46.25 | J72: =ROUND(H72*I72,2) -> 83.25
A73: Composição Auxiliar | B73: 93358 | C73: SINAPI | D73: ESCAVAÇÃO MANUAL DE VALA COM PROFUNDIDADE MENOR OU IGUAL A 1,30 M. AF_02/2021 | E73: MOVT - MOVIMENTO DE TERRA | G73: m³ | H73: 0.225 | I73: 80.98 | J73: 18.22
A74: Composição Auxiliar | B74: 94975 | C74: SINAPI | D74: CONCRETO FCK = 15MPA, TRAÇO 1:3,4:3,5 (EM MASSA SECA DE CIMENTO/ AREIA MÉDIA/ BRITA 1) - PREPARO MANUAL. AF_05/2021 | E74: FUES - FUNDAÇÕES E ESTRUTURAS | G74: m³ | H74: 0.675 | I74: 520.42 | J74: 351.28
A75: Composição Auxiliar | B75: 103670 | C75: SINAPI | D75: LANÇAMENTO COM USO DE BALDES, ADENSAMENTO E ACABAMENTO DE CONCRETO EM ESTRUTURAS. AF_02/2022 | E75: FUES - FUNDAÇÕES E ESTRUTURAS | G75: m³ | H75: 0.675 | I75: 286 | J75: 193.05
A78: 4 | D78: PÓS PERFURAÇÃO
A81: 4.3 | B81: Código | C81: Banco | D81: Descrição | E81: Tipo | G81: Und | H81: Quant. | I81: Valor Unit | J81: Total
A82: Composição | B82: COMPOSIÇÃO - 015 | C82: Próprio | D82: Inspeção ótica em poço tubular câmera com rotação de 360º, visada lateral, com fonte própria de luz, entregue vídeo em cores e marcação de profundidades. | E82: SEES - SERVIÇOS ESPECIAIS | G82: m | H82: 1 | I82: =J82 -> 38.05 | J82: =SUM(J83:J87) -> 38.05
A83: Insumo | B83: H020050004 | C83: EMBASA | D83: APARELHO DE PERFILAGEM OPTICA | E83: Material | G83: M | H83: 1 | I83: 4.4 | J83: =ROUND(H83*I83,2) -> 4.4
A84: Insumo | B84: B590000022 | C84: EMBASA | D84: TECNICO MEDIO | E84: Mão de Obra | G84: H | H84: 0.0835 | I84: 48.54 | J84: 4.05
A85: Insumo | B85: B590000028 | C85: EMBASA | D85: AUXILIAR TECNICO | E85: Mão de Obra | G85: H | H85: 0.0835 | I85: 22.47 | J85: 1.88
A86: Insumo | B86: F020000340 | C86: EMBASA | D86: DIÁRIA PARA PROFISSIONAL (INTERIOR) | E86: Material | G86: DIA | H86: 0.021 | I86: 227 | J86: 4.77
A87: Insumo | B87: F030000250 | C87: EMBASA | D87: LOCAÇÃO DE VEÍCULO PICK UP TIPO SAVEIRO OU SIMILAR | E87: Material | G87: DIA | H87: 0.25 | I87: 91.8 | J87: 22.95
A91: 5 | D91: RESERVAÇÃO
A92: 5.1 | B92: Código | C92: Banco | D92: Descrição | E92: Tipo | G92: Und | H92: Quant. | I92: Valor Unit | J92: Total
A93: Composição | B93: COMPOSIÇÃO - 016 | C93: Próprio | D93: Execução e instalação de base de sustentação em concreto armado para reservatório de diâmetro 2,06m e altura 1,10m, conforme projeto, incluindo fixação de grampos da tampa. | E93: SEDI - SERVIÇOS DIVERSOS | G93: un | H93: 1 | I93: =J93 -> 2888.13 | J93: =SUM(J94:J112) -> 2888.13
A94: Composição Auxiliar | B94: 5928 | C94: SINAPI | D94: GUINDAUTO HIDRÁULICO, CAPACIDADE MÁXIMA DE CARGA 6200 KG, MOMENTO MÁXIMO DE CARGA 11,7 TM, ALCANCE MÁXIMO HORIZONTAL 9,70 M, INCLUSIVE CAMINHÃO TOCO PBT 16.000 KG, POTÊNCIA DE 189 CV - CHP DIURNO. AF_06/2014 | E94: CHOR - CUSTOS HORÁRIOS DE MÁQUINAS E EQUIPAMENTOS | G94: CHP | H94: 2.5 | I94: 280.27 | J94: =ROUND(H94*I94,2) -> 700.68
A95: Composição Auxiliar | B95: 88310 | C95: SINAPI | D95: PINTOR COM ENCARGOS COMPLEMENTARES | E95: SEDI - SERVIÇOS DIVERSOS | G95: H | H95: 0.3 | I95: 28.43 | J95: 8.53
A96: Composição Auxiliar | B96: 100301 | C96: SINAPI | D96: AJUDANTE DE PINTOR COM ENCARGOS COMPLEMENTARES | E96: SEDI - SERVIÇOS DIVERSOS | G96: H | H96: 0.1 | I96: 23.34 | J96: 2.33
A97: Composição Auxiliar | B97: 88309 | C97: SINAPI | D97: PEDREIRO COM ENCARGOS COMPLEMENTARES | E97: SEDI - SERVIÇOS DIVERSOS | G97: H | H97: 5.55 | I97: 27.21 | J97: 151.02
A98: Composição Auxiliar | B98: 88316 | C98: SINAPI | D98: SERVENTE COM ENCARGOS COMPLEMENTARES | E98: SEDI - SERVIÇOS DIVERSOS | G98: H | H98: 10 | I98: 20.47 | J98: 204.7
A99: Composição Auxiliar | B99: 88245 | C99: SINAPI | D99: ARMADOR COM ENCARGOS COMPLEMENTARES | E99: SEDI - SERVIÇOS DIVERSOS | G99: H | H99: 3 | I99: 27.08 | J99: 81.24
A100: Composição Auxiliar | B100: 88262 | C100: SINAPI | D100: CARPINTEIRO DE FORMAS COM ENCARGOS COMPLEMENTARES | E100: SEDI - SERVIÇOS DIVERSOS | G100: H | H100: 2 | I100: 26.84 | J100: 53.68
A101: Composição Auxiliar | B101: 87445 | C101: SINAPI | D101: BETONEIRA CAPACIDADE NOMINAL 400 L, CAPACIDADE DE MISTURA 310 L, MOTOR A DIESEL POTÊNCIA 5,0 HP, SEM CARREGADOR - CHP DIURNO. AF_05/2023 | E101: CHOR - CUSTOS HORÁRIOS DE MÁQUINAS E EQUIPAMENTOS | G101: CHP | H101: 2.8548 | I101: 5.17 | J101: 14.76
A102: Composição Auxiliar | B102: 88377 | C102: SINAPI | D102: OPERADOR DE BETONEIRA ESTACIONÁRIA/MISTURADOR COM ENCARGOS COMPLEMENTARES | E102: SEDI - SERVIÇOS DIVERSOS | G102: H | H102: 2.8548 | I102: 20.85 | J102: 59.52
A103: Insumo | B103: 00007155 | C103: SINAPI | D103: TELA DE ACO SOLDADA NERVURADA, CA-60, Q-138, (2,20 KG/M2), DIAMETRO DO FIO = 4,2 MM, LARGURA = 2,45 M, ESPACAMENTO DA MALHA = 10 X 10 CM | E103: Material | G103: m² | H103: 6 | I103: 16.64 | J103: 99.84
A104: Insumo | B104: 00000370 | C104: SINAPI | D104: AREIA MEDIA - POSTO JAZIDA/FORNECEDOR (RETIRADO NA JAZIDA, SEM TRANSPORTE) | E104: Material | G104: m³ | H104: 1.36 | I104: 140 | J104: 190.4
A105: Insumo | B105: 00001379 | C105: SINAPI | D105: CIMENTO PORTLAND COMPOSTO CP II-32 | E105: Material | G105: KG | H105: 565.75 | I105: 0.78 | J105: 441.29
A106: Insumo | B106: 00004718 | C106: SINAPI | D106: PEDRA BRITADA N. 2 (19 A 38 MM) POSTO PEDREIRA/FORNECEDOR, SEM FRETE | E106: Material | G106: m³ | H106: 0.33 | I106: 105.81 | J106: 34.92
A107: Insumo | B107: 00004721 | C107: SINAPI | D107: PEDRA BRITADA N. 1 (9,5 a 19 MM) POSTO PEDREIRA/FORNECEDOR, SEM FRETE | E107: Material | G107: m³ | H107: 0.98 | I107: 105.25 | J107: 103.15
A108: Insumo | B108: 00003767 | C108: SINAPI | D108: LIXA EM FOLHA PARA PAREDE OU MADEIRA, NUMERO 120, COR VERMELHA | E108: Material | G108: UN | H108: 0.12 | I108: 0.71 | J108: 0.09
A109: Insumo | B109: 00007356 | C109: SINAPI | D109: TINTA LATEX ACRILICA PREMIUM, COR BRANCO FOSCO | E109: Material | G109: L | H109: 0.18 | I109: 18.22 | J109: 3.28
A110: Insumo | B110: 00000032 | C110: SINAPI | D110: ACO CA-50, 6,3 MM, VERGALHAO | E110: Material | G110: KG | H110: 9.3 | I110: 9.23 | J110: 85.84
A111: Insumo | B111: 00043059 | C111: SINAPI | D111: ACO CA-60, 4,2 MM, OU 5,0 MM, OU 6,0 MM, OU 7,0 MM, VERGALHAO | E111: Material | G111: KG | H111: 3.04 | I111: 8.28 | J111: 25.17
A112: Insumo | B112: 00043681 | C112: SINAPI | D112: CHAPA/PAINEL DE MADEIRA COMPENSADA RESINADA (MADEIRITE RESINADO ROSA) PARA FORMA DE CONCRETO, DE 2200 x 1100 MM, E = 8 A 12 MM | E112: Material | G112: m² | H112: 17.46 | I112: 35.95 | J112: 627.69
A116: 6 | D116: BEBEDOURO
A117: 6.1 | B117: Código | C117: Banco | D117: Descrição | E117: Tipo | G117: Und | H117: Quant. | I117: Valor Unit | J117: Total
A118: Composição | B118: COMPOSIÇÃO - 017 | C118: Próprio | D118: Serviço de execução do bebedouro em concreto armado, incluso materiais. | E118: SEDI - SERVIÇOS DIVERSOS | G118: un | H118: 1 | I118: =J118 -> 1626.85 | J118: =SUM(J119:J137) -> 1626.85
A119: Composição Auxiliar | B119: 5928 | C119: SINAPI | D119: GUINDAUTO HIDRÁULICO, CAPACIDADE MÁXIMA DE CARGA 6200 KG, MOMENTO MÁXIMO DE CARGA 11,7 TM, ALCANCE MÁXIMO HORIZONTAL 9,70 M, INCLUSIVE CAMINHÃO TOCO PBT 16.000 KG, POTÊNCIA DE 189 CV - CHP DIURNO. AF_06/2014 | E119: CHOR - CUSTOS HORÁRIOS DE MÁQUINAS E EQUIPAMENTOS | G119: CHP | H119: 2 | I119: 280.27 | J119: =ROUND(H119*I119,2) -> 560.54
A120: Composição Auxiliar | B120: 87445 | C120: SINAPI | D120: BETONEIRA CAPACIDADE NOMINAL 400 L, CAPACIDADE DE MISTURA 310 L, MOTOR A DIESEL POTÊNCIA 5,0 HP, SEM CARREGADOR - CHP DIURNO. AF_05/2023 | E120: CHOR - CUSTOS HORÁRIOS DE MÁQUINAS E EQUIPAMENTOS | G120: CHP | H120: 0.5 | I120: 5.17 | J120: 2.59
A121: Composição Auxiliar | B121: 88377 | C121: SINAPI | D121: OPERADOR DE BETONEIRA ESTACIONÁRIA/MISTURADOR COM ENCARGOS COMPLEMENTARES | E121: SEDI - SERVIÇOS DIVERSOS | G121: H | H121: 0.5 | I121: 20.85 | J121: 10.43
A122: Composição Auxiliar | B122: 88310 | C122: SINAPI | D122: PINTOR COM ENCARGOS COMPLEMENTARES | E122: SEDI - SERVIÇOS DIVERSOS | G122: H | H122: 0.3 | I122: 28.43 | J122: 8.53
A123: Composição Auxiliar | B123: 100301 | C123: SINAPI | D123: AJUDANTE DE PINTOR COM ENCARGOS COMPLEMENTARES | E123: SEDI - SERVIÇOS DIVERSOS | G123: H | H123: 0.1 | I123: 23.34 | J123: 2.33
A124: Composição Auxiliar | B124: 88245 | C124: SINAPI | D124: ARMADOR COM ENCARGOS COMPLEMENTARES | E124: SEDI - SERVIÇOS DIVERSOS | G124: H | H124: 3 | I124: 27.08 | J124: 81.24
A125: Composição Auxiliar | B125: 88262 | C125: SINAPI | D125: CARPINTEIRO DE FORMAS COM ENCARGOS COMPLEMENTARES | E125: SEDI - SERVIÇOS DIVERSOS | G125: H | H125: 2 | I125: 26.84 | J125: 53.68
A126: Composição Auxiliar | B126: 88316 | C126: SINAPI | D126: SERVENTE COM ENCARGOS COMPLEMENTARES | E126: SEDI - SERVIÇOS DIVERSOS | G126: H | H126: 5 | I126: 20.47 | J126: 102.35
A127: Composição Auxiliar | B127: 88309 | C127: SINAPI | D127: PEDREIRO COM ENCARGOS COMPLEMENTARES | E127: SEDI - SERVIÇOS DIVERSOS | G127: H | H127: 4 | I127: 27.21 | J127: 108.84
A128: Insumo | B128: 00043055 | C128: SINAPI | D128: ACO CA-50, 12,5 MM OU 16,0 MM, VERGALHAO | E128: Material | G128: KG | H128: 12 | I128: 7.58 | J128: 90.96
A129: Insumo | B129: 00043059 | C129: SINAPI | D129: ACO CA-60, 4,2 MM, OU 5,0 MM, OU 6,0 MM, OU 7,0 MM, VERGALHAO | E129: Material | G129: KG | H129: 13 | I129: 8.28 | J129: 107.64
A130: Insumo | B130: 00000032 | C130: SINAPI | D130: ACO CA-50, 6,3 MM, VERGALHAO | E130: Material | G130: KG | H130: 6 | I130: 9.23 | J130: 55.38
A131: Insumo | B131: 00000370 | C131: SINAPI | D131: AREIA MEDIA - POSTO JAZIDA/FORNECEDOR (RETIRADO NA JAZIDA, SEM TRANSPORTE) | E131: Material | G131: m³ | H131: 0.32 | I131: 140 | J131: 44.8
A132: Insumo | B132: 00001379 | C132: SINAPI | D132: CIMENTO PORTLAND COMPOSTO CP II-32 | E132: Material | G132: KG | H132: 127 | I132: 0.78 | J132: 99.06
A133: Insumo | B133: 00004718 | C133: SINAPI | D133: PEDRA BRITADA N. 2 (19 A 38 MM) POSTO PEDREIRA/FORNECEDOR, SEM FRETE | E133: Material | G133: m³ | H133: 0.08 | I133: 105.81 | J133: 8.46
A134: Insumo | B134: 00004721 | C134: SINAPI | D134: PEDRA BRITADA N. 1 (9,5 a 19 MM) POSTO PEDREIRA/FORNECEDOR, SEM FRETE | E134: Material | G134: m³ | H134: 0.23 | I134: 105.25 | J134: 24.21
A135: Insumo | B135: 00003767 | C135: SINAPI | D135: LIXA EM FOLHA PARA PAREDE OU MADEIRA, NUMERO 120, COR VERMELHA | E135: Material | G135: UN | H135: 0.12 | I135: 0.71 | J135: 0.09
A136: Insumo | B136: 00007356 | C136: SINAPI | D136: TINTA LATEX ACRILICA PREMIUM, COR BRANCO FOSCO | E136: Material | G136: L | H136: 0.18 | I136: 18.22 | J136: 3.28
A137: Insumo | B137: 00043681 | C137: SINAPI | D137: CHAPA/PAINEL DE MADEIRA COMPENSADA RESINADA (MADEIRITE RESINADO ROSA) PARA FORMA DE CONCRETO, DE 2200 x 1100 MM, E = 8 A 12 MM | E137: Material | G137: m² | H137: 7.3 | I137: 35.95 | J137: 262.44
A140: 7 | D140: INSTALAÇÕES HIDRÁULICAS
A141: 7.1 | D141: INSTALAÇÕES DE CAVALETE
A142: 7.1.1 | B142: Código | C142: Banco | D142: Descrição | E142: Tipo | G142: Und | H142: Quant. | I142: Valor Unit | J142: Total
A143: Composição | B143: COMPOSIÇÃO - 018 | C143: Próprio | D143: Montagem e Instalação de Tubulação e Conexões Cavalete | E143: INHI - INSTALAÇÕES HIDROS SANITÁRIAS | G143: un | H143: 1 | I143: =J143 -> 258.37 | J143: =SUM(J144:J147) -> 258.37
A144: Composição Auxiliar | B144: 88248 | C144: SINAPI | D144: AUXILIAR DE ENCANADOR OU BOMBEIRO HIDRÁULICO COM ENCARGOS COMPLEMENTARES | E144: SEDI - SERVIÇOS DIVERSOS | G144: H | H144: 3 | I144: 21.36 | J144: =ROUND(H144*I144,2) -> 64.08
A145: Composição Auxiliar | B145: 88267 | C145: SINAPI | D145: ENCANADOR OU BOMBEIRO HIDRÁULICO COM ENCARGOS COMPLEMENTARES | E145: SEDI - SERVIÇOS DIVERSOS | G145: H | H145: 3 | I145: 26.47 | J145: 79.41
A146: Insumo | B146: 00000122 | C146: SINAPI | D146: ADESIVO PLASTICO PARA PVC, FRASCO COM *850* GR | E146: Material | G146: UN | H146: 1 | I146: 53.86 | J146: 53.86
A147: Insumo | B147: 00020083 | C147: SINAPI | D147: SOLUCAO PREPARADORA / LIMPADORA PARA PVC, FRASCO COM 1000 CM3 | E147: Material | G147: UN | H147: 1 | I147: 61.02 | J147: 61.02
A151: 7.2 | D151: INSTALAÇÕES DE ADUTORA, RESERVATÓRIO E BEBEDOURO
A152: 7.2.1 | B152: Código | C152: Banco | D152: Descrição | E152: Tipo | G152: Und | H152: Quant. | I152: Valor Unit | J152: Total
A153: Composição | B153: COMPOSIÇÃO - 020 | C153: Próprio | D153: Montagem e instalação da rede adutora poço-reservatório-bebedouro | E153: SEDI - SERVIÇOS DIVERSOS | G153: un | H153: 1 | I153: =J153 -> 981.88 | J153: =SUM(J154:J159) -> 981.88
A154: Composição Auxiliar | B154: 88316 | C154: SINAPI | D154: SERVENTE COM ENCARGOS COMPLEMENTARES | E154: SEDI - SERVIÇOS DIVERSOS | G154: H | H154: 6 | I154: 20.47 | J154: =ROUND(H154*I154,2) -> 122.82
A155: Composição Auxiliar | B155: 96995 | C155: SINAPI | D155: REATERRO MANUAL APILOADO COM SOQUETE. AF_10/2017 | E155: MOVT - MOVIMENTO DE TERRA | G155: m³ | H155: 4.5 | I155: 49.1 | J155: 220.95
A156: Composição Auxiliar | B156: 93358 | C156: SINAPI | D156: ESCAVAÇÃO MANUAL DE VALA COM PROFUNDIDADE MENOR OU IGUAL A 1,30 M. AF_02/2021 | E156: MOVT - MOVIMENTO DE TERRA | G156: m³ | H156: 4.5 | I156: 80.98 | J156: 364.41
A157: Composição Auxiliar | B157: 88267 | C157: SINAPI | D157: ENCANADOR OU BOMBEIRO HIDRÁULICO COM ENCARGOS COMPLEMENTARES | E157: SEDI - SERVIÇOS DIVERSOS | G157: H | H157: 6 | I157: 26.47 | J157: 158.82
A158: Insumo | B158: 00000122 | C158: SINAPI | D158: ADESIVO PLASTICO PARA PVC, FRASCO COM *850* GR | E158: Material | G158: UN | H158: 1 | I158: 53.86 | J158: 53.86
A159: Insumo | B159: 00020083 | C159: SINAPI | D159: SOLUCAO PREPARADORA / LIMPADORA PARA PVC, FRASCO COM 1000 CM3 | E159: Material | G159: UN | H159: 1 | I159: 61.02 | J159: 61.02
A163: 8 | D163: FORNECIMENTO E INSTALAÇÃO DE SISTEMA FOTOVOLTAÍCO
A164: 8.1 | D164: INSTALAÇÕES HIDRÁULICAS
A165: 8.1.1 | B165: Código | C165: Banco | D165: Descrição | E165: Tipo | G165: Und | H165: Quant. | I165: Valor Unit | J165: Total
A166: Composição | B166: COMPOSIÇÃO - 019 | C166: Próprio | D166: Montagem e instalação hidráulica do kit de bombeamento | E166: INHI - INSTALAÇÕES HIDROS SANITÁRIAS | G166: un | H166: 1 | I166: =J166 -> 143.49 | J166: =SUM(J167:J168) -> 143.49
A167: Composição Auxiliar | B167: 88267 | C167: SINAPI | D167: ENCANADOR OU BOMBEIRO HIDRÁULICO COM ENCARGOS COMPLEMENTARES | E167: SEDI - SERVIÇOS DIVERSOS | G167: H | H167: 3 | I167: 26.47 | J167: =ROUND(H167*I167,2) -> 79.41
A168: Composição Auxiliar | B168: 88248 | C168: SINAPI | D168: AUXILIAR DE ENCANADOR OU BOMBEIRO HIDRÁULICO COM ENCARGOS COMPLEMENTARES | E168: SEDI - SERVIÇOS DIVERSOS | G168: H | H168: 3 | I168: 21.36 | J168: 64.08
A172: 8.2 | D172: INSTALAÇÕES ELÉTRICAS
A173: 8.2.1 | B173: Código | C173: Banco | D173: Descrição | E173: Tipo | G173: Und | H173: Quant. | I173: Valor Unit | J173: Total
A174: Composição | B174: COMPOSIÇÃO - 021 | C174: Próprio | D174: Montagem e instalação elétrica do kit de bombeamento e sistema fotovoltaico inclusive sistema de aterramento. | E174: INEL - INSTALAÇÃO ELÉTRICA/ELETRIFICAÇÃO E ILUMINAÇÃO EXTERNA | G174: un | H174: 1 | I174: =J174 -> 525.08 | J174: =SUM(J175:J179) -> 525.08
A175: Composição Auxiliar | B175: 88264 | C175: SINAPI | D175: ELETRICISTA COM ENCARGOS COMPLEMENTARES | E175: SEDI - SERVIÇOS DIVERSOS | G175: H | H175: 8 | I175: 27.53 | J175: =ROUND(H175*I175,2) -> 220.24
A176: Composição Auxiliar | B176: 88247 | C176: SINAPI | D176: AUXILIAR DE ELETRICISTA COM ENCARGOS COMPLEMENTARES | E176: SEDI - SERVIÇOS DIVERSOS | G176: H | H176: 8 | I176: 22.32 | J176: 178.56
A177: Composição Auxiliar | B177: 91677 | C177: SINAPI | D177: ENGENHEIRO ELETRICISTA COM ENCARGOS COMPLEMENTARES | E177: SEDI - SERVIÇOS DIVERSOS | G177: H | H177: 1 | I177: 115.05 | J177: 115.05
A178: Insumo | B178: 00020111 | C178: SINAPI | D178: FITA ISOLANTE ADESIVA ANTICHAMA, USO ATE 750 V, EM ROLO DE 19 MM X 20 M | E178: Material | G178: UN | H178: 1 | I178: 9.89 | J178: 9.89
